Workbook

Sheet Introduction
C4: Joint Monitoring Programme for Water Supply, Sanitation and Hygiene
C6: Estimates on household water, sanitation and hygiene by wealth quintile and sub-national region in
C7: =+Water!B5 -> Tonga
C9: Updated May 2021
C11: Follow the links below to find the following information:
C13: JMP Estimates
C14: WASH status and trends by wealth quintile (customized quintiles made without water and sanitation assets)
C15: Water
C16: Sanitation
C17: Hygiene
C19: Data inputs
C20: customized wealth quintiles and subnational data:
C21: =IF(INDIRECT(CONCATENATE("Water","!B105"))=0,"",INDIRECT(CONCATENATE("Water","!B105"))) -> MICS19
C22: =IF(INDIRECT(CONCATENATE("Water","!B106"))=0,"",INDIRECT(CONCATENATE("Water","!B106"))) -> 
C23: =IF(INDIRECT(CONCATENATE("Water","!B107"))=0,"",INDIRECT(CONCATENATE("Water","!B107"))) -> 
C24: =IF(INDIRECT(CONCATENATE("Water","!B108"))=0,"",INDIRECT(CONCATENATE("Water","!B108"))) -> 
C25: =IF(INDIRECT(CONCATENATE("Water","!B109"))=0,"",INDIRECT(CONCATENATE("Water","!B109"))) -> 
C26: =IF(INDIRECT(CONCATENATE("Water","!B110"))=0,"",INDIRECT(CONCATENATE("Water","!B110"))) -> 
C27: =IF(INDIRECT(CONCATENATE("Water","!B111"))=0,"",INDIRECT(CONCATENATE("Water","!B111"))) -> 
C28: =IF(INDIRECT(CONCATENATE("Water","!B112"))=0,"",INDIRECT(CONCATENATE("Water","!B112"))) -> 
C29: =IF(INDIRECT(CONCATENATE("Water","!B113"))=0,"",INDIRECT(CONCATENATE("Water","!B113"))) -> 
C30: =IF(INDIRECT(CONCATENATE("Water","!B114"))=0,"",INDIRECT(CONCATENATE("Water","!B114"))) -> 
C31: =IF(INDIRECT(CONCATENATE("Water","!B115"))=0,"",INDIRECT(CONCATENATE("Water","!B115"))) -> 
C32: =IF(INDIRECT(CONCATENATE("Water","!B116"))=0,"",INDIRECT(CONCATENATE("Water","!B116"))) -> 
L55: =+IF(ISNUMBER(M48), "", "Insufficient data to estimate safely managed sanitation services at national level") -> Insufficient data to estimate safely managed sanitation services at national level

Sheet Water
A1: BGD
B4: Summary of trends in use of drinking water by wealth quintile (%)
B5: =IF(ISERROR(INDIRECT(CONCATENATE($B105,"!A2"))),"",INDIRECT(CONCATENATE($B105,"!A2"))) -> Tonga
B7: =B118 -> National use of drinking water sources, 2015–2020 | J7: =B218 -> Urban use of drinking water sources, 2015–2020 | R7: =B318 -> Rural use of drinking water sources, 2015–2020
B31: =IF(ISERROR(INDIRECT(CONCATENATE($B105,"!A2"))),"",INDIRECT(CONCATENATE($B105,"!A2"))) -> Tonga | F31: Poorest | J31: Poor | N31: Middle | R31: Rich | V31: Richest
F32: Basic | G32: Limited | H32: Unimproved | I32: Surface water | J32: Basic | K32: Limited | L32: Unimproved | M32: Surface water | N32: Basic | O32: Limited | P32: Unimproved | Q32: Surface water | R32: Basic | S32: Limited | T32: Unimproved | U32: Surface water | V32: Basic | W32: Limited | X32: Unimproved | Y32: Surface water
B33: NATIONAL | D33: Estimate | E33: =C99 -> 2015 | F33: =E99 -> 99.49425586 | G33: =F99 -> 0 | H33: 0.5057441357 | I33: 0 | J33: =J99 -> 98.45475212 | K33: =K99 -> 0 | L33: 1.545247879 | M33: 0 | N33: =O99 -> 98.37363724 | O33: =P99 -> 0 | P33: 1.62636276 | Q33: 0 | R33: =T99 -> 99.33442192 | S33: =U99 -> 0 | T33: 0.6655780798 | U33: 0 | V33: =Y99 -> 99.50972514 | W33: =Z99 -> 0 | X33: 0.4902748637 | Y33: 0
E34: =C100 -> 2020 | F34: =E100 -> 99.49425586 | G34: 0 | H34: 0.5057441357 | I34: 0 | J34: =J100 -> 98.45475212 | K34: 0 | L34: 1.545247879 | M34: 0 | N34: =O100 -> 98.37363724 | O34: 0 | P34: 1.62636276 | Q34: 0 | R34: =T100 -> 99.33442192 | S34: 0 | T34: 0.6655780798 | U34: 0 | V34: =Y100 -> 99.50972514 | W34: 0 | X34: 0.4902748637 | Y34: 0
B36: URBAN | D36: Estimate | E36: =C199 -> 2015 | F36: =E199 -> 98.11959593 | G36: =F199 -> 0 | H36: 1.880404065 | I36: 0 | J36: =J199 -> 97.90993735 | K36: =K199 -> 0 | L36: 2.090062654 | M36: 0 | N36: =O199 -> 100 | O36: =P199 -> 0 | P36: 0 | Q36: 0 | R36: =T199 -> 100 | S36: =U199 -> 0 | T36: 0 | U36: 0 | V36: =Y199 -> 100 | W36: =Z199 -> 0 | X36: 0 | Y36: 0
E37: =C200 -> 2020 | F37: =E200 -> 98.11959593 | G37: 0 | H37: 1.880404065 | I37: 0 | J37: =J200 -> 97.90993735 | K37: 0 | L37: 2.090062654 | M37: 0 | N37: =O200 -> 100 | O37: 0 | P37: 0 | Q37: 0 | R37: =T200 -> 100 | S37: 0 | T37: 0 | U37: 0 | V37: =Y200 -> 100 | W37: 0 | X37: 0 | Y37: 0
B39: RURAL | D39: Estimate | E39: =C299 -> 2015 | F39: =E299 -> 99.4226511 | G39: =F299 -> 0 | H39: 0.5773489034 | I39: 0 | J39: =J299 -> 98.58242904 | K39: =K299 -> 0 | L39: 1.41757096 | M39: 0 | N39: =O299 -> 98.40323523 | O39: =P299 -> 0 | P39: 1.596764765 | Q39: 0 | R39: =T299 -> 99.12899933 | S39: =U299 -> 0 | T39: 0.8710006686 | U39: 0 | V39: =Y299 -> 99.36652627 | W39: =Z299 -> 0 | X39: 0.6334737342 | Y39: 0
E40: =C300 -> 2020 | F40: =E300 -> 99.4226511 | G40: 0 | H40: 0.5773489034 | I40: 0 | J40: =J300 -> 98.58242904 | K40: 0 | L40: 1.41757096 | M40: 0 | N40: =O300 -> 98.40323523 | O40: 0 | P40: 1.596764765 | Q40: 0 | R40: =T300 -> 99.12899933 | S40: 0 | T40: 0.8710006686 | U40: 0 | V40: =Y300 -> 99.36652627 | W40: 0 | X40: 0.6334737342 | Y40: 0
A97: NATIONAL | D97: Poorest | I97: Poor | N97: Middle | S97: Rich | X97: Richest
D98: Improved | E98: Basic | F98: Limited | G98: Unimproved | H98: Surface water | I98: Improved | J98: Basic | K98: Limited | L98: Unimproved | M98: Surface water | N98: Improved | O98: Basic | P98: Limited | Q98: Unimproved | R98: Surface water | S98: Improved | T98: Basic | U98: Limited | V98: Unimproved | W98: Surface water | X98: Improved | Y98: Basic | Z98: Limited | AA98: Unimproved | AB98: Surface water
A99: Forecast period: | C99: 2015 | D99: =IF((D101+H101)>100,D101*100/(D101+H101),D101) -> 99.49425586 | E99: =D99*AVERAGEIF(E105:E116,">0")/100 -> 99.49425586 | F99: =D99*(100-AVERAGEIF(E105:E116,">0"))/100 -> 0 | G99: =100-(E99+F99+H99) -> 0.5057441357 | H99: =IF((D101+H101)>100,H101*100/(D101+H101),H101) -> 0 | I99: =IF((I101+M101)>100,I101*100/(I101+M101),I101) -> 98.45475212 | J99: =I99*AVERAGEIF(J105:J116,">0")/100 -> 98.45475212 | K99: =I99*(100-AVERAGEIF(J105:J116,">0"))/100 -> 0 | L99: =100-(J99+K99+M99) -> 1.545247879 | M99: =IF((I101+M101)>100,M101*100/(I101+M101),M101) -> 0 | N99: =IF((N101+R101)>100,N101*100/(N101+R101),N101) -> 98.37363724 | O99: =N99*AVERAGEIF(O105:O116,">0")/100 -> 98.37363724 | P99: =N99*(100-AVERAGEIF(O105:O116,">0"))/100 -> 0 | Q99: =100-(O99+P99+R99) -> 1.62636276 | R99: =IF((N101+R101)>100,R101*100/(N101+R101),R101) -> 0 | S99: =IF((S101+W101)>100,S101*100/(S101+W101),S101) -> 99.33442192 | T99: =S99*AVERAGEIF(T105:T116,">0")/100 -> 99.33442192 | U99: =S99*(100-AVERAGEIF(T105:T116,">0"))/100 -> 0 | V99: =100-(T99+U99+W99) -> 0.6655780798 | W99: =IF((S101+W101)>100,W101*100/(S101+W101),W101) -> 0 | X99: =IF((X101+AB101)>100,X101*100/(X101+AB101),X101) -> 99.50972514 | Y99: =X99*AVERAGEIF(Y105:Y116,">0")/100 -> 99.50972514 | Z99: =X99*(100-AVERAGEIF(Y105:Y116,">0"))/100 -> 0 | AA99: =100-(Y99+Z99+AB99) -> 0.4902748637 | AB99: =IF((X101+AB101)>100,AB101*100/(X101+AB101),AB101) -> 0
C100: 2020 | D100: =IF((D102+H102)>100,D102*100/(D102+H102),D102) -> 99.49425586 | E100: =D100*AVERAGEIF(E105:E116,">0")/100 -> 99.49425586 | F100: =D100*(100-AVERAGEIF(E105:E116,">0"))/100 -> 0 | G100: =100-(E100+F100+H100) -> 0.5057441357 | H100: =IF((D102+H102)>100,H102*100/(D102+H102),H102) -> 0 | I100: =IF((I102+M102)>100,I102*100/(I102+M102),I102) -> 98.45475212 | J100: =I100*AVERAGEIF(J105:J116,">0")/100 -> 98.45475212 | K100: =I100*(100-AVERAGEIF(J105:J116,">0"))/100 -> 0 | L100: =100-(J100+K100+M100) -> 1.545247879 | M100: =IF((I102+M102)>100,M102*100/(I102+M102),M102) -> 0 | N100: =IF((N102+R102)>100,N102*100/(N102+R102),N102) -> 98.37363724 | O100: =N100*AVERAGEIF(O105:O116,">0")/100 -> 98.37363724 | P100: =N100*(100-AVERAGEIF(O105:O116,">0"))/100 -> 0 | Q100: =100-(O100+P100+R100) -> 1.62636276 | R100: =IF((N102+R102)>100,R102*100/(N102+R102),R102) -> 0 | S100: =IF((S102+W102)>100,S102*100/(S102+W102),S102) -> 99.33442192 | T100: =S100*AVERAGEIF(T105:T116,">0")/100 -> 99.33442192 | U100: =S100*(100-AVERAGEIF(T105:T116,">0"))/100 -> 0 | V100: =100-(T100+U100+W100) -> 0.6655780798 | W100: =IF((S102+W102)>100,W102*100/(S102+W102),W102) -> 0 | X100: =IF((X102+AB102)>100,X102*100/(X102+AB102),X102) -> 99.50972514 | Y100: =X100*AVERAGEIF(Y105:Y116,">0")/100 -> 99.50972514 | Z100: =X100*(100-AVERAGEIF(Y105:Y116,">0"))/100 -> 0 | AA100: =100-(Y100+Z100+AB100) -> 0.4902748637 | AB100: =IF((X102+AB102)>100,AB102*100/(X102+AB102),AB102) -> 0
A101: Regression period: | C101: =MinRegYear(C99,C105:C116) -> 2017 | D101: =IF(MAX(C105:C116)-MIN(C105:C116)<5,AVERAGEIF(C105:C116,">0",D105:D116), IF(FORECAST($C101,D$105:D$116,$C$105:$C$116)<0,0, IF(FORECAST($C101,D$105:D$116,$C$105:$C$116)>100,100, FORECAST($C101,D$105:D$116,$C$105:$C$116)))) -> 99.49425586 | H101: =IF(MAX(C105:C116)-MIN(C105:C116)<5,AVERAGEIF(C105:C116,">0",H105:H116), IF(FORECAST($C101,H$105:H$116,$C$105:$C$116)<0,0, IF(FORECAST($C101,H$105:H$116,$C$105:$C$116)>100,100, FORECAST($C101,H$105:H$116,$C$105:$C$116)))) -> 0 | I101: =IF(MAX(C105:C116)-MIN(C105:C116)<5,AVERAGEIF(C105:C116,">0",I105:I116), IF(FORECAST($C101,I$105:I$116,$C$105:$C$116)<0,0, IF(FORECAST($C101,I$105:I$116,$C$105:$C$116)>100,100, FORECAST($C101,I$105:I$116,$C$105:$C$116)))) -> 98.45475212 | M101: =IF(MAX(C105:C116)-MIN(C105:C116)<5,AVERAGEIF(C105:C116,">0",M105:M116), IF(FORECAST($C101,M$105:M$116,$C$105:$C$116)<0,0, IF(FORECAST($C101,M$105:M$116,$C$105:$C$116)>100,100, FORECAST($C101,M$105:M$116,$C$105:$C$116)))) -> 0 | N101: =IF(MAX(C105:C116)-MIN(C105:C116)<5,AVERAGEIF(C105:C116,">0",N105:N116), IF(FORECAST($C101,N$105:N$116,$C$105:$C$116)<0,0, IF(FORECAST($C101,N$105:N$116,$C$105:$C$116)>100,100, FORECAST($C101,N$105:N$116,$C$105:$C$116)))) -> 98.37363724 | R101: =IF(MAX(C105:C116)-MIN(C105:C116)<5,AVERAGEIF(C105:C116,">0",R105:R116), IF(FORECAST($C101,R$105:R$116,$C$105:$C$116)<0,0, IF(FORECAST($C101,R$105:R$116,$C$105:$C$116)>100,100, FORECAST($C101,R$105:R$116,$C$105:$C$116)))) -> 0 | S101: =IF(MAX(C105:C116)-MIN(C105:C116)<5,AVERAGEIF(C105:C116,">0",S105:S116), IF(FORECAST($C101,S$105:S$116,$C$105:$C$116)<0,0, IF(FORECAST($C101,S$105:S$116,$C$105:$C$116)>100,100, FORECAST($C101,S$105:S$116,$C$105:$C$116)))) -> 99.33442192 | W101: =IF(MAX(C105:C116)-MIN(C105:C116)<5,AVERAGEIF(C105:C116,">0",W105:W116), IF(FORECAST($C101,W$105:W$116,$C$105:$C$116)<0,0, IF(FORECAST($C101,W$105:W$116,$C$105:$C$116)>100,100, FORECAST($C101,W$105:W$116,$C$105:$C$116)))) -> 0 | X101: =IF(MAX(C105:C116)-MIN(C105:C116)<5,AVERAGEIF(C105:C116,">0",X105:X116), IF(FORECAST($C101,X$105:X$116,$C$105:$C$116)<0,0, IF(FORECAST($C101,X$105:X$116,$C$105:$C$116)>100,100, FORECAST($C101,X$105:X$116,$C$105:$C$116)))) -> 99.50972514 | AB101: =IF(MAX(C105:C116)-MIN(C105:C116)<5,AVERAGEIF(C105:C116,">0",AB105:AB116), IF(FORECAST($C101,AB$105:AB$116,$C$105:$C$116)<0,0, IF(FORECAST($C101,AB$105:AB$116,$C$105:$C$116)>100,100, FORECAST($C101,AB$105:AB$116,$C$105:$C$116)))) -> 0
C102: =MaxRegYear(C100,C105:C116) -> 2020 | D102: =IF(MAX(C105:C116)-MIN(C105:C116)<5,AVERAGEIF(C105:C116,">0",D105:D116), IF(FORECAST($C102,D$105:D$116,$C$105:$C$116)<0,0, IF(FORECAST($C102,D$105:D$116,$C$105:$C$116)>100,100, FORECAST($C102,D$105:D$116,$C$105:$C$116)))) -> 99.49425586 | H102: =IF(MAX(C105:C116)-MIN(C105:C116)<5,AVERAGEIF(C105:C116,">0",H105:H116), IF(FORECAST($C102,H$105:H$116,$C$105:$C$116)<0,0, IF(FORECAST($C102,H$105:H$116,$C$105:$C$116)>100,100, FORECAST($C102,H$105:H$116,$C$105:$C$116)))) -> 0 | I102: =IF(MAX(C105:C116)-MIN(C105:C116)<5,AVERAGEIF(C105:C116,">0",I105:I116), IF(FORECAST($C102,I$105:I$116,$C$105:$C$116)<0,0, IF(FORECAST($C102,I$105:I$116,$C$105:$C$116)>100,100, FORECAST($C102,I$105:I$116,$C$105:$C$116)))) -> 98.45475212 | M102: =IF(MAX(C105:C116)-MIN(C105:C116)<5,AVERAGEIF(C105:C116,">0",M105:M116), IF(FORECAST($C102,M$105:M$116,$C$105:$C$116)<0,0, IF(FORECAST($C102,M$105:M$116,$C$105:$C$116)>100,100, FORECAST($C102,M$105:M$116,$C$105:$C$116)))) -> 0 | N102: =IF(MAX(C105:C116)-MIN(C105:C116)<5,AVERAGEIF(C105:C116,">0",N105:N116), IF(FORECAST($C102,N$105:N$116,$C$105:$C$116)<0,0, IF(FORECAST($C102,N$105:N$116,$C$105:$C$116)>100,100, FORECAST($C102,N$105:N$116,$C$105:$C$116)))) -> 98.37363724 | R102: =IF(MAX(C105:C116)-MIN(C105:C116)<5,AVERAGEIF(C105:C116,">0",R105:R116), IF(FORECAST($C102,R$105:R$116,$C$105:$C$116)<0,0, IF(FORECAST($C102,R$105:R$116,$C$105:$C$116)>100,100, FORECAST($C102,R$105:R$116,$C$105:$C$116)))) -> 0 | S102: =IF(MAX(C105:C116)-MIN(C105:C116)<5,AVERAGEIF(C105:C116,">0",S105:S116), IF(FORECAST($C102,S$105:S$116,$C$105:$C$116)<0,0, IF(FORECAST($C102,S$105:S$116,$C$105:$C$116)>100,100, FORECAST($C102,S$105:S$116,$C$105:$C$116)))) -> 99.33442192 | W102: =IF(MAX(C105:C116)-MIN(C105:C116)<5,AVERAGEIF(C105:C116,">0",W105:W116), IF(FORECAST($C102,W$105:W$116,$C$105:$C$116)<0,0, IF(FORECAST($C102,W$105:W$116,$C$105:$C$116)>100,100, FORECAST($C102,W$105:W$116,$C$105:$C$116)))) -> 0 | X102: =IF(MAX(C105:C116)-MIN(C105:C116)<5,AVERAGEIF(C105:C116,">0",X105:X116), IF(FORECAST($C102,X$105:X$116,$C$105:$C$116)<0,0, IF(FORECAST($C102,X$105:X$116,$C$105:$C$116)>100,100, FORECAST($C102,X$105:X$116,$C$105:$C$116)))) -> 99.50972514 | AB102: =IF(MAX(C105:C116)-MIN(C105:C116)<5,AVERAGEIF(C105:C116,">0",AB105:AB116), IF(FORECAST($C102,AB$105:AB$116,$C$105:$C$116)<0,0, IF(FORECAST($C102,AB$105:AB$116,$C$105:$C$116)>100,100, FORECAST($C102,AB$105:AB$116,$C$105:$C$116)))) -> 0
B104: Survey | C104: Year | D104: Improved | E104: % Improved < = 30min | H104: Surface water | I104: Improved | J104: % Improved < = 30min | M104: Surface water | N104: Improved | O104: % Improved < = 30min | R104: Surface water | S104: Improved | T104: % Improved < = 30min | W104: Surface water | X104: Improved | Y104: % Improved < = 30min | AB104: Surface water
B105: MICS19 | C105: 2019 | D105: =IF(ISERROR(INDIRECT(CONCATENATE($B105,"!C16"))),"",INDIRECT(CONCATENATE($B105,"!C16"))) -> 99.49425586 | E105: =IF(ISERROR(INDIRECT(CONCATENATE($B105,"!C23"))),"",INDIRECT(CONCATENATE($B105,"!C23"))) -> 100 | H105: =IF(ISERROR(INDIRECT(CONCATENATE($B105,"!C21"))),"",INDIRECT(CONCATENATE($B105,"!C21"))) -> 0 | I105: =IF(ISERROR(INDIRECT(CONCATENATE($B105,"!D16"))),"",INDIRECT(CONCATENATE($B105,"!D16"))) -> 98.45475212 | J105: =IF(ISERROR(INDIRECT(CONCATENATE($B105,"!D23"))),"",INDIRECT(CONCATENATE($B105,"!D23"))) -> 100 | M105: =IF(ISERROR(INDIRECT(CONCATENATE($B105,"!D21"))),"",INDIRECT(CONCATENATE($B105,"!D21"))) -> 0 | N105: =IF(ISERROR(INDIRECT(CONCATENATE($B105,"!E16"))),"",INDIRECT(CONCATENATE($B105,"!E16"))) -> 98.37363724 | O105: =IF(ISERROR(INDIRECT(CONCATENATE($B105,"!E23"))),"",INDIRECT(CONCATENATE($B105,"!E23"))) -> 100 | R105: =IF(ISERROR(INDIRECT(CONCATENATE($B105,"!E21"))),"",INDIRECT(CONCATENATE($B105,"!E21"))) -> 0 | S105: =IF(ISERROR(INDIRECT(CONCATENATE($B105,"!F16"))),"",INDIRECT(CONCATENATE($B105,"!F16"))) -> 99.33442192 | T105: =IF(ISERROR(INDIRECT(CONCATENATE($B105,"!F23"))),"",INDIRECT(CONCATENATE($B105,"!F23"))) -> 100 | W105: =IF(ISERROR(INDIRECT(CONCATENATE($B105,"!F21"))),"",INDIRECT(CONCATENATE($B105,"!F21"))) -> 0 | X105: =IF(ISERROR(INDIRECT(CONCATENATE($B105,"!G16"))),"",INDIRECT(CONCATENATE($B105,"!G16"))) -> 99.50972514 | Y105: =IF(ISERROR(INDIRECT(CONCATENATE($B105,"!G23"))),"",INDIRECT(CONCATENATE($B105,"!G23"))) -> 100 | AB105: =IF(ISERROR(INDIRECT(CONCATENATE($B105,"!G221"))),"",INDIRECT(CONCATENATE($B105,"!G21"))) -> 0
D111: =IF(ISERROR(INDIRECT(CONCATENATE($B111,"!C16"))),"",INDIRECT(CONCATENATE($B111,"!C16"))) ->  | E111: =IF(ISERROR(INDIRECT(CONCATENATE($B111,"!C23"))),"",INDIRECT(CONCATENATE($B111,"!C23"))) ->  | H111: =IF(ISERROR(INDIRECT(CONCATENATE($B111,"!C21"))),"",INDIRECT(CONCATENATE($B111,"!C21"))) ->  | I111: =IF(ISERROR(INDIRECT(CONCATENATE($B111,"!D16"))),"",INDIRECT(CONCATENATE($B111,"!D16"))) ->  | J111: =IF(ISERROR(INDIRECT(CONCATENATE($B111,"!D23"))),"",INDIRECT(CONCATENATE($B111,"!D23"))) ->  | M111: =IF(ISERROR(INDIRECT(CONCATENATE($B111,"!D21"))),"",INDIRECT(CONCATENATE($B111,"!D21"))) ->  | N111: =IF(ISERROR(INDIRECT(CONCATENATE($B111,"!E16"))),"",INDIRECT(CONCATENATE($B111,"!E16"))) ->  | O111: =IF(ISERROR(INDIRECT(CONCATENATE($B111,"!E23"))),"",INDIRECT(CONCATENATE($B111,"!E23"))) ->  | R111: =IF(ISERROR(INDIRECT(CONCATENATE($B111,"!E21"))),"",INDIRECT(CONCATENATE($B111,"!E21"))) ->  | S111: =IF(ISERROR(INDIRECT(CONCATENATE($B111,"!F16"))),"",INDIRECT(CONCATENATE($B111,"!F16"))) ->  | T111: =IF(ISERROR(INDIRECT(CONCATENATE($B111,"!F23"))),"",INDIRECT(CONCATENATE($B111,"!F23"))) ->  | W111: =IF(ISERROR(INDIRECT(CONCATENATE($B111,"!F21"))),"",INDIRECT(CONCATENATE($B111,"!F21"))) ->  | X111: =IF(ISERROR(INDIRECT(CONCATENATE($B111,"!G16"))),"",INDIRECT(CONCATENATE($B111,"!G16"))) ->  | Y111: =IF(ISERROR(INDIRECT(CONCATENATE($B111,"!G23"))),"",INDIRECT(CONCATENATE($B111,"!G23"))) ->  | AB111: =IF(ISERROR(INDIRECT(CONCATENATE($B111,"!G221"))),"",INDIRECT(CONCATENATE($B111,"!G21"))) -> 
D112: =IF(ISERROR(INDIRECT(CONCATENATE($B112,"!C16"))),"",INDIRECT(CONCATENATE($B112,"!C16"))) ->  | E112: =IF(ISERROR(INDIRECT(CONCATENATE($B112,"!C23"))),"",INDIRECT(CONCATENATE($B112,"!C23"))) ->  | H112: =IF(ISERROR(INDIRECT(CONCATENATE($B112,"!C21"))),"",INDIRECT(CONCATENATE($B112,"!C21"))) ->  | I112: =IF(ISERROR(INDIRECT(CONCATENATE($B112,"!D16"))),"",INDIRECT(CONCATENATE($B112,"!D16"))) ->  | J112: =IF(ISERROR(INDIRECT(CONCATENATE($B112,"!D23"))),"",INDIRECT(CONCATENATE($B112,"!D23"))) ->  | M112: =IF(ISERROR(INDIRECT(CONCATENATE($B112,"!D21"))),"",INDIRECT(CONCATENATE($B112,"!D21"))) ->  | N112: =IF(ISERROR(INDIRECT(CONCATENATE($B112,"!E16"))),"",INDIRECT(CONCATENATE($B112,"!E16"))) ->  | O112: =IF(ISERROR(INDIRECT(CONCATENATE($B112,"!E23"))),"",INDIRECT(CONCATENATE($B112,"!E23"))) ->  | R112: =IF(ISERROR(INDIRECT(CONCATENATE($B112,"!E21"))),"",INDIRECT(CONCATENATE($B112,"!E21"))) ->  | S112: =IF(ISERROR(INDIRECT(CONCATENATE($B112,"!F16"))),"",INDIRECT(CONCATENATE($B112,"!F16"))) ->  | T112: =IF(ISERROR(INDIRECT(CONCATENATE($B112,"!F23"))),"",INDIRECT(CONCATENATE($B112,"!F23"))) ->  | W112: =IF(ISERROR(INDIRECT(CONCATENATE($B112,"!F21"))),"",INDIRECT(CONCATENATE($B112,"!F21"))) ->  | X112: =IF(ISERROR(INDIRECT(CONCATENATE($B112,"!G16"))),"",INDIRECT(CONCATENATE($B112,"!G16"))) ->  | Y112: =IF(ISERROR(INDIRECT(CONCATENATE($B112,"!G23"))),"",INDIRECT(CONCATENATE($B112,"!G23"))) ->  | AB112: =IF(ISERROR(INDIRECT(CONCATENATE($B112,"!G221"))),"",INDIRECT(CONCATENATE($B112,"!G21"))) -> 
B118: =CONCATENATE("National use of drinking water sources, ",C99,"–",C100) -> National use of drinking water sources, 2015–2020 | S118: Data points used for regression
E153: =IF(ISERROR(INDIRECT(CONCATENATE($B153,"!M18"))),"",INDIRECT(CONCATENATE($B153,"!M18"))) ->  | F153: =IF(ISERROR(INDIRECT(CONCATENATE($B153,"!M19"))),"",INDIRECT(CONCATENATE($B153,"!M19"))) ->  | G153: =IF(ISERROR(INDIRECT(CONCATENATE($B153,"!M20"))),"",INDIRECT(CONCATENATE($B153,"!M20"))) ->  | H153: =IF(ISERROR(INDIRECT(CONCATENATE($B153,"!M21"))),"",INDIRECT(CONCATENATE($B153,"!M21"))) ->  | J153: =IF(ISERROR(INDIRECT(CONCATENATE($B153,"!N18"))),"",INDIRECT(CONCATENATE($B153,"!N18"))) ->  | K153: =IF(ISERROR(INDIRECT(CONCATENATE($B153,"!N19"))),"",INDIRECT(CONCATENATE($B153,"!N19"))) ->  | L153: =IF(ISERROR(INDIRECT(CONCATENATE($B153,"!N20"))),"",INDIRECT(CONCATENATE($B153,"!N20"))) ->  | M153: =IF(ISERROR(INDIRECT(CONCATENATE($B153,"!N21"))),"",INDIRECT(CONCATENATE($B153,"!N21"))) ->  | O153: =IF(ISERROR(INDIRECT(CONCATENATE($B153,"!O18"))),"",INDIRECT(CONCATENATE($B153,"!O18"))) ->  | P153: =IF(ISERROR(INDIRECT(CONCATENATE($B153,"!O19"))),"",INDIRECT(CONCATENATE($B153,"!O19"))) ->  | Q153: =IF(ISERROR(INDIRECT(CONCATENATE($B153,"!O20"))),"",INDIRECT(CONCATENATE($B153,"!O20"))) ->  | R153: =IF(ISERROR(INDIRECT(CONCATENATE($B153,"!O21"))),"",INDIRECT(CONCATENATE($B153,"!O21"))) ->  | T153: =IF(ISERROR(INDIRECT(CONCATENATE($B153,"!P18"))),"",INDIRECT(CONCATENATE($B153,"!P18"))) ->  | U153: =IF(ISERROR(INDIRECT(CONCATENATE($B153,"!P19"))),"",INDIRECT(CONCATENATE($B153,"!P19"))) ->  | V153: =IF(ISERROR(INDIRECT(CONCATENATE($B153,"!P20"))),"",INDIRECT(CONCATENATE($B153,"!P20"))) ->  | W153: =IF(ISERROR(INDIRECT(CONCATENATE($B153,"!P21"))),"",INDIRECT(CONCATENATE($B153,"!P21"))) ->  | Y153: =IF(ISERROR(INDIRECT(CONCATENATE($B153,"!Q18"))),"",INDIRECT(CONCATENATE($B153,"!Q18"))) ->  | Z153: =IF(ISERROR(INDIRECT(CONCATENATE($B153,"!Q19"))),"",INDIRECT(CONCATENATE($B153,"!Q19"))) ->  | AA153: =IF(ISERROR(INDIRECT(CONCATENATE($B153,"!Q20"))),"",INDIRECT(CONCATENATE($B153,"!Q20"))) ->  | AB153: =IF(ISERROR(INDIRECT(CONCATENATE($B153,"!Q21"))),"",INDIRECT(CONCATENATE($B153,"!Q1"))) -> 
A197: URBAN | D197: Poorest | I197: Poor | N197: Middle | S197: Rich | X197: Richest
D198: Improved | E198: Basic | F198: Limited | G198: Unimproved | H198: Surface water | I198: Improved | J198: Basic | K198: Limited | L198: Unimproved | M198: Surface water | N198: Improved | O198: Basic | P198: Limited | Q198: Unimproved | R198: Surface water | S198: Improved | T198: Basic | U198: Limited | V198: Unimproved | W198: Surface water | X198: Improved | Y198: Basic | Z198: Limited | AA198: Unimproved | AB198: Surface water
A199: Forecast period: | C199: 2015 | D199: =IF((D201+H201)>100,D201*100/(D201+H201),D201) -> 98.11959593 | E199: =D199*AVERAGEIF(E205:E216,">0")/100 -> 98.11959593 | F199: =D199*(100-AVERAGEIF(E205:E216,">0"))/100 -> 0 | G199: =100-(E199+F199+H199) -> 1.880404065 | H199: =IF((D201+H201)>100,H201*100/(D201+H201),H201) -> 0 | I199: =IF((I201+M201)>100,I201*100/(I201+M201),I201) -> 97.90993735 | J199: =I199*AVERAGEIF(J205:J216,">0")/100 -> 97.90993735 | K199: =I199*(100-AVERAGEIF(J205:J216,">0"))/100 -> 0 | L199: =100-(J199+K199+M199) -> 2.090062654 | M199: =IF((I201+M201)>100,M201*100/(I201+M201),M201) -> 0 | N199: =IF((N201+R201)>100,N201*100/(N201+R201),N201) -> 100 | O199: =N199*AVERAGEIF(O205:O216,">0")/100 -> 100 | P199: =N199*(100-AVERAGEIF(O205:O216,">0"))/100 -> 0 | Q199: =100-(O199+P199+R199) -> 0 | R199: =IF((N201+R201)>100,R201*100/(N201+R201),R201) -> 0 | S199: =IF((S201+W201)>100,S201*100/(S201+W201),S201) -> 100 | T199: =S199*AVERAGEIF(T205:T216,">0")/100 -> 100 | U199: =S199*(100-AVERAGEIF(T205:T216,">0"))/100 -> 0 | V199: =100-(T199+U199+W199) -> 0 | W199: =IF((S201+W201)>100,W201*100/(S201+W201),W201) -> 0 | X199: =IF((X201+AB201)>100,X201*100/(X201+AB201),X201) -> 100 | Y199: =X199*AVERAGEIF(Y205:Y216,">0")/100 -> 100 | Z199: =X199*(100-AVERAGEIF(Y205:Y216,">0"))/100 -> 0 | AA199: =100-(Y199+Z199+AB199) -> 0 | AB199: =IF((X201+AB201)>100,AB201*100/(X201+AB201),AB201) -> 0
C200: 2020 | D200: =IF((D202+H202)>100,D202*100/(D202+H202),D202) -> 98.11959593 | E200: =D200*AVERAGEIF(E205:E216,">0")/100 -> 98.11959593 | F200: =D200*(100-AVERAGEIF(E205:E216,">0"))/100 -> 0 | G200: =100-(E200+F200+H200) -> 1.880404065 | H200: =IF((D202+H202)>100,H202*100/(D202+H202),H202) -> 0 | I200: =IF((I202+M202)>100,I202*100/(I202+M202),I202) -> 97.90993735 | J200: =I200*AVERAGEIF(J205:J216,">0")/100 -> 97.90993735 | K200: =I200*(100-AVERAGEIF(J205:J216,">0"))/100 -> 0 | L200: =100-(J200+K200+M200) -> 2.090062654 | M200: =IF((I202+M202)>100,M202*100/(I202+M202),M202) -> 0 | N200: =IF((N202+R202)>100,N202*100/(N202+R202),N202) -> 100 | O200: =N200*AVERAGEIF(O205:O216,">0")/100 -> 100 | P200: =N200*(100-AVERAGEIF(O205:O216,">0"))/100 -> 0 | Q200: =100-(O200+P200+R200) -> 0 | R200: =IF((N202+R202)>100,R202*100/(N202+R202),R202) -> 0 | S200: =IF((S202+W202)>100,S202*100/(S202+W202),S202) -> 100 | T200: =S200*AVERAGEIF(T205:T216,">0")/100 -> 100 | U200: =S200*(100-AVERAGEIF(T205:T216,">0"))/100 -> 0 | V200: =100-(T200+U200+W200) -> 0 | W200: =IF((S202+W202)>100,W202*100/(S202+W202),W202) -> 0 | X200: =IF((X202+AB202)>100,X202*100/(X202+AB202),X202) -> 100 | Y200: =X200*AVERAGEIF(Y205:Y216,">0")/100 -> 100 | Z200: =X200*(100-AVERAGEIF(Y205:Y216,">0"))/100 -> 0 | AA200: =100-(Y200+Z200+AB200) -> 0 | AB200: =IF((X202+AB202)>100,AB202*100/(X202+AB202),AB202) -> 0
A201: Regression period: | C201: =MinRegYear(C199,C205:C216) -> 2017 | D201: =IF(MAX(C205:C216)-MIN(C205:C216)<5,AVERAGEIF(C205:C216,">0",D205:D216), IF(FORECAST($C201,D$205:D$216,$C$205:$C$216)<0,0, IF(FORECAST($C201,D$205:D$216,$C$205:$C$216)>100,100, FORECAST($C201,D$205:D$216,$C$205:$C$216)))) -> 98.11959593 | H201: =IF(MAX(C205:C216)-MIN(C205:C216)<5,AVERAGEIF(C205:C216,">0",H205:H216), IF(FORECAST($C201,H$205:H$216,$C$205:$C$216)<0,0, IF(FORECAST($C201,H$205:H$216,$C$205:$C$216)>100,100, FORECAST($C201,H$205:H$216,$C$205:$C$216)))) -> 0 | I201: =IF(MAX(C205:C216)-MIN(C205:C216)<5,AVERAGEIF(C205:C216,">0",I205:I216), IF(FORECAST($C201,I$205:I$216,$C$205:$C$216)<0,0, IF(FORECAST($C201,I$205:I$216,$C$205:$C$216)>100,100, FORECAST($C201,I$205:I$216,$C$205:$C$216)))) -> 97.90993735 | M201: =IF(MAX(C205:C216)-MIN(C205:C216)<5,AVERAGEIF(C205:C216,">0",M205:M216), IF(FORECAST($C201,M$205:M$216,$C$205:$C$216)<0,0, IF(FORECAST($C201,M$205:M$216,$C$205:$C$216)>100,100, FORECAST($C201,M$205:M$216,$C$205:$C$216)))) -> 0 | N201: =IF(MAX(C205:C216)-MIN(C205:C216)<5,AVERAGEIF(C205:C216,">0",N205:N216), IF(FORECAST($C201,N$205:N$216,$C$205:$C$216)<0,0, IF(FORECAST($C201,N$205:N$216,$C$205:$C$216)>100,100, FORECAST($C201,N$205:N$216,$C$205:$C$216)))) -> 100 | R201: =IF(MAX(C205:C216)-MIN(C205:C216)<5,AVERAGEIF(C205:C216,">0",R205:R216), IF(FORECAST($C201,R$205:R$216,$C$205:$C$216)<0,0, IF(FORECAST($C201,R$205:R$216,$C$205:$C$216)>100,100, FORECAST($C201,R$205:R$216,$C$205:$C$216)))) -> 0 | S201: =IF(MAX(C205:C216)-MIN(C205:C216)<5,AVERAGEIF(C205:C216,">0",S205:S216), IF(FORECAST($C201,S$205:S$216,$C$205:$C$216)<0,0, IF(FORECAST($C201,S$205:S$216,$C$205:$C$216)>100,100, FORECAST($C201,S$205:S$216,$C$205:$C$216)))) -> 100 | W201: =IF(MAX(C205:C216)-MIN(C205:C216)<5,AVERAGEIF(C205:C216,">0",W205:W216), IF(FORECAST($C201,W$205:W$216,$C$205:$C$216)<0,0, IF(FORECAST($C201,W$205:W$216,$C$205:$C$216)>100,100, FORECAST($C201,W$205:W$216,$C$205:$C$216)))) -> 0 | X201: =IF(MAX(C205:C216)-MIN(C205:C216)<5,AVERAGEIF(C205:C216,">0",X205:X216), IF(FORECAST($C201,X$205:X$216,$C$205:$C$216)<0,0, IF(FORECAST($C201,X$205:X$216,$C$205:$C$216)>100,100, FORECAST($C201,X$205:X$216,$C$205:$C$216)))) -> 100 | AB201: =IF(MAX(C205:C216)-MIN(C205:C216)<5,AVERAGEIF(C205:C216,">0",AB205:AB216), IF(FORECAST($C201,AB$205:AB$216,$C$205:$C$216)<0,0, IF(FORECAST($C201,AB$205:AB$216,$C$205:$C$216)>100,100, FORECAST($C201,AB$205:AB$216,$C$205:$C$216)))) -> 0
C202: =MaxRegYear(C200,C205:C216) -> 2020 | D202: =IF(MAX(C205:C216)-MIN(C205:C216)<5,AVERAGEIF(C205:C216,">0",D205:D216), IF(FORECAST($C202,D$205:D$216,$C$205:$C$216)<0,0, IF(FORECAST($C202,D$205:D$216,$C$205:$C$216)>100,100, FORECAST($C202,D$205:D$216,$C$205:$C$216)))) -> 98.11959593 | H202: =IF(MAX(C205:C216)-MIN(C205:C216)<5,AVERAGEIF(C205:C216,">0",H205:H216), IF(FORECAST($C202,H$205:H$216,$C$205:$C$216)<0,0, IF(FORECAST($C202,H$205:H$216,$C$205:$C$216)>100,100, FORECAST($C202,H$205:H$216,$C$205:$C$216)))) -> 0 | I202: =IF(MAX(C205:C216)-MIN(C205:C216)<5,AVERAGEIF(C205:C216,">0",I205:I216), IF(FORECAST($C202,I$205:I$216,$C$205:$C$216)<0,0, IF(FORECAST($C202,I$205:I$216,$C$205:$C$216)>100,100, FORECAST($C202,I$205:I$216,$C$205:$C$216)))) -> 97.90993735 | M202: =IF(MAX(C205:C216)-MIN(C205:C216)<5,AVERAGEIF(C205:C216,">0",M205:M216), IF(FORECAST($C202,M$205:M$216,$C$205:$C$216)<0,0, IF(FORECAST($C202,M$205:M$216,$C$205:$C$216)>100,100, FORECAST($C202,M$205:M$216,$C$205:$C$216)))) -> 0 | N202: =IF(MAX(C205:C216)-MIN(C205:C216)<5,AVERAGEIF(C205:C216,">0",N205:N216), IF(FORECAST($C202,N$205:N$216,$C$205:$C$216)<0,0, IF(FORECAST($C202,N$205:N$216,$C$205:$C$216)>100,100, FORECAST($C202,N$205:N$216,$C$205:$C$216)))) -> 100 | R202: =IF(MAX(C205:C216)-MIN(C205:C216)<5,AVERAGEIF(C205:C216,">0",R205:R216), IF(FORECAST($C202,R$205:R$216,$C$205:$C$216)<0,0, IF(FORECAST($C202,R$205:R$216,$C$205:$C$216)>100,100, FORECAST($C202,R$205:R$216,$C$205:$C$216)))) -> 0 | S202: =IF(MAX(C205:C216)-MIN(C205:C216)<5,AVERAGEIF(C205:C216,">0",S205:S216), IF(FORECAST($C202,S$205:S$216,$C$205:$C$216)<0,0, IF(FORECAST($C202,S$205:S$216,$C$205:$C$216)>100,100, FORECAST($C202,S$205:S$216,$C$205:$C$216)))) -> 100 | W202: =IF(MAX(C205:C216)-MIN(C205:C216)<5,AVERAGEIF(C205:C216,">0",W205:W216), IF(FORECAST($C202,W$205:W$216,$C$205:$C$216)<0,0, IF(FORECAST($C202,W$205:W$216,$C$205:$C$216)>100,100, FORECAST($C202,W$205:W$216,$C$205:$C$216)))) -> 0 | X202: =IF(MAX(C205:C216)-MIN(C205:C216)<5,AVERAGEIF(C205:C216,">0",X205:X216), IF(FORECAST($C202,X$205:X$216,$C$205:$C$216)<0,0, IF(FORECAST($C202,X$205:X$216,$C$205:$C$216)>100,100, FORECAST($C202,X$205:X$216,$C$205:$C$216)))) -> 100 | AB202: =IF(MAX(C205:C216)-MIN(C205:C216)<5,AVERAGEIF(C205:C216,">0",AB205:AB216), IF(FORECAST($C202,AB$205:AB$216,$C$205:$C$216)<0,0, IF(FORECAST($C202,AB$205:AB$216,$C$205:$C$216)>100,100, FORECAST($C202,AB$205:AB$216,$C$205:$C$216)))) -> 0
B204: Survey | C204: Year | D204: Improved | E204: % Improved < = 30min | H204: Surface water | I204: Improved | J204: % Improved < = 30min | M204: Surface water | N204: Improved | O204: % Improved < = 30min | R204: Surface water | S204: Improved | T204: % Improved < = 30min | W204: Surface water | X204: Improved | Y204: % Improved < = 30min | AB204: Surface water
B205: MICS19 | C205: 2019 | D205: =IF(ISERROR(INDIRECT(CONCATENATE($B205,"!H16"))),"",INDIRECT(CONCATENATE($B205,"!H16"))) -> 98.11959593 | E205: =IF(ISERROR(INDIRECT(CONCATENATE($B205,"!H23"))),"",INDIRECT(CONCATENATE($B205,"!H23"))) -> 100 | H205: =IF(ISERROR(INDIRECT(CONCATENATE($B205,"!H21"))),"",INDIRECT(CONCATENATE($B205,"!H21"))) -> 0 | I205: =IF(ISERROR(INDIRECT(CONCATENATE($B205,"!I16"))),"",INDIRECT(CONCATENATE($B205,"!I16"))) -> 97.90993735 | J205: =IF(ISERROR(INDIRECT(CONCATENATE($B205,"!I23"))),"",INDIRECT(CONCATENATE($B205,"!I23"))) -> 100 | M205: =IF(ISERROR(INDIRECT(CONCATENATE($B205,"!I21"))),"",INDIRECT(CONCATENATE($B205,"!I21"))) -> 0 | N205: =IF(ISERROR(INDIRECT(CONCATENATE($B205,"!J16"))),"",INDIRECT(CONCATENATE($B205,"!J16"))) -> 100 | O205: =IF(ISERROR(INDIRECT(CONCATENATE($B205,"!J23"))),"",INDIRECT(CONCATENATE($B205,"!J23"))) -> 100 | R205: =IF(ISERROR(INDIRECT(CONCATENATE($B205,"!J21"))),"",INDIRECT(CONCATENATE($B205,"!J21"))) -> 0 | S205: =IF(ISERROR(INDIRECT(CONCATENATE($B205,"!K16"))),"",INDIRECT(CONCATENATE($B205,"!K16"))) -> 100 | T205: =IF(ISERROR(INDIRECT(CONCATENATE($B205,"!K23"))),"",INDIRECT(CONCATENATE($B205,"!K23"))) -> 100 | W205: =IF(ISERROR(INDIRECT(CONCATENATE($B205,"!K21"))),"",INDIRECT(CONCATENATE($B205,"!K21"))) -> 0 | X205: =IF(ISERROR(INDIRECT(CONCATENATE($B205,"!L16"))),"",INDIRECT(CONCATENATE($B205,"!L16"))) -> 100 | Y205: =IF(ISERROR(INDIRECT(CONCATENATE($B205,"!L23"))),"",INDIRECT(CONCATENATE($B205,"!L23"))) -> 100 | AB205: =IF(ISERROR(INDIRECT(CONCATENATE($B205,"!L221"))),"",INDIRECT(CONCATENATE($B205,"!L21"))) -> 0
B218: =CONCATENATE("Urban use of drinking water sources, ",C199,"–",C200) -> Urban use of drinking water sources, 2015–2020 | S218: Data points used for regression
E253: =IF(ISERROR(INDIRECT(CONCATENATE($B253,"!M18"))),"",INDIRECT(CONCATENATE($B253,"!M18"))) ->  | F253: =IF(ISERROR(INDIRECT(CONCATENATE($B253,"!M19"))),"",INDIRECT(CONCATENATE($B253,"!M19"))) ->  | G253: =IF(ISERROR(INDIRECT(CONCATENATE($B253,"!M20"))),"",INDIRECT(CONCATENATE($B253,"!M20"))) ->  | H253: =IF(ISERROR(INDIRECT(CONCATENATE($B253,"!M21"))),"",INDIRECT(CONCATENATE($B253,"!M21"))) ->  | J253: =IF(ISERROR(INDIRECT(CONCATENATE($B253,"!N18"))),"",INDIRECT(CONCATENATE($B253,"!N18"))) ->  | K253: =IF(ISERROR(INDIRECT(CONCATENATE($B253,"!N19"))),"",INDIRECT(CONCATENATE($B253,"!N19"))) ->  | L253: =IF(ISERROR(INDIRECT(CONCATENATE($B253,"!N20"))),"",INDIRECT(CONCATENATE($B253,"!N20"))) ->  | M253: =IF(ISERROR(INDIRECT(CONCATENATE($B253,"!N21"))),"",INDIRECT(CONCATENATE($B253,"!N21"))) ->  | O253: =IF(ISERROR(INDIRECT(CONCATENATE($B253,"!O18"))),"",INDIRECT(CONCATENATE($B253,"!O18"))) ->  | P253: =IF(ISERROR(INDIRECT(CONCATENATE($B253,"!O19"))),"",INDIRECT(CONCATENATE($B253,"!O19"))) ->  | Q253: =IF(ISERROR(INDIRECT(CONCATENATE($B253,"!O20"))),"",INDIRECT(CONCATENATE($B253,"!O20"))) ->  | R253: =IF(ISERROR(INDIRECT(CONCATENATE($B253,"!O21"))),"",INDIRECT(CONCATENATE($B253,"!O21"))) ->  | T253: =IF(ISERROR(INDIRECT(CONCATENATE($B253,"!P18"))),"",INDIRECT(CONCATENATE($B253,"!P18"))) ->  | U253: =IF(ISERROR(INDIRECT(CONCATENATE($B253,"!P19"))),"",INDIRECT(CONCATENATE($B253,"!P19"))) ->  | V253: =IF(ISERROR(INDIRECT(CONCATENATE($B253,"!P20"))),"",INDIRECT(CONCATENATE($B253,"!P20"))) ->  | W253: =IF(ISERROR(INDIRECT(CONCATENATE($B253,"!P21"))),"",INDIRECT(CONCATENATE($B253,"!P21"))) ->  | Y253: =IF(ISERROR(INDIRECT(CONCATENATE($B253,"!Q18"))),"",INDIRECT(CONCATENATE($B253,"!Q18"))) ->  | Z253: =IF(ISERROR(INDIRECT(CONCATENATE($B253,"!Q19"))),"",INDIRECT(CONCATENATE($B253,"!Q19"))) ->  | AA253: =IF(ISERROR(INDIRECT(CONCATENATE($B253,"!Q20"))),"",INDIRECT(CONCATENATE($B253,"!Q20"))) ->  | AB253: =IF(ISERROR(INDIRECT(CONCATENATE($B253,"!Q21"))),"",INDIRECT(CONCATENATE($B253,"!Q1"))) -> 
E254: =IF(ISERROR(INDIRECT(CONCATENATE($B254,"!M18"))),"",INDIRECT(CONCATENATE($B254,"!M18"))) ->  | F254: =IF(ISERROR(INDIRECT(CONCATENATE($B254,"!M19"))),"",INDIRECT(CONCATENATE($B254,"!M19"))) ->  | G254: =IF(ISERROR(INDIRECT(CONCATENATE($B254,"!M20"))),"",INDIRECT(CONCATENATE($B254,"!M20"))) ->  | H254: =IF(ISERROR(INDIRECT(CONCATENATE($B254,"!M21"))),"",INDIRECT(CONCATENATE($B254,"!M21"))) ->  | J254: =IF(ISERROR(INDIRECT(CONCATENATE($B254,"!N18"))),"",INDIRECT(CONCATENATE($B254,"!N18"))) ->  | K254: =IF(ISERROR(INDIRECT(CONCATENATE($B254,"!N19"))),"",INDIRECT(CONCATENATE($B254,"!N19"))) ->  | L254: =IF(ISERROR(INDIRECT(CONCATENATE($B254,"!N20"))),"",INDIRECT(CONCATENATE($B254,"!N20"))) ->  | M254: =IF(ISERROR(INDIRECT(CONCATENATE($B254,"!N21"))),"",INDIRECT(CONCATENATE($B254,"!N21"))) ->  | O254: =IF(ISERROR(INDIRECT(CONCATENATE($B254,"!O18"))),"",INDIRECT(CONCATENATE($B254,"!O18"))) ->  | P254: =IF(ISERROR(INDIRECT(CONCATENATE($B254,"!O19"))),"",INDIRECT(CONCATENATE($B254,"!O19"))) ->  | Q254: =IF(ISERROR(INDIRECT(CONCATENATE($B254,"!O20"))),"",INDIRECT(CONCATENATE($B254,"!O20"))) ->  | R254: =IF(ISERROR(INDIRECT(CONCATENATE($B254,"!O21"))),"",INDIRECT(CONCATENATE($B254,"!O21"))) ->  | T254: =IF(ISERROR(INDIRECT(CONCATENATE($B254,"!P18"))),"",INDIRECT(CONCATENATE($B254,"!P18"))) ->  | U254: =IF(ISERROR(INDIRECT(CONCATENATE($B254,"!P19"))),"",INDIRECT(CONCATENATE($B254,"!P19"))) ->  | V254: =IF(ISERROR(INDIRECT(CONCATENATE($B254,"!P20"))),"",INDIRECT(CONCATENATE($B254,"!P20"))) ->  | W254: =IF(ISERROR(INDIRECT(CONCATENATE($B254,"!P21"))),"",INDIRECT(CONCATENATE($B254,"!P21"))) ->  | Y254: =IF(ISERROR(INDIRECT(CONCATENATE($B254,"!Q18"))),"",INDIRECT(CONCATENATE($B254,"!Q18"))) ->  | Z254: =IF(ISERROR(INDIRECT(CONCATENATE($B254,"!Q19"))),"",INDIRECT(CONCATENATE($B254,"!Q19"))) ->  | AA254: =IF(ISERROR(INDIRECT(CONCATENATE($B254,"!Q20"))),"",INDIRECT(CONCATENATE($B254,"!Q20"))) ->  | AB254: =IF(ISERROR(INDIRECT(CONCATENATE($B254,"!Q21"))),"",INDIRECT(CONCATENATE($B254,"!Q1"))) -> 
E255: =IF(ISERROR(INDIRECT(CONCATENATE($B255,"!M18"))),"",INDIRECT(CONCATENATE($B255,"!M18"))) ->  | F255: =IF(ISERROR(INDIRECT(CONCATENATE($B255,"!M19"))),"",INDIRECT(CONCATENATE($B255,"!M19"))) ->  | G255: =IF(ISERROR(INDIRECT(CONCATENATE($B255,"!M20"))),"",INDIRECT(CONCATENATE($B255,"!M20"))) ->  | H255: =IF(ISERROR(INDIRECT(CONCATENATE($B255,"!M21"))),"",INDIRECT(CONCATENATE($B255,"!M21"))) ->  | J255: =IF(ISERROR(INDIRECT(CONCATENATE($B255,"!N18"))),"",INDIRECT(CONCATENATE($B255,"!N18"))) ->  | K255: =IF(ISERROR(INDIRECT(CONCATENATE($B255,"!N19"))),"",INDIRECT(CONCATENATE($B255,"!N19"))) ->  | L255: =IF(ISERROR(INDIRECT(CONCATENATE($B255,"!N20"))),"",INDIRECT(CONCATENATE($B255,"!N20"))) ->  | M255: =IF(ISERROR(INDIRECT(CONCATENATE($B255,"!N21"))),"",INDIRECT(CONCATENATE($B255,"!N21"))) ->  | O255: =IF(ISERROR(INDIRECT(CONCATENATE($B255,"!O18"))),"",INDIRECT(CONCATENATE($B255,"!O18"))) ->  | P255: =IF(ISERROR(INDIRECT(CONCATENATE($B255,"!O19"))),"",INDIRECT(CONCATENATE($B255,"!O19"))) ->  | Q255: =IF(ISERROR(INDIRECT(CONCATENATE($B255,"!O20"))),"",INDIRECT(CONCATENATE($B255,"!O20"))) ->  | R255: =IF(ISERROR(INDIRECT(CONCATENATE($B255,"!O21"))),"",INDIRECT(CONCATENATE($B255,"!O21"))) ->  | T255: =IF(ISERROR(INDIRECT(CONCATENATE($B255,"!P18"))),"",INDIRECT(CONCATENATE($B255,"!P18"))) ->  | U255: =IF(ISERROR(INDIRECT(CONCATENATE($B255,"!P19"))),"",INDIRECT(CONCATENATE($B255,"!P19"))) ->  | V255: =IF(ISERROR(INDIRECT(CONCATENATE($B255,"!P20"))),"",INDIRECT(CONCATENATE($B255,"!P20"))) ->  | W255: =IF(ISERROR(INDIRECT(CONCATENATE($B255,"!P21"))),"",INDIRECT(CONCATENATE($B255,"!P21"))) ->  | Y255: =IF(ISERROR(INDIRECT(CONCATENATE($B255,"!Q18"))),"",INDIRECT(CONCATENATE($B255,"!Q18"))) ->  | Z255: =IF(ISERROR(INDIRECT(CONCATENATE($B255,"!Q19"))),"",INDIRECT(CONCATENATE($B255,"!Q19"))) ->  | AA255: =IF(ISERROR(INDIRECT(CONCATENATE($B255,"!Q20"))),"",INDIRECT(CONCATENATE($B255,"!Q20"))) ->  | AB255: =IF(ISERROR(INDIRECT(CONCATENATE($B255,"!Q21"))),"",INDIRECT(CONCATENATE($B255,"!Q1"))) -> 
E256: =IF(ISERROR(INDIRECT(CONCATENATE($B256,"!M18"))),"",INDIRECT(CONCATENATE($B256,"!M18"))) ->  | F256: =IF(ISERROR(INDIRECT(CONCATENATE($B256,"!M19"))),"",INDIRECT(CONCATENATE($B256,"!M19"))) ->  | G256: =IF(ISERROR(INDIRECT(CONCATENATE($B256,"!M20"))),"",INDIRECT(CONCATENATE($B256,"!M20"))) ->  | H256: =IF(ISERROR(INDIRECT(CONCATENATE($B256,"!M21"))),"",INDIRECT(CONCATENATE($B256,"!M21"))) ->  | J256: =IF(ISERROR(INDIRECT(CONCATENATE($B256,"!N18"))),"",INDIRECT(CONCATENATE($B256,"!N18"))) ->  | K256: =IF(ISERROR(INDIRECT(CONCATENATE($B256,"!N19"))),"",INDIRECT(CONCATENATE($B256,"!N19"))) ->  | L256: =IF(ISERROR(INDIRECT(CONCATENATE($B256,"!N20"))),"",INDIRECT(CONCATENATE($B256,"!N20"))) ->  | M256: =IF(ISERROR(INDIRECT(CONCATENATE($B256,"!N21"))),"",INDIRECT(CONCATENATE($B256,"!N21"))) ->  | O256: =IF(ISERROR(INDIRECT(CONCATENATE($B256,"!O18"))),"",INDIRECT(CONCATENATE($B256,"!O18"))) ->  | P256: =IF(ISERROR(INDIRECT(CONCATENATE($B256,"!O19"))),"",INDIRECT(CONCATENATE($B256,"!O19"))) ->  | Q256: =IF(ISERROR(INDIRECT(CONCATENATE($B256,"!O20"))),"",INDIRECT(CONCATENATE($B256,"!O20"))) ->  | R256: =IF(ISERROR(INDIRECT(CONCATENATE($B256,"!O21"))),"",INDIRECT(CONCATENATE($B256,"!O21"))) ->  | T256: =IF(ISERROR(INDIRECT(CONCATENATE($B256,"!P18"))),"",INDIRECT(CONCATENATE($B256,"!P18"))) ->  | U256: =IF(ISERROR(INDIRECT(CONCATENATE($B256,"!P19"))),"",INDIRECT(CONCATENATE($B256,"!P19"))) ->  | V256: =IF(ISERROR(INDIRECT(CONCATENATE($B256,"!P20"))),"",INDIRECT(CONCATENATE($B256,"!P20"))) ->  | W256: =IF(ISERROR(INDIRECT(CONCATENATE($B256,"!P21"))),"",INDIRECT(CONCATENATE($B256,"!P21"))) ->  | Y256: =IF(ISERROR(INDIRECT(CONCATENATE($B256,"!Q18"))),"",INDIRECT(CONCATENATE($B256,"!Q18"))) ->  | Z256: =IF(ISERROR(INDIRECT(CONCATENATE($B256,"!Q19"))),"",INDIRECT(CONCATENATE($B256,"!Q19"))) ->  | AA256: =IF(ISERROR(INDIRECT(CONCATENATE($B256,"!Q20"))),"",INDIRECT(CONCATENATE($B256,"!Q20"))) ->  | AB256: =IF(ISERROR(INDIRECT(CONCATENATE($B256,"!Q21"))),"",INDIRECT(CONCATENATE($B256,"!Q1"))) -> 
E257: =IF(ISERROR(INDIRECT(CONCATENATE($B257,"!M18"))),"",INDIRECT(CONCATENATE($B257,"!M18"))) ->  | F257: =IF(ISERROR(INDIRECT(CONCATENATE($B257,"!M19"))),"",INDIRECT(CONCATENATE($B257,"!M19"))) ->  | G257: =IF(ISERROR(INDIRECT(CONCATENATE($B257,"!M20"))),"",INDIRECT(CONCATENATE($B257,"!M20"))) ->  | H257: =IF(ISERROR(INDIRECT(CONCATENATE($B257,"!M21"))),"",INDIRECT(CONCATENATE($B257,"!M21"))) ->  | J257: =IF(ISERROR(INDIRECT(CONCATENATE($B257,"!N18"))),"",INDIRECT(CONCATENATE($B257,"!N18"))) ->  | K257: =IF(ISERROR(INDIRECT(CONCATENATE($B257,"!N19"))),"",INDIRECT(CONCATENATE($B257,"!N19"))) ->  | L257: =IF(ISERROR(INDIRECT(CONCATENATE($B257,"!N20"))),"",INDIRECT(CONCATENATE($B257,"!N20"))) ->  | M257: =IF(ISERROR(INDIRECT(CONCATENATE($B257,"!N21"))),"",INDIRECT(CONCATENATE($B257,"!N21"))) ->  | O257: =IF(ISERROR(INDIRECT(CONCATENATE($B257,"!O18"))),"",INDIRECT(CONCATENATE($B257,"!O18"))) ->  | P257: =IF(ISERROR(INDIRECT(CONCATENATE($B257,"!O19"))),"",INDIRECT(CONCATENATE($B257,"!O19"))) ->  | Q257: =IF(ISERROR(INDIRECT(CONCATENATE($B257,"!O20"))),"",INDIRECT(CONCATENATE($B257,"!O20"))) ->  | R257: =IF(ISERROR(INDIRECT(CONCATENATE($B257,"!O21"))),"",INDIRECT(CONCATENATE($B257,"!O21"))) ->  | T257: =IF(ISERROR(INDIRECT(CONCATENATE($B257,"!P18"))),"",INDIRECT(CONCATENATE($B257,"!P18"))) ->  | U257: =IF(ISERROR(INDIRECT(CONCATENATE($B257,"!P19"))),"",INDIRECT(CONCATENATE($B257,"!P19"))) ->  | V257: =IF(ISERROR(INDIRECT(CONCATENATE($B257,"!P20"))),"",INDIRECT(CONCATENATE($B257,"!P20"))) ->  | W257: =IF(ISERROR(INDIRECT(CONCATENATE($B257,"!P21"))),"",INDIRECT(CONCATENATE($B257,"!P21"))) ->  | Y257: =IF(ISERROR(INDIRECT(CONCATENATE($B257,"!Q18"))),"",INDIRECT(CONCATENATE($B257,"!Q18"))) ->  | Z257: =IF(ISERROR(INDIRECT(CONCATENATE($B257,"!Q19"))),"",INDIRECT(CONCATENATE($B257,"!Q19"))) ->  | AA257: =IF(ISERROR(INDIRECT(CONCATENATE($B257,"!Q20"))),"",INDIRECT(CONCATENATE($B257,"!Q20"))) ->  | AB257: =IF(ISERROR(INDIRECT(CONCATENATE($B257,"!Q21"))),"",INDIRECT(CONCATENATE($B257,"!Q1"))) -> 
A297: RURAL | D297: Poorest | I297: Poor | N297: Middle | S297: Rich | X297: Richest
D298: Improved | E298: Basic | F298: Limited | G298: Unimproved | H298: Surface water | I298: Improved | J298: Basic | K298: Limited | L298: Unimproved | M298: Surface water | N298: Improved | O298: Basic | P298: Limited | Q298: Unimproved | R298: Surface water | S298: Improved | T298: Basic | U298: Limited | V298: Unimproved | W298: Surface water | X298: Improved | Y298: Basic | Z298: Limited | AA298: Unimproved | AB298: Surface water
A299: Forecast period: | C299: 2015 | D299: =IF((D301+H301)>100,D301*100/(D301+H301),D301) -> 99.4226511 | E299: =D299*AVERAGEIF(E305:E316,">0")/100 -> 99.4226511 | F299: =D299*(100-AVERAGEIF(E305:E316,">0"))/100 -> 0 | G299: =100-(E299+F299+H299) -> 0.5773489034 | H299: =IF((D301+H301)>100,H301*100/(D301+H301),H301) -> 0 | I299: =IF((I301+M301)>100,I301*100/(I301+M301),I301) -> 98.58242904 | J299: =I299*AVERAGEIF(J305:J316,">0")/100 -> 98.58242904 | K299: =I299*(100-AVERAGEIF(J305:J316,">0"))/100 -> 0 | L299: =100-(J299+K299+M299) -> 1.41757096 | M299: =IF((I301+M301)>100,M301*100/(I301+M301),M301) -> 0 | N299: =IF((N301+R301)>100,N301*100/(N301+R301),N301) -> 98.40323523 | O299: =N299*AVERAGEIF(O305:O316,">0")/100 -> 98.40323523 | P299: =N299*(100-AVERAGEIF(O305:O316,">0"))/100 -> 0 | Q299: =100-(O299+P299+R299) -> 1.596764765 | R299: =IF((N301+R301)>100,R301*100/(N301+R301),R301) -> 0 | S299: =IF((S301+W301)>100,S301*100/(S301+W301),S301) -> 99.12899933 | T299: =S299*AVERAGEIF(T305:T316,">0")/100 -> 99.12899933 | U299: =S299*(100-AVERAGEIF(T305:T316,">0"))/100 -> 0 | V299: =100-(T299+U299+W299) -> 0.8710006686 | W299: =IF((S301+W301)>100,W301*100/(S301+W301),W301) -> 0 | X299: =IF((X301+AB301)>100,X301*100/(X301+AB301),X301) -> 99.36652627 | Y299: =X299*AVERAGEIF(Y305:Y316,">0")/100 -> 99.36652627 | Z299: =X299*(100-AVERAGEIF(Y305:Y316,">0"))/100 -> 0 | AA299: =100-(Y299+Z299+AB299) -> 0.6334737342 | AB299: =IF((X301+AB301)>100,AB301*100/(X301+AB301),AB301) -> 0
C300: 2020 | D300: =IF((D302+H302)>100,D302*100/(D302+H302),D302) -> 99.4226511 | E300: =D300*AVERAGEIF(E305:E316,">0")/100 -> 99.4226511 | F300: =D300*(100-AVERAGEIF(E305:E316,">0"))/100 -> 0 | G300: =100-(E300+F300+H300) -> 0.5773489034 | H300: =IF((D302+H302)>100,H302*100/(D302+H302),H302) -> 0 | I300: =IF((I302+M302)>100,I302*100/(I302+M302),I302) -> 98.58242904 | J300: =I300*AVERAGEIF(J305:J316,">0")/100 -> 98.58242904 | K300: =I300*(100-AVERAGEIF(J305:J316,">0"))/100 -> 0 | L300: =100-(J300+K300+M300) -> 1.41757096 | M300: =IF((I302+M302)>100,M302*100/(I302+M302),M302) -> 0 | N300: =IF((N302+R302)>100,N302*100/(N302+R302),N302) -> 98.40323523 | O300: =N300*AVERAGEIF(O305:O316,">0")/100 -> 98.40323523 | P300: =N300*(100-AVERAGEIF(O305:O316,">0"))/100 -> 0 | Q300: =100-(O300+P300+R300) -> 1.596764765 | R300: =IF((N302+R302)>100,R302*100/(N302+R302),R302) -> 0 | S300: =IF((S302+W302)>100,S302*100/(S302+W302),S302) -> 99.12899933 | T300: =S300*AVERAGEIF(T305:T316,">0")/100 -> 99.12899933 | U300: =S300*(100-AVERAGEIF(T305:T316,">0"))/100 -> 0 | V300: =100-(T300+U300+W300) -> 0.8710006686 | W300: =IF((S302+W302)>100,W302*100/(S302+W302),W302) -> 0 | X300: =IF((X302+AB302)>100,X302*100/(X302+AB302),X302) -> 99.36652627 | Y300: =X300*AVERAGEIF(Y305:Y316,">0")/100 -> 99.36652627 | Z300: =X300*(100-AVERAGEIF(Y305:Y316,">0"))/100 -> 0 | AA300: =100-(Y300+Z300+AB300) -> 0.6334737342 | AB300: =IF((X302+AB302)>100,AB302*100/(X302+AB302),AB302) -> 0
A301: Regression period: | C301: =MinRegYear(C299,C305:C316) -> 2017 | D301: =IF(MAX(C305:C316)-MIN(C305:C316)<5,AVERAGEIF(C305:C316,">0",D305:D316), IF(FORECAST($C301,D$305:D$316,$C$305:$C$316)<0,0, IF(FORECAST($C301,D$305:D$316,$C$305:$C$316)>100,100, FORECAST($C301,D$305:D$316,$C$305:$C$316)))) -> 99.4226511 | H301: =IF(MAX(C305:C316)-MIN(C305:C316)<5,AVERAGEIF(C305:C316,">0",H305:H316), IF(FORECAST($C301,H$305:H$316,$C$305:$C$316)<0,0, IF(FORECAST($C301,H$305:H$316,$C$305:$C$316)>100,100, FORECAST($C301,H$305:H$316,$C$305:$C$316)))) -> 0 | I301: =IF(MAX(C305:C316)-MIN(C305:C316)<5,AVERAGEIF(C305:C316,">0",I305:I316), IF(FORECAST($C301,I$305:I$316,$C$305:$C$316)<0,0, IF(FORECAST($C301,I$305:I$316,$C$305:$C$316)>100,100, FORECAST($C301,I$305:I$316,$C$305:$C$316)))) -> 98.58242904 | M301: =IF(MAX(C305:C316)-MIN(C305:C316)<5,AVERAGEIF(C305:C316,">0",M305:M316), IF(FORECAST($C301,M$305:M$316,$C$305:$C$316)<0,0, IF(FORECAST($C301,M$305:M$316,$C$305:$C$316)>100,100, FORECAST($C301,M$305:M$316,$C$305:$C$316)))) -> 0 | N301: =IF(MAX(C305:C316)-MIN(C305:C316)<5,AVERAGEIF(C305:C316,">0",N305:N316), IF(FORECAST($C301,N$305:N$316,$C$305:$C$316)<0,0, IF(FORECAST($C301,N$305:N$316,$C$305:$C$316)>100,100, FORECAST($C301,N$305:N$316,$C$305:$C$316)))) -> 98.40323523 | R301: =IF(MAX(C305:C316)-MIN(C305:C316)<5,AVERAGEIF(C305:C316,">0",R305:R316), IF(FORECAST($C301,R$305:R$316,$C$305:$C$316)<0,0, IF(FORECAST($C301,R$305:R$316,$C$305:$C$316)>100,100, FORECAST($C301,R$305:R$316,$C$305:$C$316)))) -> 0 | S301: =IF(MAX(C305:C316)-MIN(C305:C316)<5,AVERAGEIF(C305:C316,">0",S305:S316), IF(FORECAST($C301,S$305:S$316,$C$305:$C$316)<0,0, IF(FORECAST($C301,S$305:S$316,$C$305:$C$316)>100,100, FORECAST($C301,S$305:S$316,$C$305:$C$316)))) -> 99.12899933 | W301: =IF(MAX(C305:C316)-MIN(C305:C316)<5,AVERAGEIF(C305:C316,">0",W305:W316), IF(FORECAST($C301,W$305:W$316,$C$305:$C$316)<0,0, IF(FORECAST($C301,W$305:W$316,$C$305:$C$316)>100,100, FORECAST($C301,W$305:W$316,$C$305:$C$316)))) -> 0 | X301: =IF(MAX(C305:C316)-MIN(C305:C316)<5,AVERAGEIF(C305:C316,">0",X305:X316), IF(FORECAST($C301,X$305:X$316,$C$305:$C$316)<0,0, IF(FORECAST($C301,X$305:X$316,$C$305:$C$316)>100,100, FORECAST($C301,X$305:X$316,$C$305:$C$316)))) -> 99.36652627 | AB301: =IF(MAX(C305:C316)-MIN(C305:C316)<5,AVERAGEIF(C305:C316,">0",AB305:AB316), IF(FORECAST($C301,AB$305:AB$316,$C$305:$C$316)<0,0, IF(FORECAST($C301,AB$305:AB$316,$C$305:$C$316)>100,100, FORECAST($C301,AB$305:AB$316,$C$305:$C$316)))) -> 0
C302: =MaxRegYear(C300,C305:C316) -> 2020 | D302: =IF(MAX(C305:C316)-MIN(C305:C316)<5,AVERAGEIF(C305:C316,">0",D305:D316), IF(FORECAST($C302,D$305:D$316,$C$305:$C$316)<0,0, IF(FORECAST($C302,D$305:D$316,$C$305:$C$316)>100,100, FORECAST($C302,D$305:D$316,$C$305:$C$316)))) -> 99.4226511 | H302: =IF(MAX(C305:C316)-MIN(C305:C316)<5,AVERAGEIF(C305:C316,">0",H305:H316), IF(FORECAST($C302,H$305:H$316,$C$305:$C$316)<0,0, IF(FORECAST($C302,H$305:H$316,$C$305:$C$316)>100,100, FORECAST($C302,H$305:H$316,$C$305:$C$316)))) -> 0 | I302: =IF(MAX(C305:C316)-MIN(C305:C316)<5,AVERAGEIF(C305:C316,">0",I305:I316), IF(FORECAST($C302,I$305:I$316,$C$305:$C$316)<0,0, IF(FORECAST($C302,I$305:I$316,$C$305:$C$316)>100,100, FORECAST($C302,I$305:I$316,$C$305:$C$316)))) -> 98.58242904 | M302: =IF(MAX(C305:C316)-MIN(C305:C316)<5,AVERAGEIF(C305:C316,">0",M305:M316), IF(FORECAST($C302,M$305:M$316,$C$305:$C$316)<0,0, IF(FORECAST($C302,M$305:M$316,$C$305:$C$316)>100,100, FORECAST($C302,M$305:M$316,$C$305:$C$316)))) -> 0 | N302: =IF(MAX(C305:C316)-MIN(C305:C316)<5,AVERAGEIF(C305:C316,">0",N305:N316), IF(FORECAST($C302,N$305:N$316,$C$305:$C$316)<0,0, IF(FORECAST($C302,N$305:N$316,$C$305:$C$316)>100,100, FORECAST($C302,N$305:N$316,$C$305:$C$316)))) -> 98.40323523 | R302: =IF(MAX(C305:C316)-MIN(C305:C316)<5,AVERAGEIF(C305:C316,">0",R305:R316), IF(FORECAST($C302,R$305:R$316,$C$305:$C$316)<0,0, IF(FORECAST($C302,R$305:R$316,$C$305:$C$316)>100,100, FORECAST($C302,R$305:R$316,$C$305:$C$316)))) -> 0 | S302: =IF(MAX(C305:C316)-MIN(C305:C316)<5,AVERAGEIF(C305:C316,">0",S305:S316), IF(FORECAST($C302,S$305:S$316,$C$305:$C$316)<0,0, IF(FORECAST($C302,S$305:S$316,$C$305:$C$316)>100,100, FORECAST($C302,S$305:S$316,$C$305:$C$316)))) -> 99.12899933 | W302: =IF(MAX(C305:C316)-MIN(C305:C316)<5,AVERAGEIF(C305:C316,">0",W305:W316), IF(FORECAST($C302,W$305:W$316,$C$305:$C$316)<0,0, IF(FORECAST($C302,W$305:W$316,$C$305:$C$316)>100,100, FORECAST($C302,W$305:W$316,$C$305:$C$316)))) -> 0 | X302: =IF(MAX(C305:C316)-MIN(C305:C316)<5,AVERAGEIF(C305:C316,">0",X305:X316), IF(FORECAST($C302,X$305:X$316,$C$305:$C$316)<0,0, IF(FORECAST($C302,X$305:X$316,$C$305:$C$316)>100,100, FORECAST($C302,X$305:X$316,$C$305:$C$316)))) -> 99.36652627 | AB302: =IF(MAX(C305:C316)-MIN(C305:C316)<5,AVERAGEIF(C305:C316,">0",AB305:AB316), IF(FORECAST($C302,AB$305:AB$316,$C$305:$C$316)<0,0, IF(FORECAST($C302,AB$305:AB$316,$C$305:$C$316)>100,100, FORECAST($C302,AB$305:AB$316,$C$305:$C$316)))) -> 0
B304: Survey | C304: Year | D304: Improved | E304: % Improved < = 30min | H304: Surface water | I304: Improved | J304: % Improved < = 30min | M304: Surface water | N304: Improved | O304: % Improved < = 30min | R304: Surface water | S304: Improved | T304: % Improved < = 30min | W304: Surface water | X304: Improved | Y304: % Improved < = 30min | AB304: Surface water
B305: MICS19 | C305: 2019 | D305: =IF(ISERROR(INDIRECT(CONCATENATE($B305,"!M16"))),"",INDIRECT(CONCATENATE($B305,"!M16"))) -> 99.4226511 | E305: =IF(ISERROR(INDIRECT(CONCATENATE($B305,"!M23"))),"",INDIRECT(CONCATENATE($B305,"!M23"))) -> 100 | H305: =IF(ISERROR(INDIRECT(CONCATENATE($B305,"!M21"))),"",INDIRECT(CONCATENATE($B305,"!M21"))) -> 0 | I305: =IF(ISERROR(INDIRECT(CONCATENATE($B305,"!N16"))),"",INDIRECT(CONCATENATE($B305,"!N16"))) -> 98.58242904 | J305: =IF(ISERROR(INDIRECT(CONCATENATE($B305,"!N23"))),"",INDIRECT(CONCATENATE($B305,"!N23"))) -> 100 | M305: =IF(ISERROR(INDIRECT(CONCATENATE($B305,"!N21"))),"",INDIRECT(CONCATENATE($B305,"!N21"))) -> 0 | N305: =IF(ISERROR(INDIRECT(CONCATENATE($B305,"!O16"))),"",INDIRECT(CONCATENATE($B305,"!O16"))) -> 98.40323523 | O305: =IF(ISERROR(INDIRECT(CONCATENATE($B305,"!O23"))),"",INDIRECT(CONCATENATE($B305,"!O23"))) -> 100 | R305: =IF(ISERROR(INDIRECT(CONCATENATE($B305,"!O21"))),"",INDIRECT(CONCATENATE($B305,"!O21"))) -> 0 | S305: =IF(ISERROR(INDIRECT(CONCATENATE($B305,"!P16"))),"",INDIRECT(CONCATENATE($B305,"!P16"))) -> 99.12899933 | T305: =IF(ISERROR(INDIRECT(CONCATENATE($B305,"!P23"))),"",INDIRECT(CONCATENATE($B305,"!P23"))) -> 100 | W305: =IF(ISERROR(INDIRECT(CONCATENATE($B305,"!P21"))),"",INDIRECT(CONCATENATE($B305,"!P21"))) -> 0 | X305: =IF(ISERROR(INDIRECT(CONCATENATE($B305,"!Q16"))),"",INDIRECT(CONCATENATE($B305,"!Q16"))) -> 99.36652627 | Y305: =IF(ISERROR(INDIRECT(CONCATENATE($B305,"!Q23"))),"",INDIRECT(CONCATENATE($B305,"!Q23"))) -> 100 | AB305: =IF(ISERROR(INDIRECT(CONCATENATE($B305,"!Q221"))),"",INDIRECT(CONCATENATE($B305,"!Q21"))) -> 0
B318: =CONCATENATE("Rural use of drinking water sources, ",C299,"–",C300) -> Rural use of drinking water sources, 2015–2020 | S318: Data points used for regression

Sheet Sanitation
B4: Summary of trends in use of sanitation facilities by wealth quintile (%)
B5: =IF(ISERROR(INDIRECT(CONCATENATE($B105,"!A2"))),"",INDIRECT(CONCATENATE($B105,"!A2"))) -> Tonga
B7: =B118 -> National use of sanitation facilities, 2015–2020 | J7: =B218 -> Urban use of sanitation facilities, 2015–2020 | R7: =B318 -> Rural use of sanitation facilities, 2015–2020
B31: =IF(ISERROR(INDIRECT(CONCATENATE($B105,"!A2"))),"",INDIRECT(CONCATENATE($B105,"!A2"))) -> Tonga | F31: Poorest | J31: Poor | N31: Middle | R31: Rich | V31: Richest
F32: Basic | G32: Limited | H32: Unimproved | I32: Open defecation | J32: Basic | K32: Limited | L32: Unimproved | M32: Open defecation | N32: Basic | O32: Limited | P32: Unimproved | Q32: Open defecation | R32: Basic | S32: Limited | T32: Unimproved | U32: Open defecation | V32: Basic | W32: Limited | X32: Unimproved | Y32: Open defecation
B33: NATIONAL | D33: Estimate | E33: =C99 -> 2015 | F33: =E99 -> 82.39002737 | G33: =F99 -> 9.894720509 | H33: 7.612533174 | I33: 0.1027189508 | J33: =J99 -> 87.48359259 | K33: =K99 -> 9.754288297 | L33: 2.635011392 | M33: 0.1271077226 | N33: =O99 -> 93.41470057 | O33: =P99 -> 5.783138019 | P33: 0.8021614117 | Q33: 0 | R33: =T99 -> 97.81111327 | S33: =U99 -> 2.188886733 | T33: 0 | U33: 0 | V33: =Y99 -> 97.67008391 | W33: =Z99 -> 2.329916089 | X33: 0 | Y33: 0
E34: =C100 -> 2020 | F34: =E100 -> 82.39002737 | G34: 9.894720509 | H34: 7.612533174 | I34: 0.1027189508 | J34: =J100 -> 87.48359259 | K34: 9.754288297 | L34: 2.635011392 | M34: 0.1271077226 | N34: =O100 -> 93.41470057 | O34: 5.783138019 | P34: 0.8021614117 | Q34: 0 | R34: =T100 -> 97.81111327 | S34: 2.188886733 | T34: 0 | U34: 0 | V34: =Y100 -> 97.67008391 | W34: 2.329916089 | X34: 0 | Y34: 0
B36: URBAN | D36: Estimate | E36: =C199 -> 2015 | F36: =E199 -> 85.77568137 | G36: =F199 -> 11.5896919 | H36: 2.084472324 | I36: 0.5501544041 | J36: =J199 -> 97.36711473 | K36: =K199 -> 2.63288527 | L36: 0 | M36: 0 | N36: =O199 -> 99.01024024 | O36: =P199 -> 0.9897597578 | P36: 0 | Q36: 0 | R36: =T199 -> 98.27427391 | S36: =U199 -> 1.725726093 | T36: 0 | U36: 0 | V36: =Y199 -> 97.79402401 | W36: =Z199 -> 2.205975995 | X36: 0 | Y36: 0
E37: =C200 -> 2020 | F37: =E200 -> 85.77568137 | G37: 11.5896919 | H37: 2.084472324 | I37: 0.5501544041 | J37: =J200 -> 97.36711473 | K37: 2.63288527 | L37: 0 | M37: 0 | N37: =O200 -> 99.01024024 | O37: 0.9897597578 | P37: 0 | Q37: 0 | R37: =T200 -> 98.27427391 | S37: 1.725726093 | T37: 0 | U37: 0 | V37: =Y200 -> 97.79402401 | W37: 2.205975995 | X37: 0 | Y37: 0
B39: RURAL | D39: Estimate | E39: =C299 -> 2015 | F39: =E299 -> 80.65327601 | G39: =F299 -> 10.67114383 | H39: 8.542495318 | I39: 0.1330848441 | J39: =J299 -> 87.12379021 | K39: =K299 -> 9.222542659 | L39: 3.653667136 | M39: 0 | N39: =O299 -> 90.86591671 | O39: =P299 -> 7.686535857 | P39: 1.44754743 | Q39: 0 | R39: =T299 -> 96.68574615 | S39: =U299 -> 3.240580192 | T39: 0.07367365636 | U39: 0 | V39: =Y299 -> 97.6421646 | W39: =Z299 -> 2.357835404 | X39: 0 | Y39: 0
E40: =C300 -> 2020 | F40: =E300 -> 80.65327601 | G40: 10.67114383 | H40: 8.542495318 | I40: 0.1330848441 | J40: =J300 -> 87.12379021 | K40: 9.222542659 | L40: 3.653667136 | M40: 0 | N40: =O300 -> 90.86591671 | O40: 7.686535857 | P40: 1.44754743 | Q40: 0 | R40: =T300 -> 96.68574615 | S40: 3.240580192 | T40: 0.07367365636 | U40: 0 | V40: =Y300 -> 97.6421646 | W40: 2.357835404 | X40: 0 | Y40: 0
A97: NATIONAL | D97: Poorest | I97: Poor | N97: Middle | S97: Rich | X97: Richest
D98: Improved | E98: Basic | F98: Limited | G98: Unimproved | H98: Open defecation | I98: Improved | J98: Basic | K98: Limited | L98: Unimproved | M98: Open defecation | N98: Improved | O98: Basic | P98: Limited | Q98: Unimproved | R98: Open defecation | S98: Improved | T98: Basic | U98: Limited | V98: Unimproved | W98: Open defecation | X98: Improved | Y98: Basic | Z98: Limited | AA98: Unimproved | AB98: Open defecation
A99: Forecast period: | C99: 2015 | D99: =IF((D101+H101)>100,D101*100/(D101+H101),D101) -> 92.28474787 | E99: =D99*AVERAGEIF(E105:E116,">0")/100 -> 82.39002737 | F99: =D99*(100-AVERAGEIF(E105:E116,">0"))/100 -> 9.894720509 | G99: =100-(E99+F99+H99) -> 7.612533174 | H99: =IF((D101+H101)>100,H101*100/(D101+H101),H101) -> 0.1027189508 | I99: =IF((I101+M101)>100,I101*100/(I101+M101),I101) -> 97.23788089 | J99: =I99*AVERAGEIF(J105:J116,">0")/100 -> 87.48359259 | K99: =I99*(100-AVERAGEIF(J105:J116,">0"))/100 -> 9.754288297 | L99: =100-(J99+K99+M99) -> 2.635011392 | M99: =IF((I101+M101)>100,M101*100/(I101+M101),M101) -> 0.1271077226 | N99: =IF((N101+R101)>100,N101*100/(N101+R101),N101) -> 99.19783859 | O99: =N99*AVERAGEIF(O105:O116,">0")/100 -> 93.41470057 | P99: =N99*(100-AVERAGEIF(O105:O116,">0"))/100 -> 5.783138019 | Q99: =100-(O99+P99+R99) -> 0.8021614117 | R99: =IF((N101+R101)>100,R101*100/(N101+R101),R101) -> 0 | S99: =IF((S101+W101)>100,S101*100/(S101+W101),S101) -> 100 | T99: =S99*AVERAGEIF(T105:T116,">0")/100 -> 97.81111327 | U99: =S99*(100-AVERAGEIF(T105:T116,">0"))/100 -> 2.188886733 | V99: =100-(T99+U99+W99) -> 0 | W99: =IF((S101+W101)>100,W101*100/(S101+W101),W101) -> 0 | X99: =IF((X101+AB101)>100,X101*100/(X101+AB101),X101) -> 100 | Y99: =X99*AVERAGEIF(Y105:Y116,">0")/100 -> 97.67008391 | Z99: =X99*(100-AVERAGEIF(Y105:Y116,">0"))/100 -> 2.329916089 | AA99: =100-(Y99+Z99+AB99) -> 0 | AB99: =IF((X101+AB101)>100,AB101*100/(X101+AB101),AB101) -> 0
C100: 2020 | D100: =IF((D102+H102)>100,D102*100/(D102+H102),D102) -> 92.28474787 | E100: =D100*AVERAGEIF(E105:E116,">0")/100 -> 82.39002737 | F100: =D100*(100-AVERAGEIF(E105:E116,">0"))/100 -> 9.894720509 | G100: =100-(E100+F100+H100) -> 7.612533174 | H100: =IF((D102+H102)>100,H102*100/(D102+H102),H102) -> 0.1027189508 | I100: =IF((I102+M102)>100,I102*100/(I102+M102),I102) -> 97.23788089 | J100: =I100*AVERAGEIF(J105:J116,">0")/100 -> 87.48359259 | K100: =I100*(100-AVERAGEIF(J105:J116,">0"))/100 -> 9.754288297 | L100: =100-(J100+K100+M100) -> 2.635011392 | M100: =IF((I102+M102)>100,M102*100/(I102+M102),M102) -> 0.1271077226 | N100: =IF((N102+R102)>100,N102*100/(N102+R102),N102) -> 99.19783859 | O100: =N100*AVERAGEIF(O105:O116,">0")/100 -> 93.41470057 | P100: =N100*(100-AVERAGEIF(O105:O116,">0"))/100 -> 5.783138019 | Q100: =100-(O100+P100+R100) -> 0.8021614117 | R100: =IF((N102+R102)>100,R102*100/(N102+R102),R102) -> 0 | S100: =IF((S102+W102)>100,S102*100/(S102+W102),S102) -> 100 | T100: =S100*AVERAGEIF(T105:T116,">0")/100 -> 97.81111327 | U100: =S100*(100-AVERAGEIF(T105:T116,">0"))/100 -> 2.188886733 | V100: =100-(T100+U100+W100) -> 0 | W100: =IF((S102+W102)>100,W102*100/(S102+W102),W102) -> 0 | X100: =IF((X102+AB102)>100,X102*100/(X102+AB102),X102) -> 100 | Y100: =X100*AVERAGEIF(Y105:Y116,">0")/100 -> 97.67008391 | Z100: =X100*(100-AVERAGEIF(Y105:Y116,">0"))/100 -> 2.329916089 | AA100: =100-(Y100+Z100+AB100) -> 0 | AB100: =IF((X102+AB102)>100,AB102*100/(X102+AB102),AB102) -> 0
A101: Regression period: | C101: =MinRegYear(C99,C105:C116) -> 2017 | D101: =IF(MAX(C105:C116)-MIN(C105:C116)<5,AVERAGEIF(C105:C116,">0",D105:D116), IF(FORECAST($C101,D$105:D$116,$C$105:$C$116)<0,0, IF(FORECAST($C101,D$105:D$116,$C$105:$C$116)>100,100, FORECAST($C101,D$105:D$116,$C$105:$C$116)))) -> 92.28474787 | H101: =IF(MAX(C105:C116)-MIN(C105:C116)<5,AVERAGEIF(C105:C116,">0",H105:H116), IF(FORECAST($C101,H$105:H$116,$C$105:$C$116)<0,0, IF(FORECAST($C101,H$105:H$116,$C$105:$C$116)>100,100, FORECAST($C101,H$105:H$116,$C$105:$C$116)))) -> 0.1027189508 | I101: =IF(MAX(C105:C116)-MIN(C105:C116)<5,AVERAGEIF(C105:C116,">0",I105:I116), IF(FORECAST($C101,I$105:I$116,$C$105:$C$116)<0,0, IF(FORECAST($C101,I$105:I$116,$C$105:$C$116)>100,100, FORECAST($C101,I$105:I$116,$C$105:$C$116)))) -> 97.23788089 | M101: =IF(MAX(C105:C116)-MIN(C105:C116)<5,AVERAGEIF(C105:C116,">0",M105:M116), IF(FORECAST($C101,M$105:M$116,$C$105:$C$116)<0,0, IF(FORECAST($C101,M$105:M$116,$C$105:$C$116)>100,100, FORECAST($C101,M$105:M$116,$C$105:$C$116)))) -> 0.1271077226 | N101: =IF(MAX(C105:C116)-MIN(C105:C116)<5,AVERAGEIF(C105:C116,">0",N105:N116), IF(FORECAST($C101,N$105:N$116,$C$105:$C$116)<0,0, IF(FORECAST($C101,N$105:N$116,$C$105:$C$116)>100,100, FORECAST($C101,N$105:N$116,$C$105:$C$116)))) -> 99.19783859 | R101: =IF(MAX(C105:C116)-MIN(C105:C116)<5,AVERAGEIF(C105:C116,">0",R105:R116), IF(FORECAST($C101,R$105:R$116,$C$105:$C$116)<0,0, IF(FORECAST($C101,R$105:R$116,$C$105:$C$116)>100,100, FORECAST($C101,R$105:R$116,$C$105:$C$116)))) -> 0 | S101: =IF(MAX(C105:C116)-MIN(C105:C116)<5,AVERAGEIF(C105:C116,">0",S105:S116), IF(FORECAST($C101,S$105:S$116,$C$105:$C$116)<0,0, IF(FORECAST($C101,S$105:S$116,$C$105:$C$116)>100,100, FORECAST($C101,S$105:S$116,$C$105:$C$116)))) -> 100 | W101: =IF(MAX(C105:C116)-MIN(C105:C116)<5,AVERAGEIF(C105:C116,">0",W105:W116), IF(FORECAST($C101,W$105:W$116,$C$105:$C$116)<0,0, IF(FORECAST($C101,W$105:W$116,$C$105:$C$116)>100,100, FORECAST($C101,W$105:W$116,$C$105:$C$116)))) -> 0 | X101: =IF(MAX(C105:C116)-MIN(C105:C116)<5,AVERAGEIF(C105:C116,">0",X105:X116), IF(FORECAST($C101,X$105:X$116,$C$105:$C$116)<0,0, IF(FORECAST($C101,X$105:X$116,$C$105:$C$116)>100,100, FORECAST($C101,X$105:X$116,$C$105:$C$116)))) -> 100 | AB101: =IF(MAX(C105:C116)-MIN(C105:C116)<5,AVERAGEIF(C105:C116,">0",AB105:AB116), IF(FORECAST($C101,AB$105:AB$116,$C$105:$C$116)<0,0, IF(FORECAST($C101,AB$105:AB$116,$C$105:$C$116)>100,100, FORECAST($C101,AB$105:AB$116,$C$105:$C$116)))) -> 0
C102: =MaxRegYear(C100,C105:C116) -> 2020 | D102: =IF(MAX(C105:C116)-MIN(C105:C116)<5,AVERAGEIF(C105:C116,">0",D105:D116), IF(FORECAST($C102,D$105:D$116,$C$105:$C$116)<0,0, IF(FORECAST($C102,D$105:D$116,$C$105:$C$116)>100,100, FORECAST($C102,D$105:D$116,$C$105:$C$116)))) -> 92.28474787 | H102: =IF(MAX(C105:C116)-MIN(C105:C116)<5,AVERAGEIF(C105:C116,">0",H105:H116), IF(FORECAST($C102,H$105:H$116,$C$105:$C$116)<0,0, IF(FORECAST($C102,H$105:H$116,$C$105:$C$116)>100,100, FORECAST($C102,H$105:H$116,$C$105:$C$116)))) -> 0.1027189508 | I102: =IF(MAX(C105:C116)-MIN(C105:C116)<5,AVERAGEIF(C105:C116,">0",I105:I116), IF(FORECAST($C102,I$105:I$116,$C$105:$C$116)<0,0, IF(FORECAST($C102,I$105:I$116,$C$105:$C$116)>100,100, FORECAST($C102,I$105:I$116,$C$105:$C$116)))) -> 97.23788089 | M102: =IF(MAX(C105:C116)-MIN(C105:C116)<5,AVERAGEIF(C105:C116,">0",M105:M116), IF(FORECAST($C102,M$105:M$116,$C$105:$C$116)<0,0, IF(FORECAST($C102,M$105:M$116,$C$105:$C$116)>100,100, FORECAST($C102,M$105:M$116,$C$105:$C$116)))) -> 0.1271077226 | N102: =IF(MAX(C105:C116)-MIN(C105:C116)<5,AVERAGEIF(C105:C116,">0",N105:N116), IF(FORECAST($C102,N$105:N$116,$C$105:$C$116)<0,0, IF(FORECAST($C102,N$105:N$116,$C$105:$C$116)>100,100, FORECAST($C102,N$105:N$116,$C$105:$C$116)))) -> 99.19783859 | R102: =IF(MAX(C105:C116)-MIN(C105:C116)<5,AVERAGEIF(C105:C116,">0",R105:R116), IF(FORECAST($C102,R$105:R$116,$C$105:$C$116)<0,0, IF(FORECAST($C102,R$105:R$116,$C$105:$C$116)>100,100, FORECAST($C102,R$105:R$116,$C$105:$C$116)))) -> 0 | S102: =IF(MAX(C105:C116)-MIN(C105:C116)<5,AVERAGEIF(C105:C116,">0",S105:S116), IF(FORECAST($C102,S$105:S$116,$C$105:$C$116)<0,0, IF(FORECAST($C102,S$105:S$116,$C$105:$C$116)>100,100, FORECAST($C102,S$105:S$116,$C$105:$C$116)))) -> 100 | W102: =IF(MAX(C105:C116)-MIN(C105:C116)<5,AVERAGEIF(C105:C116,">0",W105:W116), IF(FORECAST($C102,W$105:W$116,$C$105:$C$116)<0,0, IF(FORECAST($C102,W$105:W$116,$C$105:$C$116)>100,100, FORECAST($C102,W$105:W$116,$C$105:$C$116)))) -> 0 | X102: =IF(MAX(C105:C116)-MIN(C105:C116)<5,AVERAGEIF(C105:C116,">0",X105:X116), IF(FORECAST($C102,X$105:X$116,$C$105:$C$116)<0,0, IF(FORECAST($C102,X$105:X$116,$C$105:$C$116)>100,100, FORECAST($C102,X$105:X$116,$C$105:$C$116)))) -> 100 | AB102: =IF(MAX(C105:C116)-MIN(C105:C116)<5,AVERAGEIF(C105:C116,">0",AB105:AB116), IF(FORECAST($C102,AB$105:AB$116,$C$105:$C$116)<0,0, IF(FORECAST($C102,AB$105:AB$116,$C$105:$C$116)>100,100, FORECAST($C102,AB$105:AB$116,$C$105:$C$116)))) -> 0
B104: Survey | C104: Year | D104: Improved | E104: Not shared | H104: Open defecation | I104: Improved | J104: Not shared | M104: Open defecation | N104: Improved | O104: Not shared | R104: Open defecation | S104: Improved | T104: Not shared | W104: Open defecation | X104: Improved | Y104: Not shared | AB104: Open defecation
B105: MICS19 | C105: 2019 | D105: =IF(ISERROR(INDIRECT(CONCATENATE($B105,"!C122"))),"",INDIRECT(CONCATENATE($B105,"!C122"))) -> 92.28474787 | E105: =IF(ISERROR(INDIRECT(CONCATENATE($B105,"!C129"))),"",INDIRECT(CONCATENATE($B105,"!C129"))) -> 89.27805435 | H105: =IF(ISERROR(INDIRECT(CONCATENATE($B105,"!C127"))),"",INDIRECT(CONCATENATE($B105,"!C127"))) -> 0.1027189508 | I105: =IF(ISERROR(INDIRECT(CONCATENATE($B105,"!D122"))),"",INDIRECT(CONCATENATE($B105,"!D122"))) -> 97.23788089 | J105: =IF(ISERROR(INDIRECT(CONCATENATE($B105,"!D129"))),"",INDIRECT(CONCATENATE($B105,"!D129"))) -> 89.96863341 | M105: =IF(ISERROR(INDIRECT(CONCATENATE($B105,"!D127"))),"",INDIRECT(CONCATENATE($B105,"!D127"))) -> 0.1271077226 | N105: =IF(ISERROR(INDIRECT(CONCATENATE($B105,"!E122"))),"",INDIRECT(CONCATENATE($B105,"!E122"))) -> 99.19783859 | O105: =IF(ISERROR(INDIRECT(CONCATENATE($B105,"!E129"))),"",INDIRECT(CONCATENATE($B105,"!E129"))) -> 94.17009675 | R105: =IF(ISERROR(INDIRECT(CONCATENATE($B105,"!E127"))),"",INDIRECT(CONCATENATE($B105,"!E127"))) -> 0 | S105: =IF(ISERROR(INDIRECT(CONCATENATE($B105,"!F122"))),"",INDIRECT(CONCATENATE($B105,"!F122"))) -> 100 | T105: =IF(ISERROR(INDIRECT(CONCATENATE($B105,"!F129"))),"",INDIRECT(CONCATENATE($B105,"!F129"))) -> 97.81111327 | W105: =IF(ISERROR(INDIRECT(CONCATENATE($B105,"!F127"))),"",INDIRECT(CONCATENATE($B105,"!F127"))) -> 0 | X105: =IF(ISERROR(INDIRECT(CONCATENATE($B105,"!G122"))),"",INDIRECT(CONCATENATE($B105,"!G122"))) -> 100 | Y105: =IF(ISERROR(INDIRECT(CONCATENATE($B105,"!G129"))),"",INDIRECT(CONCATENATE($B105,"!G129"))) -> 97.67008391 | AB105: =IF(ISERROR(INDIRECT(CONCATENATE($B105,"!G2127"))),"",INDIRECT(CONCATENATE($B105,"!G127"))) -> 0
B118: =CONCATENATE("National use of sanitation facilities, ",C99,"–",C100) -> National use of sanitation facilities, 2015–2020 | S118: Data points used for regression
A197: URBAN | D197: Poorest | I197: Poor | N197: Middle | S197: Rich | X197: Richest
D198: Improved | E198: Basic | F198: Limited | G198: Unimproved | H198: Open defecation | I198: Improved | J198: Basic | K198: Limited | L198: Unimproved | M198: Open defecation | N198: Improved | O198: Basic | P198: Limited | Q198: Unimproved | R198: Open defecation | S198: Improved | T198: Basic | U198: Limited | V198: Unimproved | W198: Open defecation | X198: Improved | Y198: Basic | Z198: Limited | AA198: Unimproved | AB198: Open defecation
A199: Forecast period: | C199: 2015 | D199: =IF((D201+H201)>100,D201*100/(D201+H201),D201) -> 97.36537327 | E199: =D199*AVERAGEIF(E205:E216,">0")/100 -> 85.77568137 | F199: =D199*(100-AVERAGEIF(E205:E216,">0"))/100 -> 11.5896919 | G199: =100-(E199+F199+H199) -> 2.084472324 | H199: =IF((D201+H201)>100,H201*100/(D201+H201),H201) -> 0.5501544041 | I199: =IF((I201+M201)>100,I201*100/(I201+M201),I201) -> 100 | J199: =I199*AVERAGEIF(J205:J216,">0")/100 -> 97.36711473 | K199: =I199*(100-AVERAGEIF(J205:J216,">0"))/100 -> 2.63288527 | L199: =100-(J199+K199+M199) -> 0 | M199: =IF((I201+M201)>100,M201*100/(I201+M201),M201) -> 0 | N199: =IF((N201+R201)>100,N201*100/(N201+R201),N201) -> 100 | O199: =N199*AVERAGEIF(O205:O216,">0")/100 -> 99.01024024 | P199: =N199*(100-AVERAGEIF(O205:O216,">0"))/100 -> 0.9897597578 | Q199: =100-(O199+P199+R199) -> 0 | R199: =IF((N201+R201)>100,R201*100/(N201+R201),R201) -> 0 | S199: =IF((S201+W201)>100,S201*100/(S201+W201),S201) -> 100 | T199: =S199*AVERAGEIF(T205:T216,">0")/100 -> 98.27427391 | U199: =S199*(100-AVERAGEIF(T205:T216,">0"))/100 -> 1.725726093 | V199: =100-(T199+U199+W199) -> 0 | W199: =IF((S201+W201)>100,W201*100/(S201+W201),W201) -> 0 | X199: =IF((X201+AB201)>100,X201*100/(X201+AB201),X201) -> 100 | Y199: =X199*AVERAGEIF(Y205:Y216,">0")/100 -> 97.79402401 | Z199: =X199*(100-AVERAGEIF(Y205:Y216,">0"))/100 -> 2.205975995 | AA199: =100-(Y199+Z199+AB199) -> 0 | AB199: =IF((X201+AB201)>100,AB201*100/(X201+AB201),AB201) -> 0
C200: 2020 | D200: =IF((D202+H202)>100,D202*100/(D202+H202),D202) -> 97.36537327 | E200: =D200*AVERAGEIF(E205:E216,">0")/100 -> 85.77568137 | F200: =D200*(100-AVERAGEIF(E205:E216,">0"))/100 -> 11.5896919 | G200: =100-(E200+F200+H200) -> 2.084472324 | H200: =IF((D202+H202)>100,H202*100/(D202+H202),H202) -> 0.5501544041 | I200: =IF((I202+M202)>100,I202*100/(I202+M202),I202) -> 100 | J200: =I200*AVERAGEIF(J205:J216,">0")/100 -> 97.36711473 | K200: =I200*(100-AVERAGEIF(J205:J216,">0"))/100 -> 2.63288527 | L200: =100-(J200+K200+M200) -> 0 | M200: =IF((I202+M202)>100,M202*100/(I202+M202),M202) -> 0 | N200: =IF((N202+R202)>100,N202*100/(N202+R202),N202) -> 100 | O200: =N200*AVERAGEIF(O205:O216,">0")/100 -> 99.01024024 | P200: =N200*(100-AVERAGEIF(O205:O216,">0"))/100 -> 0.9897597578 | Q200: =100-(O200+P200+R200) -> 0 | R200: =IF((N202+R202)>100,R202*100/(N202+R202),R202) -> 0 | S200: =IF((S202+W202)>100,S202*100/(S202+W202),S202) -> 100 | T200: =S200*AVERAGEIF(T205:T216,">0")/100 -> 98.27427391 | U200: =S200*(100-AVERAGEIF(T205:T216,">0"))/100 -> 1.725726093 | V200: =100-(T200+U200+W200) -> 0 | W200: =IF((S202+W202)>100,W202*100/(S202+W202),W202) -> 0 | X200: =IF((X202+AB202)>100,X202*100/(X202+AB202),X202) -> 100 | Y200: =X200*AVERAGEIF(Y205:Y216,">0")/100 -> 97.79402401 | Z200: =X200*(100-AVERAGEIF(Y205:Y216,">0"))/100 -> 2.205975995 | AA200: =100-(Y200+Z200+AB200) -> 0 | AB200: =IF((X202+AB202)>100,AB202*100/(X202+AB202),AB202) -> 0
A201: Regression period: | C201: =MinRegYear(C199,C205:C216) -> 2017 | D201: =IF(MAX(C205:C216)-MIN(C205:C216)<5,AVERAGEIF(C205:C216,">0",D205:D216), IF(FORECAST($C201,D$205:D$216,$C$205:$C$216)<0,0, IF(FORECAST($C201,D$205:D$216,$C$205:$C$216)>100,100, FORECAST($C201,D$205:D$216,$C$205:$C$216)))) -> 97.36537327 | H201: =IF(MAX(C205:C216)-MIN(C205:C216)<5,AVERAGEIF(C205:C216,">0",H205:H216), IF(FORECAST($C201,H$205:H$216,$C$205:$C$216)<0,0, IF(FORECAST($C201,H$205:H$216,$C$205:$C$216)>100,100, FORECAST($C201,H$205:H$216,$C$205:$C$216)))) -> 0.5501544041 | I201: =IF(MAX(C205:C216)-MIN(C205:C216)<5,AVERAGEIF(C205:C216,">0",I205:I216), IF(FORECAST($C201,I$205:I$216,$C$205:$C$216)<0,0, IF(FORECAST($C201,I$205:I$216,$C$205:$C$216)>100,100, FORECAST($C201,I$205:I$216,$C$205:$C$216)))) -> 100 | M201: =IF(MAX(C205:C216)-MIN(C205:C216)<5,AVERAGEIF(C205:C216,">0",M205:M216), IF(FORECAST($C201,M$205:M$216,$C$205:$C$216)<0,0, IF(FORECAST($C201,M$205:M$216,$C$205:$C$216)>100,100, FORECAST($C201,M$205:M$216,$C$205:$C$216)))) -> 0 | N201: =IF(MAX(C205:C216)-MIN(C205:C216)<5,AVERAGEIF(C205:C216,">0",N205:N216), IF(FORECAST($C201,N$205:N$216,$C$205:$C$216)<0,0, IF(FORECAST($C201,N$205:N$216,$C$205:$C$216)>100,100, FORECAST($C201,N$205:N$216,$C$205:$C$216)))) -> 100 | R201: =IF(MAX(C205:C216)-MIN(C205:C216)<5,AVERAGEIF(C205:C216,">0",R205:R216), IF(FORECAST($C201,R$205:R$216,$C$205:$C$216)<0,0, IF(FORECAST($C201,R$205:R$216,$C$205:$C$216)>100,100, FORECAST($C201,R$205:R$216,$C$205:$C$216)))) -> 0 | S201: =IF(MAX(C205:C216)-MIN(C205:C216)<5,AVERAGEIF(C205:C216,">0",S205:S216), IF(FORECAST($C201,S$205:S$216,$C$205:$C$216)<0,0, IF(FORECAST($C201,S$205:S$216,$C$205:$C$216)>100,100, FORECAST($C201,S$205:S$216,$C$205:$C$216)))) -> 100 | W201: =IF(MAX(C205:C216)-MIN(C205:C216)<5,AVERAGEIF(C205:C216,">0",W205:W216), IF(FORECAST($C201,W$205:W$216,$C$205:$C$216)<0,0, IF(FORECAST($C201,W$205:W$216,$C$205:$C$216)>100,100, FORECAST($C201,W$205:W$216,$C$205:$C$216)))) -> 0 | X201: =IF(MAX(C205:C216)-MIN(C205:C216)<5,AVERAGEIF(C205:C216,">0",X205:X216), IF(FORECAST($C201,X$205:X$216,$C$205:$C$216)<0,0, IF(FORECAST($C201,X$205:X$216,$C$205:$C$216)>100,100, FORECAST($C201,X$205:X$216,$C$205:$C$216)))) -> 100 | AB201: =IF(MAX(C205:C216)-MIN(C205:C216)<5,AVERAGEIF(C205:C216,">0",AB205:AB216), IF(FORECAST($C201,AB$205:AB$216,$C$205:$C$216)<0,0, IF(FORECAST($C201,AB$205:AB$216,$C$205:$C$216)>100,100, FORECAST($C201,AB$205:AB$216,$C$205:$C$216)))) -> 0
C202: =MaxRegYear(C200,C205:C216) -> 2020 | D202: =IF(MAX(C205:C216)-MIN(C205:C216)<5,AVERAGEIF(C205:C216,">0",D205:D216), IF(FORECAST($C202,D$205:D$216,$C$205:$C$216)<0,0, IF(FORECAST($C202,D$205:D$216,$C$205:$C$216)>100,100, FORECAST($C202,D$205:D$216,$C$205:$C$216)))) -> 97.36537327 | H202: =IF(MAX(C205:C216)-MIN(C205:C216)<5,AVERAGEIF(C205:C216,">0",H205:H216), IF(FORECAST($C202,H$205:H$216,$C$205:$C$216)<0,0, IF(FORECAST($C202,H$205:H$216,$C$205:$C$216)>100,100, FORECAST($C202,H$205:H$216,$C$205:$C$216)))) -> 0.5501544041 | I202: =IF(MAX(C205:C216)-MIN(C205:C216)<5,AVERAGEIF(C205:C216,">0",I205:I216), IF(FORECAST($C202,I$205:I$216,$C$205:$C$216)<0,0, IF(FORECAST($C202,I$205:I$216,$C$205:$C$216)>100,100, FORECAST($C202,I$205:I$216,$C$205:$C$216)))) -> 100 | M202: =IF(MAX(C205:C216)-MIN(C205:C216)<5,AVERAGEIF(C205:C216,">0",M205:M216), IF(FORECAST($C202,M$205:M$216,$C$205:$C$216)<0,0, IF(FORECAST($C202,M$205:M$216,$C$205:$C$216)>100,100, FORECAST($C202,M$205:M$216,$C$205:$C$216)))) -> 0 | N202: =IF(MAX(C205:C216)-MIN(C205:C216)<5,AVERAGEIF(C205:C216,">0",N205:N216), IF(FORECAST($C202,N$205:N$216,$C$205:$C$216)<0,0, IF(FORECAST($C202,N$205:N$216,$C$205:$C$216)>100,100, FORECAST($C202,N$205:N$216,$C$205:$C$216)))) -> 100 | R202: =IF(MAX(C205:C216)-MIN(C205:C216)<5,AVERAGEIF(C205:C216,">0",R205:R216), IF(FORECAST($C202,R$205:R$216,$C$205:$C$216)<0,0, IF(FORECAST($C202,R$205:R$216,$C$205:$C$216)>100,100, FORECAST($C202,R$205:R$216,$C$205:$C$216)))) -> 0 | S202: =IF(MAX(C205:C216)-MIN(C205:C216)<5,AVERAGEIF(C205:C216,">0",S205:S216), IF(FORECAST($C202,S$205:S$216,$C$205:$C$216)<0,0, IF(FORECAST($C202,S$205:S$216,$C$205:$C$216)>100,100, FORECAST($C202,S$205:S$216,$C$205:$C$216)))) -> 100 | W202: =IF(MAX(C205:C216)-MIN(C205:C216)<5,AVERAGEIF(C205:C216,">0",W205:W216), IF(FORECAST($C202,W$205:W$216,$C$205:$C$216)<0,0, IF(FORECAST($C202,W$205:W$216,$C$205:$C$216)>100,100, FORECAST($C202,W$205:W$216,$C$205:$C$216)))) -> 0 | X202: =IF(MAX(C205:C216)-MIN(C205:C216)<5,AVERAGEIF(C205:C216,">0",X205:X216), IF(FORECAST($C202,X$205:X$216,$C$205:$C$216)<0,0, IF(FORECAST($C202,X$205:X$216,$C$205:$C$216)>100,100, FORECAST($C202,X$205:X$216,$C$205:$C$216)))) -> 100 | AB202: =IF(MAX(C205:C216)-MIN(C205:C216)<5,AVERAGEIF(C205:C216,">0",AB205:AB216), IF(FORECAST($C202,AB$205:AB$216,$C$205:$C$216)<0,0, IF(FORECAST($C202,AB$205:AB$216,$C$205:$C$216)>100,100, FORECAST($C202,AB$205:AB$216,$C$205:$C$216)))) -> 0
B204: Survey | C204: Year | D204: Improved | E204: Not shared | H204: Open defecation | I204: Improved | J204: Not shared | M204: Open defecation | N204: Improved | O204: Not shared | R204: Open defecation | S204: Improved | T204: Not shared | W204: Open defecation | X204: Improved | Y204: Not shared | AB204: Open defecation
B205: MICS19 | C205: 2019 | D205: =IF(ISERROR(INDIRECT(CONCATENATE($B205,"!H122"))),"",INDIRECT(CONCATENATE($B205,"!H122"))) -> 97.36537327 | E205: =IF(ISERROR(INDIRECT(CONCATENATE($B205,"!H129"))),"",INDIRECT(CONCATENATE($B205,"!H129"))) -> 88.09670059 | H205: =IF(ISERROR(INDIRECT(CONCATENATE($B205,"!H127"))),"",INDIRECT(CONCATENATE($B205,"!H127"))) -> 0.5501544041 | I205: =IF(ISERROR(INDIRECT(CONCATENATE($B205,"!I122"))),"",INDIRECT(CONCATENATE($B205,"!I122"))) -> 100 | J205: =IF(ISERROR(INDIRECT(CONCATENATE($B205,"!I129"))),"",INDIRECT(CONCATENATE($B205,"!I129"))) -> 97.36711473 | M205: =IF(ISERROR(INDIRECT(CONCATENATE($B205,"!I127"))),"",INDIRECT(CONCATENATE($B205,"!I127"))) -> 0 | N205: =IF(ISERROR(INDIRECT(CONCATENATE($B205,"!J122"))),"",INDIRECT(CONCATENATE($B205,"!J122"))) -> 100 | O205: =IF(ISERROR(INDIRECT(CONCATENATE($B205,"!J129"))),"",INDIRECT(CONCATENATE($B205,"!J129"))) -> 99.01024024 | R205: =IF(ISERROR(INDIRECT(CONCATENATE($B205,"!J127"))),"",INDIRECT(CONCATENATE($B205,"!J127"))) -> 0 | S205: =IF(ISERROR(INDIRECT(CONCATENATE($B205,"!K122"))),"",INDIRECT(CONCATENATE($B205,"!K122"))) -> 100 | T205: =IF(ISERROR(INDIRECT(CONCATENATE($B205,"!K129"))),"",INDIRECT(CONCATENATE($B205,"!K129"))) -> 98.27427391 | W205: =IF(ISERROR(INDIRECT(CONCATENATE($B205,"!K127"))),"",INDIRECT(CONCATENATE($B205,"!K127"))) -> 0 | X205: =IF(ISERROR(INDIRECT(CONCATENATE($B205,"!L122"))),"",INDIRECT(CONCATENATE($B205,"!L122"))) -> 100 | Y205: =IF(ISERROR(INDIRECT(CONCATENATE($B205,"!L129"))),"",INDIRECT(CONCATENATE($B205,"!L129"))) -> 97.79402401 | AB205: =IF(ISERROR(INDIRECT(CONCATENATE($B205,"!L2127"))),"",INDIRECT(CONCATENATE($B205,"!L127"))) -> 0
B218: =CONCATENATE("Urban use of sanitation facilities, ",C199,"–",C200) -> Urban use of sanitation facilities, 2015–2020 | S218: Data points used for regression
A297: RURAL | D297: Poorest | I297: Poor | N297: Middle | S297: Rich | X297: Richest
D298: Improved | E298: Basic | F298: Limited | G298: Unimproved | H298: Open defecation | I298: Improved | J298: Basic | K298: Limited | L298: Unimproved | M298: Open defecation | N298: Improved | O298: Basic | P298: Limited | Q298: Unimproved | R298: Open defecation | S298: Improved | T298: Basic | U298: Limited | V298: Unimproved | W298: Open defecation | X298: Improved | Y298: Basic | Z298: Limited | AA298: Unimproved | AB298: Open defecation
A299: Forecast period: | C299: 2015 | D299: =IF((D301+H301)>100,D301*100/(D301+H301),D301) -> 91.32441984 | E299: =D299*AVERAGEIF(E305:E316,">0")/100 -> 80.65327601 | F299: =D299*(100-AVERAGEIF(E305:E316,">0"))/100 -> 10.67114383 | G299: =100-(E299+F299+H299) -> 8.542495318 | H299: =IF((D301+H301)>100,H301*100/(D301+H301),H301) -> 0.1330848441 | I299: =IF((I301+M301)>100,I301*100/(I301+M301),I301) -> 96.34633286 | J299: =I299*AVERAGEIF(J305:J316,">0")/100 -> 87.12379021 | K299: =I299*(100-AVERAGEIF(J305:J316,">0"))/100 -> 9.222542659 | L299: =100-(J299+K299+M299) -> 3.653667136 | M299: =IF((I301+M301)>100,M301*100/(I301+M301),M301) -> 0 | N299: =IF((N301+R301)>100,N301*100/(N301+R301),N301) -> 98.55245257 | O299: =N299*AVERAGEIF(O305:O316,">0")/100 -> 90.86591671 | P299: =N299*(100-AVERAGEIF(O305:O316,">0"))/100 -> 7.686535857 | Q299: =100-(O299+P299+R299) -> 1.44754743 | R299: =IF((N301+R301)>100,R301*100/(N301+R301),R301) -> 0 | S299: =IF((S301+W301)>100,S301*100/(S301+W301),S301) -> 99.92632634 | T299: =S299*AVERAGEIF(T305:T316,">0")/100 -> 96.68574615 | U299: =S299*(100-AVERAGEIF(T305:T316,">0"))/100 -> 3.240580192 | V299: =100-(T299+U299+W299) -> 0.07367365636 | W299: =IF((S301+W301)>100,W301*100/(S301+W301),W301) -> 0 | X299: =IF((X301+AB301)>100,X301*100/(X301+AB301),X301) -> 100 | Y299: =X299*AVERAGEIF(Y305:Y316,">0")/100 -> 97.6421646 | Z299: =X299*(100-AVERAGEIF(Y305:Y316,">0"))/100 -> 2.357835404 | AA299: =100-(Y299+Z299+AB299) -> 0 | AB299: =IF((X301+AB301)>100,AB301*100/(X301+AB301),AB301) -> 0
C300: 2020 | D300: =IF((D302+H302)>100,D302*100/(D302+H302),D302) -> 91.32441984 | E300: =D300*AVERAGEIF(E305:E316,">0")/100 -> 80.65327601 | F300: =D300*(100-AVERAGEIF(E305:E316,">0"))/100 -> 10.67114383 | G300: =100-(E300+F300+H300) -> 8.542495318 | H300: =IF((D302+H302)>100,H302*100/(D302+H302),H302) -> 0.1330848441 | I300: =IF((I302+M302)>100,I302*100/(I302+M302),I302) -> 96.34633286 | J300: =I300*AVERAGEIF(J305:J316,">0")/100 -> 87.12379021 | K300: =I300*(100-AVERAGEIF(J305:J316,">0"))/100 -> 9.222542659 | L300: =100-(J300+K300+M300) -> 3.653667136 | M300: =IF((I302+M302)>100,M302*100/(I302+M302),M302) -> 0 | N300: =IF((N302+R302)>100,N302*100/(N302+R302),N302) -> 98.55245257 | O300: =N300*AVERAGEIF(O305:O316,">0")/100 -> 90.86591671 | P300: =N300*(100-AVERAGEIF(O305:O316,">0"))/100 -> 7.686535857 | Q300: =100-(O300+P300+R300) -> 1.44754743 | R300: =IF((N302+R302)>100,R302*100/(N302+R302),R302) -> 0 | S300: =IF((S302+W302)>100,S302*100/(S302+W302),S302) -> 99.92632634 | T300: =S300*AVERAGEIF(T305:T316,">0")/100 -> 96.68574615 | U300: =S300*(100-AVERAGEIF(T305:T316,">0"))/100 -> 3.240580192 | V300: =100-(T300+U300+W300) -> 0.07367365636 | W300: =IF((S302+W302)>100,W302*100/(S302+W302),W302) -> 0 | X300: =IF((X302+AB302)>100,X302*100/(X302+AB302),X302) -> 100 | Y300: =X300*AVERAGEIF(Y305:Y316,">0")/100 -> 97.6421646 | Z300: =X300*(100-AVERAGEIF(Y305:Y316,">0"))/100 -> 2.357835404 | AA300: =100-(Y300+Z300+AB300) -> 0 | AB300: =IF((X302+AB302)>100,AB302*100/(X302+AB302),AB302) -> 0
A301: Regression period: | C301: =MinRegYear(C299,C305:C316) -> 2017 | D301: =IF(MAX(C305:C316)-MIN(C305:C316)<5,AVERAGEIF(C305:C316,">0",D305:D316), IF(FORECAST($C301,D$305:D$316,$C$305:$C$316)<0,0, IF(FORECAST($C301,D$305:D$316,$C$305:$C$316)>100,100, FORECAST($C301,D$305:D$316,$C$305:$C$316)))) -> 91.32441984 | H301: =IF(MAX(C305:C316)-MIN(C305:C316)<5,AVERAGEIF(C305:C316,">0",H305:H316), IF(FORECAST($C301,H$305:H$316,$C$305:$C$316)<0,0, IF(FORECAST($C301,H$305:H$316,$C$305:$C$316)>100,100, FORECAST($C301,H$305:H$316,$C$305:$C$316)))) -> 0.1330848441 | I301: =IF(MAX(C305:C316)-MIN(C305:C316)<5,AVERAGEIF(C305:C316,">0",I305:I316), IF(FORECAST($C301,I$305:I$316,$C$305:$C$316)<0,0, IF(FORECAST($C301,I$305:I$316,$C$305:$C$316)>100,100, FORECAST($C301,I$305:I$316,$C$305:$C$316)))) -> 96.34633286 | M301: =IF(MAX(C305:C316)-MIN(C305:C316)<5,AVERAGEIF(C305:C316,">0",M305:M316), IF(FORECAST($C301,M$305:M$316,$C$305:$C$316)<0,0, IF(FORECAST($C301,M$305:M$316,$C$305:$C$316)>100,100, FORECAST($C301,M$305:M$316,$C$305:$C$316)))) -> 0 | N301: =IF(MAX(C305:C316)-MIN(C305:C316)<5,AVERAGEIF(C305:C316,">0",N305:N316), IF(FORECAST($C301,N$305:N$316,$C$305:$C$316)<0,0, IF(FORECAST($C301,N$305:N$316,$C$305:$C$316)>100,100, FORECAST($C301,N$305:N$316,$C$305:$C$316)))) -> 98.55245257 | R301: =IF(MAX(C305:C316)-MIN(C305:C316)<5,AVERAGEIF(C305:C316,">0",R305:R316), IF(FORECAST($C301,R$305:R$316,$C$305:$C$316)<0,0, IF(FORECAST($C301,R$305:R$316,$C$305:$C$316)>100,100, FORECAST($C301,R$305:R$316,$C$305:$C$316)))) -> 0 | S301: =IF(MAX(C305:C316)-MIN(C305:C316)<5,AVERAGEIF(C305:C316,">0",S305:S316), IF(FORECAST($C301,S$305:S$316,$C$305:$C$316)<0,0, IF(FORECAST($C301,S$305:S$316,$C$305:$C$316)>100,100, FORECAST($C301,S$305:S$316,$C$305:$C$316)))) -> 99.92632634 | W301: =IF(MAX(C305:C316)-MIN(C305:C316)<5,AVERAGEIF(C305:C316,">0",W305:W316), IF(FORECAST($C301,W$305:W$316,$C$305:$C$316)<0,0, IF(FORECAST($C301,W$305:W$316,$C$305:$C$316)>100,100, FORECAST($C301,W$305:W$316,$C$305:$C$316)))) -> 0 | X301: =IF(MAX(C305:C316)-MIN(C305:C316)<5,AVERAGEIF(C305:C316,">0",X305:X316), IF(FORECAST($C301,X$305:X$316,$C$305:$C$316)<0,0, IF(FORECAST($C301,X$305:X$316,$C$305:$C$316)>100,100, FORECAST($C301,X$305:X$316,$C$305:$C$316)))) -> 100 | AB301: =IF(MAX(C305:C316)-MIN(C305:C316)<5,AVERAGEIF(C305:C316,">0",AB305:AB316), IF(FORECAST($C301,AB$305:AB$316,$C$305:$C$316)<0,0, IF(FORECAST($C301,AB$305:AB$316,$C$305:$C$316)>100,100, FORECAST($C301,AB$305:AB$316,$C$305:$C$316)))) -> 0
C302: =MaxRegYear(C300,C305:C316) -> 2020 | D302: =IF(MAX(C305:C316)-MIN(C305:C316)<5,AVERAGEIF(C305:C316,">0",D305:D316), IF(FORECAST($C302,D$305:D$316,$C$305:$C$316)<0,0, IF(FORECAST($C302,D$305:D$316,$C$305:$C$316)>100,100, FORECAST($C302,D$305:D$316,$C$305:$C$316)))) -> 91.32441984 | H302: =IF(MAX(C305:C316)-MIN(C305:C316)<5,AVERAGEIF(C305:C316,">0",H305:H316), IF(FORECAST($C302,H$305:H$316,$C$305:$C$316)<0,0, IF(FORECAST($C302,H$305:H$316,$C$305:$C$316)>100,100, FORECAST($C302,H$305:H$316,$C$305:$C$316)))) -> 0.1330848441 | I302: =IF(MAX(C305:C316)-MIN(C305:C316)<5,AVERAGEIF(C305:C316,">0",I305:I316), IF(FORECAST($C302,I$305:I$316,$C$305:$C$316)<0,0, IF(FORECAST($C302,I$305:I$316,$C$305:$C$316)>100,100, FORECAST($C302,I$305:I$316,$C$305:$C$316)))) -> 96.34633286 | M302: =IF(MAX(C305:C316)-MIN(C305:C316)<5,AVERAGEIF(C305:C316,">0",M305:M316), IF(FORECAST($C302,M$305:M$316,$C$305:$C$316)<0,0, IF(FORECAST($C302,M$305:M$316,$C$305:$C$316)>100,100, FORECAST($C302,M$305:M$316,$C$305:$C$316)))) -> 0 | N302: =IF(MAX(C305:C316)-MIN(C305:C316)<5,AVERAGEIF(C305:C316,">0",N305:N316), IF(FORECAST($C302,N$305:N$316,$C$305:$C$316)<0,0, IF(FORECAST($C302,N$305:N$316,$C$305:$C$316)>100,100, FORECAST($C302,N$305:N$316,$C$305:$C$316)))) -> 98.55245257 | R302: =IF(MAX(C305:C316)-MIN(C305:C316)<5,AVERAGEIF(C305:C316,">0",R305:R316), IF(FORECAST($C302,R$305:R$316,$C$305:$C$316)<0,0, IF(FORECAST($C302,R$305:R$316,$C$305:$C$316)>100,100, FORECAST($C302,R$305:R$316,$C$305:$C$316)))) -> 0 | S302: =IF(MAX(C305:C316)-MIN(C305:C316)<5,AVERAGEIF(C305:C316,">0",S305:S316), IF(FORECAST($C302,S$305:S$316,$C$305:$C$316)<0,0, IF(FORECAST($C302,S$305:S$316,$C$305:$C$316)>100,100, FORECAST($C302,S$305:S$316,$C$305:$C$316)))) -> 99.92632634 | W302: =IF(MAX(C305:C316)-MIN(C305:C316)<5,AVERAGEIF(C305:C316,">0",W305:W316), IF(FORECAST($C302,W$305:W$316,$C$305:$C$316)<0,0, IF(FORECAST($C302,W$305:W$316,$C$305:$C$316)>100,100, FORECAST($C302,W$305:W$316,$C$305:$C$316)))) -> 0 | X302: =IF(MAX(C305:C316)-MIN(C305:C316)<5,AVERAGEIF(C305:C316,">0",X305:X316), IF(FORECAST($C302,X$305:X$316,$C$305:$C$316)<0,0, IF(FORECAST($C302,X$305:X$316,$C$305:$C$316)>100,100, FORECAST($C302,X$305:X$316,$C$305:$C$316)))) -> 100 | AB302: =IF(MAX(C305:C316)-MIN(C305:C316)<5,AVERAGEIF(C305:C316,">0",AB305:AB316), IF(FORECAST($C302,AB$305:AB$316,$C$305:$C$316)<0,0, IF(FORECAST($C302,AB$305:AB$316,$C$305:$C$316)>100,100, FORECAST($C302,AB$305:AB$316,$C$305:$C$316)))) -> 0
B304: Survey | C304: Year | D304: Improved | E304: Not shared | H304: Open defecation | I304: Improved | J304: Not shared | M304: Open defecation | N304: Improved | O304: Not shared | R304: Open defecation | S304: Improved | T304: Not shared | W304: Open defecation | X304: Improved | Y304: Not shared | AB304: Open defecation
B305: MICS19 | C305: 2019 | D305: =IF(ISERROR(INDIRECT(CONCATENATE($B305,"!M122"))),"",INDIRECT(CONCATENATE($B305,"!M122"))) -> 91.32441984 | E305: =IF(ISERROR(INDIRECT(CONCATENATE($B305,"!M129"))),"",INDIRECT(CONCATENATE($B305,"!M129"))) -> 88.31512552 | H305: =IF(ISERROR(INDIRECT(CONCATENATE($B305,"!M127"))),"",INDIRECT(CONCATENATE($B305,"!M127"))) -> 0.1330848441 | I305: =IF(ISERROR(INDIRECT(CONCATENATE($B305,"!N122"))),"",INDIRECT(CONCATENATE($B305,"!N122"))) -> 96.34633286 | J305: =IF(ISERROR(INDIRECT(CONCATENATE($B305,"!N129"))),"",INDIRECT(CONCATENATE($B305,"!N129"))) -> 90.42771802 | M305: =IF(ISERROR(INDIRECT(CONCATENATE($B305,"!N127"))),"",INDIRECT(CONCATENATE($B305,"!N127"))) -> 0 | N305: =IF(ISERROR(INDIRECT(CONCATENATE($B305,"!O122"))),"",INDIRECT(CONCATENATE($B305,"!O122"))) -> 98.55245257 | O305: =IF(ISERROR(INDIRECT(CONCATENATE($B305,"!O129"))),"",INDIRECT(CONCATENATE($B305,"!O129"))) -> 92.2005636 | R305: =IF(ISERROR(INDIRECT(CONCATENATE($B305,"!O127"))),"",INDIRECT(CONCATENATE($B305,"!O127"))) -> 0 | S305: =IF(ISERROR(INDIRECT(CONCATENATE($B305,"!P122"))),"",INDIRECT(CONCATENATE($B305,"!P122"))) -> 99.92632634 | T305: =IF(ISERROR(INDIRECT(CONCATENATE($B305,"!P129"))),"",INDIRECT(CONCATENATE($B305,"!P129"))) -> 96.75703059 | W305: =IF(ISERROR(INDIRECT(CONCATENATE($B305,"!P127"))),"",INDIRECT(CONCATENATE($B305,"!P127"))) -> 0 | X305: =IF(ISERROR(INDIRECT(CONCATENATE($B305,"!Q122"))),"",INDIRECT(CONCATENATE($B305,"!Q122"))) -> 100 | Y305: =IF(ISERROR(INDIRECT(CONCATENATE($B305,"!Q129"))),"",INDIRECT(CONCATENATE($B305,"!Q129"))) -> 97.6421646 | AB305: =IF(ISERROR(INDIRECT(CONCATENATE($B305,"!Q2127"))),"",INDIRECT(CONCATENATE($B305,"!Q127"))) -> 0
B318: =CONCATENATE("Rural use of sanitation facilities, ",C299,"–",C300) -> Rural use of sanitation facilities, 2015–2020 | S318: Data points used for regression

Sheet Hygiene
B4: Access to hygiene facilities by wealth quintile (%)
B5: =IF(ISERROR(INDIRECT(CONCATENATE($E$32,"!A2"))),"",INDIRECT(CONCATENATE($E$32,"!A2"))) -> Tonga
B7: =CONCATENATE("National ",IF(ISERROR(INDIRECT(CONCATENATE($E$32,"!A2"))),"",INDIRECT(CONCATENATE($E$32,"!A210")))) -> National Access to hygiene facilities | K7: =CONCATENATE("Urban ",IF(ISERROR(INDIRECT(CONCATENATE($E$32,"!A2"))),"",INDIRECT(CONCATENATE($E$32,"!A210")))) -> Urban Access to hygiene facilities | S7: =CONCATENATE("Rural ",IF(ISERROR(INDIRECT(CONCATENATE($E$32,"!A2"))),"",INDIRECT(CONCATENATE($E$32,"!A210")))) -> Rural Access to hygiene facilities
E32: =INDEX(B88:B100,A88) -> MICS19 | G32: =IF(ISERROR(INDIRECT(CONCATENATE($E$32,"!A2"))),"",INDIRECT(CONCATENATE($E$32,"!A2"))) -> Tonga | K32: Poorest | N32: Poor | Q32: Middle | T32: Rich | W32: Richest
K33: Basic | L33: Limited | M33: No facility | N33: Basic | O33: Limited | P33: No facility | Q33: Basic | R33: Limited | S33: No facility | T33: Basic | U33: Limited | V33: No facility | W33: Basic | X33: Limited | Y33: No facility
B34: >>> Select Survey : | G34: NATIONAL | J34: =IF(ISERROR(INDIRECT(CONCATENATE(#REF!,"!A2"))),"",INDIRECT(CONCATENATE(#REF!,"!A210"))) ->  | K34: =IF(ISERROR(INDIRECT(CONCATENATE($E$32,"!C222"))),"",INDIRECT(CONCATENATE($E$32,"!C222"))) -> 42.59668074 | L34: =IF(ISERROR(INDIRECT(CONCATENATE($E$32,"!C223"))),"",INDIRECT(CONCATENATE($E$32,"!C223"))) -> 50.93260337 | M34: =IF(ISERROR(INDIRECT(CONCATENATE($E$32,"!C224"))),"",INDIRECT(CONCATENATE($E$32,"!C224"))) -> 6.470715895 | N34: =IF(ISERROR(INDIRECT(CONCATENATE($E$32,"!D222"))),"",INDIRECT(CONCATENATE($E$32,"!D222"))) -> 61.84512288 | O34: =IF(ISERROR(INDIRECT(CONCATENATE($E$32,"!D223"))),"",INDIRECT(CONCATENATE($E$32,"!D223"))) -> 34.08131359 | P34: =IF(ISERROR(INDIRECT(CONCATENATE($E$32,"!D224"))),"",INDIRECT(CONCATENATE($E$32,"!D224"))) -> 4.07356353 | Q34: =IF(ISERROR(INDIRECT(CONCATENATE($E$32,"!E222"))),"",INDIRECT(CONCATENATE($E$32,"!E222"))) -> 72.21788788 | R34: =IF(ISERROR(INDIRECT(CONCATENATE($E$32,"!E223"))),"",INDIRECT(CONCATENATE($E$32,"!E223"))) -> 27.2905927 | S34: =IF(ISERROR(INDIRECT(CONCATENATE($E$32,"!E224"))),"",INDIRECT(CONCATENATE($E$32,"!E224"))) -> 0.4915194225 | T34: =IF(ISERROR(INDIRECT(CONCATENATE($E$32,"!F222"))),"",INDIRECT(CONCATENATE($E$32,"!F222"))) -> 82.84564863 | U34: =IF(ISERROR(INDIRECT(CONCATENATE($E$32,"!F223"))),"",INDIRECT(CONCATENATE($E$32,"!F223"))) -> 16.14380527 | V34: =IF(ISERROR(INDIRECT(CONCATENATE($E$32,"!F224"))),"",INDIRECT(CONCATENATE($E$32,"!F224"))) -> 1.010546099 | W34: =IF(ISERROR(INDIRECT(CONCATENATE($E$32,"!G222"))),"",INDIRECT(CONCATENATE($E$32,"!G222"))) -> 90.08307529 | X34: =IF(ISERROR(INDIRECT(CONCATENATE($E$32,"!G223"))),"",INDIRECT(CONCATENATE($E$32,"!G223"))) -> 8.393326138 | Y34: =IF(ISERROR(INDIRECT(CONCATENATE($E$32,"!G224"))),"",INDIRECT(CONCATENATE($E$32,"!G224"))) -> 1.523598571
G37: URBAN | J37: =IF(ISERROR(INDIRECT(CONCATENATE(#REF!,"!A2"))),"",INDIRECT(CONCATENATE(#REF!,"!A210"))) ->  | K37: =IF(ISERROR(INDIRECT(CONCATENATE($E$32,"!H222"))),"",INDIRECT(CONCATENATE($E$32,"!H222"))) -> 48.8801888 | L37: =IF(ISERROR(INDIRECT(CONCATENATE($E$32,"!H223"))),"",INDIRECT(CONCATENATE($E$32,"!H223"))) -> 37.01301079 | M37: =IF(ISERROR(INDIRECT(CONCATENATE($E$32,"!H224"))),"",INDIRECT(CONCATENATE($E$32,"!H224"))) -> 14.10680041 | N37: =IF(ISERROR(INDIRECT(CONCATENATE($E$32,"!I222"))),"",INDIRECT(CONCATENATE($E$32,"!I222"))) -> 82.27715297 | O37: =IF(ISERROR(INDIRECT(CONCATENATE($E$32,"!I223"))),"",INDIRECT(CONCATENATE($E$32,"!I223"))) -> 15.88019913 | P37: =IF(ISERROR(INDIRECT(CONCATENATE($E$32,"!I224"))),"",INDIRECT(CONCATENATE($E$32,"!I224"))) -> 1.842647903 | Q37: =IF(ISERROR(INDIRECT(CONCATENATE($E$32,"!J222"))),"",INDIRECT(CONCATENATE($E$32,"!J222"))) -> 87.73989192 | R37: =IF(ISERROR(INDIRECT(CONCATENATE($E$32,"!J223"))),"",INDIRECT(CONCATENATE($E$32,"!J223"))) -> 10.97119615 | S37: =IF(ISERROR(INDIRECT(CONCATENATE($E$32,"!J224"))),"",INDIRECT(CONCATENATE($E$32,"!J224"))) -> 1.288911932 | T37: =IF(ISERROR(INDIRECT(CONCATENATE($E$32,"!K222"))),"",INDIRECT(CONCATENATE($E$32,"!K222"))) -> 87.84493001 | U37: =IF(ISERROR(INDIRECT(CONCATENATE($E$32,"!K223"))),"",INDIRECT(CONCATENATE($E$32,"!K223"))) -> 11.19997041 | V37: =IF(ISERROR(INDIRECT(CONCATENATE($E$32,"!K224"))),"",INDIRECT(CONCATENATE($E$32,"!K224"))) -> 0.9550995776 | W37: =IF(ISERROR(INDIRECT(CONCATENATE($E$32,"!L222"))),"",INDIRECT(CONCATENATE($E$32,"!L222"))) -> 95.57045364 | X37: =IF(ISERROR(INDIRECT(CONCATENATE($E$32,"!L223"))),"",INDIRECT(CONCATENATE($E$32,"!L223"))) -> 1.141676129 | Y37: =IF(ISERROR(INDIRECT(CONCATENATE($E$32,"!L224"))),"",INDIRECT(CONCATENATE($E$32,"!L224"))) -> 3.287870234
G40: RURAL | J40: =IF(ISERROR(INDIRECT(CONCATENATE(#REF!,"!A2"))),"",INDIRECT(CONCATENATE(#REF!,"!A210"))) ->  | K40: =IF(ISERROR(INDIRECT(CONCATENATE($E$32,"!M222"))),"",INDIRECT(CONCATENATE($E$32,"!M222"))) -> 41.58941007 | L40: =IF(ISERROR(INDIRECT(CONCATENATE($E$32,"!M223"))),"",INDIRECT(CONCATENATE($E$32,"!M223"))) -> 52.1395757 | M40: =IF(ISERROR(INDIRECT(CONCATENATE($E$32,"!M224"))),"",INDIRECT(CONCATENATE($E$32,"!M224"))) -> 6.271014234 | N40: =IF(ISERROR(INDIRECT(CONCATENATE($E$32,"!N222"))),"",INDIRECT(CONCATENATE($E$32,"!N222"))) -> 59.28328874 | O40: =IF(ISERROR(INDIRECT(CONCATENATE($E$32,"!N223"))),"",INDIRECT(CONCATENATE($E$32,"!N223"))) -> 37.70631984 | P40: =IF(ISERROR(INDIRECT(CONCATENATE($E$32,"!N224"))),"",INDIRECT(CONCATENATE($E$32,"!N224"))) -> 3.010391426 | Q40: =IF(ISERROR(INDIRECT(CONCATENATE($E$32,"!O222"))),"",INDIRECT(CONCATENATE($E$32,"!O222"))) -> 68.23169604 | R40: =IF(ISERROR(INDIRECT(CONCATENATE($E$32,"!O223"))),"",INDIRECT(CONCATENATE($E$32,"!O223"))) -> 31.11706278 | S40: =IF(ISERROR(INDIRECT(CONCATENATE($E$32,"!O224"))),"",INDIRECT(CONCATENATE($E$32,"!O224"))) -> 0.6512411794 | T40: =IF(ISERROR(INDIRECT(CONCATENATE($E$32,"!P222"))),"",INDIRECT(CONCATENATE($E$32,"!P222"))) -> 77.60074464 | U40: =IF(ISERROR(INDIRECT(CONCATENATE($E$32,"!P223"))),"",INDIRECT(CONCATENATE($E$32,"!P223"))) -> 21.76766283 | V40: =IF(ISERROR(INDIRECT(CONCATENATE($E$32,"!P224"))),"",INDIRECT(CONCATENATE($E$32,"!P224"))) -> 0.6315925267 | W40: =IF(ISERROR(INDIRECT(CONCATENATE($E$32,"!Q222"))),"",INDIRECT(CONCATENATE($E$32,"!Q222"))) -> 86.66849855 | X40: =IF(ISERROR(INDIRECT(CONCATENATE($E$32,"!Q223"))),"",INDIRECT(CONCATENATE($E$32,"!Q223"))) -> 12.6426903 | Y40: =IF(ISERROR(INDIRECT(CONCATENATE($E$32,"!Q224"))),"",INDIRECT(CONCATENATE($E$32,"!Q224"))) -> 0.6888111486
A88: 1 | B88: MICS19
B89: Input
B90: Template

Sheet MICS19
A2: =A1026 -> Tonga
A3: =A1034 -> 2019
A4: Use of drinking water sources
A5: by wealth quintile and sub-national region
A6: Notes:
A7: WHO/UNICEF JMP customised wealth index excludes water,
A8: sanitation and hygiene assets.
A9: Survey used for analysis: | B9: =A1025 -> MICS19
A10: =B1028 -> 
A11: =B1027 -> 
A14: Use of drinking water sources | C14: NATIONAL wealth index quintile | H14: URBAN wealth index quintile | M14: RURAL wealth index quintile | R14: SUB-REGIONS: | BA14: Raw numbers of respondents: | BB14: Use of drinking water sources | BC14: NATIONAL wealth index quintile | BH14: URBAN wealth index quintile | BM14: RURAL wealth index quintile | BR14: SUB-REGIONS:
A15: Weighted percentage (used in graphs) | C15: Poorest | D15: Poor | E15: Middle | F15: Rich | G15: Richest | H15: Poorest | I15: Poor | J15: Middle | K15: Rich | L15: Richest | M15: Poorest | N15: Poor | O15: Middle | P15: Rich | Q15: Richest | R15: 'EUA | S15: HA'APAI | T15: ONGO NIUA | U15: TONGATAPU | V15: VAVA'U | BA15: Water data, raw numbers (weighted) | BC15: Poorest | BD15: Poor | BE15: Middle | BF15: Rich | BG15: Richest | BH15: Poorest | BI15: Poor | BJ15: Middle | BK15: Rich | BL15: Richest | BM15: Poorest | BN15: Poor | BO15: Middle | BP15: Rich | BQ15: Richest | BR15: 'EUA | BS15: HA'APAI | BT15: ONGO NIUA | BU15: TONGATAPU | BV15: VAVA'U
A16: Water | B16: Improved | C16: 99.49425586 | D16: 98.45475212 | E16: 98.37363724 | F16: 99.33442192 | G16: 99.50972514 | H16: 98.11959593 | I16: 97.90993735 | J16: 100 | K16: 100 | L16: 100 | M16: 99.4226511 | N16: 98.58242904 | O16: 98.40323523 | P16: 99.12899933 | Q16: 99.36652627 | R16: 99.95283074 | S16: 99.71298155 | T16: 97.30132793 | U16: 98.87278541 | V16: 99.26451687 | BA16: Water | BB16: Improved | BC16: 2633.679037 | BD16: 2606.49019 | BE16: 2600.347671 | BF16: 2636.526191 | BG16: 2627.191725 | BH16: 600.1537253 | BI16: 594.6476077 | BJ16: 609.0644484 | BK16: 610.8048101 | BL16: 611.6663184 | BM16: 2032.137781 | BN16: 2000.331963 | BO16: 2004.504064 | BP16: 2010.543924 | BQ16: 2030.380173 | BR16: 719.3702049 | BS16: 937.8822061 | BT16: 158.1876056 | BU16: 9226.828455 | BV16: 2061.966344
B17: Not Improved | C17: 0.5057441357 | D17: 1.545247879 | E17: 1.62636276 | F17: 0.6655780798 | G17: 0.4902748637 | H17: 1.880404065 | I17: 2.090062654 | J17: 0 | K17: 0 | L17: 0 | M17: 0.5773489034 | N17: 1.41757096 | O17: 1.596764765 | P17: 0.8710006686 | Q17: 0.6334737342 | R17: 0.04716925515 | S17: 0.2870184458 | T17: 2.69867207 | U17: 1.127214594 | V17: 0.7354831326 | BB17: Not Improved | BC17: 13.38738319 | BD17: 40.90887793 | BE17: 42.99026379 | BF17: 17.66571955 | BG17: 12.94392144 | BH17: 11.50159144 | BI17: 12.69381629 | BJ17: 0 | BK17: 0 | BL17: 0 | BM17: 11.80065615 | BN17: 28.76387332 | BO17: 32.52658771 | BP17: 17.66571955 | BQ17: 12.94392144 | BR17: 0.3394816984 | BS17: 2.699643406 | BT17: 4.387365335 | BU17: 105.1918953 | BV17: 15.27778015
A18: Water ladder | B18: Basic | C18: 99.49425586 | D18: 98.45475212 | E18: 98.37363724 | F18: 99.33442192 | G18: 99.50972514 | H18: 98.11959593 | I18: 97.90993735 | J18: 100 | K18: 100 | L18: 100 | M18: 99.4226511 | N18: 98.58242904 | O18: 98.40323523 | P18: 99.12899933 | Q18: 99.36652627 | R18: 99.95283074 | S18: 99.71298155 | T18: 97.30132793 | U18: 98.87278541 | V18: 99.26451687 | BA18: Water ladder | BB18: Basic | BC18: 2633.679037 | BD18: 2606.49019 | BE18: 2600.347671 | BF18: 2636.526191 | BG18: 2627.191725 | BH18: 600.1537253 | BI18: 594.6476077 | BJ18: 609.0644484 | BK18: 610.8048101 | BL18: 611.6663184 | BM18: 2032.137781 | BN18: 2000.331963 | BO18: 2004.504064 | BP18: 2010.543924 | BQ18: 2030.380173 | BR18: 719.3702049 | BS18: 937.8822061 | BT18: 158.1876056 | BU18: 9226.828455 | BV18: 2061.966344
B19: Limited | C19: 0 | D19: 0 | E19: 0 | F19: 0 | G19: 0 | H19: 0 | I19: 0 | J19: 0 | K19: 0 | L19: 0 | M19: 0 | N19: 0 | O19: 0 | P19: 0 | Q19: 0 | R19: 0 | S19: 0 | T19: 0 | U19: 0 | V19: 0 | BB19: Limited | BC19: N/A | BD19: N/A | BE19: N/A | BF19: N/A | BG19: N/A | BH19: N/A | BI19: N/A | BJ19: N/A | BK19: N/A | BL19: N/A | BM19: N/A | BN19: N/A | BO19: N/A | BP19: N/A | BQ19: N/A | BR19: N/A | BS19: N/A | BT19: N/A | BU19: N/A | BV19: N/A
B20: Unimproved | C20: 0.5057441357 | D20: 1.545247879 | E20: 1.62636276 | F20: 0.6655780798 | G20: 0.4902748637 | H20: 1.880404065 | I20: 2.090062654 | J20: 0 | K20: 0 | L20: 0 | M20: 0.5773489034 | N20: 1.41757096 | O20: 1.596764765 | P20: 0.8710006686 | Q20: 0.6334737342 | R20: 0.04716925515 | S20: 0.2870184458 | T20: 2.69867207 | U20: 1.127214594 | V20: 0.7354831326 | BB20: Unimproved | BC20: 13.38738319 | BD20: 40.90887793 | BE20: 42.99026379 | BF20: 17.66571955 | BG20: 12.94392144 | BH20: 11.50159144 | BI20: 12.69381629 | BJ20: 0 | BK20: 0 | BL20: 0 | BM20: 11.80065615 | BN20: 28.76387332 | BO20: 32.52658771 | BP20: 17.66571955 | BQ20: 12.94392144 | BR20: 0.3394816984 | BS20: 2.699643406 | BT20: 4.387365335 | BU20: 105.1918953 | BV20: 15.27778015
B21: Surface water | C21: 0 | D21: 0 | E21: 0 | F21: 0 | G21: 0 | H21: 0 | I21: 0 | J21: 0 | K21: 0 | L21: 0 | M21: 0 | N21: 0 | O21: 0 | P21: 0 | Q21: 0 | R21: 0 | S21: 0 | T21: 0 | U21: 0 | V21: 0 | BB21: Surface water | BC21: N/A | BD21: N/A | BE21: N/A | BF21: N/A | BG21: N/A | BH21: N/A | BI21: N/A | BJ21: N/A | BK21: N/A | BL21: N/A | BM21: N/A | BN21: N/A | BO21: N/A | BP21: N/A | BQ21: N/A | BR21: N/A | BS21: N/A | BT21: N/A | BU21: N/A | BV21: N/A
A22: Improved water point at more than 30 minutes | B22: Yes | C22: 0 | D22: 0 | E22: 0 | F22: 0 | G22: 0 | H22: 0 | I22: 0 | J22: 0 | K22: 0 | L22: 0 | M22: 0 | N22: 0 | O22: 0 | P22: 0 | Q22: 0 | R22: 0 | S22: 0 | T22: 0 | U22: 0 | V22: 0 | BA22: Improved water point at more than 30 minutes | BB22: Yes | BC22: N/A | BD22: N/A | BE22: N/A | BF22: N/A | BG22: N/A | BH22: N/A | BI22: N/A | BJ22: N/A | BK22: N/A | BL22: N/A | BM22: N/A | BN22: N/A | BO22: N/A | BP22: N/A | BQ22: N/A | BR22: N/A | BS22: N/A | BT22: N/A | BU22: N/A | BV22: N/A
B23: No | C23: 100 | D23: 100 | E23: 100 | F23: 100 | G23: 100 | H23: 100 | I23: 100 | J23: 100 | K23: 100 | L23: 100 | M23: 100 | N23: 100 | O23: 100 | P23: 100 | Q23: 100 | R23: 100 | S23: 100 | T23: 100 | U23: 100 | V23: 100 | BB23: No | BC23: N/A | BD23: N/A | BE23: N/A | BF23: N/A | BG23: N/A | BH23: N/A | BI23: N/A | BJ23: N/A | BK23: N/A | BL23: N/A | BM23: N/A | BN23: N/A | BO23: N/A | BP23: N/A | BQ23: N/A | BR23: N/A | BS23: N/A | BT23: N/A | BU23: N/A | BV23: N/A
A24: Manually calculated ratios | B24: Improved wells
B25: Improved springs
B26: Other
C27: NATIONAL wealth index quintile | H27: URBAN wealth index quintile | M27: RURAL wealth index quintile | R27: SUB-REGIONS: | BA27: Raw numbers of respondents: | BB27: Use of drinking water sources | BC27: NATIONAL wealth index quintile | BH27: URBAN wealth index quintile | BM27: RURAL wealth index quintile | BR27: SUB-REGIONS:
A28: Percentage based on weighted population | C28: Poorest | D28: Poor | E28: Middle | F28: Rich | G28: Richest | H28: Poorest | I28: Poor | J28: Middle | K28: Rich | L28: Richest | M28: Poorest | N28: Poor | O28: Middle | P28: Rich | Q28: Richest | R28: 'EUA | S28: HA'APAI | T28: ONGO NIUA | U28: TONGATAPU | V28: VAVA'U | BA28: Water data, raw numbers (weighted) | BC28: Poorest | BD28: Poor | BE28: Middle | BF28: Rich | BG28: Richest | BH28: Poorest | BI28: Poor | BJ28: Middle | BK28: Rich | BL28: Richest | BM28: Poorest | BN28: Poor | BO28: Middle | BP28: Rich | BQ28: Richest | BR28: 'EUA | BS28: HA'APAI | BT28: ONGO NIUA | BU28: TONGATAPU | BV28: VAVA'U
A29: Piped water | B29: Yes | C29: 99.42553529 | D29: 98.45475212 | E29: 98.37363724 | F29: 99.33442192 | G29: 99.50972514 | H29: 98.11959593 | I29: 97.90993735 | J29: 100 | K29: 100 | L29: 100 | M29: 99.33365236 | N29: 98.58242904 | O29: 98.40323523 | P29: 99.12899933 | Q29: 99.36652627 | R29: 99.70007892 | S29: 99.71298155 | T29: 97.30132793 | U29: 98.87278541 | V29: 99.26451687 | BA29: Piped water | BB29: Yes | BC29: 2631.859958 | BD29: 2606.49019 | BE29: 2600.347671 | BF29: 2636.526191 | BG29: 2627.191725 | BH29: 600.1537253 | BI29: 594.6476077 | BJ29: 609.0644484 | BK29: 610.8048101 | BL29: 611.6663184 | BM29: 2030.318702 | BN29: 2000.331963 | BO29: 2004.504064 | BP29: 2010.543924 | BQ29: 2030.380173 | BR29: 717.5511255 | BS29: 937.8822061 | BT29: 158.1876056 | BU29: 9226.828455 | BV29: 2061.966344
B30: No | C30: 0.5744647148 | D30: 1.545247879 | E30: 1.62636276 | F30: 0.6655780798 | G30: 0.4902748637 | H30: 1.880404065 | I30: 2.090062654 | J30: 0 | K30: 0 | L30: 0 | M30: 0.6663476393 | N30: 1.41757096 | O30: 1.596764765 | P30: 0.8710006686 | Q30: 0.6334737342 | R30: 0.2999210806 | S30: 0.2870184458 | T30: 2.69867207 | U30: 1.127214594 | V30: 0.7354831326 | BB30: No | BC30: 15.20646256 | BD30: 40.90887793 | BE30: 42.99026379 | BF30: 17.66571955 | BG30: 12.94392144 | BH30: 11.50159144 | BI30: 12.69381629 | BJ30: 0 | BK30: 0 | BL30: 0 | BM30: 13.61973553 | BN30: 28.76387332 | BO30: 32.52658771 | BP30: 17.66571955 | BQ30: 12.94392144 | BR30: 2.158561069 | BS30: 2.699643406 | BT30: 4.387365335 | BU30: 105.1918953 | BV30: 15.27778015
A31: Piped water on premises | B31: Yes | C31: 10.92840715 | D31: 17.95074485 | E31: 24.52663576 | F31: 27.31209964 | G31: 38.90747485 | H31: 23.21670699 | I31: 33.29431119 | J31: 37.13918084 | K31: 48.49389581 | L31: 51.91619212 | M31: 7.822811398 | N31: 17.35349103 | O31: 18.36150225 | P31: 23.45895631 | Q31: 30.29103851 | R31: 5.966277583 | S31: 4.417065818 | T31: 0.2756577127 | U31: 31.48027912 | V31: 6.849332935 | BA31: Piped water on premises | BB31: Yes | BC31: 289.282196 | BD31: 475.2278518 | BE31: 648.3218671 | BF31: 724.9155392 | BG31: 1027.210113 | BH31: 142.0062227 | BI31: 202.2101437 | BJ31: 226.201547 | BK31: 296.2030482 | BL31: 317.553861 | BM31: 159.893449 | BN31: 352.118964 | BO31: 374.0294289 | BP31: 475.7968141 | BQ31: 618.9440883 | BR31: 42.93987769 | BS31: 41.54611936 | BT31: 0.4481504465 | BU31: 2937.746054 | BV31: 142.2773659
B32: No | C32: 89.07159285 | D32: 82.04925515 | E32: 75.47336424 | F32: 72.68790036 | G32: 61.09252515 | H32: 76.78329301 | I32: 66.70568881 | J32: 62.86081916 | K32: 51.50610419 | L32: 48.08380788 | M32: 92.1771886 | N32: 82.64650897 | O32: 81.63849775 | P32: 76.54104369 | Q32: 69.70896149 | R32: 94.03372242 | S32: 95.58293418 | T32: 99.72434229 | U32: 68.51972088 | V32: 93.15066706 | BB32: No | BC32: 2357.784225 | BD32: 2172.171216 | BE32: 1995.016068 | BF32: 1929.276372 | BG32: 1612.925534 | BH32: 469.6490941 | BI32: 405.1312803 | BJ32: 382.8629015 | BK32: 314.6017618 | BL32: 294.1124574 | BM32: 1884.044988 | BN32: 1676.976872 | BO32: 1663.001223 | BP32: 1552.412829 | BQ32: 1424.380006 | BR32: 676.7698089 | BS32: 899.0357302 | BT32: 162.1268205 | BU32: 6394.274297 | BV32: 1934.966758
A33: Piped water into dwelling | B33: Yes | C33: 19.4089342 | D33: 44.16750109 | E33: 58.01623663 | F33: 66.00767283 | G33: 73.76283427 | H33: 48.18663642 | I33: 76.64870753 | J33: 81.9853277 | K33: 84.002862 | L33: 83.68035179 | M33: 16.38947495 | N33: 36.8295478 | O33: 52.53398315 | P33: 54.55380221 | Q33: 67.17477456 | R33: 45.77240042 | S33: 6.032211817 | T33: 10.40237358 | U33: 61.16640253 | V33: 38.74810343 | BA33: Piped water into dwelling | BB33: Yes | BC33: 513.7673798 | BD33: 1169.290012 | BE33: 1533.565191 | BF33: 1751.970313 | BG33: 1947.438882 | BH33: 294.7361236 | BI33: 465.5193518 | BJ33: 499.343484 | BK33: 513.0935217 | BL33: 511.844527 | BM33: 334.9907783 | BN33: 747.3068209 | BO33: 1070.133339 | BP33: 1106.465477 | BQ33: 1372.598354 | BR33: 329.4283996 | BS33: 56.73788948 | BT33: 16.91165583 | BU33: 5708.061132 | BV33: 804.8927015
B34: No | C34: 80.5910658 | D34: 55.83249891 | E34: 41.98376337 | F34: 33.99232717 | G34: 26.23716573 | H34: 51.81336358 | I34: 23.35129247 | J34: 18.0146723 | K34: 15.997138 | L34: 16.31964821 | M34: 83.61052505 | N34: 63.1704522 | O34: 47.46601685 | P34: 45.44619779 | Q34: 32.82522544 | R34: 54.22759958 | S34: 93.96778818 | T34: 89.59762642 | U34: 38.83359747 | V34: 61.25189657 | BB34: No | BC34: 2133.299041 | BD34: 1478.109056 | BE34: 1109.772744 | BF34: 902.221598 | BG34: 692.6967651 | BH34: 316.9191931 | BI34: 141.8220722 | BJ34: 109.7209645 | BK34: 97.71128837 | BL34: 99.82179138 | BM34: 1708.947659 | BN34: 1281.789015 | BO34: 966.8973124 | BP34: 921.7441661 | BQ34: 670.7257405 | BR34: 390.2812869 | BS34: 883.84396 | BT34: 145.6633152 | BU34: 3623.959219 | BV34: 1272.351422
A35: Water source on premises | B35: Yes | C35: 99.42572752 | D35: 98.45475212 | E35: 98.46247544 | F35: 99.63403402 | G35: 99.65110325 | H35: 98.11959593 | I35: 97.90993735 | J35: 100 | K35: 100 | L35: 100 | M35: 99.33390131 | N35: 98.58242904 | O35: 98.51851548 | P35: 99.52108307 | Q35: 99.54919792 | R35: 100 | S35: 99.16889441 | T35: 97.89043514 | U35: 99.01949775 | V35: 99.37756539 | BA35: Water source on premises | BB35: Yes | BC35: 2631.865046 | BD35: 2606.49019 | BE35: 2602.695965 | BF35: 2644.478471 | BG35: 2630.924299 | BH35: 600.1537253 | BI35: 594.6476077 | BJ35: 609.0644484 | BK35: 610.8048101 | BL35: 611.6663184 | BM35: 2030.32379 | BN35: 2000.331963 | BO35: 2006.852358 | BP35: 2018.496204 | BQ35: 2034.112747 | BR35: 719.7096866 | BS35: 932.7646212 | BT35: 159.1453465 | BU35: 9240.519681 | BV35: 2064.314637
B36: No | C36: 0.5742724842 | D36: 1.545247879 | E36: 1.53752456 | F36: 0.3659659756 | G36: 0.3488967546 | H36: 1.880404065 | I36: 2.090062654 | J36: 0 | K36: 0 | L36: 0 | M36: 0.6660986851 | N36: 1.41757096 | O36: 1.481484525 | P36: 0.4789169282 | Q36: 0.4508020834 | R36: 0 | S36: 0.8311055865 | T36: 2.109564861 | U36: 0.9805022533 | V36: 0.6224346081 | BB36: No | BC36: 15.20137409 | BD36: 40.90887793 | BE36: 40.64196996 | BF36: 9.713439321 | BG36: 9.211347588 | BH36: 11.50159144 | BI36: 12.69381629 | BJ36: 0 | BK36: 0 | BL36: 0 | BM36: 13.61464705 | BN36: 28.76387332 | BO36: 30.17829387 | BP36: 9.713439321 | BQ36: 9.211347588 | BR36: 0 | BS36: 7.817228297 | BT36: 3.429624461 | BU36: 91.50066981 | BV36: 12.92948632
A37: Improved water source on premises | B37: Yes | C37: 99.78785995 | D37: 100 | E37: 100 | F37: 100 | G37: 100 | H37: 100 | I37: 100 | J37: 100 | K37: 100 | L37: 100 | M37: 99.72506352 | N37: 100 | O37: 100 | P37: 100 | Q37: 100 | R37: 100 | S37: 99.4042868 | T37: 100 | U37: 100 | V37: 100 | BA37: Improved water source on premises | BB37: Yes | BC37: 2628.091949 | BD37: 2606.49019 | BE37: 2600.347671 | BF37: 2636.526191 | BG37: 2627.191725 | BH37: 600.1537253 | BI37: 594.6476077 | BJ37: 609.0644484 | BK37: 610.8048101 | BL37: 611.6663184 | BM37: 2026.550693 | BN37: 2000.331963 | BO37: 2004.504064 | BP37: 2010.543924 | BQ37: 2030.380173 | BR37: 719.3702049 | BS37: 932.295118 | BT37: 158.1876056 | BU37: 9226.828455 | BV37: 2061.966344
B38: No | C38: 0.2121400525 | D38: 0 | E38: 0 | F38: 0 | G38: 0 | H38: 0 | I38: 0 | J38: 0 | K38: 0 | L38: 0 | M38: 0.2749364804 | N38: 0 | O38: 0 | P38: 0 | Q38: 0 | R38: 0 | S38: 0.5957131989 | T38: 0 | U38: 0 | V38: 0 | BB38: No | BC38: 5.587088092 | BD38: 0 | BE38: 0 | BF38: 0 | BG38: 0 | BH38: 0 | BI38: 0 | BJ38: 0 | BK38: 0 | BL38: 0 | BM38: 5.587088092 | BN38: 0 | BO38: 0 | BP38: 0 | BQ38: 0 | BR38: 0 | BS38: 5.587088092 | BT38: 0 | BU38: 0 | BV38: 0
A39: Piped water on premises available when needed | B39: Yes | C39: 96.37929918 | D39: 92.4919094 | E39: 91.99312305 | F39: 93.6158245 | G39: 97.69929045 | H39: 83.12510746 | I39: 92.37817491 | J39: 97.01294077 | K39: 100 | L39: 97.87519379 | M39: 97.46715137 | N39: 94.84795598 | O39: 91.84545899 | P39: 94.76620204 | Q39: 93.94057923 | R39: 100 | S39: 78.42413451 | T39: 100 | U39: 95.03994574 | V39: 90.65193324 | BA39: Piped water on premises available when needed | BB39: Yes | BC39: 278.8081531 | BD39: 439.5473142 | BE39: 596.411533 | BF39: 678.635659 | BG39: 1003.576992 | BH39: 118.0428252 | BI39: 186.7980403 | BJ39: 219.4447728 | BK39: 296.2030482 | BL39: 310.8064568 | BM39: 155.84359 | BN39: 333.97764 | BO39: 343.5290457 | BP39: 450.8945701 | BQ39: 581.4396617 | BR39: 42.93987769 | BS39: 32.58218453 | BT39: 0.4481504465 | BU39: 2792.032255 | BV39: 128.9771828
B40: No | C40: 3.620700823 | D40: 7.508090603 | E40: 8.006876954 | F40: 6.384175503 | G40: 2.30070955 | H40: 16.87489254 | I40: 7.621825091 | J40: 2.987059229 | K40: 0 | L40: 2.124806208 | M40: 2.532848634 | N40: 5.152044016 | O40: 8.154541012 | P40: 5.233797963 | Q40: 6.059420772 | R40: 0 | S40: 21.57586549 | T40: 0 | U40: 4.960054256 | V40: 9.34806676 | BB40: No | BC40: 10.47404285 | BD40: 35.68053768 | BE40: 51.91033416 | BF40: 46.27988027 | BG40: 23.63312117 | BH40: 23.96339748 | BI40: 15.41210347 | BJ40: 6.756774185 | BK40: 0 | BL40: 6.747404151 | BM40: 4.04985904 | BN40: 18.14132401 | BO40: 30.50038318 | BP40: 24.90224396 | BQ40: 37.50442665 | BR40: 0 | BS40: 8.963934827 | BT40: 0 | BU40: 145.7137982 | BV40: 13.30018315
A41: Water point at more than 30 minutes | B41: Yes | C41: 0.0158784 | D41: 0.1186636551 | E41: 0 | F41: 0.1441398786 | G41: 0 | H41: 0 | I41: 0 | J41: 0 | K41: 0 | L41: 0 | M41: 0.02057438252 | N41: 0.1548206681 | O41: 0 | P41: 0.188756606 | Q41: 0 | R41: 0 | S41: 0 | T41: 0.2580850628 | U41: 0.0410299825 | V41: 0.1506011682 | BA41: Water point at more than 30 minutes | BB41: Yes | BC41: 0.419581716 | BD41: 3.119474187 | BE41: 0 | BF41: 3.817250238 | BG41: 0 | BH41: 0 | BI41: 0 | BJ41: 0 | BK41: 0 | BL41: 0 | BM41: 0.419581716 | BN41: 3.119474187 | BO41: 0 | BP41: 3.817250238 | BQ41: 0 | BR41: 0 | BS41: 0 | BT41: 0.419581716 | BU41: 3.817250238 | BV41: 3.119474187
B42: No | C42: 99.9841216 | D42: 99.88133634 | E42: 100 | F42: 99.85586012 | G42: 100 | H42: 100 | I42: 100 | J42: 100 | K42: 100 | L42: 100 | M42: 99.97942562 | N42: 99.84517933 | O42: 100 | P42: 99.81124339 | Q42: 100 | R42: 100 | S42: 100 | T42: 99.74191494 | U42: 99.95897002 | V42: 99.84939883 | BB42: No | BC42: 2642.048904 | BD42: 2625.717623 | BE42: 2643.337935 | BF42: 2644.478471 | BG42: 2634.838122 | BH42: 607.293997 | BI42: 607.341424 | BJ42: 609.0644484 | BK42: 610.8048101 | BL42: 611.6663184 | BM42: 2038.920921 | BN42: 2011.775711 | BO42: 2037.030652 | BP42: 2018.496204 | BQ42: 2038.02657 | BR42: 719.7096866 | BS42: 940.5818495 | BT42: 162.1553893 | BU42: 9299.74567 | BV42: 2068.22846
A43: Water source available when needed | B43: Yes | C43: 87.00647396 | D43: 88.97595211 | E43: 88.49131405 | F43: 94.70122026 | G43: 96.48589904 | H43: 85.965757 | I43: 93.54072305 | J43: 95.99809897 | K43: 100 | L43: 96.23960562 | M43: 84.73125444 | N43: 91.56285883 | O43: 88.32072032 | P43: 91.39400945 | Q43: 94.84945507 | R43: 90.19373479 | S43: 86.38940151 | T43: 72.44814516 | U43: 93.2538613 | V43: 85.53423917 | BA43: Water source available when needed | BB43: Yes | BC43: 2303.119156 | BD43: 2355.548527 | BE43: 2339.124473 | BF43: 2513.552127 | BG43: 2547.358615 | BH43: 525.8141233 | BI43: 568.1115595 | BJ43: 584.690292 | BK43: 610.8048101 | BL43: 588.6652525 | BM43: 1731.854678 | BN43: 1857.898156 | BO43: 1799.120145 | BP43: 1853.662113 | BQ43: 1938.081769 | BR43: 649.1330459 | BS43: 812.5630305 | BT43: 117.782551 | BU43: 8702.469314 | BV43: 1776.754957
B44: No | C44: 12.99352604 | D44: 11.02404789 | E44: 11.50868595 | F44: 5.298779743 | G44: 3.514100956 | H44: 14.034243 | I44: 6.459276945 | J44: 4.001901028 | K44: 0 | L44: 3.760394377 | M44: 15.26874556 | N44: 8.43714117 | O44: 11.67927968 | P44: 8.60599055 | Q44: 5.150544929 | R44: 9.806265213 | S44: 13.61059849 | T44: 27.55185484 | U44: 6.746138699 | V44: 14.46576083 | BB44: No | BC44: 343.9472648 | BD44: 291.850541 | BE44: 304.2134617 | BF44: 140.6397833 | BG44: 92.777032 | BH44: 85.84119349 | BI44: 39.22986458 | BJ44: 24.37415642 | BK44: 0 | BL44: 23.00106584 | BM44: 312.0837595 | BN44: 171.1976802 | BO44: 237.9105069 | BP44: 174.5475302 | BQ44: 105.2423255 | BR44: 70.57664063 | BS44: 128.018819 | BT44: 44.79242001 | BU44: 629.5510362 | BV44: 300.4891668
A45: Improved water source available when needed | B45: Yes | C45: 87.07685479 | D45: 88.92261065 | E45: 88.78864114 | F45: 94.66571644 | G45: 96.46858541 | H45: 85.96118579 | I45: 93.40283824 | J45: 95.99809897 | K45: 100 | L45: 96.23960562 | M45: 84.74132065 | N45: 91.59748436 | O45: 88.76373671 | P45: 91.31839259 | Q45: 94.81661972 | R45: 90.18910706 | S45: 86.35022413 | T45: 71.68398888 | U45: 93.35330891 | V45: 85.57834401 | BA45: Improved water source available when needed | BB45: Yes | BC45: 2293.324871 | BD45: 2317.759123 | BE45: 2308.813362 | BF45: 2495.886408 | BG45: 2534.414693 | BH45: 515.8992589 | BI45: 555.4177432 | BJ45: 584.690292 | BK45: 610.8048101 | BL45: 588.6652525 | BM45: 1722.060393 | BN45: 1832.253757 | BO45: 1779.27271 | BP45: 1835.996394 | BQ45: 1925.137848 | BR45: 648.7935642 | BS45: 809.8633871 | BT45: 113.3951856 | BU45: 8613.54967 | BV45: 1764.596651
B46: No | C46: 12.92314521 | D46: 11.07738935 | E46: 11.21135886 | F46: 5.334283565 | G46: 3.531414594 | H46: 14.03881421 | I46: 6.597161759 | J46: 4.001901028 | K46: 0 | L46: 3.760394377 | M46: 15.25867935 | N46: 8.402515637 | O46: 11.23626329 | P46: 8.681607408 | Q46: 5.183380281 | R46: 9.810892938 | S46: 13.64977587 | T46: 28.31601112 | U46: 6.646691093 | V46: 14.42165599 | BB46: No | BC46: 340.3541663 | BD46: 288.7310668 | BE46: 291.5343089 | BF46: 140.6397833 | BG46: 92.777032 | BH46: 84.25446646 | BI46: 39.22986458 | BJ46: 24.37415642 | BK46: 0 | BL46: 23.00106584 | BM46: 310.0773881 | BN46: 168.078206 | BO46: 225.2313542 | BP46: 174.5475302 | BQ46: 105.2423255 | BR46: 70.57664063 | BS46: 128.018819 | BT46: 44.79242001 | BU46: 613.2787851 | BV46: 297.3696926
A47: Microbiological quality at point of collection | B47: Not contaminated (No E. coli in 100 mL) | C47: 19.14540887 | D47: 24.63967079 | E47: 34.11762326 | F47: 23.65656678 | G47: 43.19116762 | H47: 18.43824672 | I47: 67.66264593 | J47: 30.59714214 | K47: 66.51494603 | L47: 54.95592486 | M47: 18.57789103 | N47: 24.26309277 | O47: 22.41251095 | P47: 17.4978162 | Q47: 33.35495451 | R47: 30.76280357 | S47: 10.10966491 | T47: 15.0035175 | U47: 32.88566993 | V47: 25.36053617 | BA47: Microbiological quality at point of collection | BB47: Not contaminated (No E. coli in 100 mL) | BC47: 112.3149472 | BD47: 140.4167498 | BE47: 174.6601405 | BF47: 116.0165571 | BG47: 256.8898326 | BH47: 19.98130438 | BI47: 105.1316306 | BJ47: 28.1207344 | BK47: 84.75211887 | BL47: 75.63061152 | BM47: 89.22896694 | BN47: 94.00828878 | BO47: 87.26656982 | BP47: 83.81931565 | BQ47: 132.3586862 | BR47: 50.41207163 | BS47: 24.94855107 | BT47: 6.164133848 | BU47: 589.9457657 | BV47: 128.8277049
B48: Contaminated (E. coli detected in 100 mL) | C48: 58.20435773 | D48: 62.07141643 | E48: 56.87923854 | F48: 58.77743701 | G48: 38.22658786 | H48: 63.00835704 | I48: 20.71900797 | J48: 49.13625224 | K48: 12.64577227 | L48: 28.25745089 | M48: 55.79314344 | N48: 60.97243069 | O48: 69.42861896 | P48: 68.28870709 | Q48: 50.32217027 | R48: 45.62241854 | S48: 81.99906867 | T48: 60.27620887 | U48: 50.07181193 | V48: 59.4210834 | BB48: Contaminated (E. coli detected in 100 mL) | BC48: 341.4510189 | BD48: 353.7330764 | BE48: 291.184873 | BF48: 288.2563619 | BG48: 227.3618033 | BH48: 68.28139244 | BI48: 32.1924019 | BJ48: 45.15936465 | BK48: 16.11301006 | BL48: 38.88804157 | BM48: 267.9725349 | BN48: 236.2400344 | BO48: 270.3310413 | BP48: 327.1215464 | BQ48: 199.6877658 | BR48: 74.76303733 | BS48: 202.3566528 | BT48: 24.76423408 | BU48: 898.2530534 | BV48: 301.850156
B49: Highly contaminated (>100 CFU/100 mL) | C49: 22.6502334 | D49: 13.28891278 | E49: 9.003138204 | F49: 17.56599621 | G49: 18.58224452 | H49: 18.55339624 | I49: 11.6183461 | J49: 20.26660562 | K49: 20.83928171 | L49: 16.78662425 | M49: 25.62896554 | N49: 14.76447654 | O49: 8.158870095 | P49: 14.2134767 | Q49: 16.32287522 | R49: 23.61477789 | S49: 7.891266413 | T49: 24.72027363 | U49: 17.04251815 | V49: 15.21838043 | BB49: Highly contaminated (>100 CFU/100 mL) | BC49: 132.8757086 | BD49: 75.73096073 | BE49: 46.09023824 | BF49: 86.14717515 | BG49: 110.5223578 | BH49: 20.10609052 | BI49: 18.05214166 | BJ49: 18.62630932 | BK49: 26.55302884 | BL49: 23.10183408 | BM49: 123.0950335 | BN49: 57.20553382 | BO49: 31.7678197 | BP49: 68.08643299 | BQ49: 64.77221606 | BR49: 38.69835439 | BS49: 19.47400481 | BT49: 10.15622339 | BU49: 305.7307769 | BV49: 77.30708099
A50: Microbiological quality of improved water sources at point of collection | B50: Not contaminated (No E. coli in 100 mL) | C50: 18.9261232 | D50: 24.8821498 | E50: 33.81402212 | F50: 23.95382792 | G50: 42.81486925 | H50: 18.17133959 | I50: 67.66264593 | J50: 30.59714214 | K50: 66.51494603 | L50: 54.95592486 | M50: 18.57789103 | N50: 24.26309277 | O50: 21.94173536 | P50: 17.72298493 | Q50: 32.6910866 | R50: 30.76280357 | S50: 10.10966491 | T50: 15.0035175 | U50: 33.04082316 | V50: 24.42894402 | BA50: Microbiological quality of improved water sources at point of collection | BB50: Not contaminated (No E. coli in 100 mL) | BC50: 110.7282202 | BD50: 140.4167498 | BE50: 172.3118467 | BF50: 116.0165571 | BG50: 252.9760095 | BH50: 18.39457735 | BI50: 105.1316306 | BJ50: 28.1207344 | BK50: 84.75211887 | BL50: 75.63061152 | BM50: 89.22896694 | BN50: 94.00828878 | BO50: 84.91827598 | BP50: 83.81931565 | BQ50: 128.4448632 | BR50: 50.41207163 | BS50: 24.94855107 | BT50: 6.164133848 | BU50: 588.3590387 | BV50: 122.565588
B51: Contaminated (E. coli detected in 100 mL) | C51: 58.36221372 | D51: 61.69816122 | E51: 57.14135114 | F51: 59.5160162 | G51: 38.47979853 | H51: 61.96657868 | I51: 20.71900797 | J51: 49.13625224 | K51: 12.64577227 | L51: 28.25745089 | M51: 55.79314344 | N51: 60.97243069 | O51: 69.84988918 | P51: 69.16747284 | Q51: 50.82344195 | R51: 45.62241854 | S51: 81.99906867 | T51: 60.27620887 | U51: 50.13184921 | V51: 60.16273148 | BB51: Contaminated (E. coli detected in 100 mL) | BC51: 341.4510189 | BD51: 348.1795317 | BE51: 291.184873 | BF51: 288.2563619 | BG51: 227.3618033 | BH51: 62.72784782 | BI51: 32.1924019 | BJ51: 45.15936465 | BK51: 16.11301006 | BL51: 38.88804157 | BM51: 267.9725349 | BN51: 236.2400344 | BO51: 270.3310413 | BP51: 327.1215464 | BQ51: 199.6877658 | BR51: 74.76303733 | BS51: 202.3566528 | BT51: 24.76423408 | BU51: 892.6995088 | BV51: 301.850156
B52: Highly contaminated (>100 CFU/100 mL) | C52: 22.71166308 | D52: 13.41968898 | E52: 9.044626735 | F52: 16.53015588 | G52: 18.70533221 | H52: 19.86208173 | I52: 11.6183461 | J52: 20.26660562 | K52: 20.83928171 | L52: 16.78662425 | M52: 25.62896554 | N52: 14.76447654 | O52: 8.20837546 | P52: 13.10954223 | Q52: 16.48547145 | R52: 23.61477789 | S52: 7.891266413 | T52: 24.72027363 | U52: 16.82732763 | V52: 15.4083245 | BB52: Highly contaminated (>100 CFU/100 mL) | BC52: 132.8757086 | BD52: 75.73096073 | BE52: 46.09023824 | BF52: 80.06118184 | BG52: 110.5223578 | BH52: 20.10609052 | BI52: 18.05214166 | BJ52: 18.62630932 | BK52: 26.55302884 | BL52: 23.10183408 | BM52: 123.0950335 | BN52: 57.20553382 | BO52: 31.7678197 | BP52: 62.00043968 | BQ52: 64.77221606 | BR52: 38.69835439 | BS52: 19.47400481 | BT52: 10.15622339 | BU52: 299.6447836 | BV52: 77.30708099
A53: Microbiological quality of piped on premises at point of collection | B53: Not contaminated (No E. coli in 100 mL) | C53: 17.21646137 | D53: 30.07725287 | E53: 80.59366343 | F53: 53.02285505 | G53: 59.32263475 | H53: 3.565186814 | I53: 96.31353411 | J53: 49.88570683 | K53: 89.61701555 | L53: 33.05138081 | M53: 35.9758882 | N53: 39.3022984 | O53: 22.92992982 | P53: 50.28274262 | Q53: 58.86464356 | R53: 55.77483343 | S53: 6.253520561 | T53: 0 | U53: 56.64478068 | V53: 51.43833517 | BA53: Microbiological quality of piped on premises at point of collection | BB53: Not contaminated (No E. coli in 100 mL) | BC53: 8.494452971 | BD53: 30.91006197 | BE53: 103.4884662 | BF53: 32.89318863 | BG53: 119.5006303 | BH53: 0.7131717878 | BI53: 65.93708011 | BJ53: 14.62074516 | BK53: 54.46803226 | BL53: 17.93935133 | BM53: 8.494452971 | BN53: 30.19689018 | BO53: 9.419610613 | BP53: 37.26951976 | BQ53: 56.22794586 | BR53: 4.122086077 | BS53: 1.427470309 | BT53: 0 | BU53: 276.9906666 | BV53: 12.74657704
B54: Contaminated (E. coli detected in 100 mL) | C54: 82.78353863 | D54: 63.18360748 | E54: 19.40633657 | F54: 43.14050881 | G54: 25.76336973 | H54: 61.81264186 | I54: 3.686465893 | J54: 41.99346907 | K54: 0 | L54: 44.02821088 | M54: 64.0241118 | N54: 60.6977016 | O54: 77.07007018 | P54: 49.71725738 | Q54: 29.31400205 | R54: 44.22516657 | S54: 93.74647944 | T54: 0 | U54: 35.99736403 | V54: 34.96517875 | BB54: Contaminated (E. coli detected in 100 mL) | BC54: 40.84468119 | BD54: 64.93309848 | BE54: 24.91922963 | BF54: 26.76258931 | BG54: 51.89821616 | BH54: 12.36485901 | BI54: 2.523786497 | BJ54: 12.3076498 | BK54: 0 | BL54: 23.89726311 | BM54: 15.11706407 | BN54: 46.63548708 | BO54: 31.66036951 | BP54: 36.85038265 | BQ54: 28.00095305 | BR54: 3.268498212 | BS54: 21.39919661 | BT54: 0 | BU54: 176.0256415 | BV54: 8.664478414
B55: Highly contaminated (>100 CFU/100 mL) | C55: 0 | D55: 6.739139644 | E55: 0 | F55: 3.836636146 | G55: 14.91399552 | H55: 34.62217132 | I55: 0 | J55: 8.120824099 | K55: 10.38298445 | L55: 22.92040831 | M55: 0 | N55: 0 | O55: 0 | P55: 0 | Q55: 11.82135439 | R55: 0 | S55: 0 | T55: 0 | U55: 7.357855293 | V55: 13.59648608 | BB55: Highly contaminated (>100 CFU/100 mL) | BC55: 0 | BD55: 6.925739691 | BE55: 0 | BF55: 2.380090554 | BG55: 30.04303287 | BH55: 6.925739691 | BI55: 0 | BJ55: 2.380090554 | BK55: 6.310640098 | BL55: 12.44054703 | BM55: 0 | BN55: 0 | BO55: 0 | BP55: 0 | BQ55: 11.29184574 | BR55: 0 | BS55: 0 | BT55: 0 | BU55: 35.97961221 | BV55: 3.369250905
C56: NATIONAL wealth index quintile | H56: URBAN wealth index quintile | M56: RURAL wealth index quintile | R56: SUB-REGIONS: | BA56: Raw numbers of respondents: | BB56: Use of drinking water sources | BC56: NATIONAL wealth index quintile | BH56: URBAN wealth index quintile | BM56: RURAL wealth index quintile | BR56: SUB-REGIONS:
A57: Percentage based on weighted population | C57: Poorest | D57: Poor | E57: Middle | F57: Rich | G57: Richest | H57: Poorest | I57: Poor | J57: Middle | K57: Rich | L57: Richest | M57: Poorest | N57: Poor | O57: Middle | P57: Rich | Q57: Richest | R57: 'EUA | S57: HA'APAI | T57: ONGO NIUA | U57: TONGATAPU | V57: VAVA'U | BA57: Water data, raw numbers (weighted) | BC57: Poorest | BD57: Poor | BE57: Middle | BF57: Rich | BG57: Richest | BH57: Poorest | BI57: Poor | BJ57: Middle | BK57: Rich | BL57: Richest | BM57: Poorest | BN57: Poor | BO57: Middle | BP57: Rich | BQ57: Richest | BR57: 'EUA | BS57: HA'APAI | BT57: ONGO NIUA | BU57: TONGATAPU | BV57: VAVA'U
A58: Main source of drinking water | B58: PIPED INTO DWELLING | C58: 1.484556808 | D58: 3.12219144 | E58: 3.581416548 | F58: 3.432834586 | G58: 6.062429731 | H58: 1.98288768 | I58: 10.2826686 | J58: 4.262091071 | K58: 2.941900777 | L58: 6.82646933 | M58: 1.468481577 | N58: 3.08309734 | O58: 1.855267575 | P58: 3.403614967 | Q58: 5.291965917 | R58: 3.133484152 | S58: 0.790404643 | T58: 0 | U58: 4.150411404 | V58: 2.430613298 | BA58: Main source of drinking water | BB58: PIPED INTO DWELLING | BC58: 39.29720475 | BD58: 82.65686709 | BE58: 94.66894222 | BF58: 91.11401789 | BG58: 160.0563684 | BH58: 12.12843792 | BI58: 62.4509059 | BJ58: 25.95888147 | BK58: 17.96927145 | BL58: 41.75521362 | BM58: 30.01485941 | BN58: 62.55899975 | BO58: 37.79236918 | BP58: 69.03244699 | BQ58: 108.1320147 | BR58: 22.55198897 | BS58: 7.43440261 | BT58: 0 | BU58: 387.3172369 | BV58: 50.48977191
B59: PIPED TO YARD / PLOT | C59: 5.830473196 | D59: 3.59592983 | E59: 1.505952772 | F59: 0.08822222493 | G59: 0.4849498541 | H59: 4.406032793 | I59: 0.483193694 | J59: 0 | K59: 1.425259968 | L59: 0 | M59: 4.028197164 | N59: 5.056616835 | O59: 2.32653604 | P59: 1.453006878 | Q59: 0.2005446682 | R59: 1.685368673 | S59: 2.335504611 | T59: 0.2756577127 | U59: 2.714469842 | V59: 0.800451434 | BB59: PIPED TO YARD / PLOT | BC59: 154.3364981 | BD59: 95.1986128 | BE59: 39.80742091 | BF59: 2.341587158 | BG59: 12.80333397 | BH59: 26.94973384 | BI59: 2.934635462 | BJ59: 0 | BK59: 8.705556441 | BL59: 0 | BM59: 82.33387016 | BN59: 102.6036017 | BO59: 47.39225227 | BP59: 29.47002561 | BQ59: 4.097777526 | BR59: 12.12976159 | BS59: 21.96733246 | BT59: 0.4481504465 | BU59: 253.3148781 | BV59: 16.62733038
B60: PIPED TO NEIGHBOUR | C60: 0 | D60: 0.4916929363 | E60: 0.5587300341 | F60: 0 | G60: 0 | H60: 0 | I60: 0 | J60: 0 | K60: 0 | L60: 0 | M60: 0 | N60: 0.6415209168 | O60: 0.7250319445 | P60: 0 | Q60: 0 | R60: 0.3365280731 | S60: 0 | T60: 0 | U60: 0.2717972215 | V60: 0 | BB60: PIPED TO NEIGHBOUR | BC60: 0 | BD60: 13.01707421 | BE60: 14.76912295 | BF60: 0 | BG60: 0 | BH60: 0 | BI60: 0 | BJ60: 0 | BK60: 0 | BL60: 0 | BM60: 0 | BN60: 13.01707421 | BO60: 14.76912295 | BP60: 0 | BQ60: 0 | BR60: 2.42202514 | BS60: 0 | BT60: 0 | BU60: 25.36417202 | BV60: 0
B61: PUBLIC TAP / STANDPIPE | C61: 0.2357127832 | D61: 0 | E61: 1.323289132 | F61: 0 | G61: 0 | H61: 0 | I61: 0 | J61: 0 | K61: 0 | L61: 0 | M61: 0.3052672145 | N61: 0 | O61: 1.717156469 | P61: 0 | Q61: 0 | R61: 0 | S61: 0.5940033921 | T61: 0 | U61: 0.3748277682 | V61: 0.0314063154 | BB61: PUBLIC TAP / STANDPIPE | BC61: 6.239473933 | BD61: 0 | BE61: 34.97900361 | BF61: 0 | BG61: 0 | BH61: 0 | BI61: 0 | BJ61: 0 | BK61: 0 | BL61: 0 | BM61: 6.239473933 | BN61: 0 | BO61: 34.97900361 | BP61: 0 | BQ61: 0 | BR61: 0 | BS61: 5.587088092 | BT61: 0 | BU61: 34.97900361 | BV61: 0.6523858412
B62: PROTECTED WELL | C62: 0.06872057901 | D62: 0 | E62: 0 | F62: 0 | G62: 0 | H62: 0 | I62: 0 | J62: 0 | K62: 0 | L62: 0 | M62: 0.08899873586 | N62: 0 | O62: 0 | P62: 0 | Q62: 0 | R62: 0.2527518255 | S62: 0 | T62: 0 | U62: 0 | V62: 0 | BB62: PROTECTED WELL | BC62: 1.819079371 | BD62: 0 | BE62: 0 | BF62: 0 | BG62: 0 | BH62: 0 | BI62: 0 | BJ62: 0 | BK62: 0 | BL62: 0 | BM62: 1.819079371 | BN62: 0 | BO62: 0 | BP62: 0 | BQ62: 0 | BR62: 1.819079371 | BS62: 0 | BT62: 0 | BU62: 0 | BV62: 0
B63: OWN CEMENT OR OTHER TANK | C63: 54.21049276 | D63: 47.09902383 | E63: 45.06036021 | F63: 49.00057256 | G63: 46.64603509 | H63: 26.66416622 | I63: 34.94465221 | J63: 42.46168633 | K63: 41.68601547 | L63: 40.87264537 | M63: 56.37621055 | N63: 50.03767788 | O63: 53.27321423 | P63: 49.1792007 | Q63: 49.73495211 | R63: 60.63044689 | S63: 81.16898214 | T63: 84.83044866 | U63: 38.58867449 | V63: 70.58546143 | BB63: OWN CEMENT OR OTHER TANK | BC63: 1434.98775 | BD63: 1246.899118 | BE63: 1191.097595 | BF63: 1300.569233 | BG63: 1231.5186 | BH63: 163.0927904 | BI63: 212.2333484 | BJ63: 258.6190356 | BK63: 254.6201876 | BL63: 250.0042052 | BM63: 1152.295037 | BN63: 1015.312438 | BO63: 1085.191703 | BP63: 997.4572911 | BQ63: 1016.24626 | BR63: 436.3631993 | BS63: 763.4607134 | BT63: 137.9130773 | BU63: 3601.102957 | BV63: 1466.23235
B64: NEIGHBOUR?S CEMENT OR OTHER TANK | C64: 24.96645548 | D64: 23.60616466 | E64: 19.47665017 | F64: 15.14273293 | G64: 4.949622413 | H64: 36.6464454 | I64: 20.21984325 | J64: 10.74765207 | K64: 5.169442041 | L64: 2.856691146 | M64: 25.88932107 | N64: 19.7584399 | O64: 19.23937295 | P64: 21.0586498 | Q64: 6.004360524 | R64: 24.64771462 | S64: 10.12869832 | T64: 10.23723098 | U64: 19.04601506 | V64: 12.83305106 | BB64: NEIGHBOUR?S CEMENT OR OTHER TANK | BC64: 660.8786595 | BD64: 624.9493832 | BE64: 514.8336823 | BF64: 401.9171925 | BG64: 130.6767457 | BH64: 224.1499317 | BI64: 122.8034839 | BJ64: 65.46012783 | BK64: 31.57520064 | BL64: 17.47341756 | BM64: 529.1617846 | BN64: 400.9176814 | BO64: 391.9119242 | BP64: 427.113566 | BQ64: 122.6885453 | BR64: 177.3919896 | BS64: 95.26869802 | BT64: 16.64317529 | BU64: 1777.378001 | BV64: 266.5737991
B65: COMMUNITY CEMENT OR OTHER TANK | C65: 8.544890605 | D65: 9.009526367 | E65: 7.140481518 | F65: 6.341487669 | G65: 4.109619163 | H65: 10.23448345 | I65: 8.340156886 | J65: 9.067437896 | K65: 0.2761345508 | L65: 1.129831662 | M65: 8.315619835 | N65: 10.73739507 | O65: 5.045134793 | P65: 4.946858581 | Q65: 7.940498165 | R65: 8.119111751 | S65: 2.986196527 | T65: 1.268846295 | U65: 7.136407795 | V65: 8.458965625 | BB65: COMMUNITY CEMENT OR OTHER TANK | BC65: 226.1889299 | BD65: 238.5181171 | BE65: 188.7470567 | BF65: 168.3152527 | BG65: 108.4995205 | BH65: 62.59976217 | BI65: 50.6532276 | BJ65: 55.2265406 | BK65: 1.686643118 | BL65: 6.910799728 | BM65: 169.9661501 | BN65: 217.8720364 | BO65: 102.7709422 | BP65: 100.3326628 | BQ65: 162.2501122 | BR65: 58.43403373 | BS65: 28.08762252 | BT65: 2.062826497 | BU65: 665.9710278 | BV65: 175.7133664
B66: BOTTLED WATER | C66: 4.326652896 | D66: 11.69496285 | E66: 19.81559505 | F66: 25.39888665 | G66: 37.74734375 | H66: 18.89861592 | I66: 23.63942271 | J66: 33.46113263 | K66: 48.50124719 | L66: 48.31436249 | M66: 3.175509592 | N66: 9.267681092 | O66: 14.33680147 | P66: 19.17968488 | Q66: 30.82767862 | R66: 1.147424758 | S66: 1.709191918 | T66: 0.6891442818 | U66: 26.80295075 | V66: 4.426030432 | BB66: BOTTLED WATER | BC66: 114.5293759 | BD66: 309.6123375 | BE66: 523.7931411 | BF66: 674.1351948 | BG66: 996.5810782 | BH66: 115.5943891 | BI66: 143.5720065 | BJ66: 203.7998629 | BK66: 296.2479508 | BL66: 295.5226823 | BM66: 64.90546114 | BN66: 188.0501312 | BO66: 292.0450405 | BP66: 389.0042183 | BQ66: 629.9093849 | BR66: 8.258127133 | BS66: 16.07634896 | BT66: 1.120376116 | BU66: 2501.256818 | BV66: 91.93945707
B67: OTHER (specify) | C67: 0.3320448864 | D67: 1.380508084 | E67: 1.53752456 | F67: 0.5952633855 | G67: 0 | H67: 1.167368527 | I67: 2.090062654 | J67: 0 | K67: 0 | L67: 0 | M67: 0.3523942562 | N67: 1.41757096 | O67: 1.481484525 | P67: 0.7789841981 | Q67: 0 | R67: 0.04716925515 | S67: 0.2870184458 | T67: 2.69867207 | U67: 0.9144456668 | V67: 0.4340204007 | BB67: OTHER (specify) | BC67: 8.789448689 | BD67: 36.54755816 | BE67: 40.64196996 | BF67: 15.79943263 | BG67: 0 | BH67: 7.140271662 | BI67: 12.69381629 | BJ67: 0 | BK67: 0 | BL67: 0 | BM67: 7.202721653 | BN67: 28.76387332 | BO67: 30.17829387 | BP67: 15.79943263 | BQ67: 0 | BR67: 0.3394816984 | BS67: 2.699643406 | BT67: 4.387365335 | BU67: 85.33625572 | BV67: 9.01566327
A108: =A1026 -> Tonga
A109: =A1034 -> 2019
A110: Use of sanitation facilities
A111: by wealth quintile and sub-national region
A112: Notes:
A113: WHO/UNICEF JMP customised wealth index excludes water,
A114: sanitation and hygiene assets.
A115: Survey used for analysis: | B115: =A1025 -> MICS19
A116: =B1030 -> 
A117: =B1029 -> 
A120: Use of sanitation facilities | C120: NATIONAL wealth index quintile | H120: URBAN wealth index quintile | M120: RURAL wealth index quintile | R120: SUB-REGIONS: | BA120: Raw numbers of respondents: | BB120: Use of sanitation facilities | BC120: NATIONAL wealth index quintile | BH120: URBAN wealth index quintile | BM120: RURAL wealth index quintile | BR120: SUB-REGIONS:
A121: Weighted percentage (used in graphs) | C121: Poorest | D121: Poor | E121: Middle | F121: Rich | G121: Richest | H121: Poorest | I121: Poor | J121: Middle | K121: Rich | L121: Richest | M121: Poorest | N121: Poor | O121: Middle | P121: Rich | Q121: Richest | R121: 'EUA | S121: HA'APAI | T121: ONGO NIUA | U121: TONGATAPU | V121: VAVA'U | BA121: Sanitation data, raw numbers (weighted) | BC121: Poorest | BD121: Poor | BE121: Middle | BF121: Rich | BG121: Richest | BH121: Poorest | BI121: Poor | BJ121: Middle | BK121: Rich | BL121: Richest | BM121: Poorest | BN121: Poor | BO121: Middle | BP121: Rich | BQ121: Richest | BR121: 'EUA | BS121: HA'APAI | BT121: ONGO NIUA | BU121: TONGATAPU | BV121: VAVA'U
A122: Sanitation | B122: Improved | C122: 92.28474787 | D122: 97.23788089 | E122: 99.19783859 | F122: 100 | G122: 100 | H122: 97.36537327 | I122: 100 | J122: 100 | K122: 100 | L122: 100 | M122: 91.32441984 | N122: 96.34633286 | O122: 98.55245257 | P122: 99.92632634 | Q122: 100 | R122: 94.74894972 | S122: 89.87003827 | T122: 96.35918798 | U122: 98.54124797 | V122: 98.87191803 | BA122: Sanitation | BB122: Improved | BC122: 2442.838572 | BD122: 2574.274752 | BE122: 2622.134098 | BF122: 2654.191911 | BG122: 2640.135647 | BH122: 595.5404823 | BI122: 607.341424 | BJ122: 609.0644484 | BK122: 610.8048101 | BL122: 611.6663184 | BM122: 1866.61492 | BN122: 1954.959429 | BO122: 2007.543667 | BP122: 2026.715387 | BQ122: 2043.324095 | BR122: 681.917369 | BS122: 845.3012681 | BT122: 156.6559219 | BU122: 9195.889314 | BV122: 2053.811107
B123: Not Improved | C123: 7.715252125 | D123: 2.762119114 | E123: 0.8021614117 | F123: 0 | G123: 0 | H123: 2.634626728 | I123: 0 | J123: 0 | K123: 0 | L123: 0 | M123: 8.675580162 | N123: 3.653667136 | O123: 1.44754743 | P123: 0.07367365636 | Q123: 0 | R123: 5.251050284 | S123: 10.12996173 | T123: 3.640812023 | U123: 1.458752031 | V123: 1.128081972 | BB123: Not Improved | BC123: 204.2278483 | BD123: 73.12431569 | BE123: 21.2038369 | BF123: 0 | BG123: 0 | BH123: 16.11483446 | BI123: 0 | BJ123: 0 | BK123: 0 | BL123: 0 | BM123: 177.3235176 | BN123: 74.13640773 | BO123: 29.48698485 | BP123: 1.494256203 | BQ123: 0 | BR123: 37.79231754 | BS123: 95.28058138 | BT123: 5.91904909 | BU123: 136.1310364 | BV123: 23.43301648
A124: Sanitation ladder | B124: Basic | C124: 82.38030099 | D124: 87.48359259 | E124: 93.41470057 | F124: 97.81111327 | G124: 97.67008391 | H124: 85.77568137 | I124: 97.36711473 | J124: 99.01024024 | K124: 98.27427391 | L124: 97.79402401 | M124: 80.63925859 | N124: 87.12379021 | O124: 90.86591671 | P124: 96.68574615 | Q124: 97.6421646 | R124: 92.62497576 | S124: 80.71559247 | T124: 90.4866087 | U124: 92.66938871 | V124: 92.44011208 | BA124: Sanitation ladder | BB124: Basic | BC124: 2177.586379 | BD124: 2316.039815 | BE124: 2469.266217 | BF124: 2596.094656 | BG124: 2578.622702 | BH124: 524.6515156 | BI124: 591.3508211 | BJ124: 603.0361736 | BK124: 600.2639921 | BL124: 598.1731062 | BM124: 1645.206882 | BN124: 1767.8252 | BO124: 1850.966576 | BP124: 1960.989627 | BQ124: 1995.145876 | BR124: 666.6309227 | BS124: 759.1962125 | BT124: 147.1085778 | BU124: 8644.467259 | BV124: 1920.206796
B125: Limited | C125: 9.893552409 | D125: 9.754288297 | E125: 5.783138019 | F125: 2.188886733 | G125: 2.329916089 | H125: 11.5896919 | I125: 2.63288527 | J125: 0.9897597578 | K125: 1.725726093 | L125: 2.205975995 | M125: 10.6692892 | N125: 9.222542659 | O125: 7.686535857 | P125: 3.240580192 | Q125: 2.357835404 | R125: 2.12397396 | S125: 9.154445799 | T125: 5.872579274 | U125: 5.871275564 | V125: 6.431805946 | BB125: Limited | BC125: 261.5196195 | BD125: 258.2349375 | BE125: 152.8678811 | BF125: 58.0972546 | BG125: 61.51294521 | BH125: 70.8889667 | BI125: 15.99060289 | BJ125: 6.028274809 | BK125: 10.54081799 | BL125: 13.49321215 | BM125: 217.6754639 | BN125: 187.1342291 | BO125: 156.5770915 | BP125: 65.72575995 | BQ125: 48.17821892 | BR125: 15.28644633 | BS125: 86.10505561 | BT125: 9.547344051 | BU125: 547.6894808 | BV125: 133.6043111
B126: Unimproved | C126: 7.623427655 | D126: 2.635011392 | E126: 0.8021614117 | F126: 0 | G126: 0 | H126: 2.084472324 | I126: 0 | J126: 0 | K126: 0 | L126: 0 | M126: 8.558367365 | N126: 3.653667136 | O126: 1.44754743 | P126: 0.07367365636 | Q126: 0 | R126: 4.873786389 | S126: 10.12996173 | T126: 3.640812023 | U126: 1.423262134 | V126: 1.128081972 | BB126: Unimproved | BC126: 201.5126435 | BD126: 69.75926703 | BE126: 21.2038369 | BF126: 0 | BG126: 0 | BH126: 12.7497858 | BI126: 0 | BJ126: 0 | BK126: 0 | BL126: 0 | BM126: 174.6083128 | BN126: 74.13640773 | BO126: 29.48698485 | BP126: 1.494256203 | BQ126: 0 | BR126: 35.07711275 | BS126: 95.28058138 | BT126: 5.91904909 | BU126: 132.7659877 | BV126: 23.43301648
B127: Open defecation | C127: 0.1027189508 | D127: 0.1271077226 | E127: 0 | F127: 0 | G127: 0 | H127: 0.5501544041 | I127: 0 | J127: 0 | K127: 0 | L127: 0 | M127: 0.1330848441 | N127: 0 | O127: 0 | P127: 0 | Q127: 0 | R127: 0.3772638945 | S127: 0 | T127: 0 | U127: 0.03607359404 | V127: 0 | BB127: Open defecation | BC127: 2.715204793 | BD127: 3.365048663 | BE127: 0 | BF127: 0 | BG127: 0 | BH127: 3.365048663 | BI127: 0 | BJ127: 0 | BK127: 0 | BL127: 0 | BM127: 2.715204793 | BN127: 0 | BO127: 0 | BP127: 0 | BQ127: 0 | BR127: 2.715204793 | BS127: 0 | BT127: 0 | BU127: 3.365048663 | BV127: 0
A128: Shared among improved sanitation facilities | B128: Yes | C128: 10.72194565 | D128: 10.03136659 | E128: 5.829903254 | F128: 2.188886733 | G128: 2.329916089 | H128: 11.90329941 | I128: 2.63288527 | J128: 0.9897597578 | K128: 1.725726093 | L128: 2.205975995 | M128: 11.68487448 | N128: 9.57228198 | O128: 7.799436398 | P128: 3.242969406 | Q128: 2.357835404 | R128: 2.24168602 | S128: 10.18631568 | T128: 6.094467375 | U128: 5.958226086 | V128: 6.50518982 | BA128: Shared among improved sanitation facilities | BB128: Yes | BC128: 261.5196195 | BD128: 258.2349375 | BE128: 152.8678811 | BF128: 58.0972546 | BG128: 61.51294521 | BH128: 70.8889667 | BI128: 15.99060289 | BJ128: 6.028274809 | BK128: 10.54081799 | BL128: 13.49321215 | BM128: 217.6754639 | BN128: 187.1342291 | BO128: 156.5770915 | BP128: 65.72575995 | BQ128: 48.17821892 | BR128: 15.28644633 | BS128: 86.10505561 | BT128: 9.547344051 | BU128: 547.6894808 | BV128: 133.6043111
B129: No | C129: 89.27805435 | D129: 89.96863341 | E129: 94.17009675 | F129: 97.81111327 | G129: 97.67008391 | H129: 88.09670059 | I129: 97.36711473 | J129: 99.01024024 | K129: 98.27427391 | L129: 97.79402401 | M129: 88.31512552 | N129: 90.42771802 | O129: 92.2005636 | P129: 96.75703059 | Q129: 97.6421646 | R129: 97.75831398 | S129: 89.81368432 | T129: 93.90553262 | U129: 94.04177391 | V129: 93.49481018 | BB129: No | BC129: 2177.586379 | BD129: 2316.039815 | BE129: 2469.266217 | BF129: 2596.094656 | BG129: 2578.622702 | BH129: 524.6515156 | BI129: 591.3508211 | BJ129: 603.0361736 | BK129: 600.2639921 | BL129: 598.1731062 | BM129: 1645.206882 | BN129: 1767.8252 | BO129: 1850.966576 | BP129: 1960.989627 | BQ129: 1995.145876 | BR129: 666.6309227 | BS129: 759.1962125 | BT129: 147.1085778 | BU129: 8644.467259 | BV129: 1920.206796
A130: Manually calculated ratios | B130: Improved latrines
B131: Other
B132: Other
C133: NATIONAL wealth index quintile | H133: URBAN wealth index quintile | M133: RURAL wealth index quintile | R133: SUB-REGIONS: | BA133: Raw numbers of respondents: | BB133: Use of sanitation facilities | BC133: NATIONAL wealth index quintile | BH133: URBAN wealth index quintile | BM133: RURAL wealth index quintile | BR133: SUB-REGIONS:
A134: Percentage based on weighted population | C134: Poorest | D134: Poor | E134: Middle | F134: Rich | G134: Richest | H134: Poorest | I134: Poor | J134: Middle | K134: Rich | L134: Richest | M134: Poorest | N134: Poor | O134: Middle | P134: Rich | Q134: Richest | R134: 'EUA | S134: HA'APAI | T134: ONGO NIUA | U134: TONGATAPU | V134: VAVA'U | BA134: Sanitation data, raw numbers (weighted) | BC134: Poorest | BD134: Poor | BE134: Middle | BF134: Rich | BG134: Richest | BH134: Poorest | BI134: Poor | BJ134: Middle | BK134: Rich | BL134: Richest | BM134: Poorest | BN134: Poor | BO134: Middle | BP134: Rich | BQ134: Richest | BR134: 'EUA | BS134: HA'APAI | BT134: ONGO NIUA | BU134: TONGATAPU | BV134: VAVA'U
A135: Sanitation type | B135: Sewer connection | C135: 1.307211177 | D135: 2.694759115 | E135: 4.796142193 | F135: 2.162921356 | G135: 4.993045367 | H135: 0.8477281873 | I135: 1.07715025 | J135: 3.806143316 | K135: 2.081957181 | L135: 5.775282072 | M135: 0.8369011018 | N135: 3.469971471 | O135: 5.008099695 | P135: 2.717978887 | Q135: 4.617205896 | R135: 0.494185059 | S135: 0.4047056078 | T135: 0 | U135: 4.442660595 | V135: 0 | BA135: Sanitation type | BB135: Sewer connection | BC135: 34.60274811 | BD135: 71.3410277 | BE135: 126.778246 | BF135: 57.40808367 | BG135: 131.8231706 | BH135: 5.185174529 | BI135: 6.541979669 | BJ135: 23.18186579 | BK135: 12.71669461 | BL135: 35.32545523 | BM135: 17.1057433 | BN135: 70.40904663 | BO135: 102.0165259 | BP135: 55.1263099 | BQ135: 94.34448056 | BR135: 3.556697739 | BS135: 3.806587491 | BT135: 0 | BU135: 414.5899909 | BV135: 0
B136: Septic tank connection | C136: 62.88584976 | D136: 86.32171075 | E136: 91.29119503 | F136: 96.67973729 | G136: 94.93200459 | H136: 87.72033176 | I136: 97.66999969 | J136: 96.19385668 | K136: 97.59407963 | L136: 94.22471793 | M136: 57.00577981 | N136: 83.24659609 | O136: 90.18334036 | P136: 94.02466137 | Q136: 95.3827941 | R136: 85.91879299 | S136: 61.94254314 | T136: 68.52838564 | U136: 89.38503298 | V136: 85.76839585 | BB136: Septic tank connection | BC136: 1664.630212 | BD136: 2285.280166 | BE136: 2413.134789 | BF136: 2566.065767 | BG136: 2506.333694 | BH136: 536.5460731 | BI136: 593.190367 | BJ136: 585.8825826 | BK136: 596.1093327 | BL136: 576.3408631 | BM136: 1165.163045 | BN136: 1689.153215 | BO136: 1837.062286 | BP136: 1907.017249 | BQ136: 1948.979614 | BR136: 618.3658757 | BS136: 582.6203179 | BT136: 111.4100031 | BU136: 8341.429468 | BV136: 1781.618963
B137: Improved latrines | C137: 28.09168694 | D137: 8.221411018 | E137: 3.110501369 | F137: 1.15734135 | G137: 0.07495004172 | H137: 8.797313327 | I137: 1.252850057 | J137: 0 | K137: 0.3239631935 | L137: 0 | M137: 33.48173893 | N137: 9.629765301 | O137: 3.361012518 | P137: 3.183686088 | Q137: 0 | R137: 8.33597167 | S137: 27.52278952 | T137: 27.83080233 | U137: 4.713554391 | V137: 13.10352217 | BB137: Improved latrines | BC137: 743.6056119 | BD137: 217.6535587 | BE137: 82.22106266 | BF137: 30.7180605 | BG137: 1.978782769 | BH137: 53.8092347 | BI137: 7.609077378 | BJ137: 0 | BK137: 1.978782769 | BL137: 0 | BM137: 684.3461314 | BN137: 195.3971668 | BO137: 68.4648552 | BP137: 64.57182826 | BQ137: 0 | BR137: 59.99479558 | BS137: 258.8743627 | BT137: 45.24591882 | BU137: 439.869855 | BV137: 272.1921444
B138: Unimproved facilities | C138: 7.612678016 | D138: 2.635011392 | E138: 0.8021614117 | F138: 0 | G138: 0 | H138: 2.084472324 | I138: 0 | J138: 0 | K138: 0 | L138: 0 | M138: 8.542738353 | N138: 3.653667136 | O138: 1.44754743 | P138: 0.07367365636 | Q138: 0 | R138: 4.873786389 | S138: 10.12996173 | T138: 3.640812023 | U138: 1.422692865 | V138: 1.128081972 | BB138: Unimproved facilities | BC138: 201.5126435 | BD138: 69.75926703 | BE138: 21.2038369 | BF138: 0 | BG138: 0 | BH138: 12.7497858 | BI138: 0 | BJ138: 0 | BK138: 0 | BL138: 0 | BM138: 174.6083128 | BN138: 74.13640773 | BO138: 29.48698485 | BP138: 1.494256203 | BQ138: 0 | BR138: 35.07711275 | BS138: 95.28058138 | BT138: 5.91904909 | BU138: 132.7659877 | BV138: 23.43301648
B139: Open defecation | C139: 0.1025741089 | D139: 0.1271077226 | E139: 0 | F139: 0 | G139: 0 | H139: 0.5501544041 | I139: 0 | J139: 0 | K139: 0 | L139: 0 | M139: 0.1328418089 | N139: 0 | O139: 0 | P139: 0 | Q139: 0 | R139: 0.3772638945 | S139: 0 | T139: 0 | U139: 0.03605916551 | V139: 0 | BB139: Open defecation | BC139: 2.715204793 | BD139: 3.365048663 | BE139: 0 | BF139: 0 | BG139: 0 | BH139: 3.365048663 | BI139: 0 | BJ139: 0 | BK139: 0 | BL139: 0 | BM139: 2.715204793 | BN139: 0 | BO139: 0 | BP139: 0 | BQ139: 0 | BR139: 2.715204793 | BS139: 0 | BT139: 0 | BU139: 3.365048663 | BV139: 0
A140: Septic tank emptying practices | B140: Not emptied/treated and disposed in situ | C140: 71.42793205 | D140: 62.3381369 | E140: 65.50208135 | F140: 45.01310204 | G140: 39.0422434 | H140: 53.96897328 | I140: 48.92100289 | J140: 25.38680091 | K140: 39.06549682 | L140: 25.46862474 | M140: 74.1926969 | N140: 68.22576344 | O140: 67.08239399 | P140: 56.14177468 | Q140: 46.1687173 | R140: 92.0493693 | S140: 76.17023813 | T140: 50.47804271 | U140: 47.68660668 | V140: 71.89487959 | BA140: Septic tank emptying practices | BB140: Not emptied/treated and disposed in situ | BC140: 1189.010937 | BD140: 1424.601078 | BE140: 1580.653513 | BF140: 1155.065802 | BG140: 978.5289011 | BH140: 289.5684068 | BI140: 290.1946766 | BJ140: 148.7368448 | BK140: 232.8730724 | BL140: 146.7860917 | BM140: 864.4658864 | BN140: 1152.437677 | BO140: 1232.345361 | BP140: 1070.633327 | BQ140: 899.8188883 | BR140: 569.2018885 | BS140: 443.7832835 | BT140: 56.23758893 | BU140: 3977.744662 | BV140: 1280.892808
B141: Emptied and buried on site | C141: 5.103572322 | D141: 4.689959065 | E141: 3.81599177 | F141: 10.35027834 | G141: 5.54609393 | H141: 4.643662221 | I141: 5.572160902 | J141: 12.33021919 | K141: 4.038141879 | L141: 5.581918353 | M141: 5.050393412 | N141: 4.206070965 | O141: 4.872773566 | P141: 7.841504149 | Q141: 6.845569332 | R141: 2.430876276 | S141: 1.132551687 | T141: 4.925904056 | U141: 7.145264559 | V141: 3.686678721 | BB141: Emptied and buried on site | BC141: 84.95560678 | BD141: 107.1787043 | BE141: 92.08502497 | BF141: 265.5949492 | BG141: 139.0036209 | BH141: 24.9153873 | BI141: 33.0535217 | BJ141: 72.24060661 | BK141: 24.07174061 | BL141: 32.17087642 | BM141: 58.84531766 | BN141: 71.04698295 | BO141: 89.51588546 | BP141: 149.5388367 | BQ141: 133.4187507 | BR141: 15.03170937 | BS141: 6.598476237 | BT141: 5.48794986 | BU141: 596.0172035 | BV141: 65.68256719
B142: Emptied and discharged locally | C142: 2.171674169 | D142: 4.44010856 | E142: 5.167636136 | F142: 4.174473532 | G142: 6.834523614 | H142: 7.718647931 | I142: 6.26011947 | J142: 4.808473665 | K142: 3.927609587 | L142: 5.31193043 | M142: 2.756769899 | N142: 2.432853648 | O142: 5.467300163 | P142: 4.396824556 | Q142: 6.284692821 | R142: 0.3580422471 | S142: 2.722568787 | T142: 16.38788405 | U142: 5.855793054 | V142: 0.8950373337 | BB142: Emptied and discharged locally | BC142: 36.15034433 | BD142: 101.4689203 | BE142: 124.7020254 | BF142: 107.1197362 | BG142: 171.2959681 | BH142: 41.41410237 | BI142: 37.13442566 | BJ142: 28.1720097 | BK142: 23.4128473 | BL142: 30.61482569 | BM142: 32.1208641 | BN142: 41.09462561 | BO142: 100.4377093 | BP142: 83.8482027 | BQ142: 122.4873819 | BR142: 2.214011076 | BS142: 15.86223892 | BT142: 18.25774212 | BU142: 488.4568474 | BV142: 15.94615486
B143: Emptied and removed offsite | C143: 21.29682146 | D143: 28.53179547 | E143: 25.51429074 | F143: 40.46214609 | G143: 48.57713905 | H143: 33.66871657 | I143: 39.24671674 | J143: 57.47450624 | K143: 52.96875172 | L143: 63.63752647 | M143: 18.00013979 | N143: 25.13531195 | O143: 22.57753228 | P143: 31.61989661 | Q143: 40.70102054 | R143: 5.161712181 | S143: 19.9746414 | T143: 28.20816919 | U143: 39.31233571 | V143: 23.52340436 | BB143: Emptied and removed offsite | BC143: 354.5133243 | BD143: 652.031463 | BE143: 615.6942261 | BF143: 1038.285279 | BG143: 1217.505203 | BH143: 180.6481766 | BI143: 232.8077431 | BJ143: 336.7331215 | BK143: 315.7516724 | BL143: 366.7690694 | BM143: 209.7309769 | BN143: 424.5739299 | BO143: 414.7633306 | BP143: 602.9968825 | BQ143: 793.2545931 | BR143: 31.91826673 | BS143: 116.3763192 | BT143: 31.42672216 | BU143: 3279.210755 | BV143: 419.0974328
A144: Latrine emptying practices | B144: Not emptied/treated and disposed in situ | C144: 47.48970912 | D144: 45.50139596 | E144: 56.5725612 | F144: 13.98840394 | G144: 100 | H144: 74.06096735 | I144: 31.27962085 | J144: 0 | K144: 100 | L144: 0 | M144: 46.4221005 | N144: 45.8817842 | O144: 64.94654731 | P144: 13.85469805 | Q144: 0 | R144: 84.83076623 | S144: 20.60637253 | T144: 9.045520338 | U144: 65.70678367 | V144: 39.53315288 | BA144: Latrine emptying practices | BB144: Not emptied/treated and disposed in situ | BC144: 353.1361421 | BD144: 99.03540755 | BE144: 46.51456099 | BF144: 4.296966385 | BG144: 1.978782769 | BH144: 39.85163974 | BI144: 2.380090554 | BJ144: 0 | BK144: 1.978782769 | BL144: 0 | BM144: 317.6878489 | BN144: 89.6517064 | BO144: 44.46555957 | BP144: 8.946231834 | BQ144: 0 | BR144: 50.89404479 | BS144: 53.34461557 | BT144: 4.092728789 | BU144: 289.0243341 | BV144: 107.6061366
B145: Emptied and buried on site | C145: 47.61667773 | D145: 32.14951168 | E145: 12.4607589 | F145: 74.8408986 | G145: 0 | H145: 24.58902534 | I145: 68.72037915 | J145: 0 | K145: 0 | L145: 0 | M145: 48.36668374 | N145: 32.40156575 | O145: 25.98328683 | P145: 41.40047178 | Q145: 0 | R145: 12.90582612 | S145: 77.90883441 | T145: 69.93124418 | U145: 23.1020633 | V145: 42.10298438 | BB145: Emptied and buried on site | BC145: 354.0802878 | BD145: 69.97455627 | BE145: 10.24536838 | BF145: 22.98967251 | BG145: 0 | BH145: 13.23116636 | BI145: 5.228986824 | BJ145: 0 | BK145: 0 | BL145: 0 | BM145: 330.9955291 | BN145: 63.31174146 | BO145: 17.7894197 | BP145: 26.73304153 | BQ145: 0 | BR145: 7.742824 | BS145: 201.6859986 | BT145: 31.64103397 | BU145: 101.6190123 | BV145: 114.601016
B146: Emptied and discharged locally | C146: 4.420247625 | D146: 9.755956416 | E146: 3.728594657 | F146: 11.17069747 | G146: 0 | H146: 0 | I146: 0 | J146: 0 | K146: 0 | L146: 0 | M146: 4.803009456 | N146: 8.356867375 | O146: 7.164411909 | P146: 10.06183645 | Q146: 0 | R146: 2.263407651 | S146: 0.4056811642 | T146: 21.02323548 | U146: 0 | V146: 17.88450589 | BB146: Emptied and discharged locally | BC146: 32.8692094 | BD146: 21.23418632 | BE146: 3.065690149 | BF146: 3.431421606 | BG146: 0 | BH146: 0 | BI146: 0 | BJ146: 0 | BK146: 0 | BL146: 0 | BM146: 32.8692094 | BN146: 16.32908208 | BO146: 4.905104239 | BP146: 6.497111755 | BQ146: 0 | BR146: 1.357926794 | BS146: 1.050204529 | BT146: 9.51215606 | BU146: 0 | BV146: 48.6802201
B147: Emptied and removed offsite | C147: 0.4733655306 | D147: 12.59313594 | E147: 27.23808525 | F147: 0 | G147: 0 | H147: 1.350007314 | I147: 0 | J147: 0 | K147: 0 | L147: 0 | M147: 0.4082063035 | N147: 13.35978267 | O147: 1.90575395 | P147: 34.68299371 | Q147: 0 | R147: 0 | S147: 1.079111897 | T147: 0 | U147: 11.19115302 | V147: 0.4793568475 | BB147: Emptied and removed offsite | BC147: 3.51997265 | BD147: 27.40940851 | BE147: 22.39544314 | BF147: 0 | BG147: 0 | BH147: 0.7264286043 | BI147: 0 | BJ147: 0 | BK147: 0 | BL147: 0 | BM147: 2.793544046 | BN147: 26.10463683 | BO147: 1.304771682 | BP147: 22.39544314 | BQ147: 0 | BR147: 0 | BS147: 2.793544046 | BT147: 0 | BU147: 49.22650857 | BV147: 1.304771682
A148: Shared among improved sanitation facilities | B148: Yes | C148: 9.879601714 | D148: 9.754288297 | E148: 5.783138019 | F148: 2.188886733 | G148: 2.329916089 | H148: 11.5896919 | I148: 2.63288527 | J148: 0.9897597578 | K148: 1.725726093 | L148: 2.205975995 | M148: 10.64980529 | N148: 9.222542659 | O148: 7.686535857 | P148: 3.240580192 | Q148: 2.357835404 | R148: 2.12397396 | S148: 9.154445799 | T148: 5.872579274 | U148: 5.868927201 | V148: 6.431805946 | BA148: Shared among improved sanitation facilities | BB148: Yes | BC148: 261.5196195 | BD148: 258.2349375 | BE148: 152.8678811 | BF148: 58.0972546 | BG148: 61.51294521 | BH148: 70.8889667 | BI148: 15.99060289 | BJ148: 6.028274809 | BK148: 10.54081799 | BL148: 13.49321215 | BM148: 217.6754639 | BN148: 187.1342291 | BO148: 156.5770915 | BP148: 65.72575995 | BQ148: 48.17821892 | BR148: 15.28644633 | BS148: 86.10505561 | BT148: 9.547344051 | BU148: 547.6894808 | BV148: 133.6043111
B149: No | C149: 82.26413822 | D149: 87.48359259 | E149: 93.41470057 | F149: 97.81111327 | G149: 97.67008391 | H149: 85.77568137 | I149: 97.36711473 | J149: 99.01024024 | K149: 98.27427391 | L149: 97.79402401 | M149: 80.4919978 | N149: 87.12379021 | O149: 90.86591671 | P149: 96.68574615 | Q149: 97.6421646 | R149: 92.62497576 | S149: 80.71559247 | T149: 90.4866087 | U149: 92.63232328 | V149: 92.44011208 | BB149: No | BC149: 2177.586379 | BD149: 2316.039815 | BE149: 2469.266217 | BF149: 2596.094656 | BG149: 2578.622702 | BH149: 524.6515156 | BI149: 591.3508211 | BJ149: 603.0361736 | BK149: 600.2639921 | BL149: 598.1731062 | BM149: 1645.206882 | BN149: 1767.8252 | BO149: 1850.966576 | BP149: 1960.989627 | BQ149: 1995.145876 | BR149: 666.6309227 | BS149: 759.1962125 | BT149: 147.1085778 | BU149: 8644.467259 | BV149: 1920.206796
B150: DK/missing | C150: 7.856260066 | D150: 2.762119114 | E150: 0.8021614117 | F150: 0 | G150: 0 | H150: 2.634626728 | I150: 0 | J150: 0 | K150: 0 | L150: 0 | M150: 8.858196908 | N150: 3.653667136 | O150: 1.44754743 | P150: 0.07367365636 | Q150: 0 | R150: 5.251050284 | S150: 10.12996173 | T150: 3.640812023 | U150: 1.49874952 | V150: 1.128081972 | BB150: DK/missing | BC150: 207.9604221 | BD150: 73.12431569 | BE150: 21.2038369 | BF150: 0 | BG150: 0 | BH150: 16.11483446 | BI150: 0 | BJ150: 0 | BK150: 0 | BL150: 0 | BM150: 181.0560915 | BN150: 74.13640773 | BO150: 29.48698485 | BP150: 1.494256203 | BQ150: 0 | BR150: 37.79231754 | BS150: 95.28058138 | BT150: 5.91904909 | BU150: 139.8636102 | BV150: 23.43301648
A151: Shared among all sanitation facilities | B151: Yes | C151: 11.41065834 | D151: 10.39516588 | E151: 5.783138019 | F151: 2.188886733 | G151: 2.329916089 | H151: 12.35310014 | I151: 2.63288527 | J151: 0.9897597578 | K151: 1.725726093 | L151: 2.205975995 | M151: 11.56075202 | N151: 10.91204484 | O151: 7.686535857 | P151: 3.240580192 | Q151: 2.357835404 | R151: 2.132017291 | S151: 9.306210402 | T151: 6.416370544 | U151: 6.422145383 | V151: 6.572713022 | BA151: Shared among all sanitation facilities | BB151: Yes | BC151: 301.3119712 | BD151: 274.8517221 | BE151: 152.8678811 | BF151: 58.0972546 | BG151: 61.51294521 | BH151: 75.14270598 | BI151: 15.99060289 | BJ151: 6.028274809 | BK151: 10.54081799 | BL151: 13.49321215 | BM151: 235.5492425 | BN151: 221.4158476 | BO151: 156.5770915 | BP151: 65.72575995 | BQ151: 48.17821892 | BR151: 15.28644633 | BS151: 87.53252592 | BT151: 10.43141255 | BU151: 598.8600945 | BV151: 136.531295
B152: No | C152: 88.58934166 | D152: 89.60483412 | E152: 94.21686198 | F152: 97.81111327 | G152: 97.67008391 | H152: 87.64689986 | I152: 97.36711473 | J152: 99.01024024 | K152: 98.27427391 | L152: 97.79402401 | M152: 88.43924798 | N152: 89.08795516 | O152: 92.31346414 | P152: 96.75941981 | Q152: 97.6421646 | R152: 97.86798271 | S152: 90.6937896 | T152: 93.58362946 | U152: 93.57785462 | V152: 93.42728698 | BB152: No | BC152: 2339.306671 | BD152: 2369.182297 | BE152: 2490.470054 | BF152: 2596.094656 | BG152: 2578.622702 | BH152: 533.1475621 | BI152: 591.3508211 | BJ152: 603.0361736 | BK152: 600.2639921 | BL152: 598.1731062 | BM152: 1801.941416 | BN152: 1807.679989 | BO152: 1880.45356 | BP152: 1962.483883 | BQ152: 1995.145876 | BR152: 701.7080354 | BS152: 853.0493236 | BT152: 152.1435584 | BU152: 8726.062633 | BV152: 1940.712829
A153: Type of toilet facility | B153: FLUSH / POUR FLUSH: FLUSH TO PIPED SEWER SYSTEM | C153: 1.307211177 | D153: 2.694759115 | E153: 4.796142193 | F153: 2.162921356 | G153: 4.993045367 | H153: 0.8477281873 | I153: 1.07715025 | J153: 3.806143316 | K153: 2.081957181 | L153: 5.775282072 | M153: 0.8369011018 | N153: 3.469971471 | O153: 5.008099695 | P153: 2.717978887 | Q153: 4.617205896 | R153: 0.494185059 | S153: 0.4047056078 | T153: 0 | U153: 4.442660595 | V153: 0 | BA153: Type of toilet facility | BB153: FLUSH / POUR FLUSH: FLUSH TO PIPED SEWER SYSTEM | BC153: 34.60274811 | BD153: 71.3410277 | BE153: 126.778246 | BF153: 57.40808367 | BG153: 131.8231706 | BH153: 5.185174529 | BI153: 6.541979669 | BJ153: 23.18186579 | BK153: 12.71669461 | BL153: 35.32545523 | BM153: 17.1057433 | BN153: 70.40904663 | BO153: 102.0165259 | BP153: 55.1263099 | BQ153: 94.34448056 | BR153: 3.556697739 | BS153: 3.806587491 | BT153: 0 | BU153: 414.5899909 | BV153: 0
B154: FLUSH / POUR FLUSH: FLUSH TO SEPTIC TANK | C154: 62.88584976 | D154: 86.32171075 | E154: 91.29119503 | F154: 96.67973729 | G154: 94.93200459 | H154: 87.72033176 | I154: 97.66999969 | J154: 96.19385668 | K154: 97.59407963 | L154: 94.22471793 | M154: 57.00577981 | N154: 83.24659609 | O154: 90.18334036 | P154: 94.02466137 | Q154: 95.3827941 | R154: 85.91879299 | S154: 61.94254314 | T154: 68.52838564 | U154: 89.38503298 | V154: 85.76839585 | BB154: FLUSH / POUR FLUSH: FLUSH TO SEPTIC TANK | BC154: 1664.630212 | BD154: 2285.280166 | BE154: 2413.134789 | BF154: 2566.065767 | BG154: 2506.333694 | BH154: 536.5460731 | BI154: 593.190367 | BJ154: 585.8825826 | BK154: 596.1093327 | BL154: 576.3408631 | BM154: 1165.163045 | BN154: 1689.153215 | BO154: 1837.062286 | BP154: 1907.017249 | BQ154: 1948.979614 | BR154: 618.3658757 | BS154: 582.6203179 | BT154: 111.4100031 | BU154: 8341.429468 | BV154: 1781.618963
B155: FLUSH / POUR FLUSH: FLUSH TO PIT LATRINE | C155: 4.606875869 | D155: 4.082151217 | E155: 1.780565858 | F155: 0.9954477673 | G155: 0.07495004172 | H155: 3.706163289 | I155: 0 | J155: 0 | K155: 0.3239631935 | L155: 0 | M155: 4.706452109 | N155: 5.16815622 | O155: 1.51966569 | P155: 2.406878274 | Q155: 0 | R155: 4.10119739 | S155: 0.5761386285 | T155: 1.002593778 | U155: 2.61360003 | V155: 1.204322756 | BB155: FLUSH / POUR FLUSH: FLUSH TO PIT LATRINE | BC155: 121.9470642 | BD155: 108.0708333 | BE155: 47.06637277 | BF155: 26.42109412 | BG155: 1.978782769 | BH155: 22.66894481 | BI155: 0 | BJ155: 0 | BK155: 1.978782769 | BL155: 0 | BM155: 96.1969837 | BN155: 104.8668427 | BO155: 30.95605591 | BP155: 48.81653725 | BQ155: 0 | BR155: 29.51671488 | BS155: 5.419055367 | BT155: 1.629966543 | BU155: 243.9016866 | BV155: 25.01672368
B156: FLUSH / POUR FLUSH: FLUSH TO OPEN DRAIN | C156: 0.8538043311 | D156: 0 | E156: 0 | F156: 0 | G156: 0 | H156: 0 | I156: 0 | J156: 0 | K156: 0 | L156: 0 | M156: 1.105746011 | N156: 0 | O156: 0 | P156: 0 | Q156: 0 | R156: 0.295320554 | S156: 1.298535342 | T156: 0 | U156: 0.08852884008 | V156: 0 | BB156: FLUSH / POUR FLUSH: FLUSH TO OPEN DRAIN | BC156: 22.60076775 | BD156: 0 | BE156: 0 | BF156: 0 | BG156: 0 | BH156: 0 | BI156: 0 | BJ156: 0 | BK156: 0 | BL156: 0 | BM156: 22.60076775 | BN156: 0 | BO156: 0 | BP156: 0 | BQ156: 0 | BR156: 2.125450633 | BS156: 12.21378774 | BT156: 0 | BU156: 8.261529372 | BV156: 0
B157: VENTILATED IMPROVED PIT LATRINE | C157: 0.8682177404 | D157: 0.8954172651 | E157: 0.09004110003 | F157: 0 | G157: 0 | H157: 1.480660753 | I157: 0.3918867477 | J157: 0 | K157: 0 | L157: 0 | M157: 0.8762283579 | N157: 0.3838451346 | O157: 0.5857974946 | P157: 0 | Q157: 0 | R157: 0.3773540412 | S157: 1.68875546 | T157: 0.4712857669 | U157: 0.2303662013 | V157: 0.3949302175 | BB157: VENTILATED IMPROVED PIT LATRINE | BC157: 22.98230026 | BD157: 23.70526833 | BE157: 2.380090554 | BF157: 0 | BG157: 0 | BH157: 9.056540222 | BI157: 2.380090554 | BJ157: 0 | BK157: 0 | BL157: 0 | BM157: 17.90956821 | BN157: 7.788585645 | BO157: 11.93287452 | BP157: 0 | BQ157: 0 | BR157: 2.715853587 | BS157: 15.88412734 | BT157: 0.7661926988 | BU157: 21.49782079 | BV157: 8.203664736
B158: PIT LATRINE: PIT LATRINE WITH SLAB | C158: 19.64686927 | D158: 2.982237106 | E158: 1.239894411 | F158: 0.161893583 | G158: 0 | H158: 2.478194755 | I158: 0.8609633094 | J158: 0 | K158: 0 | L158: 0 | M158: 24.45936792 | N158: 3.668448072 | O158: 1.255549333 | P158: 0.7768078147 | Q158: 0 | R158: 3.32220445 | S158: 21.22049108 | T158: 26.35692279 | U158: 1.401209244 | V158: 11.5042692 | BB158: PIT LATRINE: PIT LATRINE WITH SLAB | BC158: 520.0656791 | BD158: 78.95171735 | BE158: 32.77459933 | BF158: 4.296966385 | BG158: 0 | BH158: 15.15800998 | BI158: 5.228986824 | BJ158: 0 | BK158: 0 | BL158: 0 | BM158: 499.9344224 | BN158: 74.43632709 | BO158: 25.57592477 | BP158: 15.75529101 | BQ158: 0 | BR158: 23.91022723 | BS158: 199.5960875 | BT158: 42.84975958 | BU158: 130.7611318 | BV158: 238.971756
B159: PIT LATRINE: PIT LATRINE WITHOUT SLAB / OPEN PIT | C159: 4.825377291 | D159: 2.007346872 | E159: 0.3224969485 | F159: 0 | G159: 0 | H159: 1.389025205 | I159: 0 | J159: 0 | K159: 0 | L159: 0 | M159: 5.43487585 | N159: 2.538788764 | O159: 0.8251143458 | P159: 0.07367365636 | Q159: 0 | R159: 4.578465835 | S159: 8.831426386 | T159: 3.640812023 | U159: 0.5683384296 | V159: 0.694340427 | BB159: PIT LATRINE: PIT LATRINE WITHOUT SLAB / OPEN PIT | BC159: 127.7309419 | BD159: 53.14248237 | BE159: 8.524684179 | BF159: 0 | BG159: 0 | BH159: 8.496046515 | BI159: 0 | BJ159: 0 | BK159: 0 | BL159: 0 | BM159: 111.0855165 | BN159: 51.5144571 | BO159: 16.80783214 | BP159: 1.494256203 | BQ159: 0 | BR159: 32.95166211 | BS159: 83.06679364 | BT159: 5.91904909 | BU159: 53.03745791 | BV159: 14.42314572
B160: COMPOSTING TOILET | C160: 2.969724062 | D160: 0.2616054291 | E160: 0 | F160: 0 | G160: 0 | H160: 1.132294529 | I160: 0 | J160: 0 | K160: 0 | L160: 0 | M160: 3.43969054 | N160: 0.4093158739 | O160: 0 | P160: 0 | Q160: 0 | R160: 0.5352157898 | S160: 4.037404352 | T160: 0 | U160: 0.4683789154 | V160: 0 | BB160: COMPOSTING TOILET | BC160: 78.61056842 | BD160: 6.925739691 | BE160: 0 | BF160: 0 | BG160: 0 | BH160: 6.925739691 | BI160: 0 | BJ160: 0 | BK160: 0 | BL160: 0 | BM160: 70.30515707 | BN160: 8.305411356 | BO160: 0 | BP160: 0 | BQ160: 0 | BR160: 3.851999883 | BS160: 37.97509253 | BT160: 0 | BU160: 43.70921571 | BV160: 0
B161: BUCKET | C161: 0.728236425 | D161: 0.1000111151 | E161: 0 | F161: 0 | G161: 0 | H161: 0.4328734265 | I161: 0 | J161: 0 | K161: 0 | L161: 0 | M161: 0.943125366 | N161: 0 | O161: 0 | P161: 0 | Q161: 0 | R161: 0 | S161: 0 | T161: 0 | U161: 0.2349394276 | V161: 0 | BB161: BUCKET | BC161: 19.27690187 | BD161: 2.647693328 | BE161: 0 | BF161: 0 | BG161: 0 | BH161: 2.647693328 | BI161: 0 | BJ161: 0 | BK161: 0 | BL161: 0 | BM161: 19.27690187 | BN161: 0 | BO161: 0 | BP161: 0 | BQ161: 0 | BR161: 0 | BS161: 0 | BT161: 0 | BU161: 21.9245952 | BV161: 0
B162: NO FACILITY / BUSH / FIELD | C162: 0.1025741089 | D162: 0.1271077226 | E162: 0 | F162: 0 | G162: 0 | H162: 0.5501544041 | I162: 0 | J162: 0 | K162: 0 | L162: 0 | M162: 0.1328418089 | N162: 0 | O162: 0 | P162: 0 | Q162: 0 | R162: 0.3772638945 | S162: 0 | T162: 0 | U162: 0.03605916551 | V162: 0 | BB162: NO FACILITY / BUSH / FIELD | BC162: 2.715204793 | BD162: 3.365048663 | BE162: 0 | BF162: 0 | BG162: 0 | BH162: 3.365048663 | BI162: 0 | BJ162: 0 | BK162: 0 | BL162: 0 | BM162: 2.715204793 | BN162: 0 | BO162: 0 | BP162: 0 | BQ162: 0 | BR162: 2.715204793 | BS162: 0 | BT162: 0 | BU162: 3.365048663 | BV162: 0
B163: OTHER | C163: 1.205259969 | D163: 0.5276534052 | E163: 0.4796644632 | F163: 0 | G163: 0 | H163: 0.2625736929 | I163: 0 | J163: 0 | K163: 0 | L163: 0 | M163: 1.058991126 | N163: 1.114878372 | O163: 0.6224330844 | P163: 0 | Q163: 0 | R163: 0 | S163: 0 | T163: 0 | U163: 0.5308861677 | V163: 0.4337415453 | BB163: OTHER | BC163: 31.90403192 | BD163: 13.96909133 | BE163: 12.67915272 | BF163: 0 | BG163: 0 | BH163: 1.606045953 | BI163: 0 | BJ163: 0 | BK163: 0 | BL163: 0 | BM163: 21.64512667 | BN163: 22.62195064 | BO163: 12.67915272 | BP163: 0 | BQ163: 0 | BR163: 0 | BS163: 0 | BT163: 0 | BU163: 49.54240521 | BV163: 9.009870761
A208: =A1026 -> Tonga
A209: =A1034 -> 2019
A210: Access to hygiene facilities
A211: by wealth quintile and sub-national region
A212: Notes:
A213: WHO/UNICEF JMP customised wealth index excludes water,
A214: sanitation and hygiene assets.
A215: Survey used for analysis: | B215: =A1025 -> MICS19
A220: Access to handwashing | C220: NATIONAL wealth index quintile | H220: URBAN wealth index quintile | M220: RURAL wealth index quintile | R220: SUB-REGIONS: | BA220: Raw numbers of respondents: | BB220: Access to handwashing | BC220: NATIONAL wealth index quintile | BH220: URBAN wealth index quintile | BM220: RURAL wealth index quintile | BR220: SUB-REGIONS:
A221: Weighted percentage (used in graphs) | C221: Poorest | D221: Poor | E221: Middle | F221: Rich | G221: Richest | H221: Poorest | I221: Poor | J221: Middle | K221: Rich | L221: Richest | M221: Poorest | N221: Poor | O221: Middle | P221: Rich | Q221: Richest | R221: 'EUA | S221: HA'APAI | T221: ONGO NIUA | U221: TONGATAPU | V221: VAVA'U | BA221: Hygiene data, raw numbers (weighted) | BC221: Poorest | BD221: Poor | BE221: Middle | BF221: Rich | BG221: Richest | BH221: Poorest | BI221: Poor | BJ221: Middle | BK221: Rich | BL221: Richest | BM221: Poorest | BN221: Poor | BO221: Middle | BP221: Rich | BQ221: Richest | BR221: 'EUA | BS221: HA'APAI | BT221: ONGO NIUA | BU221: TONGATAPU | BV221: VAVA'U
A222: Hygiene ladder | B222: Basic | C222: 42.59668074 | D222: 61.84512288 | E222: 72.21788788 | F222: 82.84564863 | G222: 90.08307529 | H222: 48.8801888 | I222: 82.27715297 | J222: 87.73989192 | K222: 87.84493001 | L222: 95.57045364 | M222: 41.58941007 | N222: 59.28328874 | O222: 68.23169604 | P222: 77.60074464 | Q222: 86.66849855 | R222: 55.1322466 | S222: 49.64119498 | T222: 47.38925948 | U222: 74.01783558 | V222: 68.11925769 | BA222: Hygiene ladder | BB222: Basic | BC222: 1095.785736 | BD222: 1597.689732 | BE222: 1858.780253 | BF222: 2156.721573 | BG222: 2307.896828 | BH222: 287.9750593 | BI222: 491.8699254 | BJ222: 531.5549389 | BK222: 532.313425 | BL222: 568.619207 | BM222: 819.0366562 | BN222: 1178.302543 | BO222: 1352.859278 | BP222: 1532.516274 | BQ222: 1721.826816 | BR222: 394.2492944 | BS222: 466.2168688 | BT222: 75.32702796 | BU222: 6679.372396 | BV222: 1401.708535
B223: Limited | C223: 50.93260337 | D223: 34.08131359 | E223: 27.2905927 | F223: 16.14380527 | G223: 8.393326138 | H223: 37.01301079 | I223: 15.88019913 | J223: 10.97119615 | K223: 11.19997041 | L223: 1.141676129 | M223: 52.1395757 | N223: 37.70631984 | O223: 31.11706278 | P223: 21.76766283 | Q223: 12.6426903 | R223: 42.79333078 | S223: 43.30099092 | T223: 40.46303987 | U223: 23.60654156 | V223: 30.18565978 | BB223: Limited | BC223: 1310.22463 | BD223: 880.4471919 | BE223: 702.4189752 | BF223: 420.271839 | BG223: 215.034075 | BH223: 218.0602047 | BI223: 94.93513177 | BJ223: 66.46684163 | BK223: 67.8683973 | BL223: 6.792674411 | BM223: 1026.805229 | BN223: 749.4431144 | BO223: 616.97143 | BP223: 429.8837297 | BQ223: 251.1699585 | BR223: 306.0140209 | BS223: 406.6713626 | BT223: 64.3175388 | BU223: 2130.255239 | BV223: 621.13855
B224: No facility | C224: 6.470715895 | D224: 4.07356353 | E224: 0.4915194225 | F224: 1.010546099 | G224: 1.523598571 | H224: 14.10680041 | I224: 1.842647903 | J224: 1.288911932 | K224: 0.9550995776 | L224: 3.287870234 | M224: 6.271014234 | N224: 3.010391426 | O224: 0.6512411794 | P224: 0.6315925267 | Q224: 0.6888111486 | R224: 2.074422616 | S224: 7.057814104 | T224: 12.14770065 | U224: 2.375622861 | V224: 1.695082536 | BB224: No facility | BC224: 166.4570586 | BD224: 105.2353091 | BE224: 12.65097365 | BF224: 26.30755639 | BG224: 39.03406159 | BH224: 83.10947203 | BI224: 11.01573224 | BJ224: 7.808620323 | BK224: 5.787611503 | BL224: 19.5619681 | BM224: 123.4975567 | BN224: 59.83392533 | BO224: 12.91243986 | BP224: 12.47315126 | BQ224: 13.68448199 | BR224: 14.83414341 | BS224: 66.28510845 | BT224: 19.30923159 | BU224: 214.3763005 | BV224: 34.88017543
A225: Observed handwashing place | B225: Fixed | C225: 75.78955419 | D225: 85.70418511 | E225: 93.00267244 | F225: 95.61476559 | G225: 99.38584402 | H225: 88.80230171 | I225: 93.88388451 | J225: 97.94703133 | K225: 98.31963977 | L225: 100 | M225: 73.23037714 | N225: 84.21667013 | O225: 92.30281951 | P225: 93.94795286 | Q225: 96.98476837 | R225: 87.82403291 | S225: 66.24225039 | T225: 77.86271167 | U225: 92.63043212 | V225: 90.73761808 | BA225: Observed handwashing place | BB225: Fixed | BC225: 1899.896172 | BD225: 2149.980686 | BE225: 2411.628711 | BF225: 2469.74775 | BG225: 2510.418725 | BH225: 460.7955955 | BI225: 556.572623 | BJ225: 585.7445807 | BK225: 593.0471621 | BL225: 575.4118814 | BM225: 1417.041476 | BN225: 1645.813286 | BO225: 1850.104459 | BP225: 1843.63463 | BQ225: 1913.506352 | BR225: 622.5915597 | BS225: 610.4688202 | BT225: 118.9078849 | BU225: 8232.890745 | BV225: 1856.813034
B226: Mobile | C226: 24.21044581 | D226: 14.29581489 | E226: 6.997327564 | F226: 4.385234411 | G226: 0.6141559764 | H226: 11.19769829 | I226: 6.116115489 | J226: 2.052968671 | K226: 1.680360225 | L226: 0 | M226: 26.76962286 | N226: 15.78332987 | O226: 7.697180491 | P226: 6.05204714 | Q226: 3.015231631 | R226: 12.17596709 | S226: 33.75774961 | T226: 22.13728833 | U226: 7.369567879 | V226: 9.262381923 | BB226: Mobile | BC226: 606.9086146 | BD226: 358.6257294 | BE226: 181.4459264 | BF226: 113.2714467 | BG226: 15.51316164 | BH226: 58.10491341 | BI226: 36.25821895 | BJ226: 12.2771998 | BK226: 10.13564396 | BL226: 0 | BM226: 518.0045135 | BN226: 308.4474126 | BO226: 154.2811803 | BP226: 118.7653733 | BQ226: 59.49042284 | BR226: 86.31639984 | BS226: 311.1013508 | BT226: 33.80691574 | BU226: 654.9990732 | BV226: 189.5411391
A227: Water / Soap | B227: Water and soap | C227: 43.93928848 | D227: 63.68833796 | E227: 72.57460616 | F227: 83.49614961 | G227: 91.36813388 | H227: 55.49716262 | I227: 82.96969229 | J227: 88.88554835 | K227: 88.2507624 | L227: 98.81951092 | M227: 42.61145568 | N227: 60.29403057 | O227: 68.58566599 | P227: 78.09398038 | Q227: 87.26962143 | R227: 55.78085046 | S227: 50.58940529 | T227: 49.32529633 | U227: 75.44773948 | V227: 68.7592801 | BA227: Water / Soap | BB227: Water and soap | BC227: 1095.785736 | BD227: 1597.689732 | BE227: 1858.780253 | BF227: 2156.721573 | BG227: 2307.896828 | BH227: 287.9750593 | BI227: 491.8699254 | BJ227: 531.5549389 | BK227: 532.313425 | BL227: 568.619207 | BM227: 819.0366562 | BN227: 1178.302543 | BO227: 1352.859278 | BP227: 1532.516274 | BQ227: 1721.826816 | BR227: 394.2492944 | BS227: 466.2168688 | BT227: 75.32702796 | BU227: 6679.372396 | BV227: 1401.708535
B228: Water only | C228: 50.22403926 | D228: 33.34015484 | E228: 24.45297639 | F228: 15.80469084 | G228: 8.093137019 | H228: 39.41604936 | I228: 14.10457029 | J228: 11.11445165 | K228: 9.493216703 | L228: 1.180489078 | M228: 51.31436076 | N228: 36.12326905 | O228: 29.55946215 | P228: 19.53968884 | Q228: 12.69190463 | R228: 38.99610798 | S228: 41.35437199 | T228: 40.73377128 | U228: 22.69980562 | V228: 29.39820986 | BB228: Water only | BC228: 1252.518822 | BD228: 836.3732633 | BE228: 626.2894425 | BF228: 408.2381986 | BG228: 204.4271286 | BH228: 204.5300807 | BI228: 83.6162428 | BJ228: 66.46684163 | BK228: 57.26145089 | BL228: 6.792674411 | BM228: 986.3155759 | BN228: 705.9428499 | BO228: 583.0634148 | BP228: 383.4468545 | BQ228: 250.410869 | BR228: 275.6176704 | BS228: 381.1095566 | BT228: 62.2064976 | BU228: 2009.608983 | BV228: 599.3041464
B229: Soap only | C229: 2.313912378 | D229: 1.75690887 | E229: 2.972417445 | F229: 0.4658749906 | G229: 0.4199221076 | H229: 2.607460145 | I229: 1.909294891 | J229: 0 | K229: 1.758496149 | L229: 0 | M229: 2.106527283 | N229: 2.225919219 | O229: 1.719028613 | P229: 2.366330772 | Q229: 0.03847393577 | R229: 4.300665355 | S229: 2.773723236 | T229: 1.382342238 | U229: 1.362775831 | V229: 1.071062803 | BB229: Soap only | BC229: 57.70580878 | BD229: 44.07392863 | BE229: 76.12953266 | BF229: 12.03364044 | BG229: 10.60694641 | BH229: 13.53012396 | BI229: 11.31888898 | BJ229: 0 | BK229: 10.60694641 | BL229: 0 | BM229: 40.48965319 | BN229: 43.50026448 | BO229: 33.90801524 | BP229: 46.43687516 | BQ229: 0.7590895119 | BR229: 30.3963505 | BS229: 25.56180597 | BT229: 2.111041194 | BU229: 120.6462557 | BV229: 21.83440359
B230: Neither | C230: 3.522759883 | D230: 1.214598325 | E230: 0 | F230: 0.2332845541 | G230: 0.1188069939 | H230: 2.479327872 | I230: 1.016442531 | J230: 0 | K230: 0.4975247491 | L230: 0 | M230: 3.967656281 | N230: 1.356781167 | O230: 0.1358432418 | P230: 0 | Q230: 0 | R230: 0.922376204 | S230: 5.282499488 | T230: 8.558590159 | U230: 0.4896790744 | V230: 0.771447237 | BB230: Neither | BC230: 87.85281158 | BD230: 30.46949149 | BE230: 0 | BF230: 6.025784816 | BG230: 3.000983742 | BH230: 12.86524495 | BI230: 6.025784816 | BJ230: 0 | BK230: 3.000983742 | BL230: 0 | BM230: 76.26249518 | BN230: 26.51504111 | BO230: 2.67952184 | BP230: 0 | BQ230: 0 | BR230: 6.519193677 | BS230: 48.68193957 | BT230: 13.0702339 | BU230: 43.35118474 | BV230: 15.72651975
A231: Place where household members most often wash their hands | B231: OBSERVED: FIXED FACILITY OBSERVED (SINK / TAP) IN DWELLING | C231: 17.52012051 | D231: 42.73244282 | E231: 55.79506887 | F231: 75.10668886 | G231: 81.69718452 | H231: 36.53045459 | I231: 75.99664623 | J231: 84.66614245 | K231: 81.84870841 | L231: 88.62475076 | M231: 13.90214055 | N231: 38.59572413 | O231: 50.15367538 | P231: 64.5920051 | Q231: 77.25719581 | R231: 40.15251635 | S231: 25.13652187 | T231: 17.40755004 | U231: 62.19034993 | V231: 41.54467643 | BA231: Place where household members most often wash their hands | BB231: OBSERVED: FIXED FACILITY OBSERVED (SINK / TAP) IN DWELLING | BC231: 463.7692267 | BD231: 1131.298293 | BE231: 1474.852221 | BF231: 1993.47566 | BG231: 2156.916491 | BH231: 223.4404678 | BI231: 461.5591134 | BJ231: 515.6713735 | BK231: 499.9358479 | BL231: 542.0877501 | BM231: 284.1511943 | BN231: 783.1442314 | BO231: 1021.645741 | BP231: 1310.061276 | BQ231: 1578.614897 | BR231: 288.9815496 | BS231: 236.4295623 | BT231: 28.30031942 | BU231: 5803.616111 | BV231: 862.9843499
B232: OBSERVED: FIXED FACILITY OBSERVED (SINK / TAP) IN YARD /PLOT | C232: 54.2535289 | D232: 38.47861116 | E232: 35.43914977 | F232: 17.9441467 | G232: 13.38954815 | H232: 38.8053731 | I232: 15.64416748 | J232: 11.50505621 | K232: 15.24403747 | L232: 5.448089965 | M232: 55.42682992 | N232: 42.51494871 | O232: 40.66991909 | P232: 26.30760362 | Q232: 16.38954174 | R232: 46.35341394 | S232: 39.76679521 | T232: 55.73278897 | U232: 26.03160455 | V232: 47.84361516 | BB232: OBSERVED: FIXED FACILITY OBSERVED (SINK / TAP) IN YARD /PLOT | BC232: 1436.126946 | BD232: 1018.682393 | BE232: 936.7764897 | BF232: 476.2720902 | BG232: 353.5022337 | BH232: 237.3551277 | BI232: 95.01350956 | BJ232: 70.07320717 | BK232: 93.11131414 | BL232: 33.32413131 | BM232: 1132.890281 | BN232: 862.6690541 | BO232: 828.4587179 | BP232: 533.5733537 | BQ232: 334.8914554 | BR232: 333.6100102 | BS232: 374.0392579 | BT232: 90.60756549 | BU232: 2429.274634 | BV232: 993.8286846
B233: OBSERVED: MOBILE OBJECT (BUCKET / JUG / KETTLE/TINI VAI) | C233: 22.92759297 | D233: 13.54634191 | E233: 6.86427278 | F233: 4.267643429 | G233: 0.5875895679 | H233: 9.499617156 | I233: 5.969989451 | J233: 2.015747239 | K233: 1.659391641 | L233: 0 | M233: 25.34344988 | N233: 15.20122446 | O233: 7.573827139 | P233: 5.855675406 | Q233: 2.911453107 | R233: 11.99322469 | S233: 33.07541508 | T233: 20.79466202 | U233: 7.0188346 | V233: 9.124644373 | BB233: OBSERVED: MOBILE OBJECT (BUCKET / JUG / KETTLE/TINI VAI) | BC233: 606.9086146 | BD233: 358.6257294 | BE233: 181.4459264 | BF233: 113.2714467 | BG233: 15.51316164 | BH233: 58.10491341 | BI233: 36.25821895 | BJ233: 12.2771998 | BK233: 10.13564396 | BL233: 0 | BM233: 518.0045135 | BN233: 308.4474126 | BO233: 154.2811803 | BP233: 118.7653733 | BQ233: 59.49042284 | BR233: 86.31639984 | BS233: 311.1013508 | BT233: 33.80691574 | BU233: 654.9990732 | BV233: 189.5411391
B234: NOT OBSERVED: NO HANDWASHING PLACE IN DWELLING / YARD / PLOT | C234: 2.969485253 | D234: 2.824123441 | E234: 0.4785984221 | F234: 0.7641411119 | G234: 1.364819186 | H234: 11.48428292 | I234: 0.8216049867 | J234: 1.282067989 | K234: 0.4562223012 | L234: 3.198143744 | M234: 2.310982595 | N234: 1.642055719 | O234: 0.5023448228 | P234: 0.6149833325 | Q234: 0.6697166652 | R234: 1.155319969 | S234: 1.871519091 | T234: 3.837612673 | U234: 1.832669768 | V234: 0.9220705194 | BB234: NOT OBSERVED: NO HANDWASHING PLACE IN DWELLING / YARD / PLOT | BC234: 78.604247 | BD234: 74.76581765 | BE234: 12.65097365 | BF234: 20.28177158 | BG234: 36.03307784 | BH234: 70.24422709 | BI234: 4.989947426 | BJ234: 7.808620323 | BK234: 2.786627761 | BL234: 19.5619681 | BM234: 47.23506154 | BN234: 33.31888422 | BO234: 10.23291802 | BP234: 12.47315126 | BQ234: 13.68448199 | BR234: 8.314949731 | BS234: 17.60316888 | BT234: 6.23899769 | BU234: 171.0251157 | BV234: 19.15365568
B235: NOT OBSERVED: NO PERMISSION TO SEE | C235: 2.227008776 | D235: 2.041079294 | E235: 1.422910159 | F235: 1.796737822 | G235: 2.585611289 | H235: 3.680272232 | I235: 1.56759185 | J235: 0.4215984098 | K235: 0 | L235: 2.729015536 | M235: 2.88415739 | N235: 1.55364438 | O235: 1.100233566 | P235: 2.504704504 | Q235: 2.52388628 | R235: 0.3455250482 | S235: 0 | T235: 1.96930124 | U235: 2.694095023 | V235: 0.4548762924 | BB235: NOT OBSERVED: NO PERMISSION TO SEE | BC235: 58.95040148 | BD235: 54.0355142 | BE235: 37.61232403 | BF235: 47.68886994 | BG235: 68.26364533 | BH235: 22.51058078 | BI235: 9.520634663 | BJ235: 2.567806029 | BK235: 0 | BL235: 16.69246886 | BM235: 58.95040148 | BN235: 31.52493343 | BO235: 22.41209498 | BP235: 50.80065829 | BQ235: 51.57117647 | BR235: 2.486777241 | BS235: 0 | BT235: 3.20159092 | BU235: 251.4134958 | BV235: 9.448891055
B236: OTHER REASON | C236: 0.1022635919 | D236: 0.3774013821 | E236: 0 | F236: 0.1206420717 | G236: 0.3752472861 | H236: 0 | I236: 0 | J236: 0.1093876955 | K236: 0.7916401766 | L236: 0 | M236: 0.1324396642 | N236: 0.4924026009 | O236: 0 | P236: 0.1250280291 | Q236: 0.2482063957 | R236: 0 | S236: 0.1497487543 | T236: 0.2580850628 | U236: 0.2324461341 | V236: 0.1101172202 | BB236: OTHER REASON | BC236: 2.706985202 | BD236: 9.991320673 | BE236: 0 | BF236: 3.202072108 | BG236: 9.907037364 | BH236: 0 | BI236: 0 | BJ236: 0.6662415644 | BK236: 4.835376277 | BL236: 0 | BM236: 2.706985202 | BN236: 9.991320673 | BO236: 0 | BP236: 2.535830543 | BQ236: 5.071661087 | BR236: 0 | BS236: 1.408509603 | BT236: 0.419581716 | BU236: 21.69192054 | BV236: 2.287403486
A251: =A1026 -> Tonga
A252: =A1034 -> 2019
A253: Access to menstrual health and hygiene facilities
A254: by wealth quintile and sub-national region
A255: Notes:
A256: WHO/UNICEF JMP customised wealth index excludes water,
A257: sanitation and hygiene assets.
A258: Survey used for analysis: | B258: =A1025 -> MICS19
A259: Menstrual health and hygiene | C259: NATIONAL wealth index quintile | H259: URBAN wealth index quintile | M259: RURAL wealth index quintile | R259: SUB-REGIONS: | BA259: Raw numbers of respondents: | BB259: Menstrual health and hygiene | BC259: NATIONAL wealth index quintile | BH259: URBAN wealth index quintile | BM259: RURAL wealth index quintile | BR259: SUB-REGIONS:
A260: Percentage based on weighted women population | C260: Poorest | D260: Poor | E260: Middle | F260: Rich | G260: Richest | H260: Poorest | I260: Poor | J260: Middle | K260: Rich | L260: Richest | M260: Poorest | N260: Poor | O260: Middle | P260: Rich | Q260: Richest | R260: 'EUA | S260: HA'APAI | T260: ONGO NIUA | U260: TONGATAPU | V260: VAVA'U | BA260: MHH data, raw numbers (weighted) | BC260: Poorest | BD260: Poor | BE260: Middle | BF260: Rich | BG260: Richest | BH260: Poorest | BI260: Poor | BJ260: Middle | BK260: Rich | BL260: Richest | BM260: Poorest | BN260: Poor | BO260: Middle | BP260: Rich | BQ260: Richest | BR260: 'EUA | BS260: HA'APAI | BT260: ONGO NIUA | BU260: TONGATAPU | BV260: VAVA'U
A261: Private place to wash and change | B261: Yes | C261: 95.1662702 | D261: 94.51401108 | E261: 92.95078556 | F261: 93.54748807 | G261: 94.49874814 | H261: 94.96860895 | I261: 95.68914587 | J261: 94.48106006 | K261: 96.65264509 | L261: 90.09473245 | M261: 96.90995628 | N261: 94.61728389 | O261: 92.69052013 | P261: 95.02440564 | Q261: 92.27471351 | R261: 97.69889927 | S261: 95.76867631 | T261: 88.92147597 | U261: 92.98009255 | V261: 97.81666882 | BA261: Private place to wash and change | BB261: Yes | BC261: 348.0923114 | BD261: 566.8827294 | BE261: 547.1108505 | BF261: 533.9187333 | BG261: 522.3834856 | BH261: 116.0890383 | BI261: 124.707301 | BJ261: 120.6802159 | BK261: 126.7945473 | BL261: 115.7265189 | BM261: 210.4608394 | BN261: 407.247598 | BO261: 431.8616055 | BP261: 413.1417609 | BQ261: 451.6786849 | BR261: 137.257379 | BS261: 168.4437663 | BT261: 25.81813982 | BU261: 1816.726005 | BV261: 370.1428202
B262: No | C262: 4.833729797 | D262: 5.485988924 | E262: 7.049214436 | F262: 6.452511927 | G262: 5.501251862 | H262: 5.031391048 | I262: 4.310854127 | J262: 5.518939941 | K262: 3.347354911 | L262: 9.90526755 | M262: 3.090043716 | N262: 5.382716115 | O262: 7.309479871 | P262: 4.975594357 | Q262: 7.725286489 | R262: 2.30110073 | S262: 4.23132369 | T262: 11.07852403 | U262: 7.01990745 | V262: 2.183331183 | BB262: No | BC262: 17.68046782 | BD262: 32.9042471 | BE262: 41.49186778 | BF262: 36.82746662 | BG262: 30.41059463 | BH262: 6.1503412 | BI262: 5.618139638 | BJ262: 7.049316159 | BK262: 4.391254376 | BL262: 12.72329803 | BM262: 6.710695362 | BN262: 23.16805259 | BO262: 34.0561657 | BP262: 21.63260902 | BQ262: 37.81477188 | BR262: 3.232821019 | BS262: 7.442309179 | BT262: 3.216623197 | BU262: 137.1610639 | BV262: 8.261826653
B263: DK/not sure/missing | C263: N/A | D263: N/A | E263: N/A | F263: N/A | G263: N/A | H263: N/A | I263: N/A | J263: N/A | K263: N/A | L263: N/A | M263: N/A | N263: N/A | O263: N/A | P263: N/A | Q263: N/A | R263: N/A | S263: N/A | T263: N/A | U263: N/A | V263: N/A | BB263: DK/not sure/missing | BC263: N/A | BD263: N/A | BE263: N/A | BF263: N/A | BG263: N/A | BH263: N/A | BI263: N/A | BJ263: N/A | BK263: N/A | BL263: N/A | BM263: N/A | BN263: N/A | BO263: N/A | BP263: N/A | BQ263: N/A | BR263: N/A | BS263: N/A | BT263: N/A | BU263: N/A | BV263: N/A
A264: Use of menstrual materials | B264: Materials reusable | C264: 1.708314384 | D264: 0.1813507418 | E264: 0.5145227507 | F264: 0.3457441902 | G264: 2.231376001 | H264: 0 | I264: 0.6406288964 | J264: 0.9978416733 | K264: 2.535641502 | L264: 1.55705537 | M264: 0.7386488905 | N264: 1.189094698 | O264: 0.2012490078 | P264: 0.4301127251 | Q264: 1.57453818 | R264: 0.4606336578 | S264: 0.2692855657 | T264: 3.300181888 | U264: 0.8369016685 | V264: 1.649531505 | BA264: Use of menstrual materials | BB264: Materials reusable | BC264: 6.248549 | BD264: 1.087718131 | BE264: 3.028494897 | BF264: 1.973321827 | BG264: 12.33491444 | BH264: 0 | BI264: 0.8349024324 | BJ264: 1.2745385 | BK264: 3.326401632 | BL264: 2.000034772 | BM264: 1.604135132 | BN264: 5.118049682 | BO264: 0.9376548915 | BP264: 1.870019891 | BQ264: 7.707261365 | BR264: 0.6471451473 | BS264: 0.4736358134 | BT264: 0.9581999904 | BU264: 16.35211348 | BV264: 6.241903868
B265: Materials not reusable | C265: 92.75944956 | D265: 94.18314815 | E265: 91.44216403 | F265: 95.26445811 | G265: 90.84489555 | H265: 85.83833714 | I265: 83.27604398 | J265: 91.08672185 | K265: 95.70020996 | L265: 91.58903926 | M265: 92.14988065 | N265: 95.85934982 | O265: 94.07972151 | P265: 96.20339253 | Q265: 91.11644159 | R265: 98.30078432 | S265: 98.92767871 | T265: 78.40642077 | U265: 92.29212986 | V265: 92.53837901 | BB265: Materials not reusable | BC265: 339.2888166 | BD265: 564.8982567 | BE265: 538.2310631 | BF265: 543.7182745 | BG265: 502.1852048 | BH265: 104.9282507 | BI265: 108.5298713 | BJ265: 116.3446436 | BK265: 125.5450877 | BL265: 117.6459532 | BM265: 200.12331 | BN265: 412.5936442 | BO265: 438.3341416 | BP265: 418.2676937 | BQ265: 446.0090197 | BR265: 138.1029685 | BS265: 174.0000116 | BT265: 22.76511846 | BU265: 1803.283991 | BV265: 350.1695263
B266: No materials used | C266: 4.807734852 | D266: 4.824682572 | E266: 7.973999438 | F266: 4.3897977 | G266: 6.728840184 | H266: 14.16166286 | I266: 16.08332712 | J266: 7.915436478 | K266: 1.764148542 | L266: 6.015188109 | M266: 5.891223897 | N266: 2.488028511 | O266: 5.015885205 | P266: 3.36649474 | Q266: 7.309020227 | R266: 0.9481825434 | S266: 0.803035728 | T266: 18.29339734 | U266: 6.478989221 | V266: 5.565868646 | BB266: No materials used | BC266: 17.58538539 | BD266: 28.93781773 | BE266: 46.93517745 | BF266: 25.05460356 | BG266: 37.19663021 | BH266: 17.31112882 | BI266: 20.96066694 | BJ266: 10.11034997 | BK266: 2.314312408 | BL266: 7.726498114 | BM266: 12.79406135 | BN266: 10.7088641 | BO266: 23.36990055 | BP266: 14.63665629 | BQ266: 35.77717577 | BR266: 1.332103552 | BS266: 1.412428027 | BT266: 5.311444567 | BU266: 126.5921326 | BV266: 21.0615056
B267: DK/not sure/missing | C267: 0.7245012034 | D267: 0.8108185386 | E267: 0.0693137829 | F267: 0 | G267: 0.1948882645 | H267: 0 | I267: 0 | J267: 0 | K267: 0 | L267: 0.8387172635 | M267: 1.220246562 | N267: 0.463526976 | O267: 0.7031442802 | P267: 0 | Q267: 0 | R267: 0.2903994799 | S267: 0 | T267: 0 | U267: 0.3919792497 | V267: 0.2462208407 | BB267: DK/not sure/missing | BC267: 2.650028187 | BD267: 4.863183998 | BE267: 0.4079828103 | BF267: 0 | BG267: 1.077330789 | BH267: 0 | BI267: 0 | BJ267: 0 | BK267: 0 | BL267: 1.077330789 | BM267: 2.650028187 | BN267: 1.995092649 | BO267: 3.276074159 | BP267: 0 | BQ267: 0 | BR267: 0.4079828103 | BS267: 0 | BT267: 0 | BU267: 7.658831871 | BV267: 0.9317111029
A268: Use of menstrual materials with private place to wash and change | B268: Materials reusable | C268: 1.808854707 | D268: 0.1935374205 | E268: 0.5539562852 | F268: 0.369592169 | G268: 1.850194473 | H268: 0 | I268: 0.6694896172 | J268: 1.056128787 | K268: 1.32335189 | L268: 0.8362567589 | M268: 0.771920923 | N268: 1.262928573 | O268: 0.2187789421 | P268: 0.4526339546 | Q268: 1.706359326 | R268: 0.472888566 | S268: 0.2811833431 | T268: 3.711344028 | U268: 0.7552166609 | V268: 1.690605649 | BA268: Use of menstrual materials with private place to wash and change | BB268: Materials reusable | BC268: 6.248549 | BD268: 1.087718131 | BE268: 3.028494897 | BF268: 1.973321827 | BG268: 9.645177661 | BH268: 0 | BI268: 0.8349024324 | BJ268: 1.2745385 | BK268: 1.677938039 | BL268: 0.9587615844 | BM268: 1.604135132 | BN268: 5.118049682 | BO268: 0.9376548915 | BP268: 1.870019891 | BQ268: 7.707261365 | BR268: 0.6471451473 | BS268: 0.4736358134 | BT268: 0.9581999904 | BU268: 13.6623767 | BV268: 6.241903868
B269: Materials not reusable | C269: 93.41971827 | D269: 96.03038969 | E269: 92.818003 | F269: 95.4534578 | G269: 92.16679226 | H269: 85.08805908 | I269: 82.52261961 | J269: 90.56606885 | K269: 96.85140211 | L269: 93.13404207 | M269: 93.60219159 | N269: 96.54777201 | O269: 97.55421635 | P269: 96.67097528 | Q269: 92.13201013 | R269: 98.55370301 | S269: 99.13990977 | T269: 77.50066084 | U269: 93.72511596 | V269: 92.77885102 | BB269: Materials not reusable | BC269: 322.7112078 | BD269: 539.7095596 | BE269: 507.4386841 | BF269: 509.6438927 | BG269: 480.4711607 | BH269: 98.77790953 | BI269: 102.9117317 | BJ269: 109.2953274 | BK269: 122.8022969 | BL269: 106.7774231 | BM269: 194.5154736 | BN269: 391.262265 | BO269: 418.1032565 | BP269: 399.3881695 | BQ269: 416.1406518 | BR269: 134.8701475 | BS269: 166.9949979 | BT269: 20.00922898 | BU269: 1695.550306 | BV269: 342.5498249
B270: No materials used | C270: 4.771427024 | D270: 3.776072891 | E270: 6.628040712 | F270: 4.176950035 | G270: 5.983013266 | H270: 14.91194092 | I270: 16.80789077 | J270: 8.377802359 | K270: 1.825246003 | L270: 6.02970117 | M270: 5.625887485 | N270: 2.189299413 | O270: 2.227004703 | P270: 2.876390765 | Q270: 6.161630542 | R270: 0.9734084247 | S270: 0.578906883 | T270: 18.78799513 | U270: 5.519667377 | V270: 5.530543332 | BB270: No materials used | BC270: 16.48252645 | BD270: 21.2222677 | BE270: 36.23568864 | BF270: 22.30151872 | BG270: 31.1898164 | BH270: 17.31112882 | BI270: 20.96066694 | BJ270: 10.11034997 | BK270: 2.314312408 | BL270: 6.913003436 | BM270: 11.69120242 | BN270: 8.87219072 | BO270: 9.54461994 | BP270: 11.88357146 | BQ270: 27.8307718 | BR270: 1.332103552 | BS270: 0.9751325569 | BT270: 4.850710853 | BU270: 99.85449057 | BV270: 20.41938038
A271: Awareness of menstruation before menarche | B271: Yes | C271: N/A | D271: N/A | E271: N/A | F271: N/A | G271: N/A | H271: N/A | I271: N/A | J271: N/A | K271: N/A | L271: N/A | M271: N/A | N271: N/A | O271: N/A | P271: N/A | Q271: N/A | R271: N/A | S271: N/A | T271: N/A | U271: N/A | V271: N/A | BA271: Awareness of menstruation before menarche | BB271: Yes | BC271: N/A | BD271: N/A | BE271: N/A | BF271: N/A | BG271: N/A | BH271: N/A | BI271: N/A | BJ271: N/A | BK271: N/A | BL271: N/A | BM271: N/A | BN271: N/A | BO271: N/A | BP271: N/A | BQ271: N/A | BR271: N/A | BS271: N/A | BT271: N/A | BU271: N/A | BV271: N/A
B272: No | C272: N/A | D272: N/A | E272: N/A | F272: N/A | G272: N/A | H272: N/A | I272: N/A | J272: N/A | K272: N/A | L272: N/A | M272: N/A | N272: N/A | O272: N/A | P272: N/A | Q272: N/A | R272: N/A | S272: N/A | T272: N/A | U272: N/A | V272: N/A | BB272: No | BC272: N/A | BD272: N/A | BE272: N/A | BF272: N/A | BG272: N/A | BH272: N/A | BI272: N/A | BJ272: N/A | BK272: N/A | BL272: N/A | BM272: N/A | BN272: N/A | BO272: N/A | BP272: N/A | BQ272: N/A | BR272: N/A | BS272: N/A | BT272: N/A | BU272: N/A | BV272: N/A
B273: DK/not sure/missing | C273: N/A | D273: N/A | E273: N/A | F273: N/A | G273: N/A | H273: N/A | I273: N/A | J273: N/A | K273: N/A | L273: N/A | M273: N/A | N273: N/A | O273: N/A | P273: N/A | Q273: N/A | R273: N/A | S273: N/A | T273: N/A | U273: N/A | V273: N/A | BB273: DK/not sure/missing | BC273: N/A | BD273: N/A | BE273: N/A | BF273: N/A | BG273: N/A | BH273: N/A | BI273: N/A | BJ273: N/A | BK273: N/A | BL273: N/A | BM273: N/A | BN273: N/A | BO273: N/A | BP273: N/A | BQ273: N/A | BR273: N/A | BS273: N/A | BT273: N/A | BU273: N/A | BV273: N/A
A274: Participation in (all) activities during menstruation | B274: Yes | C274: 80.96994191 | D274: 85.18847639 | E274: 84.17041301 | F274: 84.46301269 | G274: 85.13213925 | H274: 88.40885109 | I274: 87.63141004 | J274: 84.92429816 | K274: 85.48385336 | L274: 85.7161048 | M274: 80.3539777 | N274: 79.53872567 | O274: 87.40257831 | P274: 83.84243889 | Q274: 84.50004773 | R274: 96.75698308 | S274: 85.09705515 | T274: 75.35515414 | U274: 85.17623377 | V274: 74.91584445 | BA274: Participation in (all) activities during menstruation | BB274: Yes | BC274: 296.1660069 | BD274: 510.9493869 | BE274: 495.4293389 | BF274: 482.0694353 | BG274: 470.6054261 | BH274: 108.070431 | BI274: 114.2060213 | BJ274: 108.4734086 | BK274: 112.1426784 | BL274: 110.1021797 | BM274: 174.5059666 | BN274: 342.3471236 | BO274: 407.2241448 | BP274: 364.5254354 | BQ274: 413.6222047 | BR274: 135.9340791 | BS274: 149.6738706 | BT274: 21.87919043 | BU274: 1664.247417 | BV274: 283.4850367
B275: No | C275: 18.77246744 | D275: 14.2069634 | E275: 15.82958699 | F275: 15.53698731 | G275: 14.71682758 | H275: 10.29256165 | I275: 12.36858996 | J275: 15.07570184 | K275: 14.51614664 | L275: 13.63391184 | M275: 19.5586656 | N275: 19.81279164 | O275: 12.59742169 | P275: 16.15756111 | Q275: 15.49995227 | R275: 3.243016922 | S275: 14.90294485 | T275: 23.99144331 | U275: 14.55694127 | V275: 25.08415555 | BB275: No | BC275: 68.6645759 | BD275: 85.21151621 | BE275: 93.17337932 | BF275: 88.67676465 | BG275: 81.35375165 | BH275: 12.5815635 | BI275: 16.11941937 | BJ275: 19.25612342 | BK275: 19.04312335 | BL275: 17.5127348 | BM275: 42.47585425 | BN275: 85.27735604 | BO275: 58.69362636 | BP275: 70.24893452 | BQ275: 75.87125215 | BR275: 4.556120961 | BS275: 26.21220482 | BT275: 6.96585871 | BU275: 284.426193 | BV275: 94.91961022
B276: DK/not sure/missing/no such activity | C276: 0.2575906444 | D276: 0.6045602134 | E276: 0 | F276: 0 | G276: 0.1510331717 | H276: 1.29858726 | I276: 0 | J276: 0 | K276: 0 | L276: 0.6499833572 | M276: 0.08735669827 | N276: 0.6484826908 | O276: 0 | P276: 0 | Q276: 0 | R276: 0 | S276: 0 | T276: 0.6534025512 | U276: 0.2668249623 | V276: 0 | BB276: DK/not sure/missing/no such activity | BC276: 0.9421964592 | BD276: 3.626073425 | BE276: 0 | BF276: 0 | BG276: 0.8349024324 | BH276: 1.587385009 | BI276: 0 | BJ276: 0 | BK276: 0 | BL276: 0.8349024324 | BM276: 0.1897138823 | BN276: 2.791170993 | BO276: 0 | BP276: 0 | BQ276: 0 | BR276: 0 | BS276: 0 | BT276: 0.1897138823 | BU276: 5.213458434 | BV276: 0
A277: Participation in specific activities during menstruation | B277: Did not go to school (amongst those usually attending school) | C277: N/A | D277: N/A | E277: N/A | F277: N/A | G277: N/A | H277: N/A | I277: N/A | J277: N/A | K277: N/A | L277: N/A | M277: N/A | N277: N/A | O277: N/A | P277: N/A | Q277: N/A | R277: N/A | S277: N/A | T277: N/A | U277: N/A | V277: N/A | BA277: Participation in specific activities during menstruation | BB277: Did not go to school (amongst those usually attending school) | BC277: N/A | BD277: N/A | BE277: N/A | BF277: N/A | BG277: N/A | BH277: N/A | BI277: N/A | BJ277: N/A | BK277: N/A | BL277: N/A | BM277: N/A | BN277: N/A | BO277: N/A | BP277: N/A | BQ277: N/A | BR277: N/A | BS277: N/A | BT277: N/A | BU277: N/A | BV277: N/A
B278: Did not go to work (amongst those who usually work) | C278: N/A | D278: N/A | E278: N/A | F278: N/A | G278: N/A | H278: N/A | I278: N/A | J278: N/A | K278: N/A | L278: N/A | M278: N/A | N278: N/A | O278: N/A | P278: N/A | Q278: N/A | R278: N/A | S278: N/A | T278: N/A | U278: N/A | V278: N/A | BB278: Did not go to work (amongst those who usually work) | BC278: N/A | BD278: N/A | BE278: N/A | BF278: N/A | BG278: N/A | BH278: N/A | BI278: N/A | BJ278: N/A | BK278: N/A | BL278: N/A | BM278: N/A | BN278: N/A | BO278: N/A | BP278: N/A | BQ278: N/A | BR278: N/A | BS278: N/A | BT278: N/A | BU278: N/A | BV278: N/A
B279: Did not participate in social activities | C279: N/A | D279: N/A | E279: N/A | F279: N/A | G279: N/A | H279: N/A | I279: N/A | J279: N/A | K279: N/A | L279: N/A | M279: N/A | N279: N/A | O279: N/A | P279: N/A | Q279: N/A | R279: N/A | S279: N/A | T279: N/A | U279: N/A | V279: N/A | BB279: Did not participate in social activities | BC279: N/A | BD279: N/A | BE279: N/A | BF279: N/A | BG279: N/A | BH279: N/A | BI279: N/A | BJ279: N/A | BK279: N/A | BL279: N/A | BM279: N/A | BN279: N/A | BO279: N/A | BP279: N/A | BQ279: N/A | BR279: N/A | BS279: N/A | BT279: N/A | BU279: N/A | BV279: N/A
B280: Did not cook food | C280: N/A | D280: N/A | E280: N/A | F280: N/A | G280: N/A | H280: N/A | I280: N/A | J280: N/A | K280: N/A | L280: N/A | M280: N/A | N280: N/A | O280: N/A | P280: N/A | Q280: N/A | R280: N/A | S280: N/A | T280: N/A | U280: N/A | V280: N/A | BB280: Did not cook food | BC280: N/A | BD280: N/A | BE280: N/A | BF280: N/A | BG280: N/A | BH280: N/A | BI280: N/A | BJ280: N/A | BK280: N/A | BL280: N/A | BM280: N/A | BN280: N/A | BO280: N/A | BP280: N/A | BQ280: N/A | BR280: N/A | BS280: N/A | BT280: N/A | BU280: N/A | BV280: N/A
B281: Did not eat with others | C281: N/A | D281: N/A | E281: N/A | F281: N/A | G281: N/A | H281: N/A | I281: N/A | J281: N/A | K281: N/A | L281: N/A | M281: N/A | N281: N/A | O281: N/A | P281: N/A | Q281: N/A | R281: N/A | S281: N/A | T281: N/A | U281: N/A | V281: N/A | BB281: Did not eat with others | BC281: N/A | BD281: N/A | BE281: N/A | BF281: N/A | BG281: N/A | BH281: N/A | BI281: N/A | BJ281: N/A | BK281: N/A | BL281: N/A | BM281: N/A | BN281: N/A | BO281: N/A | BP281: N/A | BQ281: N/A | BR281: N/A | BS281: N/A | BT281: N/A | BU281: N/A | BV281: N/A
B282: Did not bathe in regular place | C282: N/A | D282: N/A | E282: N/A | F282: N/A | G282: N/A | H282: N/A | I282: N/A | J282: N/A | K282: N/A | L282: N/A | M282: N/A | N282: N/A | O282: N/A | P282: N/A | Q282: N/A | R282: N/A | S282: N/A | T282: N/A | U282: N/A | V282: N/A | BB282: Did not bathe in regular place | BC282: N/A | BD282: N/A | BE282: N/A | BF282: N/A | BG282: N/A | BH282: N/A | BI282: N/A | BJ282: N/A | BK282: N/A | BL282: N/A | BM282: N/A | BN282: N/A | BO282: N/A | BP282: N/A | BQ282: N/A | BR282: N/A | BS282: N/A | BT282: N/A | BU282: N/A | BV282: N/A
B283: Did not participate in other activities | C283: N/A | D283: N/A | E283: N/A | F283: N/A | G283: N/A | H283: N/A | I283: N/A | J283: N/A | K283: N/A | L283: N/A | M283: N/A | N283: N/A | O283: N/A | P283: N/A | Q283: N/A | R283: N/A | S283: N/A | T283: N/A | U283: N/A | V283: N/A | BB283: Did not participate in other activities | BC283: N/A | BD283: N/A | BE283: N/A | BF283: N/A | BG283: N/A | BH283: N/A | BI283: N/A | BJ283: N/A | BK283: N/A | BL283: N/A | BM283: N/A | BN283: N/A | BO283: N/A | BP283: N/A | BQ283: N/A | BR283: N/A | BS283: N/A | BT283: N/A | BU283: N/A | BV283: N/A
B284: DK/not sure/missing/no such activity | C284: N/A | D284: N/A | E284: N/A | F284: N/A | G284: N/A | H284: N/A | I284: N/A | J284: N/A | K284: N/A | L284: N/A | M284: N/A | N284: N/A | O284: N/A | P284: N/A | Q284: N/A | R284: N/A | S284: N/A | T284: N/A | U284: N/A | V284: N/A | BB284: DK/not sure/missing/no such activity | BC284: N/A | BD284: N/A | BE284: N/A | BF284: N/A | BG284: N/A | BH284: N/A | BI284: N/A | BJ284: N/A | BK284: N/A | BL284: N/A | BM284: N/A | BN284: N/A | BO284: N/A | BP284: N/A | BQ284: N/A | BR284: N/A | BS284: N/A | BT284: N/A | BU284: N/A | BV284: N/A
A331: =A1026 -> Tonga
A332: =A1034 -> 2019
A333: Use of basic water, sanitation and hygiene facilities
A334: by wealth quintile and sub-national region
A335: Notes:
A336: WHO/UNICEF JMP customised wealth index excludes water,
A337: sanitation and hygiene assets.
A338: Survey used for analysis: | B338: =A1025 -> MICS19
A339: Basic water, sanitation and hygiene | C339: NATIONAL wealth index quintile | H339: URBAN wealth index quintile | M339: RURAL wealth index quintile | R339: SUB-REGIONS: | BA339: Raw numbers of respondents: | BB339: Basic water, sanitation and hygiene | BC339: NATIONAL wealth index quintile | BH339: URBAN wealth index quintile | BM339: RURAL wealth index quintile | BR339: SUB-REGIONS:
A340: Percentage based on weighted population | C340: Poorest | D340: Poor | E340: Middle | F340: Rich | G340: Richest | H340: Poorest | I340: Poor | J340: Middle | K340: Rich | L340: Richest | M340: Poorest | N340: Poor | O340: Middle | P340: Rich | Q340: Richest | R340: 'EUA | S340: HA'APAI | T340: ONGO NIUA | U340: TONGATAPU | V340: VAVA'U | BA340: WatSan data, raw numbers (weighted) | BC340: Poorest | BD340: Poor | BE340: Middle | BF340: Rich | BG340: Richest | BH340: Poorest | BI340: Poor | BJ340: Middle | BK340: Rich | BL340: Richest | BM340: Poorest | BN340: Poor | BO340: Middle | BP340: Rich | BQ340: Richest | BR340: 'EUA | BS340: HA'APAI | BT340: ONGO NIUA | BU340: TONGATAPU | BV340: VAVA'U
A341: Use of basic water sanitation and hygiene | B341: Yes | C341: 36.03851444 | D341: 55.55555556 | E341: 66.12149533 | F341: 79.72665148 | G341: 86.9266055 | H341: 45 | I341: 75.3968254 | J341: 86.04651163 | K341: 85.9375 | L341: 90.08264463 | M341: 35.17017828 | N341: 53.06122449 | O341: 62.22222222 | P341: 72.05387205 | Q341: 84.04255319 | R341: 55.52238806 | S341: 45.02617801 | T341: 42.94478528 | U341: 70.38664323 | V341: 63.54166667 | BA341: Use of Basic Water Sanitation and Hygiene | BB341: Yes | BC341: 262 | BD341: 260 | BE341: 283 | BF341: 350 | BG341: 379 | BH341: 63 | BI341: 95 | BJ341: 111 | BK341: 110 | BL341: 109 | BM341: 217 | BN341: 182 | BO341: 196 | BP341: 214 | BQ341: 237 | BR341: 186 | BS341: 172 | BT341: 70 | BU341: 801 | BV341: 305
B342: No | C342: 63.96148556 | D342: 44.44444444 | E342: 33.87850467 | F342: 20.27334852 | G342: 13.0733945 | H342: 55 | I342: 24.6031746 | J342: 13.95348837 | K342: 14.0625 | L342: 9.917355372 | M342: 64.82982172 | N342: 46.93877551 | O342: 37.77777778 | P342: 27.94612795 | Q342: 15.95744681 | R342: 44.47761194 | S342: 54.97382199 | T342: 57.05521472 | U342: 29.61335677 | V342: 36.45833333 | BB342: No | BC342: 465 | BD342: 208 | BE342: 145 | BF342: 89 | BG342: 57 | BH342: 77 | BI342: 31 | BJ342: 18 | BK342: 18 | BL342: 12 | BM342: 400 | BN342: 161 | BO342: 119 | BP342: 83 | BQ342: 45 | BR342: 149 | BS342: 210 | BT342: 93 | BU342: 337 | BV342: 175
A343: Use of basic water and sanitation | B343: Yes | C343: 81.29298487 | D343: 89.1025641 | E343: 92.52336449 | F343: 96.81093394 | G343: 97.24770642 | H343: 84.28571429 | I343: 94.44444444 | J343: 98.4496124 | K343: 97.65625 | L343: 97.52066116 | M343: 80.87520259 | N343: 88.33819242 | O343: 91.11111111 | P343: 95.62289562 | Q343: 96.80851064 | R343: 92.23880597 | S343: 83.5078534 | T343: 87.11656442 | U343: 91.91564148 | V343: 91.04166667 | BA343: Use of Basic Water and Sanitation | BB343: Yes | BC343: 591 | BD343: 417 | BE343: 396 | BF343: 425 | BG343: 424 | BH343: 118 | BI343: 119 | BJ343: 127 | BK343: 125 | BL343: 118 | BM343: 499 | BN343: 303 | BO343: 287 | BP343: 284 | BQ343: 273 | BR343: 309 | BS343: 319 | BT343: 142 | BU343: 1046 | BV343: 437
B344: No | C344: 18.70701513 | D344: 10.8974359 | E344: 7.476635514 | F344: 3.189066059 | G344: 2.752293578 | H344: 15.71428571 | I344: 5.555555556 | J344: 1.550387597 | K344: 2.34375 | L344: 2.479338843 | M344: 19.12479741 | N344: 11.66180758 | O344: 8.888888889 | P344: 4.377104377 | Q344: 3.191489362 | R344: 7.76119403 | S344: 16.4921466 | T344: 12.88343558 | U344: 8.084358524 | V344: 8.958333333 | BB344: No | BC344: 136 | BD344: 51 | BE344: 32 | BF344: 14 | BG344: 12 | BH344: 22 | BI344: 7 | BJ344: 2 | BK344: 3 | BL344: 3 | BM344: 118 | BN344: 40 | BO344: 28 | BP344: 13 | BQ344: 9 | BR344: 26 | BS344: 63 | BT344: 21 | BU344: 92 | BV344: 43
A345: Use of basic water and hygiene | B345: Yes | C345: 41.54057772 | D345: 58.97435897 | E345: 70.09345794 | F345: 81.54897494 | G345: 88.30275229 | H345: 52.14285714 | I345: 77.77777778 | J345: 86.04651163 | K345: 87.5 | L345: 92.56198347 | M345: 40.35656402 | N345: 56.55976676 | O345: 66.34920635 | P345: 74.74747475 | Q345: 85.46099291 | R345: 57.91044776 | S345: 50.78534031 | T345: 47.2392638 | U345: 73.7258348 | V345: 66.04166667 | BA345: Use of Basic Water and Hygiene | BB345: Yes | BC345: 302 | BD345: 276 | BE345: 300 | BF345: 358 | BG345: 385 | BH345: 73 | BI345: 98 | BJ345: 111 | BK345: 112 | BL345: 112 | BM345: 249 | BN345: 194 | BO345: 209 | BP345: 222 | BQ345: 241 | BR345: 194 | BS345: 194 | BT345: 77 | BU345: 839 | BV345: 317
B346: No | C346: 58.45942228 | D346: 41.02564103 | E346: 29.90654206 | F346: 18.45102506 | G346: 11.69724771 | H346: 47.85714286 | I346: 22.22222222 | J346: 13.95348837 | K346: 12.5 | L346: 7.438016529 | M346: 59.64343598 | N346: 43.44023324 | O346: 33.65079365 | P346: 25.25252525 | Q346: 14.53900709 | R346: 42.08955224 | S346: 49.21465969 | T346: 52.7607362 | U346: 26.2741652 | V346: 33.95833333 | BB346: No | BC346: 425 | BD346: 192 | BE346: 128 | BF346: 81 | BG346: 51 | BH346: 67 | BI346: 28 | BJ346: 18 | BK346: 16 | BL346: 9 | BM346: 368 | BN346: 149 | BO346: 106 | BP346: 75 | BQ346: 41 | BR346: 141 | BS346: 188 | BT346: 86 | BU346: 299 | BV346: 163
A347: Use of basic sanitation and hygiene | B347: Yes | C347: 36.17606602 | D347: 56.62393162 | E347: 66.82242991 | F347: 80.63781321 | G347: 87.6146789 | H347: 46.42857143 | I347: 76.98412698 | J347: 86.04651163 | K347: 85.9375 | L347: 90.08264463 | M347: 35.33225284 | N347: 53.64431487 | O347: 62.85714286 | P347: 73.4006734 | Q347: 85.10638298 | R347: 55.52238806 | S347: 45.28795812 | T347: 42.94478528 | U347: 71.44112478 | V347: 64.16666667 | BA347: Use of Basic Sanitation and Hygiene | BB347: Yes | BC347: 263 | BD347: 265 | BE347: 286 | BF347: 354 | BG347: 382 | BH347: 65 | BI347: 97 | BJ347: 111 | BK347: 110 | BL347: 109 | BM347: 218 | BN347: 184 | BO347: 198 | BP347: 218 | BQ347: 240 | BR347: 186 | BS347: 173 | BT347: 70 | BU347: 813 | BV347: 308
B348: No | C348: 63.82393398 | D348: 43.37606838 | E348: 33.17757009 | F348: 19.36218679 | G348: 12.3853211 | H348: 53.57142857 | I348: 23.01587302 | J348: 13.95348837 | K348: 14.0625 | L348: 9.917355372 | M348: 64.66774716 | N348: 46.35568513 | O348: 37.14285714 | P348: 26.5993266 | Q348: 14.89361702 | R348: 44.47761194 | S348: 54.71204188 | T348: 57.05521472 | U348: 28.55887522 | V348: 35.83333333 | BB348: No | BC348: 464 | BD348: 203 | BE348: 142 | BF348: 85 | BG348: 54 | BH348: 75 | BI348: 29 | BJ348: 18 | BK348: 18 | BL348: 12 | BM348: 399 | BN348: 159 | BO348: 117 | BP348: 79 | BQ348: 42 | BR348: 149 | BS348: 209 | BT348: 93 | BU348: 325 | BV348: 172
A349: Use of basic water | B349: Yes | C349: 98.89958735 | D349: 98.71794872 | E349: 98.8317757 | F349: 99.08883827 | G349: 99.31192661 | H349: 97.85714286 | I349: 98.41269841 | J349: 100 | K349: 100 | L349: 100 | M349: 98.86547812 | N349: 99.12536443 | O349: 98.73015873 | P349: 98.65319865 | Q349: 98.93617021 | R349: 99.70149254 | S349: 99.47643979 | T349: 98.1595092 | U349: 98.5940246 | V349: 99.16666667 | BA349: Use of Basic Water | BB349: Yes | BC349: 719 | BD349: 462 | BE349: 423 | BF349: 435 | BG349: 433 | BH349: 137 | BI349: 124 | BJ349: 129 | BK349: 128 | BL349: 121 | BM349: 610 | BN349: 340 | BO349: 311 | BP349: 293 | BQ349: 279 | BR349: 334 | BS349: 380 | BT349: 160 | BU349: 1122 | BV349: 476
B350: No | C350: 1.100412655 | D350: 1.282051282 | E350: 1.168224299 | F350: 0.9111617312 | G350: 0.6880733945 | H350: 2.142857143 | I350: 1.587301587 | J350: 0 | K350: 0 | L350: 0 | M350: 1.13452188 | N350: 0.8746355685 | O350: 1.26984127 | P350: 1.346801347 | Q350: 1.063829787 | R350: 0.2985074627 | S350: 0.5235602094 | T350: 1.840490798 | U350: 1.405975395 | V350: 0.8333333333 | BB350: No | BC350: 8 | BD350: 6 | BE350: 5 | BF350: 4 | BG350: 3 | BH350: 3 | BI350: 2 | BJ350: 0 | BK350: 0 | BL350: 0 | BM350: 7 | BN350: 3 | BO350: 4 | BP350: 4 | BQ350: 3 | BR350: 1 | BS350: 2 | BT350: 3 | BU350: 16 | BV350: 4
A351: Use of basic sanitation | B351: Yes | C351: 82.39339752 | D351: 90.38461538 | E351: 93.45794393 | F351: 97.72209567 | G351: 97.93577982 | H351: 86.42857143 | I351: 96.03174603 | J351: 98.4496124 | K351: 97.65625 | L351: 97.52066116 | M351: 82.00972447 | N351: 89.21282799 | O351: 92.06349206 | P351: 96.96969697 | Q351: 97.87234043 | R351: 92.53731343 | S351: 84.03141361 | T351: 88.95705521 | U351: 93.23374341 | V351: 91.875 | BA351: Use of Basic Sanitation | BB351: Yes | BC351: 599 | BD351: 423 | BE351: 400 | BF351: 429 | BG351: 427 | BH351: 121 | BI351: 121 | BJ351: 127 | BK351: 125 | BL351: 118 | BM351: 506 | BN351: 306 | BO351: 290 | BP351: 288 | BQ351: 276 | BR351: 310 | BS351: 321 | BT351: 145 | BU351: 1061 | BV351: 441
B352: No | C352: 17.60660248 | D352: 9.615384615 | E352: 6.542056075 | F352: 2.277904328 | G352: 2.064220183 | H352: 13.57142857 | I352: 3.968253968 | J352: 1.550387597 | K352: 2.34375 | L352: 2.479338843 | M352: 17.99027553 | N352: 10.78717201 | O352: 7.936507937 | P352: 3.03030303 | Q352: 2.127659574 | R352: 7.462686567 | S352: 15.96858639 | T352: 11.04294479 | U352: 6.766256591 | V352: 8.125 | BB352: No | BC352: 128 | BD352: 45 | BE352: 28 | BF352: 10 | BG352: 9 | BH352: 19 | BI352: 5 | BJ352: 2 | BK352: 3 | BL352: 3 | BM352: 111 | BN352: 37 | BO352: 25 | BP352: 9 | BQ352: 6 | BR352: 25 | BS352: 61 | BT352: 18 | BU352: 77 | BV352: 39
A353: Access to basic hygiene | B353: Yes | C353: 41.6781293 | D353: 60.04273504 | E353: 71.02803738 | F353: 82.46013667 | G353: 88.99082569 | H353: 53.57142857 | I353: 79.36507937 | J353: 86.04651163 | K353: 87.5 | L353: 92.56198347 | M353: 40.51863857 | N353: 57.14285714 | O353: 67.3015873 | P353: 76.09427609 | Q353: 86.5248227 | R353: 57.91044776 | S353: 51.04712042 | T353: 47.2392638 | U353: 74.86818981 | V353: 66.66666667 | BA353: Access to Basic Hygiene | BB353: Yes | BC353: 303 | BD353: 281 | BE353: 304 | BF353: 362 | BG353: 388 | BH353: 75 | BI353: 100 | BJ353: 111 | BK353: 112 | BL353: 112 | BM353: 250 | BN353: 196 | BO353: 212 | BP353: 226 | BQ353: 244 | BR353: 194 | BS353: 195 | BT353: 77 | BU353: 852 | BV353: 320
... 222 more rows

Sheet data_summary
A1: iso3 | B1: year | C1: data_source | D1: row | E1: var1 | F1: var2 | G1: varname | H1: total_q1 | I1: total_q2 | J1: total_q3 | K1: total_q4 | L1: total_q5 | M1: urban_q1 | N1: urban_q2 | O1: urban_q3 | P1: urban_q4 | Q1: urban_q5 | R1: rural_q1 | S1: rural_q2 | T1: rural_q3 | U1: rural_q4 | V1: rural_q5 | W1: region_1_name | X1: region_2_name | Y1: region_3_name | Z1: region_4_name | AA1: region_5_name | AB1: region_1 | AC1: region_2 | AD1: region_3 | AE1: region_4 | AF1: region_5 | AG1: n_total_q1 | AH1: n_total_q2 | AI1: n_total_q3 | AJ1: n_total_q4 | AK1: n_total_q5 | AL1: n_urban_q1 | AM1: n_urban_q2 | AN1: n_urban_q3 | AO1: n_urban_q4 | AP1: n_urban_q5 | AQ1: n_rural_q1 | AR1: n_rural_q2 | AS1: n_rural_q3 | AT1: n_rural_q4 | AU1: n_rural_q5 | AV1: n_region_1 | AW1: n_region_2 | AX1: n_region_3 | AY1: n_region_4 | AZ1: n_region_5
A2: TON | B2: 2019 | C2: TON_2019_MICS | D2: 16 | E2: Water | F2: Improved | G2: w_imp | H2: 99.49425586 | I2: 98.45475212 | J2: 98.37363724 | K2: 99.33442192 | L2: 99.50972514 | M2: 98.11959593 | N2: 97.90993735 | O2: 100 | P2: 100 | Q2: 100 | R2: 99.4226511 | S2: 98.58242904 | T2: 98.40323523 | U2: 99.12899933 | V2: 99.36652627 | W2: 'EUA | X2: HA'APAI | Y2: ONGO NIUA | Z2: TONGATAPU | AA2: VAVA'U | AB2: 99.95283074 | AC2: 99.71298155 | AD2: 97.30132793 | AE2: 98.87278541 | AF2: 99.26451687 | AG2: 2633.679037 | AH2: 2606.49019 | AI2: 2600.347671 | AJ2: 2636.526191 | AK2: 2627.191725 | AL2: 600.1537253 | AM2: 594.6476077 | AN2: 609.0644484 | AO2: 610.8048101 | AP2: 611.6663184 | AQ2: 2032.137781 | AR2: 2000.331963 | AS2: 2004.504064 | AT2: 2010.543924 | AU2: 2030.380173 | AV2: 719.3702049 | AW2: 937.8822061 | AX2: 158.1876056 | AY2: 9226.828455 | AZ2: 2061.966344
A3: TON | B3: 2019 | C3: TON_2019_MICS | D3: 17 | E3: Water | F3: Not Improved | H3: 0.5057441357 | I3: 1.545247879 | J3: 1.62636276 | K3: 0.6655780798 | L3: 0.4902748637 | M3: 1.880404065 | N3: 2.090062654 | O3: 0 | P3: 0 | Q3: 0 | R3: 0.5773489034 | S3: 1.41757096 | T3: 1.596764765 | U3: 0.8710006686 | V3: 0.6334737342 | W3: 'EUA | X3: HA'APAI | Y3: ONGO NIUA | Z3: TONGATAPU | AA3: VAVA'U | AB3: 0.04716925515 | AC3: 0.2870184458 | AD3: 2.69867207 | AE3: 1.127214594 | AF3: 0.7354831326 | AG3: 13.38738319 | AH3: 40.90887793 | AI3: 42.99026379 | AJ3: 17.66571955 | AK3: 12.94392144 | AL3: 11.50159144 | AM3: 12.69381629 | AN3: 0 | AO3: 0 | AP3: 0 | AQ3: 11.80065615 | AR3: 28.76387332 | AS3: 32.52658771 | AT3: 17.66571955 | AU3: 12.94392144 | AV3: 0.3394816984 | AW3: 2.699643406 | AX3: 4.387365335 | AY3: 105.1918953 | AZ3: 15.27778015
A4: TON | B4: 2019 | C4: TON_2019_MICS | D4: 18 | E4: Water ladder | F4: Basic | G4: w_bas | H4: 99.49425586 | I4: 98.45475212 | J4: 98.37363724 | K4: 99.33442192 | L4: 99.50972514 | M4: 98.11959593 | N4: 97.90993735 | O4: 100 | P4: 100 | Q4: 100 | R4: 99.4226511 | S4: 98.58242904 | T4: 98.40323523 | U4: 99.12899933 | V4: 99.36652627 | W4: 'EUA | X4: HA'APAI | Y4: ONGO NIUA | Z4: TONGATAPU | AA4: VAVA'U | AB4: 99.95283074 | AC4: 99.71298155 | AD4: 97.30132793 | AE4: 98.87278541 | AF4: 99.26451687 | AG4: 2633.679037 | AH4: 2606.49019 | AI4: 2600.347671 | AJ4: 2636.526191 | AK4: 2627.191725 | AL4: 600.1537253 | AM4: 594.6476077 | AN4: 609.0644484 | AO4: 610.8048101 | AP4: 611.6663184 | AQ4: 2032.137781 | AR4: 2000.331963 | AS4: 2004.504064 | AT4: 2010.543924 | AU4: 2030.380173 | AV4: 719.3702049 | AW4: 937.8822061 | AX4: 158.1876056 | AY4: 9226.828455 | AZ4: 2061.966344
A5: TON | B5: 2019 | C5: TON_2019_MICS | D5: 19 | E5: Water ladder | F5: Limited | G5: w_lim | H5: 0 | I5: 0 | J5: 0 | K5: 0 | L5: 0 | M5: 0 | N5: 0 | O5: 0 | P5: 0 | Q5: 0 | R5: 0 | S5: 0 | T5: 0 | U5: 0 | V5: 0 | W5: 'EUA | X5: HA'APAI | Y5: ONGO NIUA | Z5: TONGATAPU | AA5: VAVA'U | AB5: 0 | AC5: 0 | AD5: 0 | AE5: 0 | AF5: 0
A6: TON | B6: 2019 | C6: TON_2019_MICS | D6: 20 | E6: Water ladder | F6: Unimproved | G6: w_unimp | H6: 0.5057441357 | I6: 1.545247879 | J6: 1.62636276 | K6: 0.6655780798 | L6: 0.4902748637 | M6: 1.880404065 | N6: 2.090062654 | O6: 0 | P6: 0 | Q6: 0 | R6: 0.5773489034 | S6: 1.41757096 | T6: 1.596764765 | U6: 0.8710006686 | V6: 0.6334737342 | W6: 'EUA | X6: HA'APAI | Y6: ONGO NIUA | Z6: TONGATAPU | AA6: VAVA'U | AB6: 0.04716925515 | AC6: 0.2870184458 | AD6: 2.69867207 | AE6: 1.127214594 | AF6: 0.7354831326 | AG6: 13.38738319 | AH6: 40.90887793 | AI6: 42.99026379 | AJ6: 17.66571955 | AK6: 12.94392144 | AL6: 11.50159144 | AM6: 12.69381629 | AN6: 0 | AO6: 0 | AP6: 0 | AQ6: 11.80065615 | AR6: 28.76387332 | AS6: 32.52658771 | AT6: 17.66571955 | AU6: 12.94392144 | AV6: 0.3394816984 | AW6: 2.699643406 | AX6: 4.387365335 | AY6: 105.1918953 | AZ6: 15.27778015
A7: TON | B7: 2019 | C7: TON_2019_MICS | D7: 21 | E7: Water ladder | F7: Surface water | G7: w_sur | H7: 0 | I7: 0 | J7: 0 | K7: 0 | L7: 0 | M7: 0 | N7: 0 | O7: 0 | P7: 0 | Q7: 0 | R7: 0 | S7: 0 | T7: 0 | U7: 0 | V7: 0 | W7: 'EUA | X7: HA'APAI | Y7: ONGO NIUA | Z7: TONGATAPU | AA7: VAVA'U | AB7: 0 | AC7: 0 | AD7: 0 | AE7: 0 | AF7: 0
A8: TON | B8: 2019 | C8: TON_2019_MICS | D8: 22 | E8: Improved water point at more than 30 minutes | F8: Yes | H8: 0 | I8: 0 | J8: 0 | K8: 0 | L8: 0 | M8: 0 | N8: 0 | O8: 0 | P8: 0 | Q8: 0 | R8: 0 | S8: 0 | T8: 0 | U8: 0 | V8: 0 | W8: 'EUA | X8: HA'APAI | Y8: ONGO NIUA | Z8: TONGATAPU | AA8: VAVA'U | AB8: 0 | AC8: 0 | AD8: 0 | AE8: 0 | AF8: 0
A9: TON | B9: 2019 | C9: TON_2019_MICS | D9: 23 | E9: Improved water point at more than 30 minutes | F9: No | H9: 100 | I9: 100 | J9: 100 | K9: 100 | L9: 100 | M9: 100 | N9: 100 | O9: 100 | P9: 100 | Q9: 100 | R9: 100 | S9: 100 | T9: 100 | U9: 100 | V9: 100 | W9: 'EUA | X9: HA'APAI | Y9: ONGO NIUA | Z9: TONGATAPU | AA9: VAVA'U | AB9: 100 | AC9: 100 | AD9: 100 | AE9: 100 | AF9: 100
A10: TON | B10: 2019 | C10: TON_2019_MICS | D10: 29 | E10: Piped water | F10: Yes | G10: w_pip | H10: 99.42553529 | I10: 98.45475212 | J10: 98.37363724 | K10: 99.33442192 | L10: 99.50972514 | M10: 98.11959593 | N10: 97.90993735 | O10: 100 | P10: 100 | Q10: 100 | R10: 99.33365236 | S10: 98.58242904 | T10: 98.40323523 | U10: 99.12899933 | V10: 99.36652627 | W10: 'EUA | X10: HA'APAI | Y10: ONGO NIUA | Z10: TONGATAPU | AA10: VAVA'U | AB10: 99.70007892 | AC10: 99.71298155 | AD10: 97.30132793 | AE10: 98.87278541 | AF10: 99.26451687 | AG10: 2631.859958 | AH10: 2606.49019 | AI10: 2600.347671 | AJ10: 2636.526191 | AK10: 2627.191725 | AL10: 600.1537253 | AM10: 594.6476077 | AN10: 609.0644484 | AO10: 610.8048101 | AP10: 611.6663184 | AQ10: 2030.318702 | AR10: 2000.331963 | AS10: 2004.504064 | AT10: 2010.543924 | AU10: 2030.380173 | AV10: 717.5511255 | AW10: 937.8822061 | AX10: 158.1876056 | AY10: 9226.828455 | AZ10: 2061.966344
A11: TON | B11: 2019 | C11: TON_2019_MICS | D11: 30 | E11: Piped water | F11: No | H11: 0.5744647148 | I11: 1.545247879 | J11: 1.62636276 | K11: 0.6655780798 | L11: 0.4902748637 | M11: 1.880404065 | N11: 2.090062654 | O11: 0 | P11: 0 | Q11: 0 | R11: 0.6663476393 | S11: 1.41757096 | T11: 1.596764765 | U11: 0.8710006686 | V11: 0.6334737342 | W11: 'EUA | X11: HA'APAI | Y11: ONGO NIUA | Z11: TONGATAPU | AA11: VAVA'U | AB11: 0.2999210806 | AC11: 0.2870184458 | AD11: 2.69867207 | AE11: 1.127214594 | AF11: 0.7354831326 | AG11: 15.20646256 | AH11: 40.90887793 | AI11: 42.99026379 | AJ11: 17.66571955 | AK11: 12.94392144 | AL11: 11.50159144 | AM11: 12.69381629 | AN11: 0 | AO11: 0 | AP11: 0 | AQ11: 13.61973553 | AR11: 28.76387332 | AS11: 32.52658771 | AT11: 17.66571955 | AU11: 12.94392144 | AV11: 2.158561069 | AW11: 2.699643406 | AX11: 4.387365335 | AY11: 105.1918953 | AZ11: 15.27778015
A12: TON | B12: 2019 | C12: TON_2019_MICS | D12: 31 | E12: Piped water on premises | F12: Yes | G12: w_pop | H12: 10.92840715 | I12: 17.95074485 | J12: 24.52663576 | K12: 27.31209964 | L12: 38.90747485 | M12: 23.21670699 | N12: 33.29431119 | O12: 37.13918084 | P12: 48.49389581 | Q12: 51.91619212 | R12: 7.822811398 | S12: 17.35349103 | T12: 18.36150225 | U12: 23.45895631 | V12: 30.29103851 | W12: 'EUA | X12: HA'APAI | Y12: ONGO NIUA | Z12: TONGATAPU | AA12: VAVA'U | AB12: 5.966277583 | AC12: 4.417065818 | AD12: 0.2756577127 | AE12: 31.48027912 | AF12: 6.849332935 | AG12: 289.282196 | AH12: 475.2278518 | AI12: 648.3218671 | AJ12: 724.9155392 | AK12: 1027.210113 | AL12: 142.0062227 | AM12: 202.2101437 | AN12: 226.201547 | AO12: 296.2030482 | AP12: 317.553861 | AQ12: 159.893449 | AR12: 352.118964 | AS12: 374.0294289 | AT12: 475.7968141 | AU12: 618.9440883 | AV12: 42.93987769 | AW12: 41.54611936 | AX12: 0.4481504465 | AY12: 2937.746054 | AZ12: 142.2773659
A13: TON | B13: 2019 | C13: TON_2019_MICS | D13: 32 | E13: Piped water on premises | F13: No | H13: 89.07159285 | I13: 82.04925515 | J13: 75.47336424 | K13: 72.68790036 | L13: 61.09252515 | M13: 76.78329301 | N13: 66.70568881 | O13: 62.86081916 | P13: 51.50610419 | Q13: 48.08380788 | R13: 92.1771886 | S13: 82.64650897 | T13: 81.63849775 | U13: 76.54104369 | V13: 69.70896149 | W13: 'EUA | X13: HA'APAI | Y13: ONGO NIUA | Z13: TONGATAPU | AA13: VAVA'U | AB13: 94.03372242 | AC13: 95.58293418 | AD13: 99.72434229 | AE13: 68.51972088 | AF13: 93.15066706 | AG13: 2357.784225 | AH13: 2172.171216 | AI13: 1995.016068 | AJ13: 1929.276372 | AK13: 1612.925534 | AL13: 469.6490941 | AM13: 405.1312803 | AN13: 382.8629015 | AO13: 314.6017618 | AP13: 294.1124574 | AQ13: 1884.044988 | AR13: 1676.976872 | AS13: 1663.001223 | AT13: 1552.412829 | AU13: 1424.380006 | AV13: 676.7698089 | AW13: 899.0357302 | AX13: 162.1268205 | AY13: 6394.274297 | AZ13: 1934.966758
A14: TON | B14: 2019 | C14: TON_2019_MICS | D14: 33 | E14: Piped water into dwelling | F14: Yes | H14: 19.4089342 | I14: 44.16750109 | J14: 58.01623663 | K14: 66.00767283 | L14: 73.76283427 | M14: 48.18663642 | N14: 76.64870753 | O14: 81.9853277 | P14: 84.002862 | Q14: 83.68035179 | R14: 16.38947495 | S14: 36.8295478 | T14: 52.53398315 | U14: 54.55380221 | V14: 67.17477456 | W14: 'EUA | X14: HA'APAI | Y14: ONGO NIUA | Z14: TONGATAPU | AA14: VAVA'U | AB14: 45.77240042 | AC14: 6.032211817 | AD14: 10.40237358 | AE14: 61.16640253 | AF14: 38.74810343 | AG14: 513.7673798 | AH14: 1169.290012 | AI14: 1533.565191 | AJ14: 1751.970313 | AK14: 1947.438882 | AL14: 294.7361236 | AM14: 465.5193518 | AN14: 499.343484 | AO14: 513.0935217 | AP14: 511.844527 | AQ14: 334.9907783 | AR14: 747.3068209 | AS14: 1070.133339 | AT14: 1106.465477 | AU14: 1372.598354 | AV14: 329.4283996 | AW14: 56.73788948 | AX14: 16.91165583 | AY14: 5708.061132 | AZ14: 804.8927015
A15: TON | B15: 2019 | C15: TON_2019_MICS | D15: 34 | E15: Piped water into dwelling | F15: No | H15: 80.5910658 | I15: 55.83249891 | J15: 41.98376337 | K15: 33.99232717 | L15: 26.23716573 | M15: 51.81336358 | N15: 23.35129247 | O15: 18.0146723 | P15: 15.997138 | Q15: 16.31964821 | R15: 83.61052505 | S15: 63.1704522 | T15: 47.46601685 | U15: 45.44619779 | V15: 32.82522544 | W15: 'EUA | X15: HA'APAI | Y15: ONGO NIUA | Z15: TONGATAPU | AA15: VAVA'U | AB15: 54.22759958 | AC15: 93.96778818 | AD15: 89.59762642 | AE15: 38.83359747 | AF15: 61.25189657 | AG15: 2133.299041 | AH15: 1478.109056 | AI15: 1109.772744 | AJ15: 902.221598 | AK15: 692.6967651 | AL15: 316.9191931 | AM15: 141.8220722 | AN15: 109.7209645 | AO15: 97.71128837 | AP15: 99.82179138 | AQ15: 1708.947659 | AR15: 1281.789015 | AS15: 966.8973124 | AT15: 921.7441661 | AU15: 670.7257405 | AV15: 390.2812869 | AW15: 883.84396 | AX15: 145.6633152 | AY15: 3623.959219 | AZ15: 1272.351422
A16: TON | B16: 2019 | C16: TON_2019_MICS | D16: 35 | E16: Water source on premises | F16: Yes | H16: 99.42572752 | I16: 98.45475212 | J16: 98.46247544 | K16: 99.63403402 | L16: 99.65110325 | M16: 98.11959593 | N16: 97.90993735 | O16: 100 | P16: 100 | Q16: 100 | R16: 99.33390131 | S16: 98.58242904 | T16: 98.51851548 | U16: 99.52108307 | V16: 99.54919792 | W16: 'EUA | X16: HA'APAI | Y16: ONGO NIUA | Z16: TONGATAPU | AA16: VAVA'U | AB16: 100 | AC16: 99.16889441 | AD16: 97.89043514 | AE16: 99.01949775 | AF16: 99.37756539 | AG16: 2631.865046 | AH16: 2606.49019 | AI16: 2602.695965 | AJ16: 2644.478471 | AK16: 2630.924299 | AL16: 600.1537253 | AM16: 594.6476077 | AN16: 609.0644484 | AO16: 610.8048101 | AP16: 611.6663184 | AQ16: 2030.32379 | AR16: 2000.331963 | AS16: 2006.852358 | AT16: 2018.496204 | AU16: 2034.112747 | AV16: 719.7096866 | AW16: 932.7646212 | AX16: 159.1453465 | AY16: 9240.519681 | AZ16: 2064.314637
A17: TON | B17: 2019 | C17: TON_2019_MICS | D17: 36 | E17: Water source on premises | F17: No | H17: 0.5742724842 | I17: 1.545247879 | J17: 1.53752456 | K17: 0.3659659756 | L17: 0.3488967546 | M17: 1.880404065 | N17: 2.090062654 | O17: 0 | P17: 0 | Q17: 0 | R17: 0.6660986851 | S17: 1.41757096 | T17: 1.481484525 | U17: 0.4789169282 | V17: 0.4508020834 | W17: 'EUA | X17: HA'APAI | Y17: ONGO NIUA | Z17: TONGATAPU | AA17: VAVA'U | AB17: 0 | AC17: 0.8311055865 | AD17: 2.109564861 | AE17: 0.9805022533 | AF17: 0.6224346081 | AG17: 15.20137409 | AH17: 40.90887793 | AI17: 40.64196996 | AJ17: 9.713439321 | AK17: 9.211347588 | AL17: 11.50159144 | AM17: 12.69381629 | AN17: 0 | AO17: 0 | AP17: 0 | AQ17: 13.61464705 | AR17: 28.76387332 | AS17: 30.17829387 | AT17: 9.713439321 | AU17: 9.211347588 | AV17: 0 | AW17: 7.817228297 | AX17: 3.429624461 | AY17: 91.50066981 | AZ17: 12.92948632
A18: TON | B18: 2019 | C18: TON_2019_MICS | D18: 37 | E18: Improved water source on premises | F18: Yes | G18: w_premises | H18: 99.78785995 | I18: 100 | J18: 100 | K18: 100 | L18: 100 | M18: 100 | N18: 100 | O18: 100 | P18: 100 | Q18: 100 | R18: 99.72506352 | S18: 100 | T18: 100 | U18: 100 | V18: 100 | W18: 'EUA | X18: HA'APAI | Y18: ONGO NIUA | Z18: TONGATAPU | AA18: VAVA'U | AB18: 100 | AC18: 99.4042868 | AD18: 100 | AE18: 100 | AF18: 100 | AG18: 2628.091949 | AH18: 2606.49019 | AI18: 2600.347671 | AJ18: 2636.526191 | AK18: 2627.191725 | AL18: 600.1537253 | AM18: 594.6476077 | AN18: 609.0644484 | AO18: 610.8048101 | AP18: 611.6663184 | AQ18: 2026.550693 | AR18: 2000.331963 | AS18: 2004.504064 | AT18: 2010.543924 | AU18: 2030.380173 | AV18: 719.3702049 | AW18: 932.295118 | AX18: 158.1876056 | AY18: 9226.828455 | AZ18: 2061.966344
A19: TON | B19: 2019 | C19: TON_2019_MICS | D19: 38 | E19: Improved water source on premises | F19: No | H19: 0.2121400525 | I19: 0 | J19: 0 | K19: 0 | L19: 0 | M19: 0 | N19: 0 | O19: 0 | P19: 0 | Q19: 0 | R19: 0.2749364804 | S19: 0 | T19: 0 | U19: 0 | V19: 0 | W19: 'EUA | X19: HA'APAI | Y19: ONGO NIUA | Z19: TONGATAPU | AA19: VAVA'U | AB19: 0 | AC19: 0.5957131989 | AD19: 0 | AE19: 0 | AF19: 0 | AG19: 5.587088092 | AH19: 0 | AI19: 0 | AJ19: 0 | AK19: 0 | AL19: 0 | AM19: 0 | AN19: 0 | AO19: 0 | AP19: 0 | AQ19: 5.587088092 | AR19: 0 | AS19: 0 | AT19: 0 | AU19: 0 | AV19: 0 | AW19: 5.587088092 | AX19: 0 | AY19: 0 | AZ19: 0
A20: TON | B20: 2019 | C20: TON_2019_MICS | D20: 39 | E20: Piped water on premises available when needed | F20: Yes | H20: 96.37929918 | I20: 92.4919094 | J20: 91.99312305 | K20: 93.6158245 | L20: 97.69929045 | M20: 83.12510746 | N20: 92.37817491 | O20: 97.01294077 | P20: 100 | Q20: 97.87519379 | R20: 97.46715137 | S20: 94.84795598 | T20: 91.84545899 | U20: 94.76620204 | V20: 93.94057923 | W20: 'EUA | X20: HA'APAI | Y20: ONGO NIUA | Z20: TONGATAPU | AA20: VAVA'U | AB20: 100 | AC20: 78.42413451 | AD20: 100 | AE20: 95.03994574 | AF20: 90.65193324 | AG20: 278.8081531 | AH20: 439.5473142 | AI20: 596.411533 | AJ20: 678.635659 | AK20: 1003.576992 | AL20: 118.0428252 | AM20: 186.7980403 | AN20: 219.4447728 | AO20: 296.2030482 | AP20: 310.8064568 | AQ20: 155.84359 | AR20: 333.97764 | AS20: 343.5290457 | AT20: 450.8945701 | AU20: 581.4396617 | AV20: 42.93987769 | AW20: 32.58218453 | AX20: 0.4481504465 | AY20: 2792.032255 | AZ20: 128.9771828
A21: TON | B21: 2019 | C21: TON_2019_MICS | D21: 40 | E21: Piped water on premises available when needed | F21: No | H21: 3.620700823 | I21: 7.508090603 | J21: 8.006876954 | K21: 6.384175503 | L21: 2.30070955 | M21: 16.87489254 | N21: 7.621825091 | O21: 2.987059229 | P21: 0 | Q21: 2.124806208 | R21: 2.532848634 | S21: 5.152044016 | T21: 8.154541012 | U21: 5.233797963 | V21: 6.059420772 | W21: 'EUA | X21: HA'APAI | Y21: ONGO NIUA | Z21: TONGATAPU | AA21: VAVA'U | AB21: 0 | AC21: 21.57586549 | AD21: 0 | AE21: 4.960054256 | AF21: 9.34806676 | AG21: 10.47404285 | AH21: 35.68053768 | AI21: 51.91033416 | AJ21: 46.27988027 | AK21: 23.63312117 | AL21: 23.96339748 | AM21: 15.41210347 | AN21: 6.756774185 | AO21: 0 | AP21: 6.747404151 | AQ21: 4.04985904 | AR21: 18.14132401 | AS21: 30.50038318 | AT21: 24.90224396 | AU21: 37.50442665 | AV21: 0 | AW21: 8.963934827 | AX21: 0 | AY21: 145.7137982 | AZ21: 13.30018315
A22: TON | B22: 2019 | C22: TON_2019_MICS | D22: 41 | E22: Water point at more than 30 minutes | F22: Yes | H22: 0.0158784 | I22: 0.1186636551 | J22: 0 | K22: 0.1441398786 | L22: 0 | M22: 0 | N22: 0 | O22: 0 | P22: 0 | Q22: 0 | R22: 0.02057438252 | S22: 0.1548206681 | T22: 0 | U22: 0.188756606 | V22: 0 | W22: 'EUA | X22: HA'APAI | Y22: ONGO NIUA | Z22: TONGATAPU | AA22: VAVA'U | AB22: 0 | AC22: 0 | AD22: 0.2580850628 | AE22: 0.0410299825 | AF22: 0.1506011682 | AG22: 0.419581716 | AH22: 3.119474187 | AI22: 0 | AJ22: 3.817250238 | AK22: 0 | AL22: 0 | AM22: 0 | AN22: 0 | AO22: 0 | AP22: 0 | AQ22: 0.419581716 | AR22: 3.119474187 | AS22: 0 | AT22: 3.817250238 | AU22: 0 | AV22: 0 | AW22: 0 | AX22: 0.419581716 | AY22: 3.817250238 | AZ22: 3.119474187
A23: TON | B23: 2019 | C23: TON_2019_MICS | D23: 42 | E23: Water point at more than 30 minutes | F23: No | G23: w_30min | H23: 99.9841216 | I23: 99.88133634 | J23: 100 | K23: 99.85586012 | L23: 100 | M23: 100 | N23: 100 | O23: 100 | P23: 100 | Q23: 100 | R23: 99.97942562 | S23: 99.84517933 | T23: 100 | U23: 99.81124339 | V23: 100 | W23: 'EUA | X23: HA'APAI | Y23: ONGO NIUA | Z23: TONGATAPU | AA23: VAVA'U | AB23: 100 | AC23: 100 | AD23: 99.74191494 | AE23: 99.95897002 | AF23: 99.84939883 | AG23: 2642.048904 | AH23: 2625.717623 | AI23: 2643.337935 | AJ23: 2644.478471 | AK23: 2634.838122 | AL23: 607.293997 | AM23: 607.341424 | AN23: 609.0644484 | AO23: 610.8048101 | AP23: 611.6663184 | AQ23: 2038.920921 | AR23: 2011.775711 | AS23: 2037.030652 | AT23: 2018.496204 | AU23: 2038.02657 | AV23: 719.7096866 | AW23: 940.5818495 | AX23: 162.1553893 | AY23: 9299.74567 | AZ23: 2068.22846
A24: TON | B24: 2019 | C24: TON_2019_MICS | D24: 43 | E24: Water source available when needed | F24: Yes | G24: w_available | H24: 87.00647396 | I24: 88.97595211 | J24: 88.49131405 | K24: 94.70122026 | L24: 96.48589904 | M24: 85.965757 | N24: 93.54072305 | O24: 95.99809897 | P24: 100 | Q24: 96.23960562 | R24: 84.73125444 | S24: 91.56285883 | T24: 88.32072032 | U24: 91.39400945 | V24: 94.84945507 | W24: 'EUA | X24: HA'APAI | Y24: ONGO NIUA | Z24: TONGATAPU | AA24: VAVA'U | AB24: 90.19373479 | AC24: 86.38940151 | AD24: 72.44814516 | AE24: 93.2538613 | AF24: 85.53423917 | AG24: 2303.119156 | AH24: 2355.548527 | AI24: 2339.124473 | AJ24: 2513.552127 | AK24: 2547.358615 | AL24: 525.8141233 | AM24: 568.1115595 | AN24: 584.690292 | AO24: 610.8048101 | AP24: 588.6652525 | AQ24: 1731.854678 | AR24: 1857.898156 | AS24: 1799.120145 | AT24: 1853.662113 | AU24: 1938.081769 | AV24: 649.1330459 | AW24: 812.5630305 | AX24: 117.782551 | AY24: 8702.469314 | AZ24: 1776.754957
A25: TON | B25: 2019 | C25: TON_2019_MICS | D25: 44 | E25: Water source available when needed | F25: No | H25: 12.99352604 | I25: 11.02404789 | J25: 11.50868595 | K25: 5.298779743 | L25: 3.514100956 | M25: 14.034243 | N25: 6.459276945 | O25: 4.001901028 | P25: 0 | Q25: 3.760394377 | R25: 15.26874556 | S25: 8.43714117 | T25: 11.67927968 | U25: 8.60599055 | V25: 5.150544929 | W25: 'EUA | X25: HA'APAI | Y25: ONGO NIUA | Z25: TONGATAPU | AA25: VAVA'U | AB25: 9.806265213 | AC25: 13.61059849 | AD25: 27.55185484 | AE25: 6.746138699 | AF25: 14.46576083 | AG25: 343.9472648 | AH25: 291.850541 | AI25: 304.2134617 | AJ25: 140.6397833 | AK25: 92.777032 | AL25: 85.84119349 | AM25: 39.22986458 | AN25: 24.37415642 | AO25: 0 | AP25: 23.00106584 | AQ25: 312.0837595 | AR25: 171.1976802 | AS25: 237.9105069 | AT25: 174.5475302 | AU25: 105.2423255 | AV25: 70.57664063 | AW25: 128.018819 | AX25: 44.79242001 | AY25: 629.5510362 | AZ25: 300.4891668
A26: TON | B26: 2019 | C26: TON_2019_MICS | D26: 45 | E26: Improved water source available when needed | F26: Yes | H26: 87.07685479 | I26: 88.92261065 | J26: 88.78864114 | K26: 94.66571644 | L26: 96.46858541 | M26: 85.96118579 | N26: 93.40283824 | O26: 95.99809897 | P26: 100 | Q26: 96.23960562 | R26: 84.74132065 | S26: 91.59748436 | T26: 88.76373671 | U26: 91.31839259 | V26: 94.81661972 | W26: 'EUA | X26: HA'APAI | Y26: ONGO NIUA | Z26: TONGATAPU | AA26: VAVA'U | AB26: 90.18910706 | AC26: 86.35022413 | AD26: 71.68398888 | AE26: 93.35330891 | AF26: 85.57834401 | AG26: 2293.324871 | AH26: 2317.759123 | AI26: 2308.813362 | AJ26: 2495.886408 | AK26: 2534.414693 | AL26: 515.8992589 | AM26: 555.4177432 | AN26: 584.690292 | AO26: 610.8048101 | AP26: 588.6652525 | AQ26: 1722.060393 | AR26: 1832.253757 | AS26: 1779.27271 | AT26: 1835.996394 | AU26: 1925.137848 | AV26: 648.7935642 | AW26: 809.8633871 | AX26: 113.3951856 | AY26: 8613.54967 | AZ26: 1764.596651
A27: TON | B27: 2019 | C27: TON_2019_MICS | D27: 46 | E27: Improved water source available when needed | F27: No | H27: 12.92314521 | I27: 11.07738935 | J27: 11.21135886 | K27: 5.334283565 | L27: 3.531414594 | M27: 14.03881421 | N27: 6.597161759 | O27: 4.001901028 | P27: 0 | Q27: 3.760394377 | R27: 15.25867935 | S27: 8.402515637 | T27: 11.23626329 | U27: 8.681607408 | V27: 5.183380281 | W27: 'EUA | X27: HA'APAI | Y27: ONGO NIUA | Z27: TONGATAPU | AA27: VAVA'U | AB27: 9.810892938 | AC27: 13.64977587 | AD27: 28.31601112 | AE27: 6.646691093 | AF27: 14.42165599 | AG27: 340.3541663 | AH27: 288.7310668 | AI27: 291.5343089 | AJ27: 140.6397833 | AK27: 92.777032 | AL27: 84.25446646 | AM27: 39.22986458 | AN27: 24.37415642 | AO27: 0 | AP27: 23.00106584 | AQ27: 310.0773881 | AR27: 168.078206 | AS27: 225.2313542 | AT27: 174.5475302 | AU27: 105.2423255 | AV27: 70.57664063 | AW27: 128.018819 | AX27: 44.79242001 | AY27: 613.2787851 | AZ27: 297.3696926
A28: TON | B28: 2019 | C28: TON_2019_MICS | D28: 47 | E28: Microbiological quality at point of collection | F28: Not contaminated (No E. coli in 100 mL) | G28: w_quality | H28: 19.14540887 | I28: 24.63967079 | J28: 34.11762326 | K28: 23.65656678 | L28: 43.19116762 | M28: 18.43824672 | N28: 67.66264593 | O28: 30.59714214 | P28: 66.51494603 | Q28: 54.95592486 | R28: 18.57789103 | S28: 24.26309277 | T28: 22.41251095 | U28: 17.4978162 | V28: 33.35495451 | W28: 'EUA | X28: HA'APAI | Y28: ONGO NIUA | Z28: TONGATAPU | AA28: VAVA'U | AB28: 30.76280357 | AC28: 10.10966491 | AD28: 15.0035175 | AE28: 32.88566993 | AF28: 25.36053617 | AG28: 112.3149472 | AH28: 140.4167498 | AI28: 174.6601405 | AJ28: 116.0165571 | AK28: 256.8898326 | AL28: 19.98130438 | AM28: 105.1316306 | AN28: 28.1207344 | AO28: 84.75211887 | AP28: 75.63061152 | AQ28: 89.22896694 | AR28: 94.00828878 | AS28: 87.26656982 | AT28: 83.81931565 | AU28: 132.3586862 | AV28: 50.41207163 | AW28: 24.94855107 | AX28: 6.164133848 | AY28: 589.9457657 | AZ28: 128.8277049
A29: TON | B29: 2019 | C29: TON_2019_MICS | D29: 48 | E29: Microbiological quality at point of collection | F29: Contaminated (E. coli detected in 100 mL) | H29: 58.20435773 | I29: 62.07141643 | J29: 56.87923854 | K29: 58.77743701 | L29: 38.22658786 | M29: 63.00835704 | N29: 20.71900797 | O29: 49.13625224 | P29: 12.64577227 | Q29: 28.25745089 | R29: 55.79314344 | S29: 60.97243069 | T29: 69.42861896 | U29: 68.28870709 | V29: 50.32217027 | W29: 'EUA | X29: HA'APAI | Y29: ONGO NIUA | Z29: TONGATAPU | AA29: VAVA'U | AB29: 45.62241854 | AC29: 81.99906867 | AD29: 60.27620887 | AE29: 50.07181193 | AF29: 59.4210834 | AG29: 341.4510189 | AH29: 353.7330764 | AI29: 291.184873 | AJ29: 288.2563619 | AK29: 227.3618033 | AL29: 68.28139244 | AM29: 32.1924019 | AN29: 45.15936465 | AO29: 16.11301006 | AP29: 38.88804157 | AQ29: 267.9725349 | AR29: 236.2400344 | AS29: 270.3310413 | AT29: 327.1215464 | AU29: 199.6877658 | AV29: 74.76303733 | AW29: 202.3566528 | AX29: 24.76423408 | AY29: 898.2530534 | AZ29: 301.850156
A30: TON | B30: 2019 | C30: TON_2019_MICS | D30: 49 | E30: Microbiological quality at point of collection | F30: Highly contaminated (>100 CFU/100 mL) | H30: 22.6502334 | I30: 13.28891278 | J30: 9.003138204 | K30: 17.56599621 | L30: 18.58224452 | M30: 18.55339624 | N30: 11.6183461 | O30: 20.26660562 | P30: 20.83928171 | Q30: 16.78662425 | R30: 25.62896554 | S30: 14.76447654 | T30: 8.158870095 | U30: 14.2134767 | V30: 16.32287522 | W30: 'EUA | X30: HA'APAI | Y30: ONGO NIUA | Z30: TONGATAPU | AA30: VAVA'U | AB30: 23.61477789 | AC30: 7.891266413 | AD30: 24.72027363 | AE30: 17.04251815 | AF30: 15.21838043 | AG30: 132.8757086 | AH30: 75.73096073 | AI30: 46.09023824 | AJ30: 86.14717515 | AK30: 110.5223578 | AL30: 20.10609052 | AM30: 18.05214166 | AN30: 18.62630932 | AO30: 26.55302884 | AP30: 23.10183408 | AQ30: 123.0950335 | AR30: 57.20553382 | AS30: 31.7678197 | AT30: 68.08643299 | AU30: 64.77221606 | AV30: 38.69835439 | AW30: 19.47400481 | AX30: 10.15622339 | AY30: 305.7307769 | AZ30: 77.30708099
A31: TON | B31: 2019 | C31: TON_2019_MICS | D31: 50 | E31: Microbiological quality of improved water sources at point of collection | F31: Not contaminated (No E. coli in 100 mL) | H31: 18.9261232 | I31: 24.8821498 | J31: 33.81402212 | K31: 23.95382792 | L31: 42.81486925 | M31: 18.17133959 | N31: 67.66264593 | O31: 30.59714214 | P31: 66.51494603 | Q31: 54.95592486 | R31: 18.57789103 | S31: 24.26309277 | T31: 21.94173536 | U31: 17.72298493 | V31: 32.6910866 | W31: 'EUA | X31: HA'APAI | Y31: ONGO NIUA | Z31: TONGATAPU | AA31: VAVA'U | AB31: 30.76280357 | AC31: 10.10966491 | AD31: 15.0035175 | AE31: 33.04082316 | AF31: 24.42894402 | AG31: 110.7282202 | AH31: 140.4167498 | AI31: 172.3118467 | AJ31: 116.0165571 | AK31: 252.9760095 | AL31: 18.39457735 | AM31: 105.1316306 | AN31: 28.1207344 | AO31: 84.75211887 | AP31: 75.63061152 | AQ31: 89.22896694 | AR31: 94.00828878 | AS31: 84.91827598 | AT31: 83.81931565 | AU31: 128.4448632 | AV31: 50.41207163 | AW31: 24.94855107 | AX31: 6.164133848 | AY31: 588.3590387 | AZ31: 122.565588
A32: TON | B32: 2019 | C32: TON_2019_MICS | D32: 51 | E32: Microbiological quality of improved water sources at point of collection | F32: Contaminated (E. coli detected in 100 mL) | H32: 58.36221372 | I32: 61.69816122 | J32: 57.14135114 | K32: 59.5160162 | L32: 38.47979853 | M32: 61.96657868 | N32: 20.71900797 | O32: 49.13625224 | P32: 12.64577227 | Q32: 28.25745089 | R32: 55.79314344 | S32: 60.97243069 | T32: 69.84988918 | U32: 69.16747284 | V32: 50.82344195 | W32: 'EUA | X32: HA'APAI | Y32: ONGO NIUA | Z32: TONGATAPU | AA32: VAVA'U | AB32: 45.62241854 | AC32: 81.99906867 | AD32: 60.27620887 | AE32: 50.13184921 | AF32: 60.16273148 | AG32: 341.4510189 | AH32: 348.1795317 | AI32: 291.184873 | AJ32: 288.2563619 | AK32: 227.3618033 | AL32: 62.72784782 | AM32: 32.1924019 | AN32: 45.15936465 | AO32: 16.11301006 | AP32: 38.88804157 | AQ32: 267.9725349 | AR32: 236.2400344 | AS32: 270.3310413 | AT32: 327.1215464 | AU32: 199.6877658 | AV32: 74.76303733 | AW32: 202.3566528 | AX32: 24.76423408 | AY32: 892.6995088 | AZ32: 301.850156
A33: TON | B33: 2019 | C33: TON_2019_MICS | D33: 52 | E33: Microbiological quality of improved water sources at point of collection | F33: Highly contaminated (>100 CFU/100 mL) | H33: 22.71166308 | I33: 13.41968898 | J33: 9.044626735 | K33: 16.53015588 | L33: 18.70533221 | M33: 19.86208173 | N33: 11.6183461 | O33: 20.26660562 | P33: 20.83928171 | Q33: 16.78662425 | R33: 25.62896554 | S33: 14.76447654 | T33: 8.20837546 | U33: 13.10954223 | V33: 16.48547145 | W33: 'EUA | X33: HA'APAI | Y33: ONGO NIUA | Z33: TONGATAPU | AA33: VAVA'U | AB33: 23.61477789 | AC33: 7.891266413 | AD33: 24.72027363 | AE33: 16.82732763 | AF33: 15.4083245 | AG33: 132.8757086 | AH33: 75.73096073 | AI33: 46.09023824 | AJ33: 80.06118184 | AK33: 110.5223578 | AL33: 20.10609052 | AM33: 18.05214166 | AN33: 18.62630932 | AO33: 26.55302884 | AP33: 23.10183408 | AQ33: 123.0950335 | AR33: 57.20553382 | AS33: 31.7678197 | AT33: 62.00043968 | AU33: 64.77221606 | AV33: 38.69835439 | AW33: 19.47400481 | AX33: 10.15622339 | AY33: 299.6447836 | AZ33: 77.30708099
A34: TON | B34: 2019 | C34: TON_2019_MICS | D34: 53 | E34: Microbiological quality of piped on premises at point of collection | F34: Not contaminated (No E. coli in 100 mL) | H34: 17.21646137 | I34: 30.07725287 | J34: 80.59366343 | K34: 53.02285505 | L34: 59.32263475 | M34: 3.565186814 | N34: 96.31353411 | O34: 49.88570683 | P34: 89.61701555 | Q34: 33.05138081 | R34: 35.9758882 | S34: 39.3022984 | T34: 22.92992982 | U34: 50.28274262 | V34: 58.86464356 | W34: 'EUA | X34: HA'APAI | Y34: ONGO NIUA | Z34: TONGATAPU | AA34: VAVA'U | AB34: 55.77483343 | AC34: 6.253520561 | AD34: 0 | AE34: 56.64478068 | AF34: 51.43833517 | AG34: 8.494452971 | AH34: 30.91006197 | AI34: 103.4884662 | AJ34: 32.89318863 | AK34: 119.5006303 | AL34: 0.7131717878 | AM34: 65.93708011 | AN34: 14.62074516 | AO34: 54.46803226 | AP34: 17.93935133 | AQ34: 8.494452971 | AR34: 30.19689018 | AS34: 9.419610613 | AT34: 37.26951976 | AU34: 56.22794586 | AV34: 4.122086077 | AW34: 1.427470309 | AX34: 0 | AY34: 276.9906666 | AZ34: 12.74657704
A35: TON | B35: 2019 | C35: TON_2019_MICS | D35: 54 | E35: Microbiological quality of piped on premises at point of collection | F35: Contaminated (E. coli detected in 100 mL) | H35: 82.78353863 | I35: 63.18360748 | J35: 19.40633657 | K35: 43.14050881 | L35: 25.76336973 | M35: 61.81264186 | N35: 3.686465893 | O35: 41.99346907 | P35: 0 | Q35: 44.02821088 | R35: 64.0241118 | S35: 60.6977016 | T35: 77.07007018 | U35: 49.71725738 | V35: 29.31400205 | W35: 'EUA | X35: HA'APAI | Y35: ONGO NIUA | Z35: TONGATAPU | AA35: VAVA'U | AB35: 44.22516657 | AC35: 93.74647944 | AD35: 0 | AE35: 35.99736403 | AF35: 34.96517875 | AG35: 40.84468119 | AH35: 64.93309848 | AI35: 24.91922963 | AJ35: 26.76258931 | AK35: 51.89821616 | AL35: 12.36485901 | AM35: 2.523786497 | AN35: 12.3076498 | AO35: 0 | AP35: 23.89726311 | AQ35: 15.11706407 | AR35: 46.63548708 | AS35: 31.66036951 | AT35: 36.85038265 | AU35: 28.00095305 | AV35: 3.268498212 | AW35: 21.39919661 | AX35: 0 | AY35: 176.0256415 | AZ35: 8.664478414
A36: TON | B36: 2019 | C36: TON_2019_MICS | D36: 55 | E36: Microbiological quality of piped on premises at point of collection | F36: Highly contaminated (>100 CFU/100 mL) | H36: 0 | I36: 6.739139644 | J36: 0 | K36: 3.836636146 | L36: 14.91399552 | M36: 34.62217132 | N36: 0 | O36: 8.120824099 | P36: 10.38298445 | Q36: 22.92040831 | R36: 0 | S36: 0 | T36: 0 | U36: 0 | V36: 11.82135439 | W36: 'EUA | X36: HA'APAI | Y36: ONGO NIUA | Z36: TONGATAPU | AA36: VAVA'U | AB36: 0 | AC36: 0 | AD36: 0 | AE36: 7.357855293 | AF36: 13.59648608 | AG36: 0 | AH36: 6.925739691 | AI36: 0 | AJ36: 2.380090554 | AK36: 30.04303287 | AL36: 6.925739691 | AM36: 0 | AN36: 2.380090554 | AO36: 6.310640098 | AP36: 12.44054703 | AQ36: 0 | AR36: 0 | AS36: 0 | AT36: 0 | AU36: 11.29184574 | AV36: 0 | AW36: 0 | AX36: 0 | AY36: 35.97961221 | AZ36: 3.369250905
A37: TON | B37: 2019 | C37: TON_2019_MICS | D37: 58 | E37: Main source of drinking water | F37: PIPED INTO DWELLING | H37: 1.484556808 | I37: 3.12219144 | J37: 3.581416548 | K37: 3.432834586 | L37: 6.062429731 | M37: 1.98288768 | N37: 10.2826686 | O37: 4.262091071 | P37: 2.941900777 | Q37: 6.82646933 | R37: 1.468481577 | S37: 3.08309734 | T37: 1.855267575 | U37: 3.403614967 | V37: 5.291965917 | W37: 'EUA | X37: HA'APAI | Y37: ONGO NIUA | Z37: TONGATAPU | AA37: VAVA'U | AB37: 3.133484152 | AC37: 0.790404643 | AD37: 0 | AE37: 4.150411404 | AF37: 2.430613298 | AG37: 39.29720475 | AH37: 82.65686709 | AI37: 94.66894222 | AJ37: 91.11401789 | AK37: 160.0563684 | AL37: 12.12843792 | AM37: 62.4509059 | AN37: 25.95888147 | AO37: 17.96927145 | AP37: 41.75521362 | AQ37: 30.01485941 | AR37: 62.55899975 | AS37: 37.79236918 | AT37: 69.03244699 | AU37: 108.1320147 | AV37: 22.55198897 | AW37: 7.43440261 | AX37: 0 | AY37: 387.3172369 | AZ37: 50.48977191
A38: TON | B38: 2019 | C38: TON_2019_MICS | D38: 59 | E38: Main source of drinking water | F38: PIPED TO YARD / PLOT | H38: 5.830473196 | I38: 3.59592983 | J38: 1.505952772 | K38: 0.08822222493 | L38: 0.4849498541 | M38: 4.406032793 | N38: 0.483193694 | O38: 0 | P38: 1.425259968 | Q38: 0 | R38: 4.028197164 | S38: 5.056616835 | T38: 2.32653604 | U38: 1.453006878 | V38: 0.2005446682 | W38: 'EUA | X38: HA'APAI | Y38: ONGO NIUA | Z38: TONGATAPU | AA38: VAVA'U | AB38: 1.685368673 | AC38: 2.335504611 | AD38: 0.2756577127 | AE38: 2.714469842 | AF38: 0.800451434 | AG38: 154.3364981 | AH38: 95.1986128 | AI38: 39.80742091 | AJ38: 2.341587158 | AK38: 12.80333397 | AL38: 26.94973384 | AM38: 2.934635462 | AN38: 0 | AO38: 8.705556441 | AP38: 0 | AQ38: 82.33387016 | AR38: 102.6036017 | AS38: 47.39225227 | AT38: 29.47002561 | AU38: 4.097777526 | AV38: 12.12976159 | AW38: 21.96733246 | AX38: 0.4481504465 | AY38: 253.3148781 | AZ38: 16.62733038
A39: TON | B39: 2019 | C39: TON_2019_MICS | D39: 60 | E39: Main source of drinking water | F39: PIPED TO NEIGHBOUR | H39: 0 | I39: 0.4916929363 | J39: 0.5587300341 | K39: 0 | L39: 0 | M39: 0 | N39: 0 | O39: 0 | P39: 0 | Q39: 0 | R39: 0 | S39: 0.6415209168 | T39: 0.7250319445 | U39: 0 | V39: 0 | W39: 'EUA | X39: HA'APAI | Y39: ONGO NIUA | Z39: TONGATAPU | AA39: VAVA'U | AB39: 0.3365280731 | AC39: 0 | AD39: 0 | AE39: 0.2717972215 | AF39: 0 | AG39: 0 | AH39: 13.01707421 | AI39: 14.76912295 | AJ39: 0 | AK39: 0 | AL39: 0 | AM39: 0 | AN39: 0 | AO39: 0 | AP39: 0 | AQ39: 0 | AR39: 13.01707421 | AS39: 14.76912295 | AT39: 0 | AU39: 0 | AV39: 2.42202514 | AW39: 0 | AX39: 0 | AY39: 25.36417202 | AZ39: 0
A40: TON | B40: 2019 | C40: TON_2019_MICS | D40: 61 | E40: Main source of drinking water | F40: PUBLIC TAP / STANDPIPE | H40: 0.2357127832 | I40: 0 | J40: 1.323289132 | K40: 0 | L40: 0 | M40: 0 | N40: 0 | O40: 0 | P40: 0 | Q40: 0 | R40: 0.3052672145 | S40: 0 | T40: 1.717156469 | U40: 0 | V40: 0 | W40: 'EUA | X40: HA'APAI | Y40: ONGO NIUA | Z40: TONGATAPU | AA40: VAVA'U | AB40: 0 | AC40: 0.5940033921 | AD40: 0 | AE40: 0.3748277682 | AF40: 0.0314063154 | AG40: 6.239473933 | AH40: 0 | AI40: 34.97900361 | AJ40: 0 | AK40: 0 | AL40: 0 | AM40: 0 | AN40: 0 | AO40: 0 | AP40: 0 | AQ40: 6.239473933 | AR40: 0 | AS40: 34.97900361 | AT40: 0 | AU40: 0 | AV40: 0 | AW40: 5.587088092 | AX40: 0 | AY40: 34.97900361 | AZ40: 0.6523858412
A41: TON | B41: 2019 | C41: TON_2019_MICS | D41: 62 | E41: Main source of drinking water | F41: PROTECTED WELL | H41: 0.06872057901 | I41: 0 | J41: 0 | K41: 0 | L41: 0 | M41: 0 | N41: 0 | O41: 0 | P41: 0 | Q41: 0 | R41: 0.08899873586 | S41: 0 | T41: 0 | U41: 0 | V41: 0 | W41: 'EUA | X41: HA'APAI | Y41: ONGO NIUA | Z41: TONGATAPU | AA41: VAVA'U | AB41: 0.2527518255 | AC41: 0 | AD41: 0 | AE41: 0 | AF41: 0 | AG41: 1.819079371 | AH41: 0 | AI41: 0 | AJ41: 0 | AK41: 0 | AL41: 0 | AM41: 0 | AN41: 0 | AO41: 0 | AP41: 0 | AQ41: 1.819079371 | AR41: 0 | AS41: 0 | AT41: 0 | AU41: 0 | AV41: 1.819079371 | AW41: 0 | AX41: 0 | AY41: 0 | AZ41: 0
A42: TON | B42: 2019 | C42: TON_2019_MICS | D42: 63 | E42: Main source of drinking water | F42: OWN CEMENT OR OTHER TANK | H42: 54.21049276 | I42: 47.09902383 | J42: 45.06036021 | K42: 49.00057256 | L42: 46.64603509 | M42: 26.66416622 | N42: 34.94465221 | O42: 42.46168633 | P42: 41.68601547 | Q42: 40.87264537 | R42: 56.37621055 | S42: 50.03767788 | T42: 53.27321423 | U42: 49.1792007 | V42: 49.73495211 | W42: 'EUA | X42: HA'APAI | Y42: ONGO NIUA | Z42: TONGATAPU | AA42: VAVA'U | AB42: 60.63044689 | AC42: 81.16898214 | AD42: 84.83044866 | AE42: 38.58867449 | AF42: 70.58546143 | AG42: 1434.98775 | AH42: 1246.899118 | AI42: 1191.097595 | AJ42: 1300.569233 | AK42: 1231.5186 | AL42: 163.0927904 | AM42: 212.2333484 | AN42: 258.6190356 | AO42: 254.6201876 | AP42: 250.0042052 | AQ42: 1152.295037 | AR42: 1015.312438 | AS42: 1085.191703 | AT42: 997.4572911 | AU42: 1016.24626 | AV42: 436.3631993 | AW42: 763.4607134 | AX42: 137.9130773 | AY42: 3601.102957 | AZ42: 1466.23235
A43: TON | B43: 2019 | C43: TON_2019_MICS | D43: 64 | E43: Main source of drinking water | F43: NEIGHBOUR?S CEMENT OR OTHER TANK | H43: 24.96645548 | I43: 23.60616466 | J43: 19.47665017 | K43: 15.14273293 | L43: 4.949622413 | M43: 36.6464454 | N43: 20.21984325 | O43: 10.74765207 | P43: 5.169442041 | Q43: 2.856691146 | R43: 25.88932107 | S43: 19.7584399 | T43: 19.23937295 | U43: 21.0586498 | V43: 6.004360524 | W43: 'EUA | X43: HA'APAI | Y43: ONGO NIUA | Z43: TONGATAPU | AA43: VAVA'U | AB43: 24.64771462 | AC43: 10.12869832 | AD43: 10.23723098 | AE43: 19.04601506 | AF43: 12.83305106 | AG43: 660.8786595 | AH43: 624.9493832 | AI43: 514.8336823 | AJ43: 401.9171925 | AK43: 130.6767457 | AL43: 224.1499317 | AM43: 122.8034839 | AN43: 65.46012783 | AO43: 31.57520064 | AP43: 17.47341756 | AQ43: 529.1617846 | AR43: 400.9176814 | AS43: 391.9119242 | AT43: 427.113566 | AU43: 122.6885453 | AV43: 177.3919896 | AW43: 95.26869802 | AX43: 16.64317529 | AY43: 1777.378001 | AZ43: 266.5737991
A44: TON | B44: 2019 | C44: TON_2019_MICS | D44: 65 | E44: Main source of drinking water | F44: COMMUNITY CEMENT OR OTHER TANK | H44: 8.544890605 | I44: 9.009526367 | J44: 7.140481518 | K44: 6.341487669 | L44: 4.109619163 | M44: 10.23448345 | N44: 8.340156886 | O44: 9.067437896 | P44: 0.2761345508 | Q44: 1.129831662 | R44: 8.315619835 | S44: 10.73739507 | T44: 5.045134793 | U44: 4.946858581 | V44: 7.940498165 | W44: 'EUA | X44: HA'APAI | Y44: ONGO NIUA | Z44: TONGATAPU | AA44: VAVA'U | AB44: 8.119111751 | AC44: 2.986196527 | AD44: 1.268846295 | AE44: 7.136407795 | AF44: 8.458965625 | AG44: 226.1889299 | AH44: 238.5181171 | AI44: 188.7470567 | AJ44: 168.3152527 | AK44: 108.4995205 | AL44: 62.59976217 | AM44: 50.6532276 | AN44: 55.2265406 | AO44: 1.686643118 | AP44: 6.910799728 | AQ44: 169.9661501 | AR44: 217.8720364 | AS44: 102.7709422 | AT44: 100.3326628 | AU44: 162.2501122 | AV44: 58.43403373 | AW44: 28.08762252 | AX44: 2.062826497 | AY44: 665.9710278 | AZ44: 175.7133664
A45: TON | B45: 2019 | C45: TON_2019_MICS | D45: 66 | E45: Main source of drinking water | F45: BOTTLED WATER | H45: 4.326652896 | I45: 11.69496285 | J45: 19.81559505 | K45: 25.39888665 | L45: 37.74734375 | M45: 18.89861592 | N45: 23.63942271 | O45: 33.46113263 | P45: 48.50124719 | Q45: 48.31436249 | R45: 3.175509592 | S45: 9.267681092 | T45: 14.33680147 | U45: 19.17968488 | V45: 30.82767862 | W45: 'EUA | X45: HA'APAI | Y45: ONGO NIUA | Z45: TONGATAPU | AA45: VAVA'U | AB45: 1.147424758 | AC45: 1.709191918 | AD45: 0.6891442818 | AE45: 26.80295075 | AF45: 4.426030432 | AG45: 114.5293759 | AH45: 309.6123375 | AI45: 523.7931411 | AJ45: 674.1351948 | AK45: 996.5810782 | AL45: 115.5943891 | AM45: 143.5720065 | AN45: 203.7998629 | AO45: 296.2479508 | AP45: 295.5226823 | AQ45: 64.90546114 | AR45: 188.0501312 | AS45: 292.0450405 | AT45: 389.0042183 | AU45: 629.9093849 | AV45: 8.258127133 | AW45: 16.07634896 | AX45: 1.120376116 | AY45: 2501.256818 | AZ45: 91.93945707
A46: TON | B46: 2019 | C46: TON_2019_MICS | D46: 67 | E46: Main source of drinking water | F46: OTHER (specify) | H46: 0.3320448864 | I46: 1.380508084 | J46: 1.53752456 | K46: 0.5952633855 | L46: 0 | M46: 1.167368527 | N46: 2.090062654 | O46: 0 | P46: 0 | Q46: 0 | R46: 0.3523942562 | S46: 1.41757096 | T46: 1.481484525 | U46: 0.7789841981 | V46: 0 | W46: 'EUA | X46: HA'APAI | Y46: ONGO NIUA | Z46: TONGATAPU | AA46: VAVA'U | AB46: 0.04716925515 | AC46: 0.2870184458 | AD46: 2.69867207 | AE46: 0.9144456668 | AF46: 0.4340204007 | AG46: 8.789448689 | AH46: 36.54755816 | AI46: 40.64196996 | AJ46: 15.79943263 | AK46: 0 | AL46: 7.140271662 | AM46: 12.69381629 | AN46: 0 | AO46: 0 | AP46: 0 | AQ46: 7.202721653 | AR46: 28.76387332 | AS46: 30.17829387 | AT46: 15.79943263 | AU46: 0 | AV46: 0.3394816984 | AW46: 2.699643406 | AX46: 4.387365335 | AY46: 85.33625572 | AZ46: 9.01566327
A47: TON | B47: 2019 | C47: TON_2019_MICS | D47: 122 | E47: Sanitation | F47: Improved | G47: s_imp | H47: 92.28474787 | I47: 97.23788089 | J47: 99.19783859 | K47: 100 | L47: 100 | M47: 97.36537327 | N47: 100 | O47: 100 | P47: 100 | Q47: 100 | R47: 91.32441984 | S47: 96.34633286 | T47: 98.55245257 | U47: 99.92632634 | V47: 100 | W47: 'EUA | X47: HA'APAI | Y47: ONGO NIUA | Z47: TONGATAPU | AA47: VAVA'U | AB47: 94.74894972 | AC47: 89.87003827 | AD47: 96.35918798 | AE47: 98.54124797 | AF47: 98.87191803 | AG47: 2442.838572 | AH47: 2574.274752 | AI47: 2622.134098 | AJ47: 2654.191911 | AK47: 2640.135647 | AL47: 595.5404823 | AM47: 607.341424 | AN47: 609.0644484 | AO47: 610.8048101 | AP47: 611.6663184 | AQ47: 1866.61492 | AR47: 1954.959429 | AS47: 2007.543667 | AT47: 2026.715387 | AU47: 2043.324095 | AV47: 681.917369 | AW47: 845.3012681 | AX47: 156.6559219 | AY47: 9195.889314 | AZ47: 2053.811107
A48: TON | B48: 2019 | C48: TON_2019_MICS | D48: 123 | E48: Sanitation | F48: Not Improved | H48: 7.715252125 | I48: 2.762119114 | J48: 0.8021614117 | K48: 0 | L48: 0 | M48: 2.634626728 | N48: 0 | O48: 0 | P48: 0 | Q48: 0 | R48: 8.675580162 | S48: 3.653667136 | T48: 1.44754743 | U48: 0.07367365636 | V48: 0 | W48: 'EUA | X48: HA'APAI | Y48: ONGO NIUA | Z48: TONGATAPU | AA48: VAVA'U | AB48: 5.251050284 | AC48: 10.12996173 | AD48: 3.640812023 | AE48: 1.458752031 | AF48: 1.128081972 | AG48: 204.2278483 | AH48: 73.12431569 | AI48: 21.2038369 | AJ48: 0 | AK48: 0 | AL48: 16.11483446 | AM48: 0 | AN48: 0 | AO48: 0 | AP48: 0 | AQ48: 177.3235176 | AR48: 74.13640773 | AS48: 29.48698485 | AT48: 1.494256203 | AU48: 0 | AV48: 37.79231754 | AW48: 95.28058138 | AX48: 5.91904909 | AY48: 136.1310364 | AZ48: 23.43301648
A49: TON | B49: 2019 | C49: TON_2019_MICS | D49: 124 | E49: Sanitation ladder | F49: Basic | G49: s_bas | H49: 82.38030099 | I49: 87.48359259 | J49: 93.41470057 | K49: 97.81111327 | L49: 97.67008391 | M49: 85.77568137 | N49: 97.36711473 | O49: 99.01024024 | P49: 98.27427391 | Q49: 97.79402401 | R49: 80.63925859 | S49: 87.12379021 | T49: 90.86591671 | U49: 96.68574615 | V49: 97.6421646 | W49: 'EUA | X49: HA'APAI | Y49: ONGO NIUA | Z49: TONGATAPU | AA49: VAVA'U | AB49: 92.62497576 | AC49: 80.71559247 | AD49: 90.4866087 | AE49: 92.66938871 | AF49: 92.44011208 | AG49: 2177.586379 | AH49: 2316.039815 | AI49: 2469.266217 | AJ49: 2596.094656 | AK49: 2578.622702 | AL49: 524.6515156 | AM49: 591.3508211 | AN49: 603.0361736 | AO49: 600.2639921 | AP49: 598.1731062 | AQ49: 1645.206882 | AR49: 1767.8252 | AS49: 1850.966576 | AT49: 1960.989627 | AU49: 1995.145876 | AV49: 666.6309227 | AW49: 759.1962125 | AX49: 147.1085778 | AY49: 8644.467259 | AZ49: 1920.206796
A50: TON | B50: 2019 | C50: TON_2019_MICS | D50: 125 | E50: Sanitation ladder | F50: Limited | G50: s_lim | H50: 9.893552409 | I50: 9.754288297 | J50: 5.783138019 | K50: 2.188886733 | L50: 2.329916089 | M50: 11.5896919 | N50: 2.63288527 | O50: 0.9897597578 | P50: 1.725726093 | Q50: 2.205975995 | R50: 10.6692892 | S50: 9.222542659 | T50: 7.686535857 | U50: 3.240580192 | V50: 2.357835404 | W50: 'EUA | X50: HA'APAI | Y50: ONGO NIUA | Z50: TONGATAPU | AA50: VAVA'U | AB50: 2.12397396 | AC50: 9.154445799 | AD50: 5.872579274 | AE50: 5.871275564 | AF50: 6.431805946 | AG50: 261.5196195 | AH50: 258.2349375 | AI50: 152.8678811 | AJ50: 58.0972546 | AK50: 61.51294521 | AL50: 70.8889667 | AM50: 15.99060289 | AN50: 6.028274809 | AO50: 10.54081799 | AP50: 13.49321215 | AQ50: 217.6754639 | AR50: 187.1342291 | AS50: 156.5770915 | AT50: 65.72575995 | AU50: 48.17821892 | AV50: 15.28644633 | AW50: 86.10505561 | AX50: 9.547344051 | AY50: 547.6894808 | AZ50: 133.6043111
A51: TON | B51: 2019 | C51: TON_2019_MICS | D51: 126 | E51: Sanitation ladder | F51: Unimproved | G51: s_unimp | H51: 7.623427655 | I51: 2.635011392 | J51: 0.8021614117 | K51: 0 | L51: 0 | M51: 2.084472324 | N51: 0 | O51: 0 | P51: 0 | Q51: 0 | R51: 8.558367365 | S51: 3.653667136 | T51: 1.44754743 | U51: 0.07367365636 | V51: 0 | W51: 'EUA | X51: HA'APAI | Y51: ONGO NIUA | Z51: TONGATAPU | AA51: VAVA'U | AB51: 4.873786389 | AC51: 10.12996173 | AD51: 3.640812023 | AE51: 1.423262134 | AF51: 1.128081972 | AG51: 201.5126435 | AH51: 69.75926703 | AI51: 21.2038369 | AJ51: 0 | AK51: 0 | AL51: 12.7497858 | AM51: 0 | AN51: 0 | AO51: 0 | AP51: 0 | AQ51: 174.6083128 | AR51: 74.13640773 | AS51: 29.48698485 | AT51: 1.494256203 | AU51: 0 | AV51: 35.07711275 | AW51: 95.28058138 | AX51: 5.91904909 | AY51: 132.7659877 | AZ51: 23.43301648
A52: TON | B52: 2019 | C52: TON_2019_MICS | D52: 127 | E52: Sanitation ladder | F52: Open defecation | G52: s_od | H52: 0.1027189508 | I52: 0.1271077226 | J52: 0 | K52: 0 | L52: 0 | M52: 0.5501544041 | N52: 0 | O52: 0 | P52: 0 | Q52: 0 | R52: 0.1330848441 | S52: 0 | T52: 0 | U52: 0 | V52: 0 | W52: 'EUA | X52: HA'APAI | Y52: ONGO NIUA | Z52: TONGATAPU | AA52: VAVA'U | AB52: 0.3772638945 | AC52: 0 | AD52: 0 | AE52: 0.03607359404 | AF52: 0 | AG52: 2.715204793 | AH52: 3.365048663 | AI52: 0 | AJ52: 0 | AK52: 0 | AL52: 3.365048663 | AM52: 0 | AN52: 0 | AO52: 0 | AP52: 0 | AQ52: 2.715204793 | AR52: 0 | AS52: 0 | AT52: 0 | AU52: 0 | AV52: 2.715204793 | AW52: 0 | AX52: 0 | AY52: 3.365048663 | AZ52: 0
A53: TON | B53: 2019 | C53: TON_2019_MICS | D53: 128 | E53: Shared among improved sanitation facilities | F53: Yes | G53: s_shared | H53: 10.72194565 | I53: 10.03136659 | J53: 5.829903254 | K53: 2.188886733 | L53: 2.329916089 | M53: 11.90329941 | N53: 2.63288527 | O53: 0.9897597578 | P53: 1.725726093 | Q53: 2.205975995 | R53: 11.68487448 | S53: 9.57228198 | T53: 7.799436398 | U53: 3.242969406 | V53: 2.357835404 | W53: 'EUA | X53: HA'APAI | Y53: ONGO NIUA | Z53: TONGATAPU | AA53: VAVA'U | AB53: 2.24168602 | AC53: 10.18631568 | AD53: 6.094467375 | AE53: 5.958226086 | AF53: 6.50518982 | AG53: 261.5196195 | AH53: 258.2349375 | AI53: 152.8678811 | AJ53: 58.0972546 | AK53: 61.51294521 | AL53: 70.8889667 | AM53: 15.99060289 | AN53: 6.028274809 | AO53: 10.54081799 | AP53: 13.49321215 | AQ53: 217.6754639 | AR53: 187.1342291 | AS53: 156.5770915 | AT53: 65.72575995 | AU53: 48.17821892 | AV53: 15.28644633 | AW53: 86.10505561 | AX53: 9.547344051 | AY53: 547.6894808 | AZ53: 133.6043111
A54: TON | B54: 2019 | C54: TON_2019_MICS | D54: 129 | E54: Shared among improved sanitation facilities | F54: No | H54: 89.27805435 | I54: 89.96863341 | J54: 94.17009675 | K54: 97.81111327 | L54: 97.67008391 | M54: 88.09670059 | N54: 97.36711473 | O54: 99.01024024 | P54: 98.27427391 | Q54: 97.79402401 | R54: 88.31512552 | S54: 90.42771802 | T54: 92.2005636 | U54: 96.75703059 | V54: 97.6421646 | W54: 'EUA | X54: HA'APAI | Y54: ONGO NIUA | Z54: TONGATAPU | AA54: VAVA'U | AB54: 97.75831398 | AC54: 89.81368432 | AD54: 93.90553262 | AE54: 94.04177391 | AF54: 93.49481018 | AG54: 2177.586379 | AH54: 2316.039815 | AI54: 2469.266217 | AJ54: 2596.094656 | AK54: 2578.622702 | AL54: 524.6515156 | AM54: 591.3508211 | AN54: 603.0361736 | AO54: 600.2639921 | AP54: 598.1731062 | AQ54: 1645.206882 | AR54: 1767.8252 | AS54: 1850.966576 | AT54: 1960.989627 | AU54: 1995.145876 | AV54: 666.6309227 | AW54: 759.1962125 | AX54: 147.1085778 | AY54: 8644.467259 | AZ54: 1920.206796
A55: TON | B55: 2019 | C55: TON_2019_MICS | D55: 135 | E55: Sanitation type | F55: Sewer connection | G55: s_sew | H55: 1.307211177 | I55: 2.694759115 | J55: 4.796142193 | K55: 2.162921356 | L55: 4.993045367 | M55: 0.8477281873 | N55: 1.07715025 | O55: 3.806143316 | P55: 2.081957181 | Q55: 5.775282072 | R55: 0.8369011018 | S55: 3.469971471 | T55: 5.008099695 | U55: 2.717978887 | V55: 4.617205896 | W55: 'EUA | X55: HA'APAI | Y55: ONGO NIUA | Z55: TONGATAPU | AA55: VAVA'U | AB55: 0.494185059 | AC55: 0.4047056078 | AD55: 0 | AE55: 4.442660595 | AF55: 0 | AG55: 34.60274811 | AH55: 71.3410277 | AI55: 126.778246 | AJ55: 57.40808367 | AK55: 131.8231706 | AL55: 5.185174529 | AM55: 6.541979669 | AN55: 23.18186579 | AO55: 12.71669461 | AP55: 35.32545523 | AQ55: 17.1057433 | AR55: 70.40904663 | AS55: 102.0165259 | AT55: 55.1263099 | AU55: 94.34448056 | AV55: 3.556697739 | AW55: 3.806587491 | AX55: 0 | AY55: 414.5899909 | AZ55: 0
A56: TON | B56: 2019 | C56: TON_2019_MICS | D56: 136 | E56: Sanitation type | F56: Septic tank connection | G56: s_sep | H56: 62.88584976 | I56: 86.32171075 | J56: 91.29119503 | K56: 96.67973729 | L56: 94.93200459 | M56: 87.72033176 | N56: 97.66999969 | O56: 96.19385668 | P56: 97.59407963 | Q56: 94.22471793 | R56: 57.00577981 | S56: 83.24659609 | T56: 90.18334036 | U56: 94.02466137 | V56: 95.3827941 | W56: 'EUA | X56: HA'APAI | Y56: ONGO NIUA | Z56: TONGATAPU | AA56: VAVA'U | AB56: 85.91879299 | AC56: 61.94254314 | AD56: 68.52838564 | AE56: 89.38503298 | AF56: 85.76839585 | AG56: 1664.630212 | AH56: 2285.280166 | AI56: 2413.134789 | AJ56: 2566.065767 | AK56: 2506.333694 | AL56: 536.5460731 | AM56: 593.190367 | AN56: 585.8825826 | AO56: 596.1093327 | AP56: 576.3408631 | AQ56: 1165.163045 | AR56: 1689.153215 | AS56: 1837.062286 | AT56: 1907.017249 | AU56: 1948.979614 | AV56: 618.3658757 | AW56: 582.6203179 | AX56: 111.4100031 | AY56: 8341.429468 | AZ56: 1781.618963
A57: TON | B57: 2019 | C57: TON_2019_MICS | D57: 137 | E57: Sanitation type | F57: Improved latrines | G57: s_lat | H57: 28.09168694 | I57: 8.221411018 | J57: 3.110501369 | K57: 1.15734135 | L57: 0.07495004172 | M57: 8.797313327 | N57: 1.252850057 | O57: 0 | P57: 0.3239631935 | Q57: 0 | R57: 33.48173893 | S57: 9.629765301 | T57: 3.361012518 | U57: 3.183686088 | V57: 0 | W57: 'EUA | X57: HA'APAI | Y57: ONGO NIUA | Z57: TONGATAPU | AA57: VAVA'U | AB57: 8.33597167 | AC57: 27.52278952 | AD57: 27.83080233 | AE57: 4.713554391 | AF57: 13.10352217 | AG57: 743.6056119 | AH57: 217.6535587 | AI57: 82.22106266 | AJ57: 30.7180605 | AK57: 1.978782769 | AL57: 53.8092347 | AM57: 7.609077378 | AN57: 0 | AO57: 1.978782769 | AP57: 0 | AQ57: 684.3461314 | AR57: 195.3971668 | AS57: 68.4648552 | AT57: 64.57182826 | AU57: 0 | AV57: 59.99479558 | AW57: 258.8743627 | AX57: 45.24591882 | AY57: 439.869855 | AZ57: 272.1921444
A58: TON | B58: 2019 | C58: TON_2019_MICS | D58: 138 | E58: Sanitation type | F58: Unimproved facilities | H58: 7.612678016 | I58: 2.635011392 | J58: 0.8021614117 | K58: 0 | L58: 0 | M58: 2.084472324 | N58: 0 | O58: 0 | P58: 0 | Q58: 0 | R58: 8.542738353 | S58: 3.653667136 | T58: 1.44754743 | U58: 0.07367365636 | V58: 0 | W58: 'EUA | X58: HA'APAI | Y58: ONGO NIUA | Z58: TONGATAPU | AA58: VAVA'U | AB58: 4.873786389 | AC58: 10.12996173 | AD58: 3.640812023 | AE58: 1.422692865 | AF58: 1.128081972 | AG58: 201.5126435 | AH58: 69.75926703 | AI58: 21.2038369 | AJ58: 0 | AK58: 0 | AL58: 12.7497858 | AM58: 0 | AN58: 0 | AO58: 0 | AP58: 0 | AQ58: 174.6083128 | AR58: 74.13640773 | AS58: 29.48698485 | AT58: 1.494256203 | AU58: 0 | AV58: 35.07711275 | AW58: 95.28058138 | AX58: 5.91904909 | AY58: 132.7659877 | AZ58: 23.43301648
A59: TON | B59: 2019 | C59: TON_2019_MICS | D59: 139 | E59: Sanitation type | F59: Open defecation | H59: 0.1025741089 | I59: 0.1271077226 | J59: 0 | K59: 0 | L59: 0 | M59: 0.5501544041 | N59: 0 | O59: 0 | P59: 0 | Q59: 0 | R59: 0.1328418089 | S59: 0 | T59: 0 | U59: 0 | V59: 0 | W59: 'EUA | X59: HA'APAI | Y59: ONGO NIUA | Z59: TONGATAPU | AA59: VAVA'U | AB59: 0.3772638945 | AC59: 0 | AD59: 0 | AE59: 0.03605916551 | AF59: 0 | AG59: 2.715204793 | AH59: 3.365048663 | AI59: 0 | AJ59: 0 | AK59: 0 | AL59: 3.365048663 | AM59: 0 | AN59: 0 | AO59: 0 | AP59: 0 | AQ59: 2.715204793 | AR59: 0 | AS59: 0 | AT59: 0 | AU59: 0 | AV59: 2.715204793 | AW59: 0 | AX59: 0 | AY59: 3.365048663 | AZ59: 0
A60: TON | B60: 2019 | C60: TON_2019_MICS | D60: 140 | E60: Septic tank emptying practices | F60: Not emptied/treated and disposed in situ | G60: s_sep_nemp | H60: 71.42793205 | I60: 62.3381369 | J60: 65.50208135 | K60: 45.01310204 | L60: 39.0422434 | M60: 53.96897328 | N60: 48.92100289 | O60: 25.38680091 | P60: 39.06549682 | Q60: 25.46862474 | R60: 74.1926969 | S60: 68.22576344 | T60: 67.08239399 | U60: 56.14177468 | V60: 46.1687173 | W60: 'EUA | X60: HA'APAI | Y60: ONGO NIUA | Z60: TONGATAPU | AA60: VAVA'U | AB60: 92.0493693 | AC60: 76.17023813 | AD60: 50.47804271 | AE60: 47.68660668 | AF60: 71.89487959 | AG60: 1189.010937 | AH60: 1424.601078 | AI60: 1580.653513 | AJ60: 1155.065802 | AK60: 978.5289011 | AL60: 289.5684068 | AM60: 290.1946766 | AN60: 148.7368448 | AO60: 232.8730724 | AP60: 146.7860917 | AQ60: 864.4658864 | AR60: 1152.437677 | AS60: 1232.345361 | AT60: 1070.633327 | AU60: 899.8188883 | AV60: 569.2018885 | AW60: 443.7832835 | AX60: 56.23758893 | AY60: 3977.744662 | AZ60: 1280.892808
A61: TON | B61: 2019 | C61: TON_2019_MICS | D61: 141 | E61: Septic tank emptying practices | F61: Emptied and buried on site | G61: s_sep_ebo | H61: 5.103572322 | I61: 4.689959065 | J61: 3.81599177 | K61: 10.35027834 | L61: 5.54609393 | M61: 4.643662221 | N61: 5.572160902 | O61: 12.33021919 | P61: 4.038141879 | Q61: 5.581918353 | R61: 5.050393412 | S61: 4.206070965 | T61: 4.872773566 | U61: 7.841504149 | V61: 6.845569332 | W61: 'EUA | X61: HA'APAI | Y61: ONGO NIUA | Z61: TONGATAPU | AA61: VAVA'U | AB61: 2.430876276 | AC61: 1.132551687 | AD61: 4.925904056 | AE61: 7.145264559 | AF61: 3.686678721 | AG61: 84.95560678 | AH61: 107.1787043 | AI61: 92.08502497 | AJ61: 265.5949492 | AK61: 139.0036209 | AL61: 24.9153873 | AM61: 33.0535217 | AN61: 72.24060661 | AO61: 24.07174061 | AP61: 32.17087642 | AQ61: 58.84531766 | AR61: 71.04698295 | AS61: 89.51588546 | AT61: 149.5388367 | AU61: 133.4187507 | AV61: 15.03170937 | AW61: 6.598476237 | AX61: 5.48794986 | AY61: 596.0172035 | AZ61: 65.68256719
A62: TON | B62: 2019 | C62: TON_2019_MICS | D62: 142 | E62: Septic tank emptying practices | F62: Emptied and discharged locally | G62: s_sep_edl | H62: 2.171674169 | I62: 4.44010856 | J62: 5.167636136 | K62: 4.174473532 | L62: 6.834523614 | M62: 7.718647931 | N62: 6.26011947 | O62: 4.808473665 | P62: 3.927609587 | Q62: 5.31193043 | R62: 2.756769899 | S62: 2.432853648 | T62: 5.467300163 | U62: 4.396824556 | V62: 6.284692821 | W62: 'EUA | X62: HA'APAI | Y62: ONGO NIUA | Z62: TONGATAPU | AA62: VAVA'U | AB62: 0.3580422471 | AC62: 2.722568787 | AD62: 16.38788405 | AE62: 5.855793054 | AF62: 0.8950373337 | AG62: 36.15034433 | AH62: 101.4689203 | AI62: 124.7020254 | AJ62: 107.1197362 | AK62: 171.2959681 | AL62: 41.41410237 | AM62: 37.13442566 | AN62: 28.1720097 | AO62: 23.4128473 | AP62: 30.61482569 | AQ62: 32.1208641 | AR62: 41.09462561 | AS62: 100.4377093 | AT62: 83.8482027 | AU62: 122.4873819 | AV62: 2.214011076 | AW62: 15.86223892 | AX62: 18.25774212 | AY62: 488.4568474 | AZ62: 15.94615486
A63: TON | B63: 2019 | C63: TON_2019_MICS | D63: 143 | E63: Septic tank emptying practices | F63: Emptied and removed offsite | G63: s_sep_ero | H63: 21.29682146 | I63: 28.53179547 | J63: 25.51429074 | K63: 40.46214609 | L63: 48.57713905 | M63: 33.66871657 | N63: 39.24671674 | O63: 57.47450624 | P63: 52.96875172 | Q63: 63.63752647 | R63: 18.00013979 | S63: 25.13531195 | T63: 22.57753228 | U63: 31.61989661 | V63: 40.70102054 | W63: 'EUA | X63: HA'APAI | Y63: ONGO NIUA | Z63: TONGATAPU | AA63: VAVA'U | AB63: 5.161712181 | AC63: 19.9746414 | AD63: 28.20816919 | AE63: 39.31233571 | AF63: 23.52340436 | AG63: 354.5133243 | AH63: 652.031463 | AI63: 615.6942261 | AJ63: 1038.285279 | AK63: 1217.505203 | AL63: 180.6481766 | AM63: 232.8077431 | AN63: 336.7331215 | AO63: 315.7516724 | AP63: 366.7690694 | AQ63: 209.7309769 | AR63: 424.5739299 | AS63: 414.7633306 | AT63: 602.9968825 | AU63: 793.2545931 | AV63: 31.91826673 | AW63: 116.3763192 | AX63: 31.42672216 | AY63: 3279.210755 | AZ63: 419.0974328
A64: TON | B64: 2019 | C64: TON_2019_MICS | D64: 144 | E64: Latrine emptying practices | F64: Not emptied/treated and disposed in situ | G64: s_lat_nemp | H64: 47.48970912 | I64: 45.50139596 | J64: 56.5725612 | K64: 13.98840394 | L64: 100 | M64: 74.06096735 | N64: 31.27962085 | O64: 0 | P64: 100 | Q64: 0 | R64: 46.4221005 | S64: 45.8817842 | T64: 64.94654731 | U64: 13.85469805 | V64: 0 | W64: 'EUA | X64: HA'APAI | Y64: ONGO NIUA | Z64: TONGATAPU | AA64: VAVA'U | AB64: 84.83076623 | AC64: 20.60637253 | AD64: 9.045520338 | AE64: 65.70678367 | AF64: 39.53315288 | AG64: 353.1361421 | AH64: 99.03540755 | AI64: 46.51456099 | AJ64: 4.296966385 | AK64: 1.978782769 | AL64: 39.85163974 | AM64: 2.380090554 | AN64: 0 | AO64: 1.978782769 | AP64: 0 | AQ64: 317.6878489 | AR64: 89.6517064 | AS64: 44.46555957 | AT64: 8.946231834 | AU64: 0 | AV64: 50.89404479 | AW64: 53.34461557 | AX64: 4.092728789 | AY64: 289.0243341 | AZ64: 107.6061366
A65: TON | B65: 2019 | C65: TON_2019_MICS | D65: 145 | E65: Latrine emptying practices | F65: Emptied and buried on site | G65: s_lat_ebo | H65: 47.61667773 | I65: 32.14951168 | J65: 12.4607589 | K65: 74.8408986 | L65: 0 | M65: 24.58902534 | N65: 68.72037915 | O65: 0 | P65: 0 | Q65: 0 | R65: 48.36668374 | S65: 32.40156575 | T65: 25.98328683 | U65: 41.40047178 | V65: 0 | W65: 'EUA | X65: HA'APAI | Y65: ONGO NIUA | Z65: TONGATAPU | AA65: VAVA'U | AB65: 12.90582612 | AC65: 77.90883441 | AD65: 69.93124418 | AE65: 23.1020633 | AF65: 42.10298438 | AG65: 354.0802878 | AH65: 69.97455627 | AI65: 10.24536838 | AJ65: 22.98967251 | AK65: 0 | AL65: 13.23116636 | AM65: 5.228986824 | AN65: 0 | AO65: 0 | AP65: 0 | AQ65: 330.9955291 | AR65: 63.31174146 | AS65: 17.7894197 | AT65: 26.73304153 | AU65: 0 | AV65: 7.742824 | AW65: 201.6859986 | AX65: 31.64103397 | AY65: 101.6190123 | AZ65: 114.601016
A66: TON | B66: 2019 | C66: TON_2019_MICS | D66: 146 | E66: Latrine emptying practices | F66: Emptied and discharged locally | G66: s_lat_edl | H66: 4.420247625 | I66: 9.755956416 | J66: 3.728594657 | K66: 11.17069747 | L66: 0 | M66: 0 | N66: 0 | O66: 0 | P66: 0 | Q66: 0 | R66: 4.803009456 | S66: 8.356867375 | T66: 7.164411909 | U66: 10.06183645 | V66: 0 | W66: 'EUA | X66: HA'APAI | Y66: ONGO NIUA | Z66: TONGATAPU | AA66: VAVA'U | AB66: 2.263407651 | AC66: 0.4056811642 | AD66: 21.02323548 | AE66: 0 | AF66: 17.88450589 | AG66: 32.8692094 | AH66: 21.23418632 | AI66: 3.065690149 | AJ66: 3.431421606 | AK66: 0 | AL66: 0 | AM66: 0 | AN66: 0 | AO66: 0 | AP66: 0 | AQ66: 32.8692094 | AR66: 16.32908208 | AS66: 4.905104239 | AT66: 6.497111755 | AU66: 0 | AV66: 1.357926794 | AW66: 1.050204529 | AX66: 9.51215606 | AY66: 0 | AZ66: 48.6802201
A67: TON | B67: 2019 | C67: TON_2019_MICS | D67: 147 | E67: Latrine emptying practices | F67: Emptied and removed offsite | G67: s_lat_ero | H67: 0.4733655306 | I67: 12.59313594 | J67: 27.23808525 | K67: 0 | L67: 0 | M67: 1.350007314 | N67: 0 | O67: 0 | P67: 0 | Q67: 0 | R67: 0.4082063035 | S67: 13.35978267 | T67: 1.90575395 | U67: 34.68299371 | V67: 0 | W67: 'EUA | X67: HA'APAI | Y67: ONGO NIUA | Z67: TONGATAPU | AA67: VAVA'U | AB67: 0 | AC67: 1.079111897 | AD67: 0 | AE67: 11.19115302 | AF67: 0.4793568475 | AG67: 3.51997265 | AH67: 27.40940851 | AI67: 22.39544314 | AJ67: 0 | AK67: 0 | AL67: 0.7264286043 | AM67: 0 | AN67: 0 | AO67: 0 | AP67: 0 | AQ67: 2.793544046 | AR67: 26.10463683 | AS67: 1.304771682 | AT67: 22.39544314 | AU67: 0 | AV67: 0 | AW67: 2.793544046 | AX67: 0 | AY67: 49.22650857 | AZ67: 1.304771682
A68: TON | B68: 2019 | C68: TON_2019_MICS | D68: 148 | E68: Shared among improved sanitation facilities | F68: Yes | H68: 9.879601714 | I68: 9.754288297 | J68: 5.783138019 | K68: 2.188886733 | L68: 2.329916089 | M68: 11.5896919 | N68: 2.63288527 | O68: 0.9897597578 | P68: 1.725726093 | Q68: 2.205975995 | R68: 10.64980529 | S68: 9.222542659 | T68: 7.686535857 | U68: 3.240580192 | V68: 2.357835404 | W68: 'EUA | X68: HA'APAI | Y68: ONGO NIUA | Z68: TONGATAPU | AA68: VAVA'U | AB68: 2.12397396 | AC68: 9.154445799 | AD68: 5.872579274 | AE68: 5.868927201 | AF68: 6.431805946 | AG68: 261.5196195 | AH68: 258.2349375 | AI68: 152.8678811 | AJ68: 58.0972546 | AK68: 61.51294521 | AL68: 70.8889667 | AM68: 15.99060289 | AN68: 6.028274809 | AO68: 10.54081799 | AP68: 13.49321215 | AQ68: 217.6754639 | AR68: 187.1342291 | AS68: 156.5770915 | AT68: 65.72575995 | AU68: 48.17821892 | AV68: 15.28644633 | AW68: 86.10505561 | AX68: 9.547344051 | AY68: 547.6894808 | AZ68: 133.6043111
A69: TON | B69: 2019 | C69: TON_2019_MICS | D69: 149 | E69: Shared among improved sanitation facilities | F69: No | H69: 82.26413822 | I69: 87.48359259 | J69: 93.41470057 | K69: 97.81111327 | L69: 97.67008391 | M69: 85.77568137 | N69: 97.36711473 | O69: 99.01024024 | P69: 98.27427391 | Q69: 97.79402401 | R69: 80.4919978 | S69: 87.12379021 | T69: 90.86591671 | U69: 96.68574615 | V69: 97.6421646 | W69: 'EUA | X69: HA'APAI | Y69: ONGO NIUA | Z69: TONGATAPU | AA69: VAVA'U | AB69: 92.62497576 | AC69: 80.71559247 | AD69: 90.4866087 | AE69: 92.63232328 | AF69: 92.44011208 | AG69: 2177.586379 | AH69: 2316.039815 | AI69: 2469.266217 | AJ69: 2596.094656 | AK69: 2578.622702 | AL69: 524.6515156 | AM69: 591.3508211 | AN69: 603.0361736 | AO69: 600.2639921 | AP69: 598.1731062 | AQ69: 1645.206882 | AR69: 1767.8252 | AS69: 1850.966576 | AT69: 1960.989627 | AU69: 1995.145876 | AV69: 666.6309227 | AW69: 759.1962125 | AX69: 147.1085778 | AY69: 8644.467259 | AZ69: 1920.206796
A70: TON | B70: 2019 | C70: TON_2019_MICS | D70: 150 | E70: Shared among improved sanitation facilities | F70: DK/missing | H70: 7.856260066 | I70: 2.762119114 | J70: 0.8021614117 | K70: 0 | L70: 0 | M70: 2.634626728 | N70: 0 | O70: 0 | P70: 0 | Q70: 0 | R70: 8.858196908 | S70: 3.653667136 | T70: 1.44754743 | U70: 0.07367365636 | V70: 0 | W70: 'EUA | X70: HA'APAI | Y70: ONGO NIUA | Z70: TONGATAPU | AA70: VAVA'U | AB70: 5.251050284 | AC70: 10.12996173 | AD70: 3.640812023 | AE70: 1.49874952 | AF70: 1.128081972 | AG70: 207.9604221 | AH70: 73.12431569 | AI70: 21.2038369 | AJ70: 0 | AK70: 0 | AL70: 16.11483446 | AM70: 0 | AN70: 0 | AO70: 0 | AP70: 0 | AQ70: 181.0560915 | AR70: 74.13640773 | AS70: 29.48698485 | AT70: 1.494256203 | AU70: 0 | AV70: 37.79231754 | AW70: 95.28058138 | AX70: 5.91904909 | AY70: 139.8636102 | AZ70: 23.43301648
A71: TON | B71: 2019 | C71: TON_2019_MICS | D71: 151 | E71: Shared among all sanitation facilities | F71: Yes | H71: 11.41065834 | I71: 10.39516588 | J71: 5.783138019 | K71: 2.188886733 | L71: 2.329916089 | M71: 12.35310014 | N71: 2.63288527 | O71: 0.9897597578 | P71: 1.725726093 | Q71: 2.205975995 | R71: 11.56075202 | S71: 10.91204484 | T71: 7.686535857 | U71: 3.240580192 | V71: 2.357835404 | W71: 'EUA | X71: HA'APAI | Y71: ONGO NIUA | Z71: TONGATAPU | AA71: VAVA'U | AB71: 2.132017291 | AC71: 9.306210402 | AD71: 6.416370544 | AE71: 6.422145383 | AF71: 6.572713022 | AG71: 301.3119712 | AH71: 274.8517221 | AI71: 152.8678811 | AJ71: 58.0972546 | AK71: 61.51294521 | AL71: 75.14270598 | AM71: 15.99060289 | AN71: 6.028274809 | AO71: 10.54081799 | AP71: 13.49321215 | AQ71: 235.5492425 | AR71: 221.4158476 | AS71: 156.5770915 | AT71: 65.72575995 | AU71: 48.17821892 | AV71: 15.28644633 | AW71: 87.53252592 | AX71: 10.43141255 | AY71: 598.8600945 | AZ71: 136.531295
A72: TON | B72: 2019 | C72: TON_2019_MICS | D72: 152 | E72: Shared among all sanitation facilities | F72: No | H72: 88.58934166 | I72: 89.60483412 | J72: 94.21686198 | K72: 97.81111327 | L72: 97.67008391 | M72: 87.64689986 | N72: 97.36711473 | O72: 99.01024024 | P72: 98.27427391 | Q72: 97.79402401 | R72: 88.43924798 | S72: 89.08795516 | T72: 92.31346414 | U72: 96.75941981 | V72: 97.6421646 | W72: 'EUA | X72: HA'APAI | Y72: ONGO NIUA | Z72: TONGATAPU | AA72: VAVA'U | AB72: 97.86798271 | AC72: 90.6937896 | AD72: 93.58362946 | AE72: 93.57785462 | AF72: 93.42728698 | AG72: 2339.306671 | AH72: 2369.182297 | AI72: 2490.470054 | AJ72: 2596.094656 | AK72: 2578.622702 | AL72: 533.1475621 | AM72: 591.3508211 | AN72: 603.0361736 | AO72: 600.2639921 | AP72: 598.1731062 | AQ72: 1801.941416 | AR72: 1807.679989 | AS72: 1880.45356 | AT72: 1962.483883 | AU72: 1995.145876 | AV72: 701.7080354 | AW72: 853.0493236 | AX72: 152.1435584 | AY72: 8726.062633 | AZ72: 1940.712829
A73: TON | B73: 2019 | C73: TON_2019_MICS | D73: 153 | E73: Type of toilet facility | F73: FLUSH / POUR FLUSH: FLUSH TO PIPED SEWER SYSTEM | H73: 1.307211177 | I73: 2.694759115 | J73: 4.796142193 | K73: 2.162921356 | L73: 4.993045367 | M73: 0.8477281873 | N73: 1.07715025 | O73: 3.806143316 | P73: 2.081957181 | Q73: 5.775282072 | R73: 0.8369011018 | S73: 3.469971471 | T73: 5.008099695 | U73: 2.717978887 | V73: 4.617205896 | W73: 'EUA | X73: HA'APAI | Y73: ONGO NIUA | Z73: TONGATAPU | AA73: VAVA'U | AB73: 0.494185059 | AC73: 0.4047056078 | AD73: 0 | AE73: 4.442660595 | AF73: 0 | AG73: 34.60274811 | AH73: 71.3410277 | AI73: 126.778246 | AJ73: 57.40808367 | AK73: 131.8231706 | AL73: 5.185174529 | AM73: 6.541979669 | AN73: 23.18186579 | AO73: 12.71669461 | AP73: 35.32545523 | AQ73: 17.1057433 | AR73: 70.40904663 | AS73: 102.0165259 | AT73: 55.1263099 | AU73: 94.34448056 | AV73: 3.556697739 | AW73: 3.806587491 | AX73: 0 | AY73: 414.5899909 | AZ73: 0
A74: TON | B74: 2019 | C74: TON_2019_MICS | D74: 154 | E74: Type of toilet facility | F74: FLUSH / POUR FLUSH: FLUSH TO SEPTIC TANK | H74: 62.88584976 | I74: 86.32171075 | J74: 91.29119503 | K74: 96.67973729 | L74: 94.93200459 | M74: 87.72033176 | N74: 97.66999969 | O74: 96.19385668 | P74: 97.59407963 | Q74: 94.22471793 | R74: 57.00577981 | S74: 83.24659609 | T74: 90.18334036 | U74: 94.02466137 | V74: 95.3827941 | W74: 'EUA | X74: HA'APAI | Y74: ONGO NIUA | Z74: TONGATAPU | AA74: VAVA'U | AB74: 85.91879299 | AC74: 61.94254314 | AD74: 68.52838564 | AE74: 89.38503298 | AF74: 85.76839585 | AG74: 1664.630212 | AH74: 2285.280166 | AI74: 2413.134789 | AJ74: 2566.065767 | AK74: 2506.333694 | AL74: 536.5460731 | AM74: 593.190367 | AN74: 585.8825826 | AO74: 596.1093327 | AP74: 576.3408631 | AQ74: 1165.163045 | AR74: 1689.153215 | AS74: 1837.062286 | AT74: 1907.017249 | AU74: 1948.979614 | AV74: 618.3658757 | AW74: 582.6203179 | AX74: 111.4100031 | AY74: 8341.429468 | AZ74: 1781.618963
A75: TON | B75: 2019 | C75: TON_2019_MICS | D75: 155 | E75: Type of toilet facility | F75: FLUSH / POUR FLUSH: FLUSH TO PIT LATRINE | H75: 4.606875869 | I75: 4.082151217 | J75: 1.780565858 | K75: 0.9954477673 | L75: 0.07495004172 | M75: 3.706163289 | N75: 0 | O75: 0 | P75: 0.3239631935 | Q75: 0 | R75: 4.706452109 | S75: 5.16815622 | T75: 1.51966569 | U75: 2.406878274 | V75: 0 | W75: 'EUA | X75: HA'APAI | Y75: ONGO NIUA | Z75: TONGATAPU | AA75: VAVA'U | AB75: 4.10119739 | AC75: 0.5761386285 | AD75: 1.002593778 | AE75: 2.61360003 | AF75: 1.204322756 | AG75: 121.9470642 | AH75: 108.0708333 | AI75: 47.06637277 | AJ75: 26.42109412 | AK75: 1.978782769 | AL75: 22.66894481 | AM75: 0 | AN75: 0 | AO75: 1.978782769 | AP75: 0 | AQ75: 96.1969837 | AR75: 104.8668427 | AS75: 30.95605591 | AT75: 48.81653725 | AU75: 0 | AV75: 29.51671488 | AW75: 5.419055367 | AX75: 1.629966543 | AY75: 243.9016866 | AZ75: 25.01672368
A76: TON | B76: 2019 | C76: TON_2019_MICS | D76: 156 | E76: Type of toilet facility | F76: FLUSH / POUR FLUSH: FLUSH TO OPEN DRAIN | H76: 0.8538043311 | I76: 0 | J76: 0 | K76: 0 | L76: 0 | M76: 0 | N76: 0 | O76: 0 | P76: 0 | Q76: 0 | R76: 1.105746011 | S76: 0 | T76: 0 | U76: 0 | V76: 0 | W76: 'EUA | X76: HA'APAI | Y76: ONGO NIUA | Z76: TONGATAPU | AA76: VAVA'U | AB76: 0.295320554 | AC76: 1.298535342 | AD76: 0 | AE76: 0.08852884008 | AF76: 0 | AG76: 22.60076775 | AH76: 0 | AI76: 0 | AJ76: 0 | AK76: 0 | AL76: 0 | AM76: 0 | AN76: 0 | AO76: 0 | AP76: 0 | AQ76: 22.60076775 | AR76: 0 | AS76: 0 | AT76: 0 | AU76: 0 | AV76: 2.125450633 | AW76: 12.21378774 | AX76: 0 | AY76: 8.261529372 | AZ76: 0
A77: TON | B77: 2019 | C77: TON_2019_MICS | D77: 157 | E77: Type of toilet facility | F77: VENTILATED IMPROVED PIT LATRINE | H77: 0.8682177404 | I77: 0.8954172651 | J77: 0.09004110003 | K77: 0 | L77: 0 | M77: 1.480660753 | N77: 0.3918867477 | O77: 0 | P77: 0 | Q77: 0 | R77: 0.8762283579 | S77: 0.3838451346 | T77: 0.5857974946 | U77: 0 | V77: 0 | W77: 'EUA | X77: HA'APAI | Y77: ONGO NIUA | Z77: TONGATAPU | AA77: VAVA'U | AB77: 0.3773540412 | AC77: 1.68875546 | AD77: 0.4712857669 | AE77: 0.2303662013 | AF77: 0.3949302175 | AG77: 22.98230026 | AH77: 23.70526833 | AI77: 2.380090554 | AJ77: 0 | AK77: 0 | AL77: 9.056540222 | AM77: 2.380090554 | AN77: 0 | AO77: 0 | AP77: 0 | AQ77: 17.90956821 | AR77: 7.788585645 | AS77: 11.93287452 | AT77: 0 | AU77: 0 | AV77: 2.715853587 | AW77: 15.88412734 | AX77: 0.7661926988 | AY77: 21.49782079 | AZ77: 8.203664736
A78: TON | B78: 2019 | C78: TON_2019_MICS | D78: 158 | E78: Type of toilet facility | F78: PIT LATRINE: PIT LATRINE WITH SLAB | H78: 19.64686927 | I78: 2.982237106 | J78: 1.239894411 | K78: 0.161893583 | L78: 0 | M78: 2.478194755 | N78: 0.8609633094 | O78: 0 | P78: 0 | Q78: 0 | R78: 24.45936792 | S78: 3.668448072 | T78: 1.255549333 | U78: 0.7768078147 | V78: 0 | W78: 'EUA | X78: HA'APAI | Y78: ONGO NIUA | Z78: TONGATAPU | AA78: VAVA'U | AB78: 3.32220445 | AC78: 21.22049108 | AD78: 26.35692279 | AE78: 1.401209244 | AF78: 11.5042692 | AG78: 520.0656791 | AH78: 78.95171735 | AI78: 32.77459933 | AJ78: 4.296966385 | AK78: 0 | AL78: 15.15800998 | AM78: 5.228986824 | AN78: 0 | AO78: 0 | AP78: 0 | AQ78: 499.9344224 | AR78: 74.43632709 | AS78: 25.57592477 | AT78: 15.75529101 | AU78: 0 | AV78: 23.91022723 | AW78: 199.5960875 | AX78: 42.84975958 | AY78: 130.7611318 | AZ78: 238.971756
A79: TON | B79: 2019 | C79: TON_2019_MICS | D79: 159 | E79: Type of toilet facility | F79: PIT LATRINE: PIT LATRINE WITHOUT SLAB / OPEN PIT | H79: 4.825377291 | I79: 2.007346872 | J79: 0.3224969485 | K79: 0 | L79: 0 | M79: 1.389025205 | N79: 0 | O79: 0 | P79: 0 | Q79: 0 | R79: 5.43487585 | S79: 2.538788764 | T79: 0.8251143458 | U79: 0.07367365636 | V79: 0 | W79: 'EUA | X79: HA'APAI | Y79: ONGO NIUA | Z79: TONGATAPU | AA79: VAVA'U | AB79: 4.578465835 | AC79: 8.831426386 | AD79: 3.640812023 | AE79: 0.5683384296 | AF79: 0.694340427 | AG79: 127.7309419 | AH79: 53.14248237 | AI79: 8.524684179 | AJ79: 0 | AK79: 0 | AL79: 8.496046515 | AM79: 0 | AN79: 0 | AO79: 0 | AP79: 0 | AQ79: 111.0855165 | AR79: 51.5144571 | AS79: 16.80783214 | AT79: 1.494256203 | AU79: 0 | AV79: 32.95166211 | AW79: 83.06679364 | AX79: 5.91904909 | AY79: 53.03745791 | AZ79: 14.42314572
A80: TON | B80: 2019 | C80: TON_2019_MICS | D80: 160 | E80: Type of toilet facility | F80: COMPOSTING TOILET | H80: 2.969724062 | I80: 0.2616054291 | J80: 0 | K80: 0 | L80: 0 | M80: 1.132294529 | N80: 0 | O80: 0 | P80: 0 | Q80: 0 | R80: 3.43969054 | S80: 0.4093158739 | T80: 0 | U80: 0 | V80: 0 | W80: 'EUA | X80: HA'APAI | Y80: ONGO NIUA | Z80: TONGATAPU | AA80: VAVA'U | AB80: 0.5352157898 | AC80: 4.037404352 | AD80: 0 | AE80: 0.4683789154 | AF80: 0 | AG80: 78.61056842 | AH80: 6.925739691 | AI80: 0 | AJ80: 0 | AK80: 0 | AL80: 6.925739691 | AM80: 0 | AN80: 0 | AO80: 0 | AP80: 0 | AQ80: 70.30515707 | AR80: 8.305411356 | AS80: 0 | AT80: 0 | AU80: 0 | AV80: 3.851999883 | AW80: 37.97509253 | AX80: 0 | AY80: 43.70921571 | AZ80: 0
A81: TON | B81: 2019 | C81: TON_2019_MICS | D81: 161 | E81: Type of toilet facility | F81: BUCKET | H81: 0.728236425 | I81: 0.1000111151 | J81: 0 | K81: 0 | L81: 0 | M81: 0.4328734265 | N81: 0 | O81: 0 | P81: 0 | Q81: 0 | R81: 0.943125366 | S81: 0 | T81: 0 | U81: 0 | V81: 0 | W81: 'EUA | X81: HA'APAI | Y81: ONGO NIUA | Z81: TONGATAPU | AA81: VAVA'U | AB81: 0 | AC81: 0 | AD81: 0 | AE81: 0.2349394276 | AF81: 0 | AG81: 19.27690187 | AH81: 2.647693328 | AI81: 0 | AJ81: 0 | AK81: 0 | AL81: 2.647693328 | AM81: 0 | AN81: 0 | AO81: 0 | AP81: 0 | AQ81: 19.27690187 | AR81: 0 | AS81: 0 | AT81: 0 | AU81: 0 | AV81: 0 | AW81: 0 | AX81: 0 | AY81: 21.9245952 | AZ81: 0
A82: TON | B82: 2019 | C82: TON_2019_MICS | D82: 162 | E82: Type of toilet facility | F82: NO FACILITY / BUSH / FIELD | H82: 0.1025741089 | I82: 0.1271077226 | J82: 0 | K82: 0 | L82: 0 | M82: 0.5501544041 | N82: 0 | O82: 0 | P82: 0 | Q82: 0 | R82: 0.1328418089 | S82: 0 | T82: 0 | U82: 0 | V82: 0 | W82: 'EUA | X82: HA'APAI | Y82: ONGO NIUA | Z82: TONGATAPU | AA82: VAVA'U | AB82: 0.3772638945 | AC82: 0 | AD82: 0 | AE82: 0.03605916551 | AF82: 0 | AG82: 2.715204793 | AH82: 3.365048663 | AI82: 0 | AJ82: 0 | AK82: 0 | AL82: 3.365048663 | AM82: 0 | AN82: 0 | AO82: 0 | AP82: 0 | AQ82: 2.715204793 | AR82: 0 | AS82: 0 | AT82: 0 | AU82: 0 | AV82: 2.715204793 | AW82: 0 | AX82: 0 | AY82: 3.365048663 | AZ82: 0
A83: TON | B83: 2019 | C83: TON_2019_MICS | D83: 163 | E83: Type of toilet facility | F83: OTHER | H83: 1.205259969 | I83: 0.5276534052 | J83: 0.4796644632 | K83: 0 | L83: 0 | M83: 0.2625736929 | N83: 0 | O83: 0 | P83: 0 | Q83: 0 | R83: 1.058991126 | S83: 1.114878372 | T83: 0.6224330844 | U83: 0 | V83: 0 | W83: 'EUA | X83: HA'APAI | Y83: ONGO NIUA | Z83: TONGATAPU | AA83: VAVA'U | AB83: 0 | AC83: 0 | AD83: 0 | AE83: 0.5308861677 | AF83: 0.4337415453 | AG83: 31.90403192 | AH83: 13.96909133 | AI83: 12.67915272 | AJ83: 0 | AK83: 0 | AL83: 1.606045953 | AM83: 0 | AN83: 0 | AO83: 0 | AP83: 0 | AQ83: 21.64512667 | AR83: 22.62195064 | AS83: 12.67915272 | AT83: 0 | AU83: 0 | AV83: 0 | AW83: 0 | AX83: 0 | AY83: 49.54240521 | AZ83: 9.009870761
A84: TON | B84: 2019 | C84: TON_2019_MICS | D84: 222 | E84: Hygiene ladder | F84: Basic | G84: h_bas | H84: 42.59668074 | I84: 61.84512288 | J84: 72.21788788 | K84: 82.84564863 | L84: 90.08307529 | M84: 48.8801888 | N84: 82.27715297 | O84: 87.73989192 | P84: 87.84493001 | Q84: 95.57045364 | R84: 41.58941007 | S84: 59.28328874 | T84: 68.23169604 | U84: 77.60074464 | V84: 86.66849855 | W84: 'EUA | X84: HA'APAI | Y84: ONGO NIUA | Z84: TONGATAPU | AA84: VAVA'U | AB84: 55.1322466 | AC84: 49.64119498 | AD84: 47.38925948 | AE84: 74.01783558 | AF84: 68.11925769 | AG84: 1095.785736 | AH84: 1597.689732 | AI84: 1858.780253 | AJ84: 2156.721573 | AK84: 2307.896828 | AL84: 287.9750593 | AM84: 491.8699254 | AN84: 531.5549389 | AO84: 532.313425 | AP84: 568.619207 | AQ84: 819.0366562 | AR84: 1178.302543 | AS84: 1352.859278 | AT84: 1532.516274 | AU84: 1721.826816 | AV84: 394.2492944 | AW84: 466.2168688 | AX84: 75.32702796 | AY84: 6679.372396 | AZ84: 1401.708535
A85: TON | B85: 2019 | C85: TON_2019_MICS | D85: 223 | E85: Hygiene ladder | F85: Limited | G85: h_lim | H85: 50.93260337 | I85: 34.08131359 | J85: 27.2905927 | K85: 16.14380527 | L85: 8.393326138 | M85: 37.01301079 | N85: 15.88019913 | O85: 10.97119615 | P85: 11.19997041 | Q85: 1.141676129 | R85: 52.1395757 | S85: 37.70631984 | T85: 31.11706278 | U85: 21.76766283 | V85: 12.6426903 | W85: 'EUA | X85: HA'APAI | Y85: ONGO NIUA | Z85: TONGATAPU | AA85: VAVA'U | AB85: 42.79333078 | AC85: 43.30099092 | AD85: 40.46303987 | AE85: 23.60654156 | AF85: 30.18565978 | AG85: 1310.22463 | AH85: 880.4471919 | AI85: 702.4189752 | AJ85: 420.271839 | AK85: 215.034075 | AL85: 218.0602047 | AM85: 94.93513177 | AN85: 66.46684163 | AO85: 67.8683973 | AP85: 6.792674411 | AQ85: 1026.805229 | AR85: 749.4431144 | AS85: 616.97143 | AT85: 429.8837297 | AU85: 251.1699585 | AV85: 306.0140209 | AW85: 406.6713626 | AX85: 64.3175388 | AY85: 2130.255239 | AZ85: 621.13855
A86: TON | B86: 2019 | C86: TON_2019_MICS | D86: 224 | E86: Hygiene ladder | F86: No facility | G86: h_nfac | H86: 6.470715895 | I86: 4.07356353 | J86: 0.4915194225 | K86: 1.010546099 | L86: 1.523598571 | M86: 14.10680041 | N86: 1.842647903 | O86: 1.288911932 | P86: 0.9550995776 | Q86: 3.287870234 | R86: 6.271014234 | S86: 3.010391426 | T86: 0.6512411794 | U86: 0.6315925267 | V86: 0.6888111486 | W86: 'EUA | X86: HA'APAI | Y86: ONGO NIUA | Z86: TONGATAPU | AA86: VAVA'U | AB86: 2.074422616 | AC86: 7.057814104 | AD86: 12.14770065 | AE86: 2.375622861 | AF86: 1.695082536 | AG86: 166.4570586 | AH86: 105.2353091 | AI86: 12.65097365 | AJ86: 26.30755639 | AK86: 39.03406159 | AL86: 83.10947203 | AM86: 11.01573224 | AN86: 7.808620323 | AO86: 5.787611503 | AP86: 19.5619681 | AQ86: 123.4975567 | AR86: 59.83392533 | AS86: 12.91243986 | AT86: 12.47315126 | AU86: 13.68448199 | AV86: 14.83414341 | AW86: 66.28510845 | AX86: 19.30923159 | AY86: 214.3763005 | AZ86: 34.88017543
A87: TON | B87: 2019 | C87: TON_2019_MICS | D87: 225 | E87: Observed handwashing place | F87: Fixed | H87: 75.78955419 | I87: 85.70418511 | J87: 93.00267244 | K87: 95.61476559 | L87: 99.38584402 | M87: 88.80230171 | N87: 93.88388451 | O87: 97.94703133 | P87: 98.31963977 | Q87: 100 | R87: 73.23037714 | S87: 84.21667013 | T87: 92.30281951 | U87: 93.94795286 | V87: 96.98476837 | W87: 'EUA | X87: HA'APAI | Y87: ONGO NIUA | Z87: TONGATAPU | AA87: VAVA'U | AB87: 87.82403291 | AC87: 66.24225039 | AD87: 77.86271167 | AE87: 92.63043212 | AF87: 90.73761808 | AG87: 1899.896172 | AH87: 2149.980686 | AI87: 2411.628711 | AJ87: 2469.74775 | AK87: 2510.418725 | AL87: 460.7955955 | AM87: 556.572623 | AN87: 585.7445807 | AO87: 593.0471621 | AP87: 575.4118814 | AQ87: 1417.041476 | AR87: 1645.813286 | AS87: 1850.104459 | AT87: 1843.63463 | AU87: 1913.506352 | AV87: 622.5915597 | AW87: 610.4688202 | AX87: 118.9078849 | AY87: 8232.890745 | AZ87: 1856.813034
A88: TON | B88: 2019 | C88: TON_2019_MICS | D88: 226 | E88: Observed handwashing place | F88: Mobile | H88: 24.21044581 | I88: 14.29581489 | J88: 6.997327564 | K88: 4.385234411 | L88: 0.6141559764 | M88: 11.19769829 | N88: 6.116115489 | O88: 2.052968671 | P88: 1.680360225 | Q88: 0 | R88: 26.76962286 | S88: 15.78332987 | T88: 7.697180491 | U88: 6.05204714 | V88: 3.015231631 | W88: 'EUA | X88: HA'APAI | Y88: ONGO NIUA | Z88: TONGATAPU | AA88: VAVA'U | AB88: 12.17596709 | AC88: 33.75774961 | AD88: 22.13728833 | AE88: 7.369567879 | AF88: 9.262381923 | AG88: 606.9086146 | AH88: 358.6257294 | AI88: 181.4459264 | AJ88: 113.2714467 | AK88: 15.51316164 | AL88: 58.10491341 | AM88: 36.25821895 | AN88: 12.2771998 | AO88: 10.13564396 | AP88: 0 | AQ88: 518.0045135 | AR88: 308.4474126 | AS88: 154.2811803 | AT88: 118.7653733 | AU88: 59.49042284 | AV88: 86.31639984 | AW88: 311.1013508 | AX88: 33.80691574 | AY88: 654.9990732 | AZ88: 189.5411391
A89: TON | B89: 2019 | C89: TON_2019_MICS | D89: 227 | E89: Water / Soap | F89: Water and soap | H89: 43.93928848 | I89: 63.68833796 | J89: 72.57460616 | K89: 83.49614961 | L89: 91.36813388 | M89: 55.49716262 | N89: 82.96969229 | O89: 88.88554835 | P89: 88.2507624 | Q89: 98.81951092 | R89: 42.61145568 | S89: 60.29403057 | T89: 68.58566599 | U89: 78.09398038 | V89: 87.26962143 | W89: 'EUA | X89: HA'APAI | Y89: ONGO NIUA | Z89: TONGATAPU | AA89: VAVA'U | AB89: 55.78085046 | AC89: 50.58940529 | AD89: 49.32529633 | AE89: 75.44773948 | AF89: 68.7592801 | AG89: 1095.785736 | AH89: 1597.689732 | AI89: 1858.780253 | AJ89: 2156.721573 | AK89: 2307.896828 | AL89: 287.9750593 | AM89: 491.8699254 | AN89: 531.5549389 | AO89: 532.313425 | AP89: 568.619207 | AQ89: 819.0366562 | AR89: 1178.302543 | AS89: 1352.859278 | AT89: 1532.516274 | AU89: 1721.826816 | AV89: 394.2492944 | AW89: 466.2168688 | AX89: 75.32702796 | AY89: 6679.372396 | AZ89: 1401.708535
A90: TON | B90: 2019 | C90: TON_2019_MICS | D90: 228 | E90: Water / Soap | F90: Water only | H90: 50.22403926 | I90: 33.34015484 | J90: 24.45297639 | K90: 15.80469084 | L90: 8.093137019 | M90: 39.41604936 | N90: 14.10457029 | O90: 11.11445165 | P90: 9.493216703 | Q90: 1.180489078 | R90: 51.31436076 | S90: 36.12326905 | T90: 29.55946215 | U90: 19.53968884 | V90: 12.69190463 | W90: 'EUA | X90: HA'APAI | Y90: ONGO NIUA | Z90: TONGATAPU | AA90: VAVA'U | AB90: 38.99610798 | AC90: 41.35437199 | AD90: 40.73377128 | AE90: 22.69980562 | AF90: 29.39820986 | AG90: 1252.518822 | AH90: 836.3732633 | AI90: 626.2894425 | AJ90: 408.2381986 | AK90: 204.4271286 | AL90: 204.5300807 | AM90: 83.6162428 | AN90: 66.46684163 | AO90: 57.26145089 | AP90: 6.792674411 | AQ90: 986.3155759 | AR90: 705.9428499 | AS90: 583.0634148 | AT90: 383.4468545 | AU90: 250.410869 | AV90: 275.6176704 | AW90: 381.1095566 | AX90: 62.2064976 | AY90: 2009.608983 | AZ90: 599.3041464
A91: TON | B91: 2019 | C91: TON_2019_MICS | D91: 229 | E91: Water / Soap | F91: Soap only | H91: 2.313912378 | I91: 1.75690887 | J91: 2.972417445 | K91: 0.4658749906 | L91: 0.4199221076 | M91: 2.607460145 | N91: 1.909294891 | O91: 0 | P91: 1.758496149 | Q91: 0 | R91: 2.106527283 | S91: 2.225919219 | T91: 1.719028613 | U91: 2.366330772 | V91: 0.03847393577 | W91: 'EUA | X91: HA'APAI | Y91: ONGO NIUA | Z91: TONGATAPU | AA91: VAVA'U | AB91: 4.300665355 | AC91: 2.773723236 | AD91: 1.382342238 | AE91: 1.362775831 | AF91: 1.071062803 | AG91: 57.70580878 | AH91: 44.07392863 | AI91: 76.12953266 | AJ91: 12.03364044 | AK91: 10.60694641 | AL91: 13.53012396 | AM91: 11.31888898 | AN91: 0 | AO91: 10.60694641 | AP91: 0 | AQ91: 40.48965319 | AR91: 43.50026448 | AS91: 33.90801524 | AT91: 46.43687516 | AU91: 0.7590895119 | AV91: 30.3963505 | AW91: 25.56180597 | AX91: 2.111041194 | AY91: 120.6462557 | AZ91: 21.83440359
A92: TON | B92: 2019 | C92: TON_2019_MICS | D92: 230 | E92: Water / Soap | F92: Neither | H92: 3.522759883 | I92: 1.214598325 | J92: 0 | K92: 0.2332845541 | L92: 0.1188069939 | M92: 2.479327872 | N92: 1.016442531 | O92: 0 | P92: 0.4975247491 | Q92: 0 | R92: 3.967656281 | S92: 1.356781167 | T92: 0.1358432418 | U92: 0 | V92: 0 | W92: 'EUA | X92: HA'APAI | Y92: ONGO NIUA | Z92: TONGATAPU | AA92: VAVA'U | AB92: 0.922376204 | AC92: 5.282499488 | AD92: 8.558590159 | AE92: 0.4896790744 | AF92: 0.771447237 | AG92: 87.85281158 | AH92: 30.46949149 | AI92: 0 | AJ92: 6.025784816 | AK92: 3.000983742 | AL92: 12.86524495 | AM92: 6.025784816 | AN92: 0 | AO92: 3.000983742 | AP92: 0 | AQ92: 76.26249518 | AR92: 26.51504111 | AS92: 2.67952184 | AT92: 0 | AU92: 0 | AV92: 6.519193677 | AW92: 48.68193957 | AX92: 13.0702339 | AY92: 43.35118474 | AZ92: 15.72651975
A93: TON | B93: 2019 | C93: TON_2019_MICS | D93: 231 | E93: Place where household members most often wash their hands | F93: OBSERVED: FIXED FACILITY OBSERVED (SINK / TAP) IN DWELLING | H93: 17.52012051 | I93: 42.73244282 | J93: 55.79506887 | K93: 75.10668886 | L93: 81.69718452 | M93: 36.53045459 | N93: 75.99664623 | O93: 84.66614245 | P93: 81.84870841 | Q93: 88.62475076 | R93: 13.90214055 | S93: 38.59572413 | T93: 50.15367538 | U93: 64.5920051 | V93: 77.25719581 | W93: 'EUA | X93: HA'APAI | Y93: ONGO NIUA | Z93: TONGATAPU | AA93: VAVA'U | AB93: 40.15251635 | AC93: 25.13652187 | AD93: 17.40755004 | AE93: 62.19034993 | AF93: 41.54467643 | AG93: 463.7692267 | AH93: 1131.298293 | AI93: 1474.852221 | AJ93: 1993.47566 | AK93: 2156.916491 | AL93: 223.4404678 | AM93: 461.5591134 | AN93: 515.6713735 | AO93: 499.9358479 | AP93: 542.0877501 | AQ93: 284.1511943 | AR93: 783.1442314 | AS93: 1021.645741 | AT93: 1310.061276 | AU93: 1578.614897 | AV93: 288.9815496 | AW93: 236.4295623 | AX93: 28.30031942 | AY93: 5803.616111 | AZ93: 862.9843499
A94: TON | B94: 2019 | C94: TON_2019_MICS | D94: 232 | E94: Place where household members most often wash their hands | F94: OBSERVED: FIXED FACILITY OBSERVED (SINK / TAP) IN YARD /PLOT | H94: 54.2535289 | I94: 38.47861116 | J94: 35.43914977 | K94: 17.9441467 | L94: 13.38954815 | M94: 38.8053731 | N94: 15.64416748 | O94: 11.50505621 | P94: 15.24403747 | Q94: 5.448089965 | R94: 55.42682992 | S94: 42.51494871 | T94: 40.66991909 | U94: 26.30760362 | V94: 16.38954174 | W94: 'EUA | X94: HA'APAI | Y94: ONGO NIUA | Z94: TONGATAPU | AA94: VAVA'U | AB94: 46.35341394 | AC94: 39.76679521 | AD94: 55.73278897 | AE94: 26.03160455 | AF94: 47.84361516 | AG94: 1436.126946 | AH94: 1018.682393 | AI94: 936.7764897 | AJ94: 476.2720902 | AK94: 353.5022337 | AL94: 237.3551277 | AM94: 95.01350956 | AN94: 70.07320717 | AO94: 93.11131414 | AP94: 33.32413131 | AQ94: 1132.890281 | AR94: 862.6690541 | AS94: 828.4587179 | AT94: 533.5733537 | AU94: 334.8914554 | AV94: 333.6100102 | AW94: 374.0392579 | AX94: 90.60756549 | AY94: 2429.274634 | AZ94: 993.8286846
A95: TON | B95: 2019 | C95: TON_2019_MICS | D95: 233 | E95: Place where household members most often wash their hands | F95: OBSERVED: MOBILE OBJECT (BUCKET / JUG / KETTLE/TINI VAI) | H95: 22.92759297 | I95: 13.54634191 | J95: 6.86427278 | K95: 4.267643429 | L95: 0.5875895679 | M95: 9.499617156 | N95: 5.969989451 | O95: 2.015747239 | P95: 1.659391641 | Q95: 0 | R95: 25.34344988 | S95: 15.20122446 | T95: 7.573827139 | U95: 5.855675406 | V95: 2.911453107 | W95: 'EUA | X95: HA'APAI | Y95: ONGO NIUA | Z95: TONGATAPU | AA95: VAVA'U | AB95: 11.99322469 | AC95: 33.07541508 | AD95: 20.79466202 | AE95: 7.0188346 | AF95: 9.124644373 | AG95: 606.9086146 | AH95: 358.6257294 | AI95: 181.4459264 | AJ95: 113.2714467 | AK95: 15.51316164 | AL95: 58.10491341 | AM95: 36.25821895 | AN95: 12.2771998 | AO95: 10.13564396 | AP95: 0 | AQ95: 518.0045135 | AR95: 308.4474126 | AS95: 154.2811803 | AT95: 118.7653733 | AU95: 59.49042284 | AV95: 86.31639984 | AW95: 311.1013508 | AX95: 33.80691574 | AY95: 654.9990732 | AZ95: 189.5411391
A96: TON | B96: 2019 | C96: TON_2019_MICS | D96: 234 | E96: Place where household members most often wash their hands | F96: NOT OBSERVED: NO HANDWASHING PLACE IN DWELLING / YARD / PLOT | H96: 2.969485253 | I96: 2.824123441 | J96: 0.4785984221 | K96: 0.7641411119 | L96: 1.364819186 | M96: 11.48428292 | N96: 0.8216049867 | O96: 1.282067989 | P96: 0.4562223012 | Q96: 3.198143744 | R96: 2.310982595 | S96: 1.642055719 | T96: 0.5023448228 | U96: 0.6149833325 | V96: 0.6697166652 | W96: 'EUA | X96: HA'APAI | Y96: ONGO NIUA | Z96: TONGATAPU | AA96: VAVA'U | AB96: 1.155319969 | AC96: 1.871519091 | AD96: 3.837612673 | AE96: 1.832669768 | AF96: 0.9220705194 | AG96: 78.604247 | AH96: 74.76581765 | AI96: 12.65097365 | AJ96: 20.28177158 | AK96: 36.03307784 | AL96: 70.24422709 | AM96: 4.989947426 | AN96: 7.808620323 | AO96: 2.786627761 | AP96: 19.5619681 | AQ96: 47.23506154 | AR96: 33.31888422 | AS96: 10.23291802 | AT96: 12.47315126 | AU96: 13.68448199 | AV96: 8.314949731 | AW96: 17.60316888 | AX96: 6.23899769 | AY96: 171.0251157 | AZ96: 19.15365568
A97: TON | B97: 2019 | C97: TON_2019_MICS | D97: 235 | E97: Place where household members most often wash their hands | F97: NOT OBSERVED: NO PERMISSION TO SEE | H97: 2.227008776 | I97: 2.041079294 | J97: 1.422910159 | K97: 1.796737822 | L97: 2.585611289 | M97: 3.680272232 | N97: 1.56759185 | O97: 0.4215984098 | P97: 0 | Q97: 2.729015536 | R97: 2.88415739 | S97: 1.55364438 | T97: 1.100233566 | U97: 2.504704504 | V97: 2.52388628 | W97: 'EUA | X97: HA'APAI | Y97: ONGO NIUA | Z97: TONGATAPU | AA97: VAVA'U | AB97: 0.3455250482 | AC97: 0 | AD97: 1.96930124 | AE97: 2.694095023 | AF97: 0.4548762924 | AG97: 58.95040148 | AH97: 54.0355142 | AI97: 37.61232403 | AJ97: 47.68886994 | AK97: 68.26364533 | AL97: 22.51058078 | AM97: 9.520634663 | AN97: 2.567806029 | AO97: 0 | AP97: 16.69246886 | AQ97: 58.95040148 | AR97: 31.52493343 | AS97: 22.41209498 | AT97: 50.80065829 | AU97: 51.57117647 | AV97: 2.486777241 | AW97: 0 | AX97: 3.20159092 | AY97: 251.4134958 | AZ97: 9.448891055
A98: TON | B98: 2019 | C98: TON_2019_MICS | D98: 236 | E98: Place where household members most often wash their hands | F98: OTHER REASON | H98: 0.1022635919 | I98: 0.3774013821 | J98: 0 | K98: 0.1206420717 | L98: 0.3752472861 | M98: 0 | N98: 0 | O98: 0.1093876955 | P98: 0.7916401766 | Q98: 0 | R98: 0.1324396642 | S98: 0.4924026009 | T98: 0 | U98: 0.1250280291 | V98: 0.2482063957 | W98: 'EUA | X98: HA'APAI | Y98: ONGO NIUA | Z98: TONGATAPU | AA98: VAVA'U | AB98: 0 | AC98: 0.1497487543 | AD98: 0.2580850628 | AE98: 0.2324461341 | AF98: 0.1101172202 | AG98: 2.706985202 | AH98: 9.991320673 | AI98: 0 | AJ98: 3.202072108 | AK98: 9.907037364 | AL98: 0 | AM98: 0 | AN98: 0.6662415644 | AO98: 4.835376277 | AP98: 0 | AQ98: 2.706985202 | AR98: 9.991320673 | AS98: 0 | AT98: 2.535830543 | AU98: 5.071661087 | AV98: 0 | AW98: 1.408509603 | AX98: 0.419581716 | AY98: 21.69192054 | AZ98: 2.287403486
A99: TON | B99: 2019 | C99: TON_2019_MICS | D99: 261 | E99: Private place to wash and change | F99: Yes | G99: m_place | H99: 95.1662702 | I99: 94.51401108 | J99: 92.95078556 | K99: 93.54748807 | L99: 94.49874814 | M99: 94.96860895 | N99: 95.68914587 | O99: 94.48106006 | P99: 96.65264509 | Q99: 90.09473245 | R99: 96.90995628 | S99: 94.61728389 | T99: 92.69052013 | U99: 95.02440564 | V99: 92.27471351 | W99: 'EUA | X99: HA'APAI | Y99: ONGO NIUA | Z99: TONGATAPU | AA99: VAVA'U | AB99: 97.69889927 | AC99: 95.76867631 | AD99: 88.92147597 | AE99: 92.98009255 | AF99: 97.81666882 | AG99: 348.0923114 | AH99: 566.8827294 | AI99: 547.1108505 | AJ99: 533.9187333 | AK99: 522.3834856 | AL99: 116.0890383 | AM99: 124.707301 | AN99: 120.6802159 | AO99: 126.7945473 | AP99: 115.7265189 | AQ99: 210.4608394 | AR99: 407.247598 | AS99: 431.8616055 | AT99: 413.1417609 | AU99: 451.6786849 | AV99: 137.257379 | AW99: 168.4437663 | AX99: 25.81813982 | AY99: 1816.726005 | AZ99: 370.1428202
A100: TON | B100: 2019 | C100: TON_2019_MICS | D100: 262 | E100: Private place to wash and change | F100: No | H100: 4.833729797 | I100: 5.485988924 | J100: 7.049214436 | K100: 6.452511927 | L100: 5.501251862 | M100: 5.031391048 | N100: 4.310854127 | O100: 5.518939941 | P100: 3.347354911 | Q100: 9.90526755 | R100: 3.090043716 | S100: 5.382716115 | T100: 7.309479871 | U100: 4.975594357 | V100: 7.725286489 | W100: 'EUA | X100: HA'APAI | Y100: ONGO NIUA | Z100: TONGATAPU | AA100: VAVA'U | AB100: 2.30110073 | AC100: 4.23132369 | AD100: 11.07852403 | AE100: 7.01990745 | AF100: 2.183331183 | AG100: 17.68046782 | AH100: 32.9042471 | AI100: 41.49186778 | AJ100: 36.82746662 | AK100: 30.41059463 | AL100: 6.1503412 | AM100: 5.618139638 | AN100: 7.049316159 | AO100: 4.391254376 | AP100: 12.72329803 | AQ100: 6.710695362 | AR100: 23.16805259 | AS100: 34.0561657 | AT100: 21.63260902 | AU100: 37.81477188 | AV100: 3.232821019 | AW100: 7.442309179 | AX100: 3.216623197 | AY100: 137.1610639 | AZ100: 8.261826653
A101: TON | B101: 2019 | C101: TON_2019_MICS | D101: 264 | E101: Use of menstrual materials | F101: Materials reusable | H101: 1.708314384 | I101: 0.1813507418 | J101: 0.5145227507 | K101: 0.3457441902 | L101: 2.231376001 | M101: 0 | N101: 0.6406288964 | O101: 0.9978416733 | P101: 2.535641502 | Q101: 1.55705537 | R101: 0.7386488905 | S101: 1.189094698 | T101: 0.2012490078 | U101: 0.4301127251 | V101: 1.57453818 | W101: 'EUA | X101: HA'APAI | Y101: ONGO NIUA | Z101: TONGATAPU | AA101: VAVA'U | AB101: 0.4606336578 | AC101: 0.2692855657 | AD101: 3.300181888 | AE101: 0.8369016685 | AF101: 1.649531505 | AG101: 6.248549 | AH101: 1.087718131 | AI101: 3.028494897 | AJ101: 1.973321827 | AK101: 12.33491444 | AL101: 0 | AM101: 0.8349024324 | AN101: 1.2745385 | AO101: 3.326401632 | AP101: 2.000034772 | AQ101: 1.604135132 | AR101: 5.118049682 | AS101: 0.9376548915 | AT101: 1.870019891 | AU101: 7.707261365 | AV101: 0.6471451473 | AW101: 0.4736358134 | AX101: 0.9581999904 | AY101: 16.35211348 | AZ101: 6.241903868
A102: TON | B102: 2019 | C102: TON_2019_MICS | D102: 265 | E102: Use of menstrual materials | F102: Materials not reusable | H102: 92.75944956 | I102: 94.18314815 | J102: 91.44216403 | K102: 95.26445811 | L102: 90.84489555 | M102: 85.83833714 | N102: 83.27604398 | O102: 91.08672185 | P102: 95.70020996 | Q102: 91.58903926 | R102: 92.14988065 | S102: 95.85934982 | T102: 94.07972151 | U102: 96.20339253 | V102: 91.11644159 | W102: 'EUA | X102: HA'APAI | Y102: ONGO NIUA | Z102: TONGATAPU | AA102: VAVA'U | AB102: 98.30078432 | AC102: 98.92767871 | AD102: 78.40642077 | AE102: 92.29212986 | AF102: 92.53837901 | AG102: 339.2888166 | AH102: 564.8982567 | AI102: 538.2310631 | AJ102: 543.7182745 | AK102: 502.1852048 | AL102: 104.9282507 | AM102: 108.5298713 | AN102: 116.3446436 | AO102: 125.5450877 | AP102: 117.6459532 | AQ102: 200.12331 | AR102: 412.5936442 | AS102: 438.3341416 | AT102: 418.2676937 | AU102: 446.0090197 | AV102: 138.1029685 | AW102: 174.0000116 | AX102: 22.76511846 | AY102: 1803.283991 | AZ102: 350.1695263
A103: TON | B103: 2019 | C103: TON_2019_MICS | D103: 266 | E103: Use of menstrual materials | F103: No materials used | G103: m_nomat | H103: 4.807734852 | I103: 4.824682572 | J103: 7.973999438 | K103: 4.3897977 | L103: 6.728840184 | M103: 14.16166286 | N103: 16.08332712 | O103: 7.915436478 | P103: 1.764148542 | Q103: 6.015188109 | R103: 5.891223897 | S103: 2.488028511 | T103: 5.015885205 | U103: 3.36649474 | V103: 7.309020227 | W103: 'EUA | X103: HA'APAI | Y103: ONGO NIUA | Z103: TONGATAPU | AA103: VAVA'U | AB103: 0.9481825434 | AC103: 0.803035728 | AD103: 18.29339734 | AE103: 6.478989221 | AF103: 5.565868646 | AG103: 17.58538539 | AH103: 28.93781773 | AI103: 46.93517745 | AJ103: 25.05460356 | AK103: 37.19663021 | AL103: 17.31112882 | AM103: 20.96066694 | AN103: 10.11034997 | AO103: 2.314312408 | AP103: 7.726498114 | AQ103: 12.79406135 | AR103: 10.7088641 | AS103: 23.36990055 | AT103: 14.63665629 | AU103: 35.77717577 | AV103: 1.332103552 | AW103: 1.412428027 | AX103: 5.311444567 | AY103: 126.5921326 | AZ103: 21.0615056
